Workbook

Sheet Instructions (hidden)
A1: Instructions
A2: This sheet provides basic instructions for using this calculator. Please contact the utility rebate program staff for further help or questions.
A5: Getting Started
B7: After opening the file, enable macros if prompted. This tool uses macros to format the spreadsheets for different scenarios.
A24: Project Info
A27: 1. | B27: Start with this sheet. Enter in all relevant information for the project. The minimum required fields are State, Utility, County, and Program; these fields have drop-downs.
A29: 2. | B29: Once the required information is filled in, use the macro buttons to the side to open up tabs for specific measure types.
A31: Measure Tabs
A32: The "Refrigeration" and "Food Service" tabs feature multiple measures. Click on the individual measure headings to expand them and show the inputs.
A34: - | B34: For all measures, follow the heading prompts and fill in all columns to calculate savings. Several columns use drop-downs.
A36: Savings Summary
A37: This tab shows the summary of savings for all energy conservation measures included in the project. This tab also shows the estimated incentives for each measure and for the total project. Some programs cap incentive based on project cost, this tab will also check for that if project cost has been entered.

Sheet Project Info
B1: Texas "Other Measures" Calculator | K1: v23.0
B2: A calculation tool for determining deemed savings for projects other than standard prescriptive lighting & HVAC replacements.
F3: =IF(OR(D9="",D10="",I9="",I10=""),"Please fill in highlighted cells to continue.","") ->  | M3: Click buttons to open or close measure groups
C4: Assessed by:
C5: Project ID:
C6: Project Name:
C7: Project Sponsor:
C9: State: | D9: TX | H9: Utility: | I9: AEP TCD
C10: =IFERROR(IF('Project Info'!D9="LA","Parish:","County:"),"") -> County: | D10: Aransas | H10: Program: | I10: Commercial Solutions
C11: Contact Name:
C12: Contact Phone: | H12: Contact Email:
C13: Account Number: | I13: Name on Account:
C14: Project Site Address:
C15: City: | J15: ZIP Code:
C17: Incentive Paid to: | I17: $/kWh | J17: $/kW
C18: Project Cost: | H18: Utility Rates: | I18: 0.1 | J18: 0
C20: Project Decription:

Sheet Savings Summary
B1: Savings Summary | K1: HIDE | L1: HIDE | M1: HIDE | N1: HIDE | O1: HIDE | P1: HIDE | Q1: HIDE | R1: HIDE | S1: HIDE | T1: HIDE | U1: HIDE | V1: HIDE | W1: HIDE | X1: HIDE | Y1: HIDE | Z1: HIDE | AA1: HIDE | AB1: HIDE | AC1: HIDE | AD1: HIDE | AE1: HIDE | AF1: HIDE | AG1: HIDE | AH1: HIDE | AI1: HIDE | AJ1: HIDE | AK1: HIDE | AL1: HIDE | AM1: HIDE | AN1: HIDE | AO1: HIDE | AP1: HIDE | AQ1: HIDE | AR1: HIDE | AS1: HIDE | AT1: HIDE | AU1: HIDE | AV1: HIDE | AW1: HIDE | AX1: HIDE | AY1: HIDE | AZ1: HIDE | BA1: HIDE | BB1: HIDE | BC1: HIDE | BD1: HIDE | BE1: HIDE | BF1: HIDE | BG1: HIDE | BH1: HIDE | BI1: HIDE | BJ1: HIDE | BK1: HIDE | BL1: HIDE | BM1: HIDE | BN1: HIDE | BO1: HIDE | BP1: HIDE | BQ1: HIDE | BR1: HIDE | BS1: HIDE | BT1: HIDE | BU1: HIDE | BV1: HIDE | BW1: HIDE | BX1: HIDE | BY1: HIDE | BZ1: HIDE | CA1: HIDE | CB1: HIDE | CC1: HIDE | CD1: HIDE | CE1: HIDE | CF1: HIDE | CG1: HIDE | CH1: HIDE | CI1: HIDE | CJ1: HIDE | CK1: HIDE | CL1: HIDE | CM1: HIDE | CN1: HIDE | CO1: HIDE | CP1: HIDE | CQ1: HIDE | CR1: HIDE | CS1: HIDE | CT1: HIDE | CU1: HIDE | CV1: HIDE | CW1: HIDE | CX1: HIDE | CY1: HIDE | CZ1: HIDE | DA1: HIDE | DB1: HIDE | DC1: HIDE | DD1: HIDE | DE1: HIDE | DF1: HIDE | DG1: HIDE | DH1: HIDE | DI1: HIDE | DJ1: HIDE | DK1: HIDE | DL1: HIDE | DM1: HIDE | DN1: HIDE | DO1: HIDE | DP1: HIDE | DQ1: HIDE
C2: Project Name: | D2: =IF('Project Info'!D6:K6="","",'Project Info'!D6:K6) -> 
E4: Total Summer Peak kW Savings | F4: Total Winter Peak kW Savings | G4: Total Non-Coincident kW Savings | H4: Total kWh Savings | I4: Total Incentive* | J4: Total Project Cost | K4: Non-Capped Incentive | S4: Incentive Matrix
E5: =SUM(E8:E48) -> 0 | F5: =SUM(F8:F48) -> 0 | G5: =SUM(G8:G48) -> 0 | H5: =SUM(H8:H48) -> 0 | I5: =IF(I53="Yes",'Utility Admin'!G2,K5) -> 0 | J5: =IF('Project Info'!D18="","Not Entered",'Project Info'!D18) -> Not Entered | K5: =SUM(K8:K48) -> 0
S6: AEP SWEPCOCommercial Solutions | Y6: AEP SWEPCOSCORE | AE6: AEP TCDCommercial Solutions | AK6: AEP TCDSCORE/CitySmart | AQ6: AEP TNDCommercial Solutions | AW6: AEP TNDSCORE/CitySmart | BC6: CenterPoint EnergySCORE/CitySmart | BI6: CPS EnergyLarge C&I | BO6: CPS EnergySchools & Inst | BU6: CPS EnergySmall Business | CA6: El Paso Electric TXLarge Commercial Solutions | CG6: El Paso Electric TXSCORE | CM6: El Paso Electric TXSmall Commercial Solutions | CS6: Entergy TXCommercial Solutions | CY6: Texas-New Mexico PowerCommercial Solutions | DE6: Texas-New Mexico PowerSCORE/CitySmart | DK6: Texas-New Mexico PowerSCORE Underserved/Small Score
B7: Measure Category | D7: EUL | E7: Summer Peak kW Savings | F7: Winter Peak kW Savings | G7: Non-Coincident kW Savings | H7: kWh Savings | I7: Incentive* | J7: Estimated Measure Cost | K7: Non-Capped Incentive | L7: kWh Savings | M7: Load Factor Cap | N7: $/kW | O7: $/NCPkW | P7: $/kWh | Q7: Eligible Measure | R7: Record Type ID | S7: $/kW | T7: $/kWh | U7: PROD Eligible Measure | V7: PROD Record Type ID | W7: UAT Eligible Measure | X7: UAT Record Type ID | Y7: $/kW | Z7: $/kWh | AA7: PROD Eligible Measure | AB7: PROD Record Type ID | AC7: UAT Eligible Measure | AD7: UAT Record Type ID | AE7: $/kW | AF7: $/kWh | AG7: PROD Eligible Measure | AH7: PROD Record Type ID | AI7: UAT Eligible Measure | AJ7: UAT Record Type ID | AK7: $/kW | AL7: $/kWh | AM7: PROD Eligible Measure | AN7: PROD Record Type ID | AO7: UAT Eligible Measure | AP7: UAT Record Type ID | AQ7: $/kW | AR7: $/kWh | AS7: PROD Eligible Measure | AT7: PROD Record Type ID | AU7: UAT Eligible Measure | AV7: UAT Record Type ID | AW7: $/kW | AX7: $/kWh | AY7: PROD Eligible Measure | AZ7: PROD Record Type ID | BA7: UAT Eligible Measure | BB7: UAT Record Type ID | BC7: $/kW | BD7: $/kWh | BE7: PROD Eligible Measure | BF7: PROD Record Type ID | BG7: UAT Eligible Measure | BH7: UAT Record Type ID | BI7: $/NCPkW | BJ7: $/kWh | BK7: PROD Eligible Measure | BL7: PROD Record Type ID | BM7: UAT Eligible Measure | BN7: UAT Record Type ID | BO7: $/NCPkW | BP7: $/kWh | BQ7: PROD Eligible Measure | BR7: PROD Record Type ID | BS7: UAT Eligible Measure | BT7: UAT Record Type ID | BU7: $/NCPkW | BV7: $/kWh | BW7: PROD Eligible Measure | BX7: PROD Record Type ID | BY7: UAT Eligible Measure | BZ7: UAT Record Type ID | CA7: $/kW | CB7: $/kWh | CC7: PROD Eligible Measure | CD7: PROD Record Type ID | CE7: UAT Eligible Measure | CF7: UAT Record Type ID | CG7: $/kW | CH7: $/kWh | CI7: PROD Eligible Measure | CJ7: PROD Record Type ID | CK7: UAT Eligible Measure | CL7: UAT Record Type ID | CM7: $/kW | CN7: $/kWh | CO7: PROD Eligible Measure | CP7: PROD Record Type ID | CQ7: UAT Eligible Measure | CR7: UAT Record Type ID | CS7: $/kW | CT7: $/kWh | CU7: PROD Eligible Measure | CV7: PROD Record Type ID | CW7: UAT Eligible Measure | CX7: UAT Record Type ID | CY7: $/kW | CZ7: $/kWh | DA7: PROD Eligible Measure | DB7: PROD Record Type ID | DC7: UAT Eligible Measure | DD7: UAT Record Type ID | DE7: $/kW | DF7: $/kWh | DG7: PROD Eligible Measure | DH7: PROD Record Type ID | DI7: UAT Eligible Measure | DJ7: UAT Record Type ID | DK7: $/kW | DL7: $/kWh | DM7: PROD Eligible Measure | DN7: PROD Record Type ID | DO7: UAT Eligible Measure | DP7: UAT Record Type ID | DQ7: Names for EPE measure list
B8: Refrigeration | C8: Door Gaskets | D8: 3 | E8: =ROUND(Refrigeration!B10,3) -> 0 | F8: 0 | G8: =MAX(ROUND(Refrigeration!C10,3),E8:F8) -> 0 | H8: =ROUND(MIN(L8:M8),0) -> 0 | I8: =IF(I$53="Yes",L8/H$5*I$5,K8) -> 0 | J8: =IF(OR(J$5="Not Entered",$H$5=0),0,H8/$H$5*$J$5) -> 0 | K8: =IFERROR(G8*O8+(E8+F8)*N8+H8*P8,0) -> 0 | L8: =Refrigeration!D10 -> 0 | M8: =IFERROR(MAX(E8:F8)*LoadFactor,L8) -> 0 | N8: =IF(Utility="CPS Energy",0,INDEX($S8:$DL8,1,MATCH(Utility&Program,'Savings Summary'!$S$6:$DL$6,0))) -> 150 | O8: =IF(Utility="CPS Energy",INDEX($S8:$DL8,1,MATCH(Utility&Program,'Savings Summary'!$S$6:$DL$6,0)),0) -> 0 | P8: =INDEX($S8:$DL8,1,MATCH(Utility&Program,'Savings Summary'!$S$6:$DL$6,0)+1) -> 0 | Q8: =INDEX(S8:DP8,1,MATCH(Utility&Program,$S$6:$DP$6,0)+IF(DSMTEnvironment = "UAT",4,2)) -> a1r3u000003Fil7AAC | R8: =INDEX(S8:DP8,1,MATCH(Utility&Program,$S$6:$DP$6,0)+IF(DSMTEnvironment="UAT",5,3)) -> 0123u000000VQdAAAW | S8: 250 | T8: 0 | Y8: 250 | Z8: 0 | AE8: 150 | AF8: 0 | AG8: a1r3u000003Fil7AAC | AH8: 0123u000000VQdAAAW | AI8: a1r790000008VLFAA2 | AJ8: 012790000004MSZAA2 | AK8: 150 | AL8: 0 | AM8: a1r3u000003FijgAAC | AN8: 0123u000000VQdAAAW | AO8: a1r790000008VpYAAU | AP8: 012790000004MSZAA2 | AQ8: 0 | AR8: 0.05 | AS8: a1r3u000007a59bAAA | AT8: 0123u000000VQdAAAW | AU8: a1r79000000AIbp | AV8: 012790000004MSZAA2 | AW8: 0 | AX8: 0.05 | AY8: a1r3u000007deR9AAI | AZ8: 0123u000000VQdAAAW | BA8: a1r79000000AIxxAAG | BB8: 012790000004MSZAA2 | BC8: 220 | BD8: 0.06 | BG8: a1r79000000AJp6AAG | BH8: 012790000004MSZAA2 | BI8: 200 | BJ8: 0.03 | BK8: a1r3u0000069BuaAAE | BL8: 0123u000000aP5cAAE | BM8: a1r79000000A5lM | BN8: 012790000004PuSAAU | BO8: 200 | BP8: 0.03 | BQ8: a1r3u0000069DAfAAM | BR8: 0123u000000aP5cAAE | BS8: a1r79000000A6V2AAK | BT8: 012790000004PuSAAU | BU8: 550 | BV8: 0 | CA8: 240 | CB8: 0 | CG8: 240 | CH8: 0 | CM8: 400 | CN8: 0 | CS8: 275 | CT8: 0.02 | CY8: 150 | CZ8: 0.03 | DE8: 150 | DF8: 0.03 | DK8: 250 | DL8: 0.03 | DQ8: =IF(H8<>0,C8&", ","") -> 
C9: Door Heater Controls for Refrigerated Display Cases | D9: 12 | E9: =ROUND(Refrigeration!B16,3) -> 0 | F9: 0 | G9: =MAX(ROUND(Refrigeration!C16,3),E9:F9) -> 0 | H9: =ROUND(MIN(L9:M9),0) -> 0 | I9: 0 | J9: =IF(OR(J$5="Not Entered",$H$5=0),0,H9/$H$5*$J$5) -> 0 | K9: =IFERROR(G9*O9+(E9+F9)*N9+H9*P9,0) -> 0 | L9: =Refrigeration!D16 -> 0 | M9: =IFERROR(MAX(E9:F9)*LoadFactor,L9) -> 0 | N9: =IF(Utility="CPS Energy",0,INDEX($S9:$DL9,1,MATCH(Utility&Program,'Savings Summary'!$S$6:$DL$6,0))) -> 150 | O9: =IF(Utility="CPS Energy",INDEX($S9:$DL9,1,MATCH(Utility&Program,'Savings Summary'!$S$6:$DL$6,0)),0) -> 0 | P9: =INDEX($S9:$DL9,1,MATCH(Utility&Program,'Savings Summary'!$S$6:$DL$6,0)+1) -> 0 | Q9: =INDEX(S9:DP9,1,MATCH(Utility&Program,$S$6:$DP$6,0)+IF(DSMTEnvironment = "UAT",4,2)) -> a1r3u000003Fil9AAC | R9: =INDEX(S9:DP9,1,MATCH(Utility&Program,$S$6:$DP$6,0)+IF(DSMTEnvironment="UAT",5,3)) -> 0123u000000VQdAAAW | S9: 250 | T9: 0 | Y9: 250 | Z9: 0 | AE9: 150 | AF9: 0 | AG9: a1r3u000003Fil9AAC | AH9: 0123u000000VQdAAAW | AI9: a1r790000008VFMAA2 | AJ9: 012790000004MSZAA2 | AK9: 150 | AL9: 0 | AM9: a1r3u000003FijiAAC | AN9: 0123u000000VQdAAAW | AO9: a1r790000008VpaAAE | AP9: 012790000004MSZAA2 | AQ9: 0 | AR9: 0.05 | AS9: a1r3u000007a59dAAA | AT9: 0123u000000VQdAAAW | AU9: a1r79000000AIc4 | AV9: 012790000004MSZAA2 | AW9: 0 | AX9: 0.05 | AY9: a1r3u000007deRBAAY | AZ9: 0123u000000VQdAAAW | BA9: a1r79000000AIyCAAW | BB9: 012790000004MSZAA2 | BC9: 220 | BD9: 0.06 | BG9: a1r79000000AJp1AAG | BH9: 012790000004MSZAA2 | BI9: 200 | BJ9: 0.03 | BK9: a1r3u0000069BuXAAU | BL9: 0123u000000aP5cAAE | BM9: a1r79000000A5lC | BN9: 012790000004PuSAAU | BO9: 200 | BP9: 0.03 | BQ9: a1r3u0000069DAhAAM | BR9: 0123u000000aP5cAAE | BS9: a1r79000000A6UnAAK | BT9: 012790000004PuSAAU | BU9: 550 | BV9: 0 | CA9: 240 | CB9: 0 | CG9: 240 | CH9: 0 | CM9: 400 | CN9: 0 | CS9: 275 | CT9: 0.02 | CY9: 150 | CZ9: 0.03 | DE9: 150 | DF9: 0.03 | DK9: 250 | DL9: 0.03
C10: ECM Evaporator Fan Motors for Refrigerated Display Cases | D10: 15 | E10: =ROUND(Refrigeration!B27,3) -> 0 | F10: 0 | G10: =MAX(ROUND(Refrigeration!C27,3),E10:F10) -> 0 | H10: 0 | I10: 0 | J10: =IF(OR(J$5="Not Entered",$H$5=0),0,H10/$H$5*$J$5) -> 0 | K10: 0 | L10: =Refrigeration!D27 -> 0 | M10: =IFERROR(MAX(E10:F10)*LoadFactor,L10) -> 0 | N10: =IF(Utility="CPS Energy",0,INDEX($S10:$DL10,1,MATCH(Utility&Program,'Savings Summary'!$S$6:$DL$6,0))) -> 150 | O10: =IF(Utility="CPS Energy",INDEX($S10:$DL10,1,MATCH(Utility&Program,'Savings Summary'!$S$6:$DL$6,0)),0) -> 0 | P10: =INDEX($S10:$DL10,1,MATCH(Utility&Program,'Savings Summary'!$S$6:$DL$6,0)+1) -> 0 | Q10: =INDEX(S10:DP10,1,MATCH(Utility&Program,$S$6:$DP$6,0)+IF(DSMTEnvironment = "UAT",4,2)) -> a1r3u000003FilBAAS | R10: =INDEX(S10:DP10,1,MATCH(Utility&Program,$S$6:$DP$6,0)+IF(DSMTEnvironment="UAT",5,3)) -> 0123u000000VQdGAAW | S10: 250 | T10: 0 | Y10: 250 | Z10: 0 | AE10: 150 | AF10: 0 | AG10: a1r3u000003FilBAAS | AH10: 0123u000000VQdGAAW | AI10: a1r790000008VFvAAM | AJ10: 012790000004MTXAA2 | AK10: 150 | AL10: 0 | AM10: a1r3u000003FijkAAC | AN10: 0123u000000VQdGAAW | AO10: a1r790000008VpcAAE | AP10: 012790000004MTXAA2 | AQ10: 0 | AR10: 0.05 | AS10: a1r3u000007a59fAAA | AT10: 0123u000000VQdGAAW | AU10: a1r79000000AIc9 | AV10: 012790000004MTXAA2 | AW10: 0 | AX10: 0.05 | AY10: a1r3u000007deRDAAY | AZ10: 0123u000000VQdGAAW | BA10: a1r79000000AIyWAAW | BB10: 012790000004MTXAA2 | BC10: 220 | BD10: 0.06 | BG10: a1r79000000AJowAAG | BH10: 012790000004MTXAA2 | BI10: 200 | BJ10: 0.03 | BK10: a1r3u0000069BueAAE | BL10: 0123u000000aP5cAAE | BM10: a1r79000000A5lg | BN10: 012790000004PuSAAU | BO10: 200 | BP10: 0.03 | BQ10: a1r3u0000069DAjAAM | BR10: 0123u000000aP5cAAE | BS10: a1r79000000A6V7AAK | BT10: 012790000004PuSAAU | BU10: 550 | BV10: 0 | CA10: 240 | CB10: 0 | CG10: 240 | CH10: 0 | CM10: 400 | CN10: 0 | CS10: 275 | CT10: 0.02 | CY10: 150 | CZ10: 0.03 | DE10: 150 | DF10: 0.03 | DK10: 250 | DL10: 0.03
C11: Electronic Defrost Controls | D11: 10 | E11: =ROUND(Refrigeration!B35,3) -> 0 | F11: 0 | G11: =MAX(ROUND(Refrigeration!C35,3),E11:F11) -> 0 | H11: 0 | I11: 0 | J11: 0 | K11: 0 | L11: =Refrigeration!D35 -> 0 | M11: =IFERROR(MAX(E11:F11)*LoadFactor,L11) -> 0 | N11: =IF(Utility="CPS Energy",0,INDEX($S11:$DL11,1,MATCH(Utility&Program,'Savings Summary'!$S$6:$DL$6,0))) -> 150 | O11: =IF(Utility="CPS Energy",INDEX($S11:$DL11,1,MATCH(Utility&Program,'Savings Summary'!$S$6:$DL$6,0)),0) -> 0 | P11: =INDEX($S11:$DL11,1,MATCH(Utility&Program,'Savings Summary'!$S$6:$DL$6,0)+1) -> 0 | Q11: =INDEX(S11:DP11,1,MATCH(Utility&Program,$S$6:$DP$6,0)+IF(DSMTEnvironment = "UAT",4,2)) -> a1r3u000003FilKAAS | R11: =INDEX(S11:DP11,1,MATCH(Utility&Program,$S$6:$DP$6,0)+IF(DSMTEnvironment="UAT",5,3)) -> 0123u000000VQdJAAW | S11: 250 | T11: 0 | Y11: 250 | Z11: 0 | AE11: 150 | AF11: 0 | AG11: a1r3u000003FilKAAS | AH11: 0123u000000VQdJAAW | AI11: a1r790000008VJEAA2 | AJ11: 012790000004MWgAAM | AK11: 150 | AL11: 0 | AM11: a1r3u000003FijtAAC | AN11: 0123u000000VQdJAAW | AO11: a1r790000008VplAAE | AP11: 012790000004MWgAAM | AQ11: 0 | AR11: 0.05 | AS11: a1r3u000007a59oAAA | AT11: 0123u000000VQdJAAW | AU11: a1r79000000AIdb | AV11: 012790000004MWgAAM | AW11: 0 | AX11: 0.05 | AY11: a1r3u000007deRMAAY | AZ11: 0123u000000VQdJAAW | BA11: a1r79000000AIxoAAG | BB11: 012790000004MWgAAM | BC11: 220 | BD11: 0.06 | BG11: a1r79000000AJnKAAW | BH11: 012790000004MWgAAM | BI11: 200 | BJ11: 0.03 | BK11: a1r3u0000069Bu8AAE | BL11: 0123u000000aP5cAAE | BM11: a1r79000000A2od | BN11: 012790000004PuSAAU | BO11: 200 | BP11: 0.03 | BQ11: a1r3u0000069DAsAAM | BR11: 0123u000000aP5cAAE | BS11: a1r79000000A6XrAAK | BT11: 012790000004PuSAAU | BU11: 550 | BV11: 0 | CA11: 240 | CB11: 0 | CG11: 240 | CH11: 0 | CM11: 400 | CN11: 0 | CS11: 275 | CT11: 0.02 | CY11: 150 | CZ11: 0.03 | DE11: 150 | DF11: 0.03 | DK11: 250 | DL11: 0.03
C12: Evaporator Fan Controls | D12: 16 | E12: =ROUND(Refrigeration!B41,3) -> 0 | F12: 0 | G12: =MAX(ROUND(Refrigeration!C41,3),E12:F12) -> 0 | H12: 0 | I12: 0 | J12: 0 | K12: 0 | L12: =Refrigeration!D41 -> 0 | M12: =IFERROR(MAX(E12:F12)*LoadFactor,L12) -> 0 | N12: =IF(Utility="CPS Energy",0,INDEX($S12:$DL12,1,MATCH(Utility&Program,'Savings Summary'!$S$6:$DL$6,0))) -> 150 | O12: =IF(Utility="CPS Energy",INDEX($S12:$DL12,1,MATCH(Utility&Program,'Savings Summary'!$S$6:$DL$6,0)),0) -> 0 | P12: =INDEX($S12:$DL12,1,MATCH(Utility&Program,'Savings Summary'!$S$6:$DL$6,0)+1) -> 0 | Q12: =INDEX(S12:DP12,1,MATCH(Utility&Program,$S$6:$DP$6,0)+IF(DSMTEnvironment = "UAT",4,2)) -> a1r3u000003FilOAAS | R12: =INDEX(S12:DP12,1,MATCH(Utility&Program,$S$6:$DP$6,0)+IF(DSMTEnvironment="UAT",5,3)) -> 0123u000000VQdLAAW | S12: 250 | T12: 0 | Y12: 250 | Z12: 0 | AE12: 150 | AF12: 0 | AG12: a1r3u000003FilOAAS | AH12: 0123u000000VQdLAAW | AI12: a1r790000008VTYAA2 | AJ12: 012790000004MZ1AAM | AK12: 150 | AL12: 0 | AM12: a1r3u000003FijxAAC | AN12: 0123u000000VQdLAAW | AO12: a1r790000008VppAAE | AP12: 012790000004MZ1AAM | AQ12: 0 | AR12: 0.05 | AS12: a1r3u000007a59sAAA | AT12: 0123u000000VQdLAAW | AU12: a1r79000000AIdg | AV12: 012790000004MZ1AAM | AW12: 0 | AX12: 0.05 | AY12: a1r3u000007deRQAAY | AZ12: 0123u000000VQdLAAW | BA12: a1r79000000AIz0AAG | BB12: 012790000004MZ1AAM | BC12: 220 | BD12: 0.06 | BG12: a1r79000000AJpLAAW | BH12: 012790000004MZ1AAM | BI12: 200 | BJ12: 0.03 | BK12: a1r3u0000069BuKAAU | BL12: 0123u000000aP5pAAE | BM12: a1r79000000A5k9 | BN12: 012790000004PzbAAE | BO12: 200 | BP12: 0.03 | BQ12: a1r3u0000069DAwAAM | BR12: 0123u000000aP5pAAE | BS12: a1r79000000A6VRAA0 | BT12: 012790000004PzbAAE | BU12: 550 | BV12: 0 | CA12: 240 | CB12: 0 | CG12: 240 | CH12: 0 | CM12: 400 | CN12: 0 | CS12: 275 | CT12: 0.02 | CY12: 150 | CZ12: 0.03 | DE12: 150 | DF12: 0.03 | DK12: 250 | DL12: 0.03
C13: Night Covers for Open Vertical and Horizontal Refrigerated Display Cases | D13: 5 | E13: =ROUND(Refrigeration!B49,3) -> 0 | F13: 0 | G13: =MAX(ROUND(Refrigeration!C49,3),E13:F13) -> 0 | H13: 0 | I13: 0 | J13: 0 | K13: 0 | L13: =Refrigeration!D49 -> 0 | M13: =L13 -> 0 | N13: =IF(Utility="CPS Energy",0,INDEX($S13:$DL13,1,MATCH(Utility&Program,'Savings Summary'!$S$6:$DL$6,0))) -> 150 | O13: =IF(Utility="CPS Energy",INDEX($S13:$DL13,1,MATCH(Utility&Program,'Savings Summary'!$S$6:$DL$6,0)),0) -> 0 | P13: =INDEX($S13:$DL13,1,MATCH(Utility&Program,'Savings Summary'!$S$6:$DL$6,0)+1) -> 0 | Q13: =INDEX(S13:DP13,1,MATCH(Utility&Program,$S$6:$DP$6,0)+IF(DSMTEnvironment = "UAT",4,2)) -> a1r3u000003FillAAC | R13: =INDEX(S13:DP13,1,MATCH(Utility&Program,$S$6:$DP$6,0)+IF(DSMTEnvironment="UAT",5,3)) -> 0123u000000VQdRAAW | S13: 250 | T13: 0 | Y13: 250 | Z13: 0 | AE13: 150 | AF13: 0 | AG13: a1r3u000003FillAAC | AH13: 0123u000000VQdRAAW | AI13: a1r790000008VYiAAM | AJ13: 012790000004MZfAAM | AK13: 150 | AL13: 0 | AM13: a1r3u000003FikJAAS | AN13: 0123u000000VQdRAAW | AO13: a1r790000008VqBAAU | AP13: 012790000004MZfAAM | AQ13: 0 | AR13: 0.05 | AS13: a1r3u000007a5ALAAY | AT13: 0123u000000VQdRAAW | AU13: a1r79000000AIcJ | AV13: 012790000004MZfAAM | AW13: 0 | AX13: 0.05 | AY13: a1r3u000007deRsAAI | AZ13: 0123u000000VQdRAAW | BA13: a1r79000000AIzAAAW | BB13: 012790000004MZfAAM | BC13: 220 | BD13: 0.06 | BG13: a1r79000000AJpQAAW | BH13: 012790000004MZfAAM | BI13: 200 | BJ13: 0.03 | BK13: a1r3u0000069BuJAAU | BL13: 0123u000000aP5dAAE | BM13: a1r79000000A5k4 | BN13: 012790000004PuTAAU | BO13: 200 | BP13: 0.03 | BQ13: a1r3u0000069DBNAA2 | BR13: 0123u000000aP5dAAE | BS13: a1r79000000A6W0AAK | BT13: 012790000004PuTAAU | BU13: 550 | BV13: 0 | CA13: 240 | CB13: 0 | CG13: 240 | CH13: 0 | CM13: 400 | CN13: 0 | CS13: 275 | CT13: 0.02 | CY13: 150 | CZ13: 0.03 | DE13: 150 | DF13: 0.03 | DK13: 250 | DL13: 0.03
C14: ENERGY STAR Commercial Refrigerators | D14: 12 | E14: =ROUND(Refrigeration!B57,3) -> 0 | F14: 0 | G14: =MAX(ROUND(Refrigeration!C57,3),E14:F14) -> 0 | H14: 0 | I14: 0 | J14: 0 | K14: 0 | L14: =Refrigeration!D57 -> 0 | M14: =IFERROR(MAX(E14:F14)*LoadFactor,L14) -> 0 | N14: =IF(Utility="CPS Energy",0,INDEX($S14:$DL14,1,MATCH(Utility&Program,'Savings Summary'!$S$6:$DL$6,0))) -> 150 | O14: =IF(Utility="CPS Energy",INDEX($S14:$DL14,1,MATCH(Utility&Program,'Savings Summary'!$S$6:$DL$6,0)),0) -> 0 | P14: =INDEX($S14:$DL14,1,MATCH(Utility&Program,'Savings Summary'!$S$6:$DL$6,0)+1) -> 0 | Q14: =INDEX(S14:DP14,1,MATCH(Utility&Program,$S$6:$DP$6,0)+IF(DSMTEnvironment = "UAT",4,2)) -> a1r3u000003Fim5AAC | R14: =INDEX(S14:DP14,1,MATCH(Utility&Program,$S$6:$DP$6,0)+IF(DSMTEnvironment="UAT",5,3)) -> 0123u000000VQd6AAG | S14: 250 | T14: 0 | Y14: 250 | Z14: 0 | AE14: 150 | AF14: 0 | AG14: a1r3u000003Fim5AAC | AH14: 0123u000000VQd6AAG | AI14: a1r790000008VbXAAU | AJ14: 012790000004MaJAAU | AK14: 150 | AL14: 0 | AM14: a1r3u000003FikdAAC | AN14: 0123u000000VQd6AAG | AO14: a1r790000008VqVAAU | AP14: 012790000004MaJAAU | AQ14: 0 | AR14: 0.05 | AS14: a1r3u000007a5AfAAI | AT14: 0123u000000VQd6AAG | AU14: a1r79000000AIcs | AV14: 012790000004MaJAAU | AW14: 0 | AX14: 0.05 | AY14: a1r3u000007deSCAAY | AZ14: 0123u000000VQd6AAG | BA14: a1r79000000AIzFAAW | BB14: 012790000004MaJAAU | BC14: 220 | BD14: 0.06 | BG14: a1r79000000AJnFAAW | BH14: 012790000004MaJAAU | BI14: 200 | BJ14: 0.03 | BK14: a1r3u0000069BucAAE | BL14: 0123u000000aP5yAAE | BM14: a1r79000000A5lW | BN14: 012790000004PzzAAE | BO14: 200 | BP14: 0.03 | BQ14: a1r3u0000069DBiAAM | BR14: 0123u000000aP5yAAE | BS14: a1r79000000A6WoAAK | BT14: 012790000004PzzAAE | BU14: 550 | BV14: 0 | CA14: 240 | CB14: 0 | CG14: 240 | CH14: 0 | CM14: 400 | CN14: 0 | CS14: 275 | CT14: 0.02 | CY14: 150 | CZ14: 0.03 | DE14: 150 | DF14: 0.03 | DK14: 250 | DL14: 0.03
C15: Strip Curtains for Walk-In Refrigerated Storage | D15: 4 | E15: =ROUND(Refrigeration!B63,3) -> 0 | F15: 0 | G15: =MAX(ROUND(Refrigeration!C63,3),E15:F15) -> 0 | H15: 0 | I15: 0 | J15: 0 | K15: 0 | L15: =Refrigeration!D63 -> 0 | M15: 0 | N15: =IF(Utility="CPS Energy",0,INDEX($S15:$DL15,1,MATCH(Utility&Program,'Savings Summary'!$S$6:$DL$6,0))) -> 150 | O15: =IF(Utility="CPS Energy",INDEX($S15:$DL15,1,MATCH(Utility&Program,'Savings Summary'!$S$6:$DL$6,0)),0) -> 0 | P15: =INDEX($S15:$DL15,1,MATCH(Utility&Program,'Savings Summary'!$S$6:$DL$6,0)+1) -> 0 | Q15: =INDEX(S15:DP15,1,MATCH(Utility&Program,$S$6:$DP$6,0)+IF(DSMTEnvironment = "UAT",4,2)) -> a1r3u000003Fim7AAC | R15: =INDEX(S15:DP15,1,MATCH(Utility&Program,$S$6:$DP$6,0)+IF(DSMTEnvironment="UAT",5,3)) -> 0123u000000VQM9AAO | S15: 250 | T15: 0 | Y15: 250 | Z15: 0 | AE15: 150 | AF15: 0 | AG15: a1r3u000003Fim7AAC | AH15: 0123u000000VQM9AAO | AI15: a1r790000008VbrAAE | AJ15: 012790000004MaiAAE | AK15: 150 | AL15: 0 | AM15: a1r3u000003FikfAAC | AN15: 0123u000000VQM9AAO | AO15: a1r790000008VqXAAU | AP15: 012790000004MaiAAE | AQ15: 0 | AR15: 0.05 | AS15: a1r3u000007a5AhAAI | AT15: 0123u000000VQM9AAO | AU15: a1r79000000AIcx | AV15: 012790000004MaiAAE | AW15: 0 | AX15: 0.05 | AY15: a1r3u000007deSEAAY | AZ15: 0123u000000VQM9AAO | BA15: a1r79000000AIzKAAW | BB15: 012790000004MaiAAE | BC15: 220 | BD15: 0.06 | BG15: a1r79000000AJnyAAG | BH15: 012790000004MaiAAE | BI15: 200 | BJ15: 0.03 | BK15: a1r3u0000069BuCAAU | BL15: 0123u000000aP5zAAE | BM15: a1r79000000A5jV | BN15: 012790000004Q0FAAU | BO15: 200 | BP15: 0.03 | BQ15: a1r3u0000069DBkAAM | BR15: 0123u000000aP5zAAE | BS15: a1r79000000A6WtAAK | BT15: 012790000004Q0FAAU | BU15: 550 | BV15: 0 | CA15: 240 | CB15: 0 | CG15: 240 | CH15: 0 | CM15: 400 | CN15: 0 | CS15: 275 | CT15: 0.02 | CY15: 150 | CZ15: 0.03 | DE15: 150 | DF15: 0.03 | DK15: 250 | DL15: 0.03
C16: Zero-Energy Doors for Refrigerated Cases | D16: 12 | E16: =ROUND(Refrigeration!B69,3) -> 0 | F16: 0 | G16: =MAX(ROUND(Refrigeration!C69,3),E16:F16) -> 0 | H16: 0 | I16: 0 | J16: =IF(OR(J$5="Not Entered",$H$5=0),0,H16/$H$5*$J$5) -> 0 | K16: =IFERROR(G16*O16+(E16+F16)*N16+H16*P16,0) -> 0 | L16: =Refrigeration!D69 -> 0 | M16: 0 | N16: =IF(Utility="CPS Energy",0,INDEX($S16:$DL16,1,MATCH(Utility&Program,'Savings Summary'!$S$6:$DL$6,0))) -> 150 | O16: =IF(Utility="CPS Energy",INDEX($S16:$DL16,1,MATCH(Utility&Program,'Savings Summary'!$S$6:$DL$6,0)),0) -> 0 | P16: =INDEX($S16:$DL16,1,MATCH(Utility&Program,'Savings Summary'!$S$6:$DL$6,0)+1) -> 0 | Q16: =INDEX(S16:DP16,1,MATCH(Utility&Program,$S$6:$DP$6,0)+IF(DSMTEnvironment = "UAT",4,2)) -> a1r3u000003FimJAAS | R16: =INDEX(S16:DP16,1,MATCH(Utility&Program,$S$6:$DP$6,0)+IF(DSMTEnvironment="UAT",5,3)) -> 0123u000000VQdAAAW | S16: 250 | T16: 0 | Y16: 250 | Z16: 0 | AE16: 150 | AF16: 0 | AG16: a1r3u000003FimJAAS | AH16: 0123u000000VQdAAAW | AI16: a1r790000008VNGAA2 | AJ16: 012790000004MSZAA2 | AK16: 150 | AL16: 0 | AM16: a1r3u000003FikrAAC | AN16: 0123u000000VQdAAAW | AO16: a1r790000008VqjAAE | AP16: 012790000004MSZAA2 | AQ16: 0 | AR16: 0.05 | AS16: a1r3u000007a5AtAAI | AT16: 0123u000000VQdAAAW | AU16: a1r79000000AId7 | AV16: 012790000004MSZAA2 | AW16: 0 | AX16: 0.05 | AY16: a1r3u000007deSQAAY | AZ16: 0123u000000VQdAAAW | BA16: a1r79000000AIzZAAW | BB16: 012790000004MSZAA2 | BC16: 220 | BD16: 0.06 | BG16: a1r79000000AJo8AAG | BH16: 012790000004MSZAA2 | BI16: 200 | BJ16: 0.03 | BK16: a1r3u0000069BuiAAE | BL16: 0123u000000aP5cAAE | BM16: a1r79000000A5m0 | BN16: 012790000004PuSAAU | BO16: 200 | BP16: 0.03 | BQ16: a1r3u0000069DBqAAM | BR16: 0123u000000aP5cAAE | BS16: a1r79000000A6WFAA0 | BT16: 012790000004PuSAAU | BU16: 550 | BV16: 0 | CA16: 240 | CB16: 0 | CG16: 240 | CH16: 0 | CM16: 400 | CN16: 0 | CS16: 275 | CT16: 0.02 | CY16: 150 | CZ16: 0.03 | DE16: 150 | DF16: 0.03 | DK16: 250 | DL16: 0.03
C17: Vending Machine Controls | D17: 5 | E17: =ROUND(Refrigeration!B75,3) -> 0 | F17: 0 | G17: =MAX(ROUND(Refrigeration!C75,3),E17:F17) -> 0 | H17: 0 | I17: 0 | J17: 0 | K17: 0 | L17: =Refrigeration!D75 -> 0 | M17: 0 | N17: =IF(Utility="CPS Energy",0,INDEX($S17:$DL17,1,MATCH(Utility&Program,'Savings Summary'!$S$6:$DL$6,0))) -> 150 | O17: =IF(Utility="CPS Energy",INDEX($S17:$DL17,1,MATCH(Utility&Program,'Savings Summary'!$S$6:$DL$6,0)),0) -> 0 | P17: =INDEX($S17:$DL17,1,MATCH(Utility&Program,'Savings Summary'!$S$6:$DL$6,0)+1) -> 0 | Q17: =INDEX(S17:DP17,1,MATCH(Utility&Program,$S$6:$DP$6,0)+IF(DSMTEnvironment = "UAT",4,2)) -> a1r3u000003Fim9AAC | R17: =INDEX(S17:DP17,1,MATCH(Utility&Program,$S$6:$DP$6,0)+IF(DSMTEnvironment="UAT",5,3)) -> 0123u000000VQdAAAW | S17: 250 | T17: 0 | Y17: 250 | Z17: 0 | AE17: 150 | AF17: 0 | AG17: a1r3u000003Fim9AAC | AH17: 0123u000000VQdAAAW | AI17: a1r790000008VNBAA2 | AJ17: 012790000004MSZAA2 | AK17: 150 | AL17: 0 | AM17: a1r3u000003FikhAAC | AN17: 0123u000000VQdAAAW | AO17: a1r790000008VqZAAU | AP17: 012790000004MSZAA2 | AQ17: 0 | AR17: 0.05 | AS17: a1r3u000007a5AjAAI | AT17: 0123u000000VQdAAAW | AU17: a1r79000000AId2 | AV17: 012790000004MSZAA2 | AW17: 0 | AX17: 0.05 | AY17: a1r3u000007deSGAAY | AZ17: 0123u000000VQdAAAW | BA17: a1r79000000AIzPAAW | BB17: 012790000004MSZAA2 | BC17: 220 | BD17: 0.06 | BG17: a1r79000000AJo3AAG | BH17: 012790000004MSZAA2 | BI17: 200 | BJ17: 0.03 | BK17: a1r3u0000069BuDAAU | BL17: 0123u000000aP5vAAE | BM17: a1r79000000A5ja | BN17: 012790000004PzwAAE | BO17: 200 | BP17: 0.03 | BQ17: a1r3u0000069DBmAAM | BR17: 0123u000000aP5vAAE | BS17: a1r79000000A6WyAAK | BT17: 012790000004PzwAAE | BU17: 550 | BV17: 0 | CA17: 240 | CB17: 0 | CG17: 240 | CH17: 0 | CM17: 400 | CN17: 0 | CS17: 275 | CT17: 0.02 | CY17: 150 | CZ17: 0.03 | DE17: 150 | DF17: 0.03 | DK17: 250 | DL17: 0.03
C18: High Speed Doors for Cold Storage | D18: 5 | E18: =ROUND(Refrigeration!B81,3) -> 0 | F18: 0 | G18: =MAX(ROUND(Refrigeration!C81,3),E18:F18) -> 0 | H18: 0 | I18: 0 | J18: =IF(OR(J$5="Not Entered",$H$5=0),0,H18/$H$5*$J$5) -> 0 | K18: =IFERROR(G18*O18+(E18+F18)*N18+H18*P18,0) -> 0 | L18: =Refrigeration!D81 -> 0 | M18: 0 | N18: =IF(Utility="CPS Energy",0,INDEX($S18:$DL18,1,MATCH(Utility&Program,'Savings Summary'!$S$6:$DL$6,0))) -> 150 | O18: =IF(Utility="CPS Energy",INDEX($S18:$DL18,1,MATCH(Utility&Program,'Savings Summary'!$S$6:$DL$6,0)),0) -> 0 | P18: =INDEX($S18:$DL18,1,MATCH(Utility&Program,'Savings Summary'!$S$6:$DL$6,0)+1) -> 0 | Q18: =INDEX(S18:DP18,1,MATCH(Utility&Program,$S$6:$DP$6,0)+IF(DSMTEnvironment = "UAT",4,2)) -> 0 | R18: =INDEX(S18:DP18,1,MATCH(Utility&Program,$S$6:$DP$6,0)+IF(DSMTEnvironment="UAT",5,3)) -> 0 | S18: 250 | T18: 0 | Y18: 250 | Z18: 0 | AE18: 150 | AF18: 0 | AK18: 150 | AL18: 0 | AQ18: 0 | AR18: 0.05 | AW18: 0 | AX18: 0.05 | BC18: 220 | BD18: 0.06 | BI18: 200 | BJ18: 0.03 | BO18: 200 | BP18: 0.03 | BU18: 550 | BV18: 0 | CA18: 240 | CB18: 0 | CG18: 240 | CH18: 0 | CM18: 400 | CN18: 0 | CS18: 275 | CT18: 0.02 | CY18: 150 | CZ18: 0.03 | DE18: 150 | DF18: 0.03 | DK18: 250 | DL18: 0.03
B19: Food Service & DHW | C19: ENERGY STAR Electric Convection Oven | D19: 12 | E19: =ROUND('Food Service & DHW'!B8,3) -> 0 | F19: 0 | G19: =MAX(ROUND('Food Service & DHW'!C8,3),E19:F19) -> 0 | H19: 0 | I19: 0 | J19: =IF(OR(J$5="Not Entered",$H$5=0),0,H19/$H$5*$J$5) -> 0 | K19: 0 | L19: ='Food Service & DHW'!D8 -> 0 | M19: 0 | N19: =IF(Utility="CPS Energy",0,INDEX($S19:$DL19,1,MATCH(Utility&Program,'Savings Summary'!$S$6:$DL$6,0))) -> 150 | O19: =IF(Utility="CPS Energy",INDEX($S19:$DL19,1,MATCH(Utility&Program,'Savings Summary'!$S$6:$DL$6,0)),0) -> 0 | P19: =INDEX($S19:$DL19,1,MATCH(Utility&Program,'Savings Summary'!$S$6:$DL$6,0)+1) -> 0 | Q19: =INDEX(S19:DP19,1,MATCH(Utility&Program,$S$6:$DP$6,0)+IF(DSMTEnvironment = "UAT",4,2)) -> a1r3u000003FilFAAS | R19: =INDEX(S19:DP19,1,MATCH(Utility&Program,$S$6:$DP$6,0)+IF(DSMTEnvironment="UAT",5,3)) -> 0123u000000VQdAAAW | S19: 250 | T19: 0 | Y19: 250 | Z19: 0 | AE19: 150 | AF19: 0 | AG19: a1r3u000003FilFAAS | AH19: 0123u000000VQdAAAW | AI19: a1r790000008VbhAAE | AJ19: 012790000004MSZAA2 | AK19: 150 | AL19: 0 | AM19: a1r3u000003FijoAAC | AN19: 0123u000000VQdAAAW | AO19: a1r790000008VpgAAE | AP19: 012790000004MSZAA2 | AQ19: 0 | AR19: 0.04 | AS19: a1r3u000007a59jAAA | AT19: 0123u000000VQdAAAW | AU19: a1r79000000AIdv | AV19: 012790000004MSZAA2 | AW19: 0 | AX19: 0.04 | AY19: a1r3u000007deRHAAY | AZ19: 0123u000000VQdAAAW | BA19: a1r79000000AIwpAAG | BB19: 012790000004MSZAA2 | BC19: 200 | BD19: 0.07 | BG19: a1r79000000AJmSAAW | BH19: 012790000004MSZAA2 | BI19: 200 | BJ19: 0.05 | BK19: a1r3u0000069BuRAAU | BL19: 0123u000000aP5bAAE | BM19: a1r79000000A5ki | BN19: 012790000004PuRAAU | BO19: 200 | BP19: 0.05 | BQ19: a1r3u0000069DAnAAM | BR19: 0123u000000aP5bAAE | BS19: a1r79000000A6VHAA0 | BT19: 012790000004PuRAAU | BU19: 550 | BV19: 0 | CA19: 240 | CB19: 0 | CG19: 240 | CH19: 0 | CM19: 400 | CN19: 0 | CS19: 165 | CT19: 0.02 | CY19: 150 | CZ19: 0.03 | DE19: 150 | DF19: 0.03 | DK19: 250 | DL19: 0.03
C20: ENERGY STAR Combination Oven | D20: 12 | E20: =ROUND('Food Service & DHW'!B14,3) -> 0 | F20: 0 | G20: =MAX(ROUND('Food Service & DHW'!C14,3),E20:F20) -> 0 | H20: 0 | I20: 0 | J20: =IF(OR(J$5="Not Entered",$H$5=0),0,H20/$H$5*$J$5) -> 0 | K20: 0 | L20: ='Food Service & DHW'!D14 -> 0 | M20: 0 | N20: =IF(Utility="CPS Energy",0,INDEX($S20:$DL20,1,MATCH(Utility&Program,'Savings Summary'!$S$6:$DL$6,0))) -> 150 | O20: =IF(Utility="CPS Energy",INDEX($S20:$DL20,1,MATCH(Utility&Program,'Savings Summary'!$S$6:$DL$6,0)),0) -> 0 | P20: =INDEX($S20:$DL20,1,MATCH(Utility&Program,'Savings Summary'!$S$6:$DL$6,0)+1) -> 0 | Q20: =INDEX(S20:DP20,1,MATCH(Utility&Program,$S$6:$DP$6,0)+IF(DSMTEnvironment = "UAT",4,2)) -> a1r3u000003FilDAAS | R20: =INDEX(S20:DP20,1,MATCH(Utility&Program,$S$6:$DP$6,0)+IF(DSMTEnvironment="UAT",5,3)) -> 0123u000000VQd9AAG | S20: 250 | T20: 0 | Y20: 250 | Z20: 0 | AE20: 150 | AF20: 0 | AG20: a1r3u000003FilDAAS | AH20: 0123u000000VQd9AAG | AI20: a1r790000008VFHAA2 | AJ20: 012790000004MPzAAM | AK20: 150 | AL20: 0 | AM20: a1r3u000003FijmAAC | AN20: 0123u000000VQd9AAG | AO20: a1r790000008VpeAAE | AP20: 012790000004MPzAAM | AQ20: 0 | AR20: 0.04 | AS20: a1r3u000007a59hAAA | AT20: 0123u000000VQd9AAG | AU20: a1r79000000AIdq | AV20: 012790000004MPzAAM | AW20: 0 | AX20: 0.04 | AY20: a1r3u000007deRFAAY | AZ20: 0123u000000VQd9AAG | BA20: a1r79000000AIwaAAG | BB20: 012790000004MPzAAM | BC20: 200 | BD20: 0.07 | BG20: a1r79000000AJnjAAG | BH20: 012790000004MPzAAM | BI20: 200 | BJ20: 0.05 | BK20: a1r3u0000069BuMAAU | BL20: 0123u000000aP5bAAE | BM20: a1r79000000A5kJ | BN20: 012790000004PuRAAU | BO20: 200 | BP20: 0.05 | BQ20: a1r3u0000069DAlAAM | BR20: 0123u000000aP5bAAE | BS20: a1r79000000A6VCAA0 | BT20: 012790000004PuRAAU | BU20: 550 | BV20: 0 | CA20: 240 | CB20: 0 | CG20: 240 | CH20: 0 | CM20: 400 | CN20: 0 | CS20: 165 | CT20: 0.02 | CY20: 150 | CZ20: 0.03 | DE20: 150 | DF20: 0.03 | DK20: 250 | DL20: 0.03
C21: ENERGY STAR Commercial Dishwashers | D21: ='Food Service & DHW'!O20 -> 10 | E21: =ROUND('Food Service & DHW'!B20,3) -> 0 | F21: 0 | G21: =MAX(ROUND('Food Service & DHW'!C20,3),E21:F21) -> 0 | H21: 0 | I21: 0 | J21: =IF(OR(J$5="Not Entered",$H$5=0),0,H21/$H$5*$J$5) -> 0 | K21: 0 | L21: ='Food Service & DHW'!D20 -> 0 | M21: 0 | N21: =IF(Utility="CPS Energy",0,INDEX($S21:$DL21,1,MATCH(Utility&Program,'Savings Summary'!$S$6:$DL$6,0))) -> 150 | O21: =IF(Utility="CPS Energy",INDEX($S21:$DL21,1,MATCH(Utility&Program,'Savings Summary'!$S$6:$DL$6,0)),0) -> 0 | P21: =INDEX($S21:$DL21,1,MATCH(Utility&Program,'Savings Summary'!$S$6:$DL$6,0)+1) -> 0 | Q21: =INDEX(S21:DP21,1,MATCH(Utility&Program,$S$6:$DP$6,0)+IF(DSMTEnvironment = "UAT",4,2)) -> a1r3u000003FikyAAC | R21: =INDEX(S21:DP21,1,MATCH(Utility&Program,$S$6:$DP$6,0)+IF(DSMTEnvironment="UAT",5,3)) -> 0123u000000VQd9AAG | S21: 250 | T21: 0 | Y21: 250 | Z21: 0 | AE21: 150 | AF21: 0 | AG21: a1r3u000003FikyAAC | AH21: 0123u000000VQd9AAG | AI21: a1r790000008VE4AAM | AJ21: 012790000004MPzAAM | AK21: 150 | AL21: 0 | AM21: a1r3u000003FijXAAS | AN21: 0123u000000VQd9AAG | AO21: a1r790000008VpPAAU | AP21: 012790000004MPzAAM | AQ21: 0 | AR21: 0.04 | AS21: a1r3u000007a59SAAQ | AT21: 0123u000000VQd9AAG | AU21: a1r79000000AIdC | AV21: 012790000004MPzAAM | AW21: 0 | AX21: 0.04 | AY21: a1r3u000007deR0AAI | AZ21: 0123u000000VQd9AAG | BA21: a1r79000000AIzUAAW | BB21: 012790000004MPzAAM | BC21: 200 | BD21: 0.07 | BG21: a1r79000000AJoNAAW | BH21: 012790000004MPzAAM | BI21: 200 | BJ21: 0.05 | BK21: a1r3u0000069BtXAAU | BL21: 0123u000000aP5aAAE | BM21: a1r79000000A5jG | BN21: 012790000004PuRAAU | BO21: 200 | BP21: 0.05 | BQ21: a1r3u0000069DAWAA2 | BR21: 0123u000000aP5bAAE | BS21: a1r79000000A6UdAAK | BT21: 012790000004PuRAAU | BU21: 550 | BV21: 0 | CA21: 240 | CB21: 0 | CG21: 240 | CH21: 0 | CM21: 400 | CN21: 0 | CS21: 165 | CT21: 0.02 | CY21: 150 | CZ21: 0.03 | DE21: 150 | DF21: 0.03 | DK21: 250 | DL21: 0.03
C22: ENERGY STAR Electric Steam Cookers | D22: 12 | E22: =ROUND('Food Service & DHW'!B26,3) -> 0 | F22: 0 | G22: =MAX(ROUND('Food Service & DHW'!C26,3),E22:F22) -> 0 | H22: 0 | I22: 0 | J22: 0 | K22: 0 | L22: ='Food Service & DHW'!D26 -> 0 | M22: 0 | N22: =IF(Utility="CPS Energy",0,INDEX($S22:$DL22,1,MATCH(Utility&Program,'Savings Summary'!$S$6:$DL$6,0))) -> 150 | O22: =IF(Utility="CPS Energy",INDEX($S22:$DL22,1,MATCH(Utility&Program,'Savings Summary'!$S$6:$DL$6,0)),0) -> 0 | P22: =INDEX($S22:$DL22,1,MATCH(Utility&Program,'Savings Summary'!$S$6:$DL$6,0)+1) -> 0 | Q22: =INDEX(S22:DP22,1,MATCH(Utility&Program,$S$6:$DP$6,0)+IF(DSMTEnvironment = "UAT",4,2)) -> a1r3u000003FilHAAS | R22: =INDEX(S22:DP22,1,MATCH(Utility&Program,$S$6:$DP$6,0)+IF(DSMTEnvironment="UAT",5,3)) -> 0123u000000VQdHAAW | S22: 250 | T22: 0 | Y22: 250 | Z22: 0 | AE22: 150 | AF22: 0 | AG22: a1r3u000003FilHAAS | AH22: 0123u000000VQdHAAW | AI22: a1r790000008VbcAAE | AJ22: 012790000004MaOAAU | AK22: 150 | AL22: 0 | AM22: a1r3u000003FijqAAC | AN22: 0123u000000VQdHAAW | AO22: a1r790000008VpiAAE | AP22: 012790000004MaOAAU | AQ22: 0 | AR22: 0.04 | AS22: a1r3u000007a59lAAA | AT22: 0123u000000VQdHAAW | AU22: a1r79000000AIdH | AV22: 012790000004MaOAAU | AW22: 0 | AX22: 0.04 | AY22: a1r3u000007deRJAAY | AZ22: 0123u000000VQdHAAW | BA22: a1r79000000AIx4AAG | BB22: 012790000004MaOAAU | BC22: 200 | BD22: 0.07 | BG22: a1r79000000AJoSAAW | BH22: 012790000004MaOAAU | BI22: 200 | BJ22: 0.05 | BK22: a1r3u0000069Bu6AAE | BL22: 0123u000000aP5cAAE | BM22: a1r79000000A2oT | BN22: 012790000004PuSAAU | BO22: 200 | BP22: 0.05 | BQ22: a1r3u0000069DApAAM | BR22: 0123u000000aP5cAAE | BS22: a1r79000000A6XhAAK | BT22: 012790000004PuSAAU | BU22: 550 | BV22: 0 | CA22: 240 | CB22: 0 | CG22: 240 | CH22: 0 | CM22: 400 | CN22: 0 | CS22: 165 | CT22: 0.02 | CY22: 150 | CZ22: 0.03 | DE22: 150 | DF22: 0.03 | DK22: 250 | DL22: 0.03
C23: ENERGY STAR Electric Fryers | D23: 12 | E23: =ROUND('Food Service & DHW'!B32,3) -> 0 | F23: 0 | G23: =MAX(ROUND('Food Service & DHW'!C32,3),E23:F23) -> 0 | H23: 0 | I23: 0 | J23: 0 | K23: 0 | L23: ='Food Service & DHW'!D32 -> 0 | M23: 0 | N23: =IF(Utility="CPS Energy",0,INDEX($S23:$DL23,1,MATCH(Utility&Program,'Savings Summary'!$S$6:$DL$6,0))) -> 150 | O23: =IF(Utility="CPS Energy",INDEX($S23:$DL23,1,MATCH(Utility&Program,'Savings Summary'!$S$6:$DL$6,0)),0) -> 0 | P23: =INDEX($S23:$DL23,1,MATCH(Utility&Program,'Savings Summary'!$S$6:$DL$6,0)+1) -> 0 | Q23: =INDEX(S23:DP23,1,MATCH(Utility&Program,$S$6:$DP$6,0)+IF(DSMTEnvironment = "UAT",4,2)) -> a1r3u000003FileAAC | R23: =INDEX(S23:DP23,1,MATCH(Utility&Program,$S$6:$DP$6,0)+IF(DSMTEnvironment="UAT",5,3)) -> 0123u000000VQd2AAG | S23: 250 | T23: 0 | Y23: 250 | Z23: 0 | AE23: 150 | AF23: 0 | AG23: a1r3u000003FileAAC | AH23: 0123u000000VQd2AAG | AI23: a1r790000008VbwAAE | AJ23: 012790000004Mb2AAE | AK23: 150 | AL23: 0 | AM23: a1r3u000003FikDAAS | AN23: 0123u000000VQd2AAG | AO23: a1r790000008Vq5AAE | AP23: 012790000004Mb2AAE | AQ23: 0 | AR23: 0.04 | AS23: a1r3u000007a5AAAAY | AT23: 0123u000000VQd2AAG | AU23: a1r79000000AIdW | AV23: 012790000004Mb2AAE | AW23: 0 | AX23: 0.04 | AY23: a1r3u000007deRiAAI | AZ23: 0123u000000VQd2AAG | BA23: a1r79000000AIxdAAG | BB23: 012790000004Mb2AAE | BC23: 200 | BD23: 0.07 | BG23: a1r79000000AJohAAG | BH23: 012790000004Mb2AAE | BI23: 200 | BJ23: 0.05 | BK23: a1r3u0000069BubAAE | BL23: 0123u000000aP5xAAE | BM23: a1r79000000A5lR | BN23: 012790000004PzyAAE | BO23: 200 | BP23: 0.05 | BQ23: a1r3u0000069DBCAA2 | BR23: 0123u000000aP5xAAE | BS23: a1r79000000A6VqAAK | BT23: 012790000004PzyAAE | BU23: 550 | BV23: 0 | CA23: 240 | CB23: 0 | CG23: 240 | CH23: 0 | CM23: 400 | CN23: 0 | CS23: 165 | CT23: 0.02 | CY23: 150 | CZ23: 0.03 | DE23: 150 | DF23: 0.03 | DK23: 250 | DL23: 0.03
C24: ENERGY STAR Electric Hot Food Holding Cabinets | D24: 12 | E24: =ROUND('Food Service & DHW'!B38,3) -> 0 | F24: 0 | G24: =MAX(ROUND('Food Service & DHW'!C38,3),E24:F24) -> 0 | H24: 0 | I24: 0 | J24: 0 | K24: 0 | L24: ='Food Service & DHW'!D38 -> 0 | M24: 0 | N24: =IF(Utility="CPS Energy",0,INDEX($S24:$DL24,1,MATCH(Utility&Program,'Savings Summary'!$S$6:$DL$6,0))) -> 150 | O24: =IF(Utility="CPS Energy",INDEX($S24:$DL24,1,MATCH(Utility&Program,'Savings Summary'!$S$6:$DL$6,0)),0) -> 0 | P24: =INDEX($S24:$DL24,1,MATCH(Utility&Program,'Savings Summary'!$S$6:$DL$6,0)+1) -> 0 | Q24: =INDEX(S24:DP24,1,MATCH(Utility&Program,$S$6:$DP$6,0)+IF(DSMTEnvironment = "UAT",4,2)) -> a1r3u000003FilTAAS | R24: =INDEX(S24:DP24,1,MATCH(Utility&Program,$S$6:$DP$6,0)+IF(DSMTEnvironment="UAT",5,3)) -> 0123u000000VQdAAAW | S24: 250 | T24: 0 | Y24: 250 | Z24: 0 | AE24: 150 | AF24: 0 | AG24: a1r3u000003FilTAAS | AH24: 0123u000000VQdAAAW | AI24: a1r790000008VbmAAE | AJ24: 012790000004MSZAA2 | AK24: 150 | AL24: 0 | AM24: a1r3u000003Fik2AAC | AN24: 0123u000000VQdAAAW | AO24: a1r790000008VpuAAE | AP24: 012790000004MSZAA2 | AQ24: 0 | AR24: 0.04 | AS24: a1r3u000007a59zAAA | AT24: 0123u000000VQdAAAW | AU24: a1r79000000AIdM | AV24: 012790000004MSZAA2 | AW24: 0 | AX24: 0.04 | AY24: a1r3u000007deRXAAY | AZ24: 0123u000000VQdAAAW | BA24: a1r79000000AIxEAAW | BB24: 012790000004MSZAA2 | BC24: 200 | BD24: 0.07 | BG24: a1r79000000AJocAAG | BH24: 012790000004MSZAA2 | BI24: 200 | BJ24: 0.05 | BK24: a1r3u0000069BuHAAU | BL24: 0123u000000aP5bAAE | BM24: a1r79000000A5ju | BN24: 012790000004PuRAAU | BO24: 200 | BP24: 0.05 | BQ24: a1r3u0000069DB1AAM | BR24: 0123u000000aP5bAAE | BS24: a1r79000000A6VbAAK | BT24: 012790000004PuRAAU | BU24: 550 | BV24: 0 | CA24: 240 | CB24: 0 | CG24: 240 | CH24: 0 | CM24: 400 | CN24: 0 | CS24: 165 | CT24: 0.02 | CY24: 150 | CZ24: 0.03 | DE24: 150 | DF24: 0.03 | DK24: 250 | DL24: 0.03
C25: Low Flow Pre-Rinse Spray Valve | D25: 5 | E25: =ROUND('Food Service & DHW'!B44,3) -> 0 | F25: 0 | G25: =MAX(ROUND('Food Service & DHW'!C44,3),E25:F25) -> 0 | H25: 0 | I25: 0 | J25: 0 | K25: 0 | L25: ='Food Service & DHW'!D44 -> 0 | M25: 0 | N25: =IF(Utility="CPS Energy",0,INDEX($S25:$DL25,1,MATCH(Utility&Program,'Savings Summary'!$S$6:$DL$6,0))) -> 150 | O25: =IF(Utility="CPS Energy",INDEX($S25:$DL25,1,MATCH(Utility&Program,'Savings Summary'!$S$6:$DL$6,0)),0) -> 0 | P25: =INDEX($S25:$DL25,1,MATCH(Utility&Program,'Savings Summary'!$S$6:$DL$6,0)+1) -> 0 | Q25: =INDEX(S25:DP25,1,MATCH(Utility&Program,$S$6:$DP$6,0)+IF(DSMTEnvironment = "UAT",4,2)) -> a1r3u000003FilrAAC | R25: =INDEX(S25:DP25,1,MATCH(Utility&Program,$S$6:$DP$6,0)+IF(DSMTEnvironment="UAT",5,3)) -> 0123u000000VQdTAAW | S25: 250 | T25: 0 | Y25: 250 | Z25: 0 | AE25: 150 | AF25: 0 | AG25: a1r3u000003FilrAAC | AH25: 0123u000000VQdTAAW | AI25: a1r790000008VcaAAE | AJ25: 012790000004MbvAAE | AK25: 150 | AL25: 0 | AM25: a1r3u000003FikPAAS | AN25: 0123u000000VQdTAAW | AO25: a1r790000008VqHAAU | AP25: 012790000004MbvAAE | AQ25: 0 | AR25: 0.04 | AS25: a1r3u000007a5ARAAY | AT25: 0123u000000VQdTAAW | AU25: a1r79000000AIe0 | AV25: 012790000004MbvAAE | AW25: 0 | AX25: 0.04 | AY25: a1r3u000007deRyAAI | AZ25: 0123u000000VQdTAAW | BA25: a1r79000000AIxsAAG | BB25: 012790000004MbvAAE | BC25: 200 | BD25: 0.07 | BG25: a1r79000000AJoDAAW | BH25: 012790000004MbvAAE | BI25: 200 | BJ25: 0.05 | BK25: a1r3u0000069BuWAAU | BL25: 0123u000000aP5bAAE | BM25: a1r79000000A5l7 | BN25: 012790000004PuRAAU | BO25: 200 | BP25: 0.05 | BQ25: a1r3u0000069DBTAA2 | BR25: 0123u000000aP5bAAE | BS25: a1r79000000A6WKAA0 | BT25: 012790000004PuRAAU | BU25: 550 | BV25: 0 | CA25: 240 | CB25: 0 | CG25: 240 | CH25: 0 | CM25: 400 | CN25: 0 | CS25: 165 | CT25: 0.02 | CY25: 150 | CZ25: 0.03 | DE25: 150 | DF25: 0.03 | DK25: 250 | DL25: 0.03
C26: Demand Controlled Kitchen Ventilation | D26: 15 | E26: =ROUND(IF('Food Service & DHW'!S52,'Food Service & DHW'!R52,0),3) -> 0 | F26: =ROUND(IF('Food Service & DHW'!S52,0,'Food Service & DHW'!P52),3) -> 0 | G26: =MAX(ROUND('Food Service & DHW'!C52,3),E26:F26) -> 0 | H26: 0 | I26: 0 | J26: =IF(OR(J$5="Not Entered",$H$5=0),0,H26/$H$5*$J$5) -> 0 | K26: 0 | L26: ='Food Service & DHW'!D52 -> 0 | M26: 0 | N26: =IF(Utility="CPS Energy",0,INDEX($S26:$DL26,1,MATCH(Utility&Program,'Savings Summary'!$S$6:$DL$6,0))) -> 150 | O26: =IF(Utility="CPS Energy",INDEX($S26:$DL26,1,MATCH(Utility&Program,'Savings Summary'!$S$6:$DL$6,0)),0) -> 0 | P26: =INDEX($S26:$DL26,1,MATCH(Utility&Program,'Savings Summary'!$S$6:$DL$6,0)+1) -> 0 | Q26: =INDEX(S26:DP26,1,MATCH(Utility&Program,$S$6:$DP$6,0)+IF(DSMTEnvironment = "UAT",4,2)) -> a1r3u000003FilcAAC | R26: =INDEX(S26:DP26,1,MATCH(Utility&Program,$S$6:$DP$6,0)+IF(DSMTEnvironment="UAT",5,3)) -> 0123u000000VQdAAAW | S26: 250 | T26: 0 | Y26: 250 | Z26: 0 | AE26: 150 | AF26: 0 | AG26: a1r3u000003FilcAAC | AH26: 0123u000000VQdAAAW | AI26: a1r790000008VcpAAE | AJ26: 012790000004MSZAA2 | AK26: 150 | AL26: 0 | AM26: a1r3u000003FikBAAS | AN26: 0123u000000VQdAAAW | AO26: a1r790000008Vq3AAE | AP26: 012790000004MSZAA2 | AQ26: 0 | AR26: 0.04 | AS26: a1r3u000007a5A8AAI | AT26: 0123u000000VQdAAAW | AU26: a1r79000000AIe5 | AV26: 012790000004MSZAA2 | AW26: 0 | AX26: 0.04 | AY26: a1r3u000007deRgAAI | AZ26: 0123u000000VQdAAAW | BA26: a1r79000000AIy7AAG | BB26: 012790000004MSZAA2 | BC26: 200 | BD26: 0.07 | BG26: a1r79000000AJoIAAW | BH26: 012790000004MSZAA2 | BI26: 200 | BJ26: 0.05 | BK26: a1r3u0000069BudAAE | BL26: 0123u000000aP5cAAE | BM26: a1r79000000A5lb | BN26: 012790000004PuSAAU | BO26: 200 | BP26: 0.05 | BQ26: a1r3u0000069DBAAA2 | BR26: 0123u000000aP5cAAE | BS26: a1r79000000A6VlAAK | BT26: 012790000004PuSAAU | BU26: 550 | BV26: 0 | CA26: 240 | CB26: 0 | CG26: 240 | CH26: 0 | CM26: 400 | CN26: 0 | CS26: 165 | CT26: 0.02 | CY26: 150 | CZ26: 0.03 | DE26: 150 | DF26: 0.03 | DK26: 250 | DL26: 0.03
C27: ENERGY STAR Commercial Ice Makers | D27: 8.5 | E27: =ROUND('Food Service & DHW'!B60,3) -> 0 | F27: 0 | G27: =MAX(ROUND('Food Service & DHW'!C60,3),E27:F27) -> 0 | H27: 0 | I27: 0 | J27: 0 | K27: 0 | L27: ='Food Service & DHW'!D60 -> 0 | M27: 0 | N27: =IF(Utility="CPS Energy",0,INDEX($S27:$DL27,1,MATCH(Utility&Program,'Savings Summary'!$S$6:$DL$6,0))) -> 150 | O27: =IF(Utility="CPS Energy",INDEX($S27:$DL27,1,MATCH(Utility&Program,'Savings Summary'!$S$6:$DL$6,0)),0) -> 0 | P27: =INDEX($S27:$DL27,1,MATCH(Utility&Program,'Savings Summary'!$S$6:$DL$6,0)+1) -> 0 | Q27: =INDEX(S27:DP27,1,MATCH(Utility&Program,$S$6:$DP$6,0)+IF(DSMTEnvironment = "UAT",4,2)) -> a1r3u000003Fil0AAC | R27: =INDEX(S27:DP27,1,MATCH(Utility&Program,$S$6:$DP$6,0)+IF(DSMTEnvironment="UAT",5,3)) -> 0123u000000VQd9AAG | S27: 250 | T27: 0 | Y27: 250 | Z27: 0 | AE27: 150 | AF27: 0 | AG27: a1r3u000003Fil0AAC | AH27: 0123u000000VQd9AAG | AI27: a1r790000008VFCAA2 | AJ27: 012790000004MPzAAM | AK27: 150 | AL27: 0 | AM27: a1r3u000003FijZAAS | AN27: 0123u000000VQd9AAG | AO27: a1r790000008VpRAAU | AP27: 012790000004MPzAAM | AQ27: 0 | AR27: 0.04 | AS27: a1r3u000007a59UAAQ | AT27: 0123u000000VQd9AAG | AU27: a1r79000000AIdl | AV27: 012790000004MPzAAM | AW27: 0 | AX27: 0.04 | AY27: a1r3u000007deR2AAI | AZ27: 0123u000000VQd9AAG | BA27: a1r79000000AIwLAAW | BB27: 012790000004MPzAAM | BC27: 200 | BD27: 0.07 | BG27: a1r79000000AJnPAAW | BH27: 012790000004MPzAAM | BI27: 200 | BJ27: 0.05 | BK27: a1r3u0000069BujAAE | BL27: 0123u000000aP5bAAE | BM27: a1r79000000A5m5 | BN27: 012790000004PuRAAU | BO27: 200 | BP27: 0.05 | BQ27: a1r3u0000069DAYAA2 | BR27: 0123u000000aP5bAAE | BS27: a1r79000000A6UiAAK | BT27: 012790000004PuRAAU | BU27: 550 | BV27: 0 | CA27: 240 | CB27: 0 | CG27: 240 | CH27: 0 | CM27: 400 | CN27: 0 | CS27: 165 | CT27: 0.02 | CY27: 150 | CZ27: 0.03 | DE27: 150 | DF27: 0.03 | DK27: 250 | DL27: 0.03
C28: Vacuum-Sealing & Packaging Machines | D28: 10 | E28: =ROUND('Food Service & DHW'!B64,3) -> 0 | F28: 0 | G28: =E28 -> 0 | H28: 0 | I28: 0 | J28: =IF(OR(J$5="Not Entered",$H$5=0),0,H28/$H$5*$J$5) -> 0 | K28: =IFERROR(G28*O28+(E28+F28)*N28+H28*P28,0) -> 0 | L28: ='Food Service & DHW'!D64 -> 0 | M28: 0 | N28: =IF(Utility="CPS Energy",0,INDEX($S28:$DL28,1,MATCH(Utility&Program,'Savings Summary'!$S$6:$DL$6,0))) -> 150 | O28: =IF(Utility="CPS Energy",INDEX($S28:$DL28,1,MATCH(Utility&Program,'Savings Summary'!$S$6:$DL$6,0)),0) -> 0 | P28: =INDEX($S28:$DL28,1,MATCH(Utility&Program,'Savings Summary'!$S$6:$DL$6,0)+1) -> 0 | Q28: =INDEX(S28:DP28,1,MATCH(Utility&Program,$S$6:$DP$6,0)+IF(DSMTEnvironment = "UAT",4,2)) -> 0 | R28: =INDEX(S28:DP28,1,MATCH(Utility&Program,$S$6:$DP$6,0)+IF(DSMTEnvironment="UAT",5,3)) -> 0 | S28: 250 | T28: 0 | Y28: 250 | Z28: 0 | AE28: 150 | AF28: 0 | AK28: 150 | AL28: 0 | AQ28: 0 | AR28: 0.04 | AW28: 0 | AX28: 0.04 | BC28: 200 | BD28: 0.07 | BI28: 200 | BJ28: 0.05 | BO28: 200 | BP28: 0.05 | BU28: 550 | BV28: 0 | CA28: 240 | CB28: 0 | CG28: 240 | CH28: 0 | CM28: 400 | CN28: 0 | CS28: 165 | CT28: 0.02 | CY28: 150 | CZ28: 0.03 | DE28: 150 | DF28: 0.03 | DK28: 250 | DL28: 0.03
C29: Low Flow Faucet Aerators | D29: 10 | E29: =ROUND('Food Service & DHW'!B70,3) -> 0 | F29: 0 | G29: =MAX(ROUND('Food Service & DHW'!C70,3),E29:F29) -> 0 | H29: =ROUND(MIN(L29:M29),0) -> 0 | I29: 0 | J29: =IF(OR(J$5="Not Entered",$H$5=0),0,H29/$H$5*$J$5) -> 0 | K29: =IFERROR(G29*O29+(E29+F29)*N29+H29*P29,0) -> 0 | L29: ='Food Service & DHW'!D70 -> 0 | M29: =IFERROR(MAX(E29:F29)*LoadFactor,L29) -> 0 | N29: =IF(Utility="CPS Energy",0,INDEX($S29:$DL29,1,MATCH(Utility&Program,'Savings Summary'!$S$6:$DL$6,0))) -> 0 | O29: =IF(Utility="CPS Energy",INDEX($S29:$DL29,1,MATCH(Utility&Program,'Savings Summary'!$S$6:$DL$6,0)),0) -> 0 | P29: =INDEX($S29:$DL29,1,MATCH(Utility&Program,'Savings Summary'!$S$6:$DL$6,0)+1) -> 0 | Q29: =INDEX(S29:DP29,1,MATCH(Utility&Program,$S$6:$DP$6,0)+IF(DSMTEnvironment = "UAT",4,2)) -> 0 | R29: =INDEX(S29:DP29,1,MATCH(Utility&Program,$S$6:$DP$6,0)+IF(DSMTEnvironment="UAT",5,3)) -> 0 | S29: 0 | T29: 0 | Y29: 0 | Z29: 0 | AE29: 0 | AF29: 0 | AK29: 0 | AL29: 0 | AQ29: 0 | AR29: 0 | AS29: a1r3u000007a5AFAAY | AT29: 0123u000000VQdIAAW | AU29: a1r79000000AIee | AV29: 012790000004M30AAE | AW29: 0 | AX29: 0 | AY29: a1r3u000007deRnAAI | AZ29: 0123u000000VQdIAAW | BA29: a1r79000000AIylAAG | BB29: 012790000004M30AAE | BC29: 0 | BD29: 0 | BI29: 200 | BJ29: 0.05 | BK29: a1r3u0000069BufAAE | BL29: 0123u000000aP61AAE | BM29: a1r79000000A5ll | BN29: 012790000004Q0HAAU | BO29: 200 | BP29: 0.05 | BQ29: a1r3u0000069DBHAA2 | BR29: 0123u000000aP61AAE | BS29: a1r79000000A6XXAA0 | BT29: 012790000004Q0HAAU | BU29: 550 | BV29: 0 | CA29: 0 | CB29: 0 | CG29: 0 | CH29: 0 | CM29: 0 | CN29: 0 | CS29: 0 | CT29: 0 | CY29: 0 | CZ29: 0 | DE29: 0 | DF29: 0 | DK29: 0 | DL29: 0
C30: Low Flow Showerheads | D30: 10 | E30: =ROUND('Food Service & DHW'!B76,3) -> 0 | F30: 0 | G30: =MAX(ROUND('Food Service & DHW'!C76,3),E30:F30) -> 0 | H30: 0 | I30: 0 | J30: 0 | K30: =IFERROR(G30*O30+(E30+F30)*N30+H30*P30,0) -> 0 | L30: ='Food Service & DHW'!D76 -> 0 | M30: 0 | N30: =IF(Utility="CPS Energy",0,INDEX($S30:$DL30,1,MATCH(Utility&Program,'Savings Summary'!$S$6:$DL$6,0))) -> 0 | O30: =IF(Utility="CPS Energy",INDEX($S30:$DL30,1,MATCH(Utility&Program,'Savings Summary'!$S$6:$DL$6,0)),0) -> 0 | P30: =INDEX($S30:$DL30,1,MATCH(Utility&Program,'Savings Summary'!$S$6:$DL$6,0)+1) -> 0 | Q30: =INDEX(S30:DP30,1,MATCH(Utility&Program,$S$6:$DP$6,0)+IF(DSMTEnvironment = "UAT",4,2)) -> 0 | R30: =INDEX(S30:DP30,1,MATCH(Utility&Program,$S$6:$DP$6,0)+IF(DSMTEnvironment="UAT",5,3)) -> 0 | S30: 0 | T30: 0 | Y30: 0 | Z30: 0 | AE30: 0 | AF30: 0 | AK30: 0 | AL30: 0 | AQ30: 0 | AR30: 0 | AS30: a1r3u000007a5AHAAY | AT30: 0123u000000aPHcAAM | AU30: a1r79000000AIeA | AV30: 012790000004QjPAAU | AW30: 0 | AX30: 0 | AY30: a1r3u000007deRpAAI | AZ30: 0123u000000aPHcAAM | BA30: a1r79000000AIyRAAW | BB30: 012790000004QjPAAU | BC30: 0 | BD30: 0 | BI30: 200 | BJ30: 0.05 | BK30: a1r3u0000069BuUAAU | BL30: 0123u000000aP65AAE | BM30: a1r79000000A5kx | BN30: 012790000004Q0QAAU | BO30: 200 | BP30: 0.05 | BQ30: a1r3u0000069DBJAA2 | BR30: 0123u000000aP65AAE | BS30: a1r79000000A6XSAA0 | BT30: 012790000004Q0QAAU | BU30: 550 | BV30: 0 | CA30: 0 | CB30: 0 | CG30: 0 | CH30: 0 | CM30: 0 | CN30: 0 | CS30: 0 | CT30: 0 | CY30: 0 | CZ30: 0 | DE30: 0 | DF30: 0 | DK30: 0 | DL30: 0
C31: Temperature-Sensitive Restrictor Valves for Showers | D31: 10 | E31: =ROUND(IF('Food Service & DHW'!Y82,'Food Service & DHW'!U82,0),3) -> 0 | F31: =ROUND(IF('Food Service & DHW'!Y82,0,'Food Service & DHW'!X82),3) -> 0 | G31: =MAX(ROUND('Food Service & DHW'!C82,3),E31:F31) -> 0 | H31: 0 | I31: 0 | J31: 0 | K31: =IFERROR(G31*O31+(E31+F31)*N31+H31*P31,0) -> 0 | L31: ='Food Service & DHW'!D82 -> 0 | M31: 0 | N31: =IF(Utility="CPS Energy",0,INDEX($S31:$DL31,1,MATCH(Utility&Program,'Savings Summary'!$S$6:$DL$6,0))) -> 150 | O31: =IF(Utility="CPS Energy",INDEX($S31:$DL31,1,MATCH(Utility&Program,'Savings Summary'!$S$6:$DL$6,0)),0) -> 0 | P31: =INDEX($S31:$DL31,1,MATCH(Utility&Program,'Savings Summary'!$S$6:$DL$6,0)+1) -> 0 | Q31: =INDEX(S31:DP31,1,MATCH(Utility&Program,$S$6:$DP$6,0)+IF(DSMTEnvironment = "UAT",4,2)) -> 0 | R31: =INDEX(S31:DP31,1,MATCH(Utility&Program,$S$6:$DP$6,0)+IF(DSMTEnvironment="UAT",5,3)) -> 0 | S31: 250 | T31: 0 | Y31: 250 | Z31: 0 | AE31: 150 | AF31: 0 | AK31: 150 | AL31: 0 | AQ31: 0 | AR31: 0.04 | AW31: 0 | AX31: 0.04 | BC31: 200 | BD31: 0.07 | BI31: 200 | BJ31: 0.05 | BO31: 200 | BP31: 0.05 | BU31: 550 | BV31: 0 | CA31: 240 | CB31: 0 | CG31: 240 | CH31: 0 | CM31: 400 | CN31: 0 | CS31: 165 | CT31: 0.02 | CY31: 150 | CZ31: 0.03 | DE31: 150 | DF31: 0.03 | DK31: 250 | DL31: 0.03
C32: Central Domestic Hot Water (DHW) Controls | D32: 15 | E32: =ROUND(IF('Food Service & DHW'!U89,'Food Service & DHW'!Q89,0),3) -> 0 | F32: =ROUND(IF('Food Service & DHW'!U89,0,'Food Service & DHW'!T89),3) -> 0 | G32: =MAX(ROUND('Food Service & DHW'!C89,3),E32:F32) -> 0 | H32: 0 | I32: 0 | J32: 0 | K32: =IFERROR(G32*O32+(E32+F32)*N32+H32*P32,0) -> 0 | L32: ='Food Service & DHW'!D89 -> 0 | M32: 0 | N32: =IF(Utility="CPS Energy",0,INDEX($S32:$DL32,1,MATCH(Utility&Program,'Savings Summary'!$S$6:$DL$6,0))) -> 150 | O32: =IF(Utility="CPS Energy",INDEX($S32:$DL32,1,MATCH(Utility&Program,'Savings Summary'!$S$6:$DL$6,0)),0) -> 0 | P32: =INDEX($S32:$DL32,1,MATCH(Utility&Program,'Savings Summary'!$S$6:$DL$6,0)+1) -> 0 | Q32: =INDEX(S32:DP32,1,MATCH(Utility&Program,$S$6:$DP$6,0)+IF(DSMTEnvironment = "UAT",4,2)) -> 0 | R32: =INDEX(S32:DP32,1,MATCH(Utility&Program,$S$6:$DP$6,0)+IF(DSMTEnvironment="UAT",5,3)) -> 0 | S32: 250 | T32: 0 | Y32: 250 | Z32: 0 | AE32: 150 | AF32: 0 | AK32: 150 | AL32: 0 | AQ32: 0 | AR32: 0.04 | AW32: 0 | AX32: 0.04 | BC32: 200 | BD32: 0.07 | BI32: 200 | BJ32: 0.05 | BO32: 200 | BP32: 0.05 | BU32: 550 | BV32: 0 | CA32: 240 | CB32: 0 | CG32: 240 | CH32: 0 | CM32: 400 | CN32: 0 | CS32: 165 | CT32: 0.02 | CY32: 150 | CZ32: 0.03 | DE32: 150 | DF32: 0.03 | DK32: 250 | DL32: 0.03
B33: HVAC & Envelope | C33: Cool Roofs | D33: 15 | E33: =ROUND('HVAC & Envelope'!B8,3) -> 0 | F33: 0 | G33: =MAX(ROUND('HVAC & Envelope'!C8,3),E33:F33) -> 0 | H33: 0 | I33: 0 | J33: 0 | K33: =IFERROR(G33*O33+(E33+F33)*N33+H33*P33,0) -> 0 | L33: ='HVAC & Envelope'!D8 -> 0 | M33: 0 | N33: =IF(Utility="CPS Energy",0,INDEX($S33:$DL33,1,MATCH(Utility&Program,'Savings Summary'!$S$6:$DL$6,0))) -> 150 | O33: =IF(Utility="CPS Energy",INDEX($S33:$DL33,1,MATCH(Utility&Program,'Savings Summary'!$S$6:$DL$6,0)),0) -> 0 | P33: =INDEX($S33:$DL33,1,MATCH(Utility&Program,'Savings Summary'!$S$6:$DL$6,0)+1) -> 0 | Q33: =INDEX(S33:DP33,1,MATCH(Utility&Program,$S$6:$DP$6,0)+IF(DSMTEnvironment = "UAT",4,2)) -> a1r3u000003Fil4AAC | R33: =INDEX(S33:DP33,1,MATCH(Utility&Program,$S$6:$DP$6,0)+IF(DSMTEnvironment="UAT",5,3)) -> 0123u000000VQdDAAW | S33: 250 | T33: 0 | Y33: 250 | Z33: 0 | AE33: 150 | AF33: 0 | AG33: a1r3u000003Fil4AAC | AH33: 0123u000000VQdDAAW | AI33: a1r790000008V7cAAE | AJ33: 012790000004ML4AAM | AK33: 150 | AL33: 0 | AM33: a1r3u000003FijdAAC | AN33: 0123u000000VQdDAAW | AO33: a1r790000008VpVAAU | AP33: 012790000004ML4AAM | AQ33: 0 | AR33: 0.04 | AS33: a1r3u000007a59YAAQ | AT33: 0123u000000VQdDAAW | AU33: a1r79000000AIcE | AV33: 012790000004ML4AAM | AW33: 0 | AX33: 0.04 | AY33: a1r3u000007deR6AAI | AZ33: 0123u000000VQdDAAW | BA33: a1r79000000AIw1AAG | BB33: 012790000004ML4AAM | BC33: 240 | BD33: 0.09 | BG33: a1r79000000AJmlAAG | BH33: 012790000004ML4AAM | BI33: 200 | BJ33: 0.03 | BK33: a1r3u0000069BuFAAU | BL33: 0123u000000aP5yAAE | BM33: a1r79000000A5jk | BN33: 012790000004PzzAAE | BO33: 200 | BP33: 0.03 | BQ33: a1r3u0000069DAcAAM | BR33: 0123u000000aP5yAAE | BS33: a1r79000000A6UxAAK | BT33: 012790000004PzzAAE | BU33: 550 | BV33: 0 | CA33: 240 | CB33: 0 | CG33: 240 | CH33: 0 | CM33: 400 | CN33: 0 | CS33: 165 | CT33: 0.02 | CY33: 150 | CZ33: 0.04 | DE33: 150 | DF33: 0.04 | DK33: 250 | DL33: 0.04
C34: Entrance & Exit Door Air Infiltration | D34: 11 | E34: =ROUND(IF('HVAC & Envelope'!T15,'HVAC & Envelope'!Q15,0),3) -> 0 | F34: =ROUND(IF('HVAC & Envelope'!T15,0,'HVAC & Envelope'!P15),3) -> 0 | G34: =MAX(ROUND('HVAC & Envelope'!C15,3),E34:F34) -> 0 | H34: 0 | I34: 0 | J34: 0 | K34: =IFERROR(_xlfn.IFNA('HVAC & Envelope'!S15,G34*O34+(E34+F34)*N34+H34*P34),0) -> 0 | L34: ='HVAC & Envelope'!D15 -> 0 | M34: 0 | N34: =IF(Utility="CPS Energy",0,INDEX($S34:$DL34,1,MATCH(Utility&Program,'Savings Summary'!$S$6:$DL$6,0))) -> 150 | O34: =IF(Utility="CPS Energy",INDEX($S34:$DL34,1,MATCH(Utility&Program,'Savings Summary'!$S$6:$DL$6,0)),0) -> 0 | P34: =INDEX($S34:$DL34,1,MATCH(Utility&Program,'Savings Summary'!$S$6:$DL$6,0)+1) -> 0 | Q34: =INDEX(S34:DP34,1,MATCH(Utility&Program,$S$6:$DP$6,0)+IF(DSMTEnvironment = "UAT",4,2)) -> a1r3u000003FilMAAS | R34: =INDEX(S34:DP34,1,MATCH(Utility&Program,$S$6:$DP$6,0)+IF(DSMTEnvironment="UAT",5,3)) -> 0123u000000VQdKAAW | S34: 250 | T34: 0 | Y34: 250 | Z34: 0 | AE34: 150 | AF34: 0 | AG34: a1r3u000003FilMAAS | AH34: 0123u000000VQdKAAW | AI34: a1r790000008VBeAAM | AJ34: 012790000004Lq6AAE | AK34: 150 | AL34: 0 | AM34: a1r3u000003FijvAAC | AN34: 0123u000000VQdKAAW | AO34: a1r790000008VpnAAE | AP34: 012790000004Lq6AAE | AQ34: 0 | AR34: 0.04 | AS34: a1r3u000007a59qAAA | AT34: 0123u000000VQdKAAW | AU34: a1r79000000AIcO | AV34: 012790000004Lq6AAE | AW34: 0 | AX34: 0.04 | AY34: a1r3u000007deROAAY | AZ34: 0123u000000VQdKAAW | BA34: a1r79000000AIw6AAG | BB34: 012790000004Lq6AAE | BC34: 200 | BD34: 0.07 | BG34: a1r79000000AJmqAAG | BH34: 012790000004Lq6AAE | BI34: 200 | BJ34: 0.03 | BK34: a1r3u0000069BuTAAU | BL34: 0123u000000aP5pAAE | BM34: a1r79000000A5ks | BN34: 012790000004PzbAAE | BO34: 200 | BP34: 0.03 | BQ34: a1r3u0000069DAuAAM | BR34: 0123u000000aP5pAAE | BS34: a1r79000000A6VMAA0 | BT34: 012790000004PzbAAE | BU34: 550 | BV34: 0 | CA34: 240 | CB34: 0 | CG34: 240 | CH34: 0 | CM34: 400 | CN34: 0 | CS34: 165 | CT34: 0.02 | CY34: 150 | CZ34: 0.03 | DE34: 150 | DF34: 0.03 | DK34: 250 | DL34: 0.03
C35: Window Film Treatment | D35: 10 | E35: =ROUND('HVAC & Envelope'!B23,3) -> 0 | F35: 0 | G35: =MAX(ROUND('HVAC & Envelope'!C23,3),E35:F35) -> 0 | H35: 0 | I35: 0 | J35: 0 | K35: =IFERROR(G35*O35+(E35+F35)*N35+H35*P35,0) -> 0 | L35: ='HVAC & Envelope'!D23 -> 0 | M35: 0 | N35: =IF(Utility="CPS Energy",0,INDEX($S35:$DL35,1,MATCH(Utility&Program,'Savings Summary'!$S$6:$DL$6,0))) -> 150 | O35: =IF(Utility="CPS Energy",INDEX($S35:$DL35,1,MATCH(Utility&Program,'Savings Summary'!$S$6:$DL$6,0)),0) -> 0 | P35: =INDEX($S35:$DL35,1,MATCH(Utility&Program,'Savings Summary'!$S$6:$DL$6,0)+1) -> 0 | Q35: =INDEX(S35:DP35,1,MATCH(Utility&Program,$S$6:$DP$6,0)+IF(DSMTEnvironment = "UAT",4,2)) -> a1r3u000003FimHAAS | R35: =INDEX(S35:DP35,1,MATCH(Utility&Program,$S$6:$DP$6,0)+IF(DSMTEnvironment="UAT",5,3)) -> 0123u000000VQd7AAG | S35: 250 | T35: 0 | Y35: 250 | Z35: 0 | AE35: 150 | AF35: 0 | AG35: a1r3u000003FimHAAS | AH35: 0123u000000VQd7AAG | AI35: a1r790000008VBjAAM | AJ35: 012790000004MSUAA2 | AK35: 150 | AL35: 0 | AM35: a1r3u000003FikpAAC | AN35: 0123u000000VQd7AAG | AO35: a1r790000008VqhAAE | AP35: 012790000004MSUAA2 | AQ35: 0 | AR35: 0.04 | AS35: a1r3u000007a5ArAAI | AT35: 0123u000000VQd7AAG | AU35: a1r79000000AIdR | AV35: 012790000004MSUAA2 | AW35: 0 | AX35: 0.04 | AY35: a1r3u000007deSOAAY | AZ35: 0123u000000VQd7AAG | BA35: a1r79000000AIwBAAW | BB35: 012790000004MSUAA2 | BC35: 180 | BD35: 0.06 | BG35: a1r79000000AJnAAAW | BH35: 012790000004MSUAA2 | BI35: 200 | BJ35: 0.03 | BK35: a1r3u0000069BugAAE | BL35: 0123u000000aP5qAAE | BM35: a1r79000000A5lq | BN35: 012790000004PzcAAE | BO35: 200 | BP35: 0.03 | BQ35: a1r3u0000069DBoAAM | BR35: 0123u000000aP5qAAE | BS35: a1r79000000A6WAAA0 | BT35: 012790000004PzcAAE | BU35: 550 | BV35: 0 | CA35: 240 | CB35: 0 | CG35: 240 | CH35: 0 | CM35: 400 | CN35: 0 | CS35: 165 | CT35: 0.02 | CY35: 150 | CZ35: 0.03 | DE35: 150 | DF35: 0.03 | DK35: 250 | DL35: 0.03
C36: HVAC Variable Frequency Drives (VFD's) | D36: 15 | E36: =ROUND('HVAC & Envelope'!N36,3) -> 0 | F36: =ROUND('HVAC & Envelope'!O36,3) -> 0 | G36: =MAX(ROUND('HVAC & Envelope'!C36,3),E36:F36) -> 0 | H36: 0 | I36: 0 | J36: =IF(OR(J$5="Not Entered",$H$5=0),0,H36/$H$5*$J$5) -> 0 | K36: 0 | L36: ='HVAC & Envelope'!D36 -> 0 | M36: 0 | N36: =IF(Utility="CPS Energy",0,INDEX($S36:$DL36,1,MATCH(Utility&Program,'Savings Summary'!$S$6:$DL$6,0))) -> 150 | O36: =IF(Utility="CPS Energy",INDEX($S36:$DL36,1,MATCH(Utility&Program,'Savings Summary'!$S$6:$DL$6,0)),0) -> 0 | P36: =INDEX($S36:$DL36,1,MATCH(Utility&Program,'Savings Summary'!$S$6:$DL$6,0)+1) -> 0 | Q36: =INDEX(S36:DP36,1,MATCH(Utility&Program,$S$6:$DP$6,0)+IF(DSMTEnvironment = "UAT",4,2)) -> a1r3u000003FilaAAC | R36: =INDEX(S36:DP36,1,MATCH(Utility&Program,$S$6:$DP$6,0)+IF(DSMTEnvironment="UAT",5,3)) -> 0123u000000VQd1AAG | S36: 250 | T36: 0 | Y36: 250 | Z36: 0 | AE36: 150 | AF36: 0 | AG36: a1r3u000003FilaAAC | AH36: 0123u000000VQd1AAG | AI36: a1r790000008VNLAA2 | AJ36: 012790000004MYwAAM | AK36: 150 | AL36: 0 | AM36: a1r3u000003Fik9AAC | AN36: 0123u000000VQd1AAG | AO36: a1r790000008Vq1AAE | AP36: 012790000004MYwAAM | AQ36: 0 | AR36: 0.05 | AS36: a1r3u000007a5A6AAI | AT36: 0123u000000VQd1AAG | AU36: a1r79000000AIb6 | AV36: 012790000004MYwAAM | AW36: 0 | AX36: 0.05 | AY36: a1r3u000007deReAAI | AZ36: 0123u000000VQd1AAG | BA36: a1r79000000AIxKAAW | BB36: 012790000004MYwAAM | BC36: 200 | BD36: 0.06 | BG36: a1r79000000AJntAAG | BH36: 012790000004MYwAAM | BI36: 350 | BJ36: 0.05 | BK36: a1r3u0000069BuIAAU | BL36: 0123u000000aP5xAAE | BM36: a1r79000000A5jz | BN36: 012790000004PzyAAE | BO36: 350 | BP36: 0.05 | BQ36: a1r3u0000069DB8AAM | BR36: 0123u000000aP5xAAE | BS36: a1r79000000A6VgAAK | BT36: 012790000004PzyAAE | BU36: 550 | BV36: 0 | CA36: 240 | CB36: 0 | CG36: 240 | CH36: 0 | CM36: 400 | CN36: 0 | CS36: 250 | CT36: 0.02 | CY36: 100 | CZ36: 0.03 | DE36: 150 | DF36: 0.03 | DK36: 250 | DL36: 0.03
C37: Condenser Air Evaporative Pre-Cooling | D37: 15 | E37: =ROUND('HVAC & Envelope'!B44,3) -> 0 | F37: 0 | G37: =MAX(ROUND('HVAC & Envelope'!C44,3),E37:F37) -> 0 | H37: 0 | I37: 0 | J37: 0 | K37: 0 | L37: ='HVAC & Envelope'!D44 -> 0 | M37: 0 | N37: =IF(Utility="CPS Energy",0,INDEX($S37:$DL37,1,MATCH(Utility&Program,'Savings Summary'!$S$6:$DL$6,0))) -> 150 | O37: =IF(Utility="CPS Energy",INDEX($S37:$DL37,1,MATCH(Utility&Program,'Savings Summary'!$S$6:$DL$6,0)),0) -> 0 | P37: =INDEX($S37:$DL37,1,MATCH(Utility&Program,'Savings Summary'!$S$6:$DL$6,0)+1) -> 0 | Q37: =INDEX(S37:DP37,1,MATCH(Utility&Program,$S$6:$DP$6,0)+IF(DSMTEnvironment = "UAT",4,2)) -> a1r3u000003Fil2AAC | R37: =INDEX(S37:DP37,1,MATCH(Utility&Program,$S$6:$DP$6,0)+IF(DSMTEnvironment="UAT",5,3)) -> 0123u000000VQd0AAG | S37: 250 | T37: 0 | Y37: 250 | Z37: 0 | AE37: 150 | AF37: 0 | AG37: a1r3u000003Fil2AAC | AH37: 0123u000000VQd0AAG | AI37: a1r790000008VJJAA2 | AJ37: 012790000004MXFAA2 | AK37: 150 | AL37: 0 | AM37: a1r3u000003FijbAAC | AN37: 0123u000000VQd0AAG | AO37: a1r790000008VpTAAU | AP37: 012790000004MXFAA2 | AQ37: 0 | AR37: 0.04 | AS37: a1r3u000007a59WAAQ | AT37: 0123u000000VQd0AAG | AU37: a1r79000000AIci | AV37: 012790000004MXFAA2 | AW37: 0 | AX37: 0.04 | AY37: a1r3u000007deR4AAI | AZ37: 0123u000000VQd0AAG | BA37: a1r79000000AIwuAAG | BB37: 012790000004MXFAA2 | BC37: 200 | BD37: 0.07 | BG37: a1r79000000AJpBAAW | BH37: 012790000004MXFAA2 | BI37: 350 | BJ37: 0.05 | BK37: a1r3u0000069BuhAAE | BL37: 0123u000000aP5qAAE | BM37: a1r79000000A5lv | BN37: 012790000004PzcAAE | BO37: 350 | BP37: 0.05 | BQ37: a1r3u0000069DAaAAM | BR37: 0123u000000aP5qAAE | BS37: a1r79000000A6UsAAK | BT37: 012790000004PzcAAE | BU37: 550 | BV37: 0 | CA37: 240 | CB37: 0 | CG37: 240 | CH37: 0 | CM37: 400 | CN37: 0 | CS37: 250 | CT37: 0.02 | CY37: 150 | CZ37: 0.03 | DE37: 150 | DF37: 0.03 | DK37: 250 | DL37: 0.03
C38: Lodging Occupancy Controls | D38: 10 | E38: =ROUND('HVAC & Envelope'!B50,3) -> 0 | F38: 0 | G38: =MAX(ROUND('HVAC & Envelope'!C50,3),E38:F38) -> 0 | H38: 0 | I38: 0 | J38: 0 | K38: 0 | L38: ='HVAC & Envelope'!D50 -> 0 | M38: 0 | N38: =IF(Utility="CPS Energy",0,INDEX($S38:$DL38,1,MATCH(Utility&Program,'Savings Summary'!$S$6:$DL$6,0))) -> 150 | O38: =IF(Utility="CPS Energy",INDEX($S38:$DL38,1,MATCH(Utility&Program,'Savings Summary'!$S$6:$DL$6,0)),0) -> 0 | P38: =INDEX($S38:$DL38,1,MATCH(Utility&Program,'Savings Summary'!$S$6:$DL$6,0)+1) -> 0 | Q38: =INDEX(S38:DP38,1,MATCH(Utility&Program,$S$6:$DP$6,0)+IF(DSMTEnvironment = "UAT",4,2)) -> a1r3u000003FilhAAC | R38: =INDEX(S38:DP38,1,MATCH(Utility&Program,$S$6:$DP$6,0)+IF(DSMTEnvironment="UAT",5,3)) -> 0123u000000VQdQAAW | S38: 250 | T38: 0 | Y38: 250 | Z38: 0 | AE38: 150 | AF38: 0 | AG38: a1r3u000003FilhAAC | AH38: 0123u000000VQdQAAW | AI38: a1r790000008VLUAA2 | AJ38: 012790000004MYIAA2 | AK38: 150 | AL38: 0 | AM38: a1r3u000003FikGAAS | AN38: 0123u000000VQdQAAW | AO38: a1r790000008Vq8AAE | AP38: 012790000004MYIAA2 | AQ38: 0 | AR38: 0.04 | AS38: a1r3u000007a5ADAAY | AT38: 0123u000000VQdQAAW | AU38: a1r79000000AIcn | AV38: 012790000004MYIAA2 | AW38: 0 | AX38: 0.04 | AY38: a1r3u000007deRlAAI | AZ38: 0123u000000VQdQAAW | BA38: a1r79000000AIx9AAG | BB38: 012790000004MYIAA2 | BC38: 200 | BD38: 0.07 | BG38: a1r79000000AJnoAAG | BH38: 012790000004MYIAA2 | BI38: 350 | BJ38: 0.05 | BK38: a1r3u0000069BuZAAU | BL38: 0123u000000aP5uAAE | BM38: a1r79000000A5lI | BN38: 012790000004PzvAAE | BO38: 350 | BP38: 0.05 | BQ38: a1r3u0000069DBFAA2 | BR38: 0123u000000aP5uAAE | BS38: a1r79000000A6VvAAK | BT38: 012790000004PzvAAE | BU38: 550 | BV38: 0 | CA38: 240 | CB38: 0 | CG38: 240 | CH38: 0 | CM38: 400 | CN38: 0 | CS38: 250 | CT38: 0.02 | CY38: 150 | CZ38: 0.03 | DE38: 150 | DF38: 0.03 | DK38: 250 | DL38: 0.03
C39: Small Commercial Smart Thermostats | D39: 11 | E39: =ROUND('HVAC & Envelope'!B56,3) -> 0 | F39: 0 | G39: =MAX(ROUND('HVAC & Envelope'!C56,3),E39:F39) -> 0 | H39: 0 | I39: 0 | J39: 0 | K39: 0 | L39: ='HVAC & Envelope'!D56 -> 0 | M39: 0 | N39: =IF(Utility="CPS Energy",0,INDEX($S39:$DL39,1,MATCH(Utility&Program,'Savings Summary'!$S$6:$DL$6,0))) -> 150 | O39: =IF(Utility="CPS Energy",INDEX($S39:$DL39,1,MATCH(Utility&Program,'Savings Summary'!$S$6:$DL$6,0)),0) -> 0 | P39: =INDEX($S39:$DL39,1,MATCH(Utility&Program,'Savings Summary'!$S$6:$DL$6,0)+1) -> 0 | Q39: =INDEX(S39:DP39,1,MATCH(Utility&Program,$S$6:$DP$6,0)+IF(DSMTEnvironment = "UAT",4,2)) -> a1r3u000003Fim2AAC | R39: =INDEX(S39:DP39,1,MATCH(Utility&Program,$S$6:$DP$6,0)+IF(DSMTEnvironment="UAT",5,3)) -> 0123u000000VQd5AAG | S39: 250 | T39: 0 | Y39: 250 | Z39: 0 | AE39: 150 | AF39: 0 | AG39: a1r3u000003Fim2AAC | AH39: 0123u000000VQd5AAG | AI39: a1r790000008VG0AAM | AJ39: 012790000004MTmAAM | AK39: 150 | AL39: 0 | AM39: a1r3u000003FikaAAC | AN39: 0123u000000VQd5AAG | AO39: a1r790000008VqSAAU | AP39: 012790000004MTmAAM | AQ39: 0 | AR39: 0.04 | AS39: a1r3u000007a5AcAAI | AT39: 0123u000000VQd5AAG | AU39: a1r79000000AIcd | AV39: 012790000004MTmAAM | AW39: 0 | AX39: 0.04 | AY39: a1r3u000007deS9AAI | AZ39: 0123u000000VQd5AAG | BA39: a1r79000000AIwfAAG | BB39: 012790000004MTmAAM | BC39: 200 | BD39: 0.07 | BG39: a1r79000000AJnUAAW | BH39: 012790000004MTmAAM | BI39: 350 | BJ39: 0.05 | BK39: a1r3u0000069BuSAAU | BL39: 0123u000000aP5pAAE | BM39: a1r79000000A5kn | BN39: 012790000004PzbAAE | BO39: 350 | BP39: 0.05 | BQ39: a1r3u0000069DBfAAM | BR39: 0123u000000aP5pAAE | BS39: a1r79000000A6WUAA0 | BT39: 012790000004PzbAAE | BU39: 550 | BV39: 0 | CA39: 240 | CB39: 0 | CG39: 240 | CH39: 0 | CM39: 400 | CN39: 0 | CS39: 250 | CT39: 0.02 | CY39: 150 | CZ39: 0.03 | DE39: 150 | DF39: 0.03 | DK39: 250 | DL39: 0.03
C40: High-Volume Low-Speed (HVLS) Fans | D40: 9 | E40: =ROUND('HVAC & Envelope'!B62,3) -> 0 | F40: 0 | G40: =MAX(ROUND('HVAC & Envelope'!C62,3),E40:F40) -> 0 | H40: 0 | I40: 0 | J40: =IF(OR(J$5="Not Entered",$H$5=0),0,H40/$H$5*$J$5) -> 0 | K40: 0 | L40: ='HVAC & Envelope'!D62 -> 0 | M40: 0 | N40: =IF(Utility="CPS Energy",0,INDEX($S40:$DL40,1,MATCH(Utility&Program,'Savings Summary'!$S$6:$DL$6,0))) -> 150 | O40: =IF(Utility="CPS Energy",INDEX($S40:$DL40,1,MATCH(Utility&Program,'Savings Summary'!$S$6:$DL$6,0)),0) -> 0 | P40: =INDEX($S40:$DL40,1,MATCH(Utility&Program,'Savings Summary'!$S$6:$DL$6,0)+1) -> 0 | Q40: =INDEX(S40:DP40,1,MATCH(Utility&Program,$S$6:$DP$6,0)+IF(DSMTEnvironment = "UAT",4,2)) -> a1r3u000003FilQAAS | R40: =INDEX(S40:DP40,1,MATCH(Utility&Program,$S$6:$DP$6,0)+IF(DSMTEnvironment="UAT",5,3)) -> 0123u000000VQdAAAW | S40: 250 | T40: 0 | Y40: 250 | Z40: 0 | AE40: 150 | AF40: 0 | AG40: a1r3u000003FilQAAS | AH40: 0123u000000VQdAAAW | AI40: a1r790000008VLKAA2 | AJ40: 012790000004MSZAA2 | AK40: 150 | AL40: 0 | AM40: a1r3u000003FijzAAC | AN40: 0123u000000VQdAAAW | AO40: a1r790000008VprAAE | AP40: 012790000004MSZAA2 | AQ40: 0 | AR40: 0.04 | AS40: a1r3u000007a59wAAA | AT40: 0123u000000VQdAAAW | AU40: a1r79000000AIba | AV40: 012790000004MSZAA2 | AW40: 0 | AX40: 0.04 | AY40: a1r3u000007deRUAAY | AZ40: 0123u000000VQdAAAW | BA40: a1r79000000AIxiAAG | BB40: 012790000004MSZAA2 | BC40: 200 | BD40: 0.07 | BG40: a1r79000000AJorAAG | BH40: 012790000004MSZAA2 | BI40: 350 | BJ40: 0.05 | BK40: a1r3u0000069BuGAAU | BL40: 0123u000000aP5xAAE | BM40: a1r79000000A5jp | BN40: 012790000004PzyAAE | BO40: 350 | BP40: 0.05 | BQ40: a1r3u0000069DAyAAM | BR40: 0123u000000aP5xAAE | BS40: a1r79000000A6VWAA0 | BT40: 012790000004PzyAAE | BU40: 550 | BV40: 0 | CA40: 240 | CB40: 0 | CG40: 240 | CH40: 0 | CM40: 400 | CN40: 0 | CS40: 250 | CT40: 0.02 | CY40: 150 | CZ40: 0.03 | DE40: 150 | DF40: 0.03 | DK40: 250 | DL40: 0.03
C41: ECM or VFD for Computer Room Air Handlers | D41: 15 | E41: =ROUND('HVAC & Envelope'!B68,3) -> 0 | F41: 0 | G41: =MAX(ROUND('HVAC & Envelope'!C68,3),E41:F41) -> 0 | H41: 0 | I41: 0 | J41: =IF(OR(J$5="Not Entered",$H$5=0),0,H41/$H$5*$J$5) -> 0 | K41: =IFERROR(G41*O41+(E41+F41)*N41+H41*P41,0) -> 0 | L41: ='HVAC & Envelope'!D68 -> 0 | M41: 0 | N41: =IF(Utility="CPS Energy",0,INDEX($S41:$DL41,1,MATCH(Utility&Program,'Savings Summary'!$S$6:$DL$6,0))) -> 150 | O41: =IF(Utility="CPS Energy",INDEX($S41:$DL41,1,MATCH(Utility&Program,'Savings Summary'!$S$6:$DL$6,0)),0) -> 0 | P41: =INDEX($S41:$DL41,1,MATCH(Utility&Program,'Savings Summary'!$S$6:$DL$6,0)+1) -> 0 | Q41: =INDEX(S41:DP41,1,MATCH(Utility&Program,$S$6:$DP$6,0)+IF(DSMTEnvironment = "UAT",4,2)) -> 0 | R41: =INDEX(S41:DP41,1,MATCH(Utility&Program,$S$6:$DP$6,0)+IF(DSMTEnvironment="UAT",5,3)) -> 0 | S41: 250 | T41: 0 | Y41: 250 | Z41: 0 | AE41: 150 | AF41: 0 | AK41: 150 | AL41: 0 | AQ41: 0 | AR41: 0.04 | AW41: 0 | AX41: 0.04 | BC41: 180 | BD41: 0.07 | BI41: 350 | BJ41: 0.05 | BO41: 350 | BP41: 0.05 | BU41: 550 | BV41: 0 | CA41: 240 | CB41: 0 | CG41: 240 | CH41: 0 | CM41: 400 | CN41: 0 | CS41: 250 | CT41: 0.02 | CY41: 150 | CZ41: 0.03 | DE41: 150 | DF41: 0.03 | DK41: 250 | DL41: 0.03
B42: Motors | C42: ENERGY STAR Commercial Pool Pumps | D42: 10 | E42: =ROUND(Motors!B8,3) -> 0 | F42: 0 | G42: =MAX(ROUND(Motors!C8,3),E42:F42) -> 0 | H42: 0 | I42: 0 | J42: =IF(OR(J$5="Not Entered",$H$5=0),0,H42/$H$5*$J$5) -> 0 | K42: 0 | L42: =Motors!D8 -> 0 | M42: 0 | N42: =IF(Utility="CPS Energy",0,INDEX($S42:$DL42,1,MATCH(Utility&Program,'Savings Summary'!$S$6:$DL$6,0))) -> 150 | O42: =IF(Utility="CPS Energy",INDEX($S42:$DL42,1,MATCH(Utility&Program,'Savings Summary'!$S$6:$DL$6,0)),0) -> 0 | P42: =INDEX($S42:$DL42,1,MATCH(Utility&Program,'Savings Summary'!$S$6:$DL$6,0)+1) -> 0 | Q42: =INDEX(S42:DP42,1,MATCH(Utility&Program,$S$6:$DP$6,0)+IF(DSMTEnvironment = "UAT",4,2)) -> a1r3u000003FilnAAC | R42: =INDEX(S42:DP42,1,MATCH(Utility&Program,$S$6:$DP$6,0)+IF(DSMTEnvironment="UAT",5,3)) -> 0123u000000VQd3AAG | S42: 250 | T42: 0 | Y42: 250 | Z42: 0 | AE42: 150 | AF42: 0 | AG42: a1r3u000003FilnAAC | AH42: 0123u000000VQd3AAG | AI42: a1r790000008VBoAAM | AJ42: 012790000004MSoAAM | AK42: 150 | AL42: 0 | AM42: a1r3u000003FikLAAS | AN42: 0123u000000VQd3AAG | AO42: a1r790000008VqDAAU | AP42: 012790000004MSoAAM | AQ42: 0 | AR42: 0.04 | AS42: a1r3u000007a5ANAAY | AT42: 0123u000000VQd3AAG | AU42: a1r79000000AIcT | AV42: 012790000004MSoAAM | AW42: 0 | AX42: 0.04 | AY42: a1r3u000007deRuAAI | AZ42: 0123u000000VQd3AAG | BA42: a1r79000000AIwQAAW | BB42: 012790000004MSoAAM | BC42: 180 | BD42: 0.07 | BG42: a1r79000000AJmvAAG | BH42: 012790000004MSoAAM | BI42: 200 | BJ42: 0.05 | BK42: a1r3u0000069BuBAAU | BL42: 0123u000000aP5uAAE | BM42: a1r79000000A5jQ | BN42: 012790000004PzvAAE | BO42: 200 | BP42: 0.05 | BQ42: a1r3u0000069DBPAA2 | BR42: 0123u000000aP5uAAE | BS42: a1r79000000A6W5AAK | BT42: 012790000004PzvAAE | BU42: 550 | BV42: 0 | CA42: 240 | CB42: 0 | CG42: 240 | CH42: 0 | CM42: 400 | CN42: 0 | CS42: 165 | CT42: 0.02 | CY42: 150 | CZ42: 0.03 | DE42: 150 | DF42: 0.03 | DK42: 250 | DL42: 0.03
C43: Premium Efficiency Motors | D43: 15 | E43: =ROUND(Motors!B16,3) -> 0 | F43: 0 | G43: =MAX(ROUND(Motors!C16,3),E43:F43) -> 0 | H43: 0 | I43: 0 | J43: =IF(OR(J$5="Not Entered",$H$5=0),0,H43/$H$5*$J$5) -> 0 | K43: 0 | L43: =Motors!D16 -> 0 | M43: 0 | N43: =IF(Utility="CPS Energy",0,INDEX($S43:$DL43,1,MATCH(Utility&Program,'Savings Summary'!$S$6:$DL$6,0))) -> 150 | O43: =IF(Utility="CPS Energy",INDEX($S43:$DL43,1,MATCH(Utility&Program,'Savings Summary'!$S$6:$DL$6,0)),0) -> 0 | P43: =INDEX($S43:$DL43,1,MATCH(Utility&Program,'Savings Summary'!$S$6:$DL$6,0)+1) -> 0 | Q43: =INDEX(S43:DP43,1,MATCH(Utility&Program,$S$6:$DP$6,0)+IF(DSMTEnvironment = "UAT",4,2)) -> a1r3u000003FilpAAC | R43: =INDEX(S43:DP43,1,MATCH(Utility&Program,$S$6:$DP$6,0)+IF(DSMTEnvironment="UAT",5,3)) -> 0123u000000VQdUAAW | S43: 250 | T43: 0 | Y43: 250 | Z43: 0 | AE43: 150 | AF43: 0 | AG43: a1r3u000003FilpAAC | AH43: 0123u000000VQdUAAW | AI43: a1r790000008VLPAA2 | AJ43: 012790000004MY8AAM | AK43: 150 | AL43: 0 | AM43: a1r3u000003FikNAAS | AN43: 0123u000000VQdUAAW | AO43: a1r790000008VqFAAU | AP43: 012790000004MY8AAM | AQ43: 0 | AR43: 0.04 | AS43: a1r3u000007a5APAAY | AT43: 0123u000000VQdUAAW | AU43: a1r79000000AIbL | AV43: 012790000004MY8AAM | AW43: 0 | AX43: 0.04 | AY43: a1r3u000007deRwAAI | AZ43: 0123u000000VQdUAAW | BA43: a1r79000000AIxOAAW | BB43: 012790000004MY8AAM | BC43: 180 | BD43: 0.07 | BG43: a1r79000000AJneAAG | BH43: 012790000004MY8AAM | BI43: 200 | BJ43: 0.05 | BK43: a1r3u0000069BuAAAU | BL43: 0123u000000aP5wAAE | BM43: a1r79000000A5jL | BN43: 012790000004PzxAAE | BO43: 200 | BP43: 0.05 | BQ43: a1r3u0000069DBRAA2 | BR43: 0123u000000aP5wAAE | BS43: a1r79000000A6WjAAK | BT43: 012790000004PzxAAE | BU43: 550 | BV43: 0 | CA43: 240 | CB43: 0 | CG43: 240 | CH43: 0 | CM43: 400 | CN43: 0 | CS43: 165 | CT43: 0.02 | CY43: 150 | CZ43: 0.03 | DE43: 150 | DF43: 0.03 | DK43: 250 | DL43: 0.03
C44: Pump-Off Controllers | D44: 15 | E44: =ROUND(Motors!B22,3) -> 0 | F44: 0 | G44: =MAX(ROUND(Motors!C22,3),E44:F44) -> 0 | H44: 0 | I44: 0 | J44: =IF(OR(J$5="Not Entered",$H$5=0),0,H44/$H$5*$J$5) -> 0 | K44: 0 | L44: =Motors!D22 -> 0 | M44: 0 | N44: =IF(Utility="CPS Energy",0,INDEX($S44:$DL44,1,MATCH(Utility&Program,'Savings Summary'!$S$6:$DL$6,0))) -> 150 | O44: =IF(Utility="CPS Energy",INDEX($S44:$DL44,1,MATCH(Utility&Program,'Savings Summary'!$S$6:$DL$6,0)),0) -> 0 | P44: =INDEX($S44:$DL44,1,MATCH(Utility&Program,'Savings Summary'!$S$6:$DL$6,0)+1) -> 0 | Q44: =INDEX(S44:DP44,1,MATCH(Utility&Program,$S$6:$DP$6,0)+IF(DSMTEnvironment = "UAT",4,2)) -> a1r3u000003FilxAAC | R44: =INDEX(S44:DP44,1,MATCH(Utility&Program,$S$6:$DP$6,0)+IF(DSMTEnvironment="UAT",5,3)) -> 0123u000000VQd4AAG | S44: 250 | T44: 0 | Y44: 250 | Z44: 0 | AE44: 150 | AF44: 0 | AG44: a1r3u000003FilxAAC | AH44: 0123u000000VQd4AAG | AI44: a1r790000008VBtAAM | AJ44: 012790000004MStAAM | AK44: 150 | AL44: 0 | AM44: a1r3u000003FikVAAS | AN44: 0123u000000VQd4AAG | AO44: a1r790000008VqNAAU | AP44: 012790000004MStAAM | AQ44: 0 | AR44: 0.04 | AS44: a1r3u000007a5AXAAY | AT44: 0123u000000VQd4AAG | AU44: a1r79000000AIcY | AV44: 012790000004MStAAM | AW44: 0 | AX44: 0.04 | AY44: a1r3u000007deS4AAI | AZ44: 0123u000000VQd4AAG | BA44: a1r79000000AIzeAAG | BB44: 012790000004MStAAM | BC44: 180 | BD44: 0.07 | BG44: a1r79000000AJnZAAW | BH44: 012790000004MStAAM | BI44: 200 | BJ44: 0.05 | BK44: a1r3u0000069BukAAE | BL44: 0123u000000aP5vAAE | BM44: a1r79000000A5mA | BN44: 012790000004PzwAAE | BO44: 200 | BP44: 0.05 | BQ44: a1r3u0000069DBZAA2 | BR44: 0123u000000aP5vAAE | BS44: a1r79000000A6WPAA0 | BT44: 012790000004PzwAAE | BU44: 550 | BV44: 0 | CA44: 240 | CB44: 0 | CG44: 240 | CH44: 0 | CM44: 400 | CN44: 0 | CS44: 165 | CT44: 0.02 | CY44: 150 | CZ44: 0.03 | DE44: 150 | DF44: 0.03 | DK44: 250 | DL44: 0.03
C45: VFDs for Water Pumping | D45: 12.5 | E45: 0 | F45: =ROUND(Motors!B28,3) -> 0 | G45: =ROUND(Motors!C28,3) -> 0 | H45: 0 | I45: =IF(I$53="Yes",L45/H$5*I$5,K45) -> 0 | J45: =IF(OR(J$5="Not Entered",$H$5=0),0,H45/$H$5*$J$5) -> 0 | K45: 0 | L45: =Motors!D28 -> 0 | M45: 0 | N45: =IF(Utility="CPS Energy",0,INDEX($S45:$DL45,1,MATCH(Utility&Program,'Savings Summary'!$S$6:$DL$6,0))) -> 150 | O45: =IF(Utility="CPS Energy",INDEX($S45:$DL45,1,MATCH(Utility&Program,'Savings Summary'!$S$6:$DL$6,0)),0) -> 0 | P45: =INDEX($S45:$DL45,1,MATCH(Utility&Program,'Savings Summary'!$S$6:$DL$6,0)+1) -> 0 | Q45: =INDEX(S45:DP45,1,MATCH(Utility&Program,$S$6:$DP$6,0)+IF(DSMTEnvironment = "UAT",4,2)) -> 0 | R45: =INDEX(S45:DP45,1,MATCH(Utility&Program,$S$6:$DP$6,0)+IF(DSMTEnvironment="UAT",5,3)) -> 0 | S45: 250 | T45: 0 | Y45: 250 | Z45: 0 | AE45: 150 | AF45: 0 | AK45: 150 | AL45: 0 | AQ45: 0 | AR45: 0.05 | AW45: 0 | AX45: 0.05 | BC45: 200 | BD45: 0.06 | BI45: 200 | BJ45: 0.05 | BO45: 200 | BP45: 0.05 | BU45: 550 | BV45: 0 | CA45: 240 | CB45: 0 | CG45: 240 | CH45: 0 | CM45: 400 | CN45: 0 | CS45: 165 | CT45: 0.02 | CY45: 150 | CZ45: 0.03 | DE45: 150 | DF45: 0.03 | DK45: 250 | DL45: 0.03
C46: Hydraulic Oils & Gear Lubricants | D46: 10 | E46: =ROUND(Motors!B35,3) -> 0 | F46: 0 | G46: 0 | H46: 0 | I46: 0 | J46: 0 | K46: 0 | L46: =Motors!D36 -> 0 | M46: 0 | N46: =IF(Utility="CPS Energy",0,INDEX($S46:$DL46,1,MATCH(Utility&Program,'Savings Summary'!$S$6:$DL$6,0))) -> 150 | O46: =IF(Utility="CPS Energy",INDEX($S46:$DL46,1,MATCH(Utility&Program,'Savings Summary'!$S$6:$DL$6,0)),0) -> 0 | P46: =INDEX($S46:$DL46,1,MATCH(Utility&Program,'Savings Summary'!$S$6:$DL$6,0)+1) -> 0 | Q46: =INDEX(S46:DP46,1,MATCH(Utility&Program,$S$6:$DP$6,0)+IF(DSMTEnvironment = "UAT",4,2)) -> 0 | R46: =INDEX(S46:DP46,1,MATCH(Utility&Program,$S$6:$DP$6,0)+IF(DSMTEnvironment="UAT",5,3)) -> 0 | S46: 250 | T46: 0 | Y46: 250 | Z46: 0 | AE46: 150 | AF46: 0 | AK46: 150 | AL46: 0 | AQ46: 0 | AR46: 0.04 | AW46: 0 | AX46: 0.04 | BC46: 200 | BD46: 0.07 | BI46: 200 | BJ46: 0.05 | BO46: 200 | BP46: 0.05 | BU46: 550 | BV46: 0 | CA46: 240 | CB46: 0 | CG46: 240 | CH46: 0 | CM46: 400 | CN46: 0 | CS46: 165 | CT46: 0.02 | CY46: 150 | CZ46: 0.03 | DE46: 150 | DF46: 0.03 | DK46: 250 | DL46: 0.03
B47: Miscellaneous | C47: PC Power Management (PCPM) | D47: 3 | E47: =ROUND(Misc!B9,3) -> 0 | F47: 0 | G47: =MAX(ROUND(Misc!C9,3),E47:F47) -> 0 | H47: 0 | I47: 0 | J47: 0 | K47: 0 | L47: =Misc!D9 -> 0 | M47: 0 | N47: =IF(Utility="CPS Energy",0,INDEX($S47:$DL47,1,MATCH(Utility&Program,'Savings Summary'!$S$6:$DL$6,0))) -> 150 | O47: =IF(Utility="CPS Energy",INDEX($S47:$DL47,1,MATCH(Utility&Program,'Savings Summary'!$S$6:$DL$6,0)),0) -> 0 | P47: =INDEX($S47:$DL47,1,MATCH(Utility&Program,'Savings Summary'!$S$6:$DL$6,0)+1) -> 0 | Q47: =INDEX(S47:DP47,1,MATCH(Utility&Program,$S$6:$DP$6,0)+IF(DSMTEnvironment = "UAT",4,2)) -> 0 | R47: =INDEX(S47:DP47,1,MATCH(Utility&Program,$S$6:$DP$6,0)+IF(DSMTEnvironment="UAT",5,3)) -> 0 | S47: 250 | T47: 0 | Y47: 250 | Z47: 0 | AE47: 150 | AF47: 0 | AK47: 150 | AL47: 0 | AQ47: 0 | AR47: 0.04 | AW47: 0 | AX47: 0.04 | BC47: 200 | BD47: 0.07 | BI47: 200 | BJ47: 0.05 | BO47: 200 | BP47: 0.05 | BU47: 550 | BV47: 0 | CA47: 240 | CB47: 0 | CG47: 240 | CH47: 0 | CM47: 400 | CN47: 0 | CS47: 165 | CT47: 0.02 | CY47: 150 | CZ47: 0.03 | DE47: 150 | DF47: 0.03 | DK47: 250 | DL47: 0.03
C48: ENERGY STAR Electric Vehicle Supply Equipment (EVSE) | D48: 10 | E48: =ROUND(IF(Misc!O15,Misc!M15,0),3) -> 0 | F48: =ROUND(IF(Misc!O15,0,Misc!N15),3) -> 0 | G48: =Misc!C15 -> 0 | H48: 0 | I48: 0 | J48: 0 | K48: 0 | L48: =Misc!D15 -> 0 | M48: 0 | N48: =IF(Utility="CPS Energy",0,INDEX($S48:$DL48,1,MATCH(Utility&Program,'Savings Summary'!$S$6:$DL$6,0))) -> 150 | O48: =IF(Utility="CPS Energy",INDEX($S48:$DL48,1,MATCH(Utility&Program,'Savings Summary'!$S$6:$DL$6,0)),0) -> 0 | P48: =INDEX($S48:$DL48,1,MATCH(Utility&Program,'Savings Summary'!$S$6:$DL$6,0)+1) -> 0 | Q48: =INDEX(S48:DP48,1,MATCH(Utility&Program,$S$6:$DP$6,0)+IF(DSMTEnvironment = "UAT",4,2)) -> a1r3u000003FilJAAS | R48: =INDEX(S48:DP48,1,MATCH(Utility&Program,$S$6:$DP$6,0)+IF(DSMTEnvironment="UAT",5,3)) -> 0123u000000VQdIAAW | S48: 250 | T48: 0 | Y48: 250 | Z48: 0 | AE48: 150 | AF48: 0 | AG48: a1r3u000003FilJAAS | AH48: 0123u000000VQdIAAW | AI48: a1r790000008UJFAA2 | AJ48: 012790000004M30AAE | AK48: 150 | AL48: 0 | AM48: a1r3u000003FijsAAC | AN48: 0123u000000VQdIAAW | AO48: a1r790000008VpkAAE | AP48: 012790000004M30AAE | AQ48: 0 | AR48: 0.04 | AS48: a1r3u000007a59nAAA | AT48: 0123u000000VQdIAAW | AU48: a1r79000000AIbz | AV48: 012790000004M30AAE | AW48: 0 | AX48: 0.04 | AY48: a1r3u000007deRLAAY | AZ48: 0123u000000VQdIAAW | BA48: a1r79000000AIvwAAG | BB48: 012790000004M30AAE | BC48: 200 | BD48: 0.07 | BG48: a1r79000000AJmgAAG | BH48: 012790000004M30AAE | BI48: 200 | BJ48: 0.05 | BK48: a1r3u0000069BuEAAU | BL48: 0123u000000aP61AAE | BM48: a1r79000000A5jf | BN48: 012790000004Q0HAAU | BO48: 200 | BP48: 0.05 | BQ48: a1r3u0000069DArAAM | BR48: 0123u000000aP61AAE | BS48: a1r79000000A6XNAA0 | BT48: 012790000004Q0HAAU | BU48: 550 | BV48: 0 | CA48: 240 | CB48: 0 | CG48: 240 | CH48: 0 | CM48: 400 | CN48: 0 | CS48: 165 | CT48: 0.02 | CY48: 150 | CZ48: 0.03 | DE48: 150 | DF48: 0.03 | DK48: 250 | DL48: 0.03
C49: LED Traffic Signals | D49: 5 | E49: =ROUND(Misc!B26,3) -> 0 | F49: 0 | G49: =ROUND(Misc!C26,3) -> 0 | H49: 0 | I49: 0 | J49: 0 | K49: 0 | L49: =Misc!D26 -> 0 | M49: 0 | N49: =IF(Utility="CPS Energy",0,INDEX($S49:$DL49,1,MATCH(Utility&Program,'Savings Summary'!$S$6:$DL$6,0))) -> 150 | O49: =IF(Utility="CPS Energy",INDEX($S49:$DL49,1,MATCH(Utility&Program,'Savings Summary'!$S$6:$DL$6,0)),0) -> 0 | P49: =INDEX($S49:$DL49,1,MATCH(Utility&Program,'Savings Summary'!$S$6:$DL$6,0)+1) -> 0 | Q49: =INDEX(S49:DP49,1,MATCH(Utility&Program,$S$6:$DP$6,0)+IF(DSMTEnvironment = "UAT",4,2)) -> 0 | R49: =INDEX(S49:DP49,1,MATCH(Utility&Program,$S$6:$DP$6,0)+IF(DSMTEnvironment="UAT",5,3)) -> 0 | S49: 250 | T49: 0 | Y49: 250 | Z49: 0 | AE49: 150 | AF49: 0 | AK49: 150 | AL49: 0 | AQ49: 0 | AR49: 0.04 | AW49: 0 | AX49: 0.04 | BC49: 180 | BD49: 0.05 | BI49: 200 | BJ49: 0.05 | BO49: 200 | BP49: 0.05 | BU49: 550 | BV49: 0 | CA49: 240 | CB49: 0 | CG49: 240 | CH49: 0 | CM49: 400 | CN49: 0 | CS49: 165 | CT49: 0.02 | CY49: 150 | CZ49: 0.03 | DE49: 150 | DF49: 0.03 | DK49: 250 | DL49: 0.03
C50: Steam Trap Repair or Replacement | D50: 6 | E50: =ROUND(Misc!B32,3) -> 0 | F50: 0 | G50: =E50 -> 0 | H50: 0 | I50: 0 | J50: 0 | K50: 0 | L50: =Misc!D32 -> 0 | M50: 0 | N50: =IF(Utility="CPS Energy",0,INDEX($S50:$DL50,1,MATCH(Utility&Program,'Savings Summary'!$S$6:$DL$6,0))) -> 150 | O50: =IF(Utility="CPS Energy",INDEX($S50:$DL50,1,MATCH(Utility&Program,'Savings Summary'!$S$6:$DL$6,0)),0) -> 0 | P50: =INDEX($S50:$DL50,1,MATCH(Utility&Program,'Savings Summary'!$S$6:$DL$6,0)+1) -> 0 | Q50: =INDEX(S50:DP50,1,MATCH(Utility&Program,$S$6:$DP$6,0)+IF(DSMTEnvironment = "UAT",4,2)) -> 0 | R50: =INDEX(S50:DP50,1,MATCH(Utility&Program,$S$6:$DP$6,0)+IF(DSMTEnvironment="UAT",5,3)) -> 0 | S50: 250 | T50: 0 | Y50: 250 | Z50: 0 | AE50: 150 | AF50: 0 | AK50: 150 | AL50: 0 | AQ50: 0 | AR50: 0.04 | AW50: 0 | AX50: 0.04 | BC50: 200 | BD50: 0.07 | BI50: 200 | BJ50: 0.05 | BO50: 200 | BP50: 0.05 | BU50: 550 | BV50: 0 | CA50: 240 | CB50: 0 | CG50: 240 | CH50: 0 | CM50: 400 | CN50: 0 | CS50: 165 | CT50: 0.02 | CY50: 150 | CZ50: 0.03 | DE50: 150 | DF50: 0.03 | DK50: 250 | DL50: 0.03
C51: Hand Dryers | D51: 10 | E51: =ROUND(Misc!B38,3) -> 0 | F51: 0 | G51: =E51 -> 0 | H51: =ROUND(MIN(L51:M51),0) -> 0 | I51: =IF(I$53="Yes",L51/H$5*I$5,K51) -> 0 | J51: =IF(OR(J$5="Not Entered",$H$5=0),0,H51/$H$5*$J$5) -> 0 | K51: =IFERROR(G51*O51+(E51+F51)*N51+H51*P51,0) -> 0 | L51: =Misc!D38 -> 0 | M51: =IFERROR(MAX(E51:F51)*LoadFactor,L51) -> 0 | N51: =IF(Utility="CPS Energy",0,INDEX($S51:$DL51,1,MATCH(Utility&Program,'Savings Summary'!$S$6:$DL$6,0))) -> 150 | O51: =IF(Utility="CPS Energy",INDEX($S51:$DL51,1,MATCH(Utility&Program,'Savings Summary'!$S$6:$DL$6,0)),0) -> 0 | P51: =INDEX($S51:$DL51,1,MATCH(Utility&Program,'Savings Summary'!$S$6:$DL$6,0)+1) -> 0 | Q51: =INDEX(S51:DP51,1,MATCH(Utility&Program,$S$6:$DP$6,0)+IF(DSMTEnvironment = "UAT",4,2)) -> 0 | R51: =INDEX(S51:DP51,1,MATCH(Utility&Program,$S$6:$DP$6,0)+IF(DSMTEnvironment="UAT",5,3)) -> 0 | S51: 250 | T51: 0 | Y51: 250 | Z51: 0 | AE51: 150 | AF51: 0 | AK51: 150 | AL51: 0 | AQ51: 0 | AR51: 0.04 | AS51: a1r3u000007a59uAAA | AT51: 0123u000000aPHbAAM | AU51: a1r79000000AIeF | AV51: 012790000004QjUAAU | AW51: 0 | AX51: 0.04 | AY51: a1r3u000007deRSAAY | AZ51: 0123u000000aPHbAAM | BA51: a1r79000000AIz5AAG | BB51: 012790000004QjUAAU | BC51: 200 | BD51: 0.07 | BG51: a1r79000000AJpGAAW | BH51: 012790000004QjUAAU | BI51: 200 | BJ51: 0.05 | BO51: 200 | BP51: 0.05 | BU51: 550 | BV51: 0 | CA51: 240 | CB51: 0 | CG51: 240 | CH51: 0 | CM51: 400 | CN51: 0 | CS51: 165 | CT51: 0.02 | CY51: 150 | CZ51: 0.03 | DE51: 150 | DF51: 0.03 | DK51: 250 | DL51: 0.03 | DQ51: =IF(H51<>0,C51&", ","") -> 
DQ52: =LEFT(_xlfn.CONCAT(DQ8:DQ50),LEN(_xlfn.CONCAT(DQ8:DQ50))-2) -> 
D53: Version: | E53: ='Project Info'!K1 -> v23.0 | H53: Incentive Cap? | I53: =IF('Project Info'!D18="","Missing Project Cost",IF(K5>'Utility Admin'!G2,"Yes","No")) -> Missing Project Cost
H54: Load Factor Applied? | I54: =IF(SUM(M8:M48)=SUM(L8:L48),"No","Yes") -> No
H56: *Incentive amount is not guaranteed and may be subject to capping based on a percentage of project cost in accordance with program rules.

Sheet EPE PAF (hidden)
D2: EL PASO ELECTRIC
D3: SMALL COMMERCIAL SOLUTIONS PROGRAM
D4: ="20"&MID(version,2,2)&" PAYMENT REQUEST FOR MEASURES:" -> 2023 PAYMENT REQUEST FOR MEASURES:
F5: ='Savings Summary'!DQ52 -> 
B7: EPE Customer Information (as seen on EPE bill)
C8: Company Name:
C9: Contact Name: | I9: Title:
C10: Contact Phone: | I10: Contact Email:
C11: EPE Acct/Meter #: | I11: Rate: | J11: Example: NMRT03
C12: Service Address:
C13: City: | I13: State: | J13: Texas | N13: ZIP Code:
C15: Peak Demand kW Savings | G15: Energy kWh Savings | L15: El Paso Electric Rebate Amount
C16: ='Savings Summary'!E5+'Savings Summary'!F5 -> 0 | G16: ='Savings Summary'!H5 -> 0 | L16: ='Savings Summary'!I5 -> 0
B19: I acknowledge the above measure will be installed and performed to my satisfaction. I understand the contractor is an independent contractor who is solely responsible for work provided and will be receiving the incentive from the El Paso Electric Company (EPE). I acknowledge that EPE and CLEAResult make no warranty or representation of the qualifications or technical feasibility, capability, safety or reliability of the measure installed by the contractor. I acknowledge that the project listed above would not have been accomplished or would have been completed with less efficient equipment without the assistance provided by the EPE Energy Efficiency Program. By signing below, I agree to give CLEAResult and/or EPE access to project site for inspections if necessary. Customer may contact EPE at (915) 351-4237 in the event of non-performance by contractor.
D20: CUSTOMER SIGNATURE: | N20: Date:
D21: Contractor: | K21: Representative Name (Print):
I23: For Internal Use Only
D25: CLEAResult Signature: | N25: Date Reserved:
B26: *Contractor must create project in the Contractor Portal to officially reserve funds. Funds will be reserved for 45 days, if project is not completed within this time, you will need to request an extension or funds will be forfeited.

Sheet Refrigeration
B1: Refrigeration Measures | L1: HIDE | M1: HIDE | N1: HIDE | O1: HIDE | P1: HIDE | Q1: HIDE | R1: HIDE | S1: HIDE | T1: HIDE | U1: HIDE | V1: HIDE
B2: Click on headings to expand or collapse sections. Blue Peak kW values indicate winter peak.
B3: Door Gaskets
A4: HIDE | B4: Peak kW | C4: NC kW | D4: kWh | E4: Uncapped Incentive | F4: Quantity of Doors | G4: Height (inches) | H4: Width (inches) | I4: Number of Sides | J4: Refrigeration Temperature | L4: Total Length | M4: kWh/ft | N4: kW/ft | O4: NCkW/ft
A5: HIDE | B5: =ROUND(IFERROR(L5*N5,0),3) -> 0 | C5: =ROUND(IFERROR(L5*O5,0),3) -> 0 | D5: =ROUND(IFERROR(L5*M5,0),0) -> 0 | E5: =ROUND(IFERROR(INDEX('Savings Summary'!$P$8:$P$50,MATCH(Refrigeration!$B$3,'Savings Summary'!$C$8:$C$50,0))*D5+ INDEX('Savings Summary'!$N$8:$N$50,MATCH(Refrigeration!$B$3,'Savings Summary'!$C$8:$C$50,0))*B5+ INDEX('Savings Summary'!$O$8:$O$50,MATCH(Refrigeration!$B$3,'Savings Summary'!$C$8:$C$50,0))*C5,0),2) -> 0 | L5: =F5*(2*G5+IF(I5=3,1,IF(I5=4,2,0))*H5)/12 -> 0 | M5: =INDEX('Lookup tables'!$E$3:$E$6,MATCH(Refrigeration!J5,LowMedTemp,0)+IF(Utility = "CPS Energy",2,0)) ->  | N5: =INDEX('Lookup tables'!$F$3:$F$6,MATCH(Refrigeration!J5,LowMedTemp,0)+IF(Utility = "CPS Energy",2,0)) ->  | O5: =INDEX('Lookup tables'!$G$3:$G$6,MATCH(Refrigeration!J5,LowMedTemp,0)+IF(Utility = "CPS Energy",2,0)) -> 
A6: HIDE | B6: =ROUND(IFERROR(L6*N6,0),3) -> 0 | C6: =ROUND(IFERROR(L6*O6,0),3) -> 0 | D6: =ROUND(IFERROR(L6*M6,0),0) -> 0 | E6: =ROUND(IFERROR(INDEX('Savings Summary'!$P$8:$P$50,MATCH(Refrigeration!$B$3,'Savings Summary'!$C$8:$C$50,0))*D6+ INDEX('Savings Summary'!$N$8:$N$50,MATCH(Refrigeration!$B$3,'Savings Summary'!$C$8:$C$50,0))*B6+ INDEX('Savings Summary'!$O$8:$O$50,MATCH(Refrigeration!$B$3,'Savings Summary'!$C$8:$C$50,0))*C6,0),2) -> 0 | L6: =F6*(2*G6+IF(I6=3,1,IF(I6=4,2,0))*H6)/12 -> 0 | M6: =INDEX('Lookup tables'!$E$3:$E$6,MATCH(Refrigeration!J6,LowMedTemp,0)+IF(Utility = "CPS Energy",2,0)) ->  | N6: =INDEX('Lookup tables'!$F$3:$F$6,MATCH(Refrigeration!J6,LowMedTemp,0)+IF(Utility = "CPS Energy",2,0)) ->  | O6: =INDEX('Lookup tables'!$G$3:$G$6,MATCH(Refrigeration!J6,LowMedTemp,0)+IF(Utility = "CPS Energy",2,0)) -> 
A7: HIDE | B7: 0 | C7: 0 | D7: 0 | E7: =ROUND(IFERROR(INDEX('Savings Summary'!$P$8:$P$50,MATCH(Refrigeration!$B$3,'Savings Summary'!$C$8:$C$50,0))*D7+ INDEX('Savings Summary'!$N$8:$N$50,MATCH(Refrigeration!$B$3,'Savings Summary'!$C$8:$C$50,0))*B7+ INDEX('Savings Summary'!$O$8:$O$50,MATCH(Refrigeration!$B$3,'Savings Summary'!$C$8:$C$50,0))*C7,0),2) -> 0 | L7: 0 | M7: =INDEX('Lookup tables'!$E$3:$E$6,MATCH(Refrigeration!J7,LowMedTemp,0)+IF(Utility = "CPS Energy",2,0)) ->  | N7: =INDEX('Lookup tables'!$F$3:$F$6,MATCH(Refrigeration!J7,LowMedTemp,0)+IF(Utility = "CPS Energy",2,0)) ->  | O7: =INDEX('Lookup tables'!$G$3:$G$6,MATCH(Refrigeration!J7,LowMedTemp,0)+IF(Utility = "CPS Energy",2,0)) -> 
A8: HIDE | B8: 0 | C8: 0 | D8: 0 | E8: =ROUND(IFERROR(INDEX('Savings Summary'!$P$8:$P$50,MATCH(Refrigeration!$B$3,'Savings Summary'!$C$8:$C$50,0))*D8+ INDEX('Savings Summary'!$N$8:$N$50,MATCH(Refrigeration!$B$3,'Savings Summary'!$C$8:$C$50,0))*B8+ INDEX('Savings Summary'!$O$8:$O$50,MATCH(Refrigeration!$B$3,'Savings Summary'!$C$8:$C$50,0))*C8,0),2) -> 0 | L8: 0 | M8: =INDEX('Lookup tables'!$E$3:$E$6,MATCH(Refrigeration!J8,LowMedTemp,0)+IF(Utility = "CPS Energy",2,0)) ->  | N8: =INDEX('Lookup tables'!$F$3:$F$6,MATCH(Refrigeration!J8,LowMedTemp,0)+IF(Utility = "CPS Energy",2,0)) ->  | O8: =INDEX('Lookup tables'!$G$3:$G$6,MATCH(Refrigeration!J8,LowMedTemp,0)+IF(Utility = "CPS Energy",2,0)) -> 
A9: HIDE | B9: 0 | C9: 0 | D9: 0 | E9: =ROUND(IFERROR(INDEX('Savings Summary'!$P$8:$P$50,MATCH(Refrigeration!$B$3,'Savings Summary'!$C$8:$C$50,0))*D9+ INDEX('Savings Summary'!$N$8:$N$50,MATCH(Refrigeration!$B$3,'Savings Summary'!$C$8:$C$50,0))*B9+ INDEX('Savings Summary'!$O$8:$O$50,MATCH(Refrigeration!$B$3,'Savings Summary'!$C$8:$C$50,0))*C9,0),2) -> 0 | L9: 0 | M9: =INDEX('Lookup tables'!$E$3:$E$6,MATCH(Refrigeration!J9,LowMedTemp,0)+IF(Utility = "CPS Energy",2,0)) ->  | N9: =INDEX('Lookup tables'!$F$3:$F$6,MATCH(Refrigeration!J9,LowMedTemp,0)+IF(Utility = "CPS Energy",2,0)) ->  | O9: =INDEX('Lookup tables'!$G$3:$G$6,MATCH(Refrigeration!J9,LowMedTemp,0)+IF(Utility = "CPS Energy",2,0)) -> 
A10: HIDE | B10: =SUM(B5:B9) -> 0 | C10: =SUM(C5:C9) -> 0 | D10: =SUM(D5:D9) -> 0 | E10: =SUM(E5:E9) -> 0
B11: Door Heater Controls for Refrigerated Display Cases
A12: HIDE | B12: Peak kW | C12: NC kW | D12: kWh | E12: Uncapped Incentive | F12: Linear Feet (width) of Case* | G12: Refrigeration Temperature | H12: *Quantity is linear feet (width) of the case(s) controlled antisweat heaters. Typical width of a single reach-in refrigerated display case door is » 2.5 ft.
A13: HIDE | B13: =ROUND(IFERROR(F13*VLOOKUP(State&SelectedZone,'Lookup tables'!$D$36:$J$41,IF(G13="Low Temperature",6,IF(G13="Medium Temperature",3)),FALSE),0),3) -> 0 | C13: =ROUND(IFERROR(F13*VLOOKUP(State&SelectedZone,'Lookup tables'!$D$36:$J$41,IF(G13="Low Temperature",7,IF(G13="Medium Temperature",4)),FALSE),0),3) -> 0 | D13: =ROUND(IFERROR(F13*INDEX(IF(G13="Low Temperature",'Lookup tables'!$H$36:$H$41,IF(G13="Medium Temperature",'Lookup tables'!$E$36:$E$41)),MATCH(State&SelectedZone,'Lookup tables'!$D$36:$D$41,0)),0),0) -> 0 | E13: =ROUND(IFERROR(INDEX('Savings Summary'!$P$8:$P$50,MATCH(Refrigeration!$B$11,'Savings Summary'!$C$8:$C$50,0))*D13+ INDEX('Savings Summary'!$N$8:$N$50,MATCH(Refrigeration!$B$11,'Savings Summary'!$C$8:$C$50,0))*B13+ INDEX('Savings Summary'!$O$8:$O$50,MATCH(Refrigeration!$B$11,'Savings Summary'!$C$8:$C$50,0))*C13,0),2) -> 0
A14: HIDE | B14: =ROUND(IFERROR(F14*VLOOKUP(State&SelectedZone,'Lookup tables'!$D$36:$J$41,IF(G14="Low Temperature",6,IF(G14="Medium Temperature",3)),FALSE),0),3) -> 0 | C14: =ROUND(IFERROR(F14*VLOOKUP(State&SelectedZone,'Lookup tables'!$D$36:$J$41,IF(G14="Low Temperature",7,IF(G14="Medium Temperature",4)),FALSE),0),3) -> 0 | D14: =ROUND(IFERROR(F14*INDEX(IF(G14="Low Temperature",'Lookup tables'!$H$36:$H$41,IF(G14="Medium Temperature",'Lookup tables'!$E$36:$E$41)),MATCH(State&SelectedZone,'Lookup tables'!$D$36:$D$41,0)),0),0) -> 0 | E14: =ROUND(IFERROR(INDEX('Savings Summary'!$P$8:$P$50,MATCH(Refrigeration!$B$11,'Savings Summary'!$C$8:$C$50,0))*D14+ INDEX('Savings Summary'!$N$8:$N$50,MATCH(Refrigeration!$B$11,'Savings Summary'!$C$8:$C$50,0))*B14+ INDEX('Savings Summary'!$O$8:$O$50,MATCH(Refrigeration!$B$11,'Savings Summary'!$C$8:$C$50,0))*C14,0),2) -> 0
A15: HIDE | B15: =ROUND(IFERROR(F15*VLOOKUP(State&SelectedZone,'Lookup tables'!$D$36:$J$41,IF(G15="Low Temperature",6,IF(G15="Medium Temperature",3)),FALSE),0),3) -> 0 | C15: =ROUND(IFERROR(F15*VLOOKUP(State&SelectedZone,'Lookup tables'!$D$36:$J$41,IF(G15="Low Temperature",7,IF(G15="Medium Temperature",4)),FALSE),0),3) -> 0 | D15: =ROUND(IFERROR(F15*INDEX(IF(G15="Low Temperature",'Lookup tables'!$H$36:$H$41,IF(G15="Medium Temperature",'Lookup tables'!$E$36:$E$41)),MATCH(State&SelectedZone,'Lookup tables'!$D$36:$D$41,0)),0),0) -> 0 | E15: =ROUND(IFERROR(INDEX('Savings Summary'!$P$8:$P$50,MATCH(Refrigeration!$B$11,'Savings Summary'!$C$8:$C$50,0))*D15+ INDEX('Savings Summary'!$N$8:$N$50,MATCH(Refrigeration!$B$11,'Savings Summary'!$C$8:$C$50,0))*B15+ INDEX('Savings Summary'!$O$8:$O$50,MATCH(Refrigeration!$B$11,'Savings Summary'!$C$8:$C$50,0))*C15,0),2) -> 0
A16: HIDE | B16: =SUM(B13:B15) -> 0 | C16: =SUM(C13:C15) -> 0 | D16: =SUM(D13:D15) -> 0 | E16: =SUM(E13:E15) -> 0
B17: ECM Evaporator Fan Motors for Refrigerated Display Cases
A18: HIDE | B18: Peak kW | C18: NC kW | D18: kWh | E18: Uncapped Incentive | F18: # of Evaporator Fan Motors | G18: Refrigeration Temperature | H18: Nominal Motor Size | I18: Evaporator Fan Controls? | J18: Existing Motor Type | L18: COP | M18: Wbase | N18: %off | O18: Hours | P18: DC | Q18: LF | R18: DF | S18: NCP DF | T18: Wee | U18: kWperunit | V18: kWhperunit
A19: HIDE | B19: =ROUND(IFERROR(F19*U19*R19,0),3) -> 0 | C19: =ROUND(IF(OR(F19="",H19="",G19="",I19=""),0,IFERROR(F19*U19*S19,0)),3) -> 0 | D19: =ROUND(IFERROR(F19*V19,0),0) -> 0 | E19: =ROUND(IFERROR(INDEX('Savings Summary'!$P$8:$P$50,MATCH(Refrigeration!$B$17,'Savings Summary'!$C$8:$C$50,0))*D19+ INDEX('Savings Summary'!$N$8:$N$50,MATCH(Refrigeration!$B$17,'Savings Summary'!$C$8:$C$50,0))*B19+ INDEX('Savings Summary'!$O$8:$O$50,MATCH(Refrigeration!$B$17,'Savings Summary'!$C$8:$C$50,0))*C19,0),2) -> 0 | L19: =INDEX(IF(G19="Medium Temperature",'Lookup tables'!$E$26:$E$31,'Lookup tables'!$F$26:$F$31),MATCH(State&SelectedZone,Locations,0)) -> 2.44 | M19: =INDEX('Lookup tables'!$P$25:$Q$30,MATCH(Refrigeration!H19,'Lookup tables'!$N$25:$N$30,0),MATCH(Refrigeration!J19,'Lookup tables'!$P$24:$Q$24,0)) ->  | N19: =VLOOKUP(I19,'Lookup tables'!$H$24:$I$25,2,FALSE) ->  | O19: 8760 | P19: =VLOOKUP(G19,'Lookup tables'!$K$28:$L$29,2,FALSE) ->  | Q19: 0.9 | R19: =IFERROR(VLOOKUP(State&SelectedZone,'Lookup tables'!$D$26:$G$31,4,FALSE),1) -> 1 | S19: =NCFr -> 1 | T19: =VLOOKUP(H19,'Lookup tables'!$N$25:$R$30,5,FALSE) ->  | U19: =(M19-T19)/1000*Q19*P19*(1+1/L19) ->  | V19: =U19*O19*(1-N19) -> 
A20: HIDE | B20: =ROUND(IFERROR(F20*U20*R20,0),3) -> 0 | C20: =ROUND(IF(OR(F20="",H20="",G20="",I20=""),0,IFERROR(F20*U20*S20,0)),3) -> 0 | D20: =ROUND(IFERROR(F20*V20,0),0) -> 0 | E20: =ROUND(IFERROR(INDEX('Savings Summary'!$P$8:$P$50,MATCH(Refrigeration!$B$17,'Savings Summary'!$C$8:$C$50,0))*D20+ INDEX('Savings Summary'!$N$8:$N$50,MATCH(Refrigeration!$B$17,'Savings Summary'!$C$8:$C$50,0))*B20+ INDEX('Savings Summary'!$O$8:$O$50,MATCH(Refrigeration!$B$17,'Savings Summary'!$C$8:$C$50,0))*C20,0),2) -> 0 | L20: =INDEX(IF(G20="Medium Temperature",'Lookup tables'!$E$26:$E$31,'Lookup tables'!$F$26:$F$31),MATCH(State&SelectedZone,Locations,0)) -> 2.44 | M20: =INDEX('Lookup tables'!$P$25:$Q$30,MATCH(Refrigeration!H20,'Lookup tables'!$N$25:$N$30,0),MATCH(Refrigeration!J20,'Lookup tables'!$P$24:$Q$24,0)) ->  | N20: =VLOOKUP(I20,'Lookup tables'!$H$24:$I$25,2,FALSE) ->  | O20: 8760 | P20: =VLOOKUP(G20,'Lookup tables'!$K$28:$L$29,2,FALSE) ->  | Q20: 0.9 | R20: =IFERROR(VLOOKUP(State&SelectedZone,'Lookup tables'!$D$26:$G$31,4,FALSE),1) -> 1 | S20: 1 | T20: =VLOOKUP(H20,'Lookup tables'!$N$25:$R$30,5,FALSE) ->  | U20: =(M20-T20)/1000*Q20*P20*(1+1/L20) ->  | V20: =U20*O20*(1-N20) -> 
A21: HIDE | B21: 0 | C21: 0 | D21: 0 | E21: =ROUND(IFERROR(INDEX('Savings Summary'!$P$8:$P$50,MATCH(Refrigeration!$B$17,'Savings Summary'!$C$8:$C$50,0))*D21+ INDEX('Savings Summary'!$N$8:$N$50,MATCH(Refrigeration!$B$17,'Savings Summary'!$C$8:$C$50,0))*B21+ INDEX('Savings Summary'!$O$8:$O$50,MATCH(Refrigeration!$B$17,'Savings Summary'!$C$8:$C$50,0))*C21,0),2) -> 0 | L21: =INDEX(IF(G21="Medium Temperature",'Lookup tables'!$E$26:$E$31,'Lookup tables'!$F$26:$F$31),MATCH(State&SelectedZone,Locations,0)) -> 2.44 | M21: =INDEX('Lookup tables'!$P$25:$Q$30,MATCH(Refrigeration!H21,'Lookup tables'!$N$25:$N$30,0),MATCH(Refrigeration!J21,'Lookup tables'!$P$24:$Q$24,0)) ->  | N21: =VLOOKUP(I21,'Lookup tables'!$H$24:$I$25,2,FALSE) ->  | O21: 8760 | P21: =VLOOKUP(G21,'Lookup tables'!$K$28:$L$29,2,FALSE) ->  | Q21: 0.9 | R21: =IFERROR(VLOOKUP(State&SelectedZone,'Lookup tables'!$D$26:$G$31,4,FALSE),1) -> 1 | S21: 1 | T21: =VLOOKUP(H21,'Lookup tables'!$N$25:$R$30,5,FALSE) -> 
A22: HIDE | B22: 0 | C22: 0 | D22: 0 | E22: =ROUND(IFERROR(INDEX('Savings Summary'!$P$8:$P$50,MATCH(Refrigeration!$B$17,'Savings Summary'!$C$8:$C$50,0))*D22+ INDEX('Savings Summary'!$N$8:$N$50,MATCH(Refrigeration!$B$17,'Savings Summary'!$C$8:$C$50,0))*B22+ INDEX('Savings Summary'!$O$8:$O$50,MATCH(Refrigeration!$B$17,'Savings Summary'!$C$8:$C$50,0))*C22,0),2) -> 0 | L22: =INDEX(IF(G22="Medium Temperature",'Lookup tables'!$E$26:$E$31,'Lookup tables'!$F$26:$F$31),MATCH(State&SelectedZone,Locations,0)) -> 2.44 | M22: =INDEX('Lookup tables'!$P$25:$Q$30,MATCH(Refrigeration!H22,'Lookup tables'!$N$25:$N$30,0),MATCH(Refrigeration!J22,'Lookup tables'!$P$24:$Q$24,0)) ->  | N22: =VLOOKUP(I22,'Lookup tables'!$H$24:$I$25,2,FALSE) ->  | O22: 8760 | P22: =VLOOKUP(G22,'Lookup tables'!$K$28:$L$29,2,FALSE) ->  | Q22: 0.9 | R22: =IFERROR(VLOOKUP(State&SelectedZone,'Lookup tables'!$D$26:$G$31,4,FALSE),1) -> 1 | S22: 1 | T22: =VLOOKUP(H22,'Lookup tables'!$N$25:$R$30,5,FALSE) -> 
A23: HIDE | B23: 0 | C23: 0 | D23: 0 | E23: =ROUND(IFERROR(INDEX('Savings Summary'!$P$8:$P$50,MATCH(Refrigeration!$B$17,'Savings Summary'!$C$8:$C$50,0))*D23+ INDEX('Savings Summary'!$N$8:$N$50,MATCH(Refrigeration!$B$17,'Savings Summary'!$C$8:$C$50,0))*B23+ INDEX('Savings Summary'!$O$8:$O$50,MATCH(Refrigeration!$B$17,'Savings Summary'!$C$8:$C$50,0))*C23,0),2) -> 0 | L23: =INDEX(IF(G23="Medium Temperature",'Lookup tables'!$E$26:$E$31,'Lookup tables'!$F$26:$F$31),MATCH(State&SelectedZone,Locations,0)) -> 2.44 | M23: =INDEX('Lookup tables'!$P$25:$Q$30,MATCH(Refrigeration!H23,'Lookup tables'!$N$25:$N$30,0),MATCH(Refrigeration!J23,'Lookup tables'!$P$24:$Q$24,0)) ->  | N23: =VLOOKUP(I23,'Lookup tables'!$H$24:$I$25,2,FALSE) ->  | O23: 8760 | P23: =VLOOKUP(G23,'Lookup tables'!$K$28:$L$29,2,FALSE) ->  | Q23: 0.9 | R23: =IFERROR(VLOOKUP(State&SelectedZone,'Lookup tables'!$D$26:$G$31,4,FALSE),1) -> 1 | S23: 1 | T23: =VLOOKUP(H23,'Lookup tables'!$N$25:$R$30,5,FALSE) -> 
A24: HIDE | B24: 0 | C24: 0 | D24: 0 | E24: =ROUND(IFERROR(INDEX('Savings Summary'!$P$8:$P$50,MATCH(Refrigeration!$B$17,'Savings Summary'!$C$8:$C$50,0))*D24+ INDEX('Savings Summary'!$N$8:$N$50,MATCH(Refrigeration!$B$17,'Savings Summary'!$C$8:$C$50,0))*B24+ INDEX('Savings Summary'!$O$8:$O$50,MATCH(Refrigeration!$B$17,'Savings Summary'!$C$8:$C$50,0))*C24,0),2) -> 0 | L24: =INDEX(IF(G24="Medium Temperature",'Lookup tables'!$E$26:$E$31,'Lookup tables'!$F$26:$F$31),MATCH(State&SelectedZone,Locations,0)) -> 2.44 | M24: =INDEX('Lookup tables'!$P$25:$Q$30,MATCH(Refrigeration!H24,'Lookup tables'!$N$25:$N$30,0),MATCH(Refrigeration!J24,'Lookup tables'!$P$24:$Q$24,0)) ->  | N24: =VLOOKUP(I24,'Lookup tables'!$H$24:$I$25,2,FALSE) ->  | O24: 8760 | P24: =VLOOKUP(G24,'Lookup tables'!$K$28:$L$29,2,FALSE) ->  | Q24: 0.9 | R24: =IFERROR(VLOOKUP(State&SelectedZone,'Lookup tables'!$D$26:$G$31,4,FALSE),1) -> 1 | S24: 1 | T24: =VLOOKUP(H24,'Lookup tables'!$N$25:$R$30,5,FALSE) -> 
A25: HIDE | B25: 0 | C25: 0 | D25: 0 | E25: =ROUND(IFERROR(INDEX('Savings Summary'!$P$8:$P$50,MATCH(Refrigeration!$B$17,'Savings Summary'!$C$8:$C$50,0))*D25+ INDEX('Savings Summary'!$N$8:$N$50,MATCH(Refrigeration!$B$17,'Savings Summary'!$C$8:$C$50,0))*B25+ INDEX('Savings Summary'!$O$8:$O$50,MATCH(Refrigeration!$B$17,'Savings Summary'!$C$8:$C$50,0))*C25,0),2) -> 0 | L25: =INDEX(IF(G25="Medium Temperature",'Lookup tables'!$E$26:$E$31,'Lookup tables'!$F$26:$F$31),MATCH(State&SelectedZone,Locations,0)) -> 2.44 | M25: =INDEX('Lookup tables'!$P$25:$Q$30,MATCH(Refrigeration!H25,'Lookup tables'!$N$25:$N$30,0),MATCH(Refrigeration!J25,'Lookup tables'!$P$24:$Q$24,0)) ->  | N25: =VLOOKUP(I25,'Lookup tables'!$H$24:$I$25,2,FALSE) ->  | O25: 8760 | P25: =VLOOKUP(G25,'Lookup tables'!$K$28:$L$29,2,FALSE) ->  | Q25: 0.9 | R25: =IFERROR(VLOOKUP(State&SelectedZone,'Lookup tables'!$D$26:$G$31,4,FALSE),1) -> 1 | S25: 1 | T25: =VLOOKUP(H25,'Lookup tables'!$N$25:$R$30,5,FALSE) -> 
A26: HIDE | B26: 0 | C26: 0 | D26: 0 | E26: =ROUND(IFERROR(INDEX('Savings Summary'!$P$8:$P$50,MATCH(Refrigeration!$B$17,'Savings Summary'!$C$8:$C$50,0))*D26+ INDEX('Savings Summary'!$N$8:$N$50,MATCH(Refrigeration!$B$17,'Savings Summary'!$C$8:$C$50,0))*B26+ INDEX('Savings Summary'!$O$8:$O$50,MATCH(Refrigeration!$B$17,'Savings Summary'!$C$8:$C$50,0))*C26,0),2) -> 0 | L26: =INDEX(IF(G26="Medium Temperature",'Lookup tables'!$E$26:$E$31,'Lookup tables'!$F$26:$F$31),MATCH(State&SelectedZone,Locations,0)) -> 2.44 | M26: =INDEX('Lookup tables'!$P$25:$Q$30,MATCH(Refrigeration!H26,'Lookup tables'!$N$25:$N$30,0),MATCH(Refrigeration!J26,'Lookup tables'!$P$24:$Q$24,0)) ->  | N26: =VLOOKUP(I26,'Lookup tables'!$H$24:$I$25,2,FALSE) ->  | O26: 8760 | P26: =VLOOKUP(G26,'Lookup tables'!$K$28:$L$29,2,FALSE) ->  | Q26: 0.9 | R26: =IFERROR(VLOOKUP(State&SelectedZone,'Lookup tables'!$D$26:$G$31,4,FALSE),1) -> 1 | S26: 1 | T26: =VLOOKUP(H26,'Lookup tables'!$N$25:$R$30,5,FALSE) -> 
A27: HIDE | B27: =SUM(B19:B26) -> 0 | C27: =SUM(C19:C26) -> 0 | D27: =SUM(D19:D26) -> 0 | E27: =SUM(E19:E26) -> 0
B28: Electronic Defrost Controls
A29: HIDE | B29: Peak kW | C29: NC kW | D29: kWh | E29: Uncapped Incentive | F29: Load of electric defrost (W) | G29: Refrigeration Temperature | H29: Hours per Year Defrost Occurs Without Controls* | I29: *Locate defrost timer. Hours = frequency(cycles) x duration(min)/60 x 365
A30: HIDE | B30: =ROUND(IFERROR(D30/H30*VLOOKUP(State&SelectedZone,'Lookup tables'!$D$87:$G$92,4,FALSE),0),3) -> 0 | C30: =ROUND(IFERROR(D30/H30,0),3) -> 0 | D30: =ROUND(IFERROR(0.35*F30/1000*H30*(1+0.28*INDEX('Lookup tables'!$E$87:$F$92,MATCH(State&SelectedZone,'Lookup tables'!$D$87:$D$92,0),MATCH(G30,'Lookup tables'!$E$84:$F$84,0))),0),0) -> 0 | E30: =ROUND(IFERROR(INDEX('Savings Summary'!$P$8:$P$50,MATCH(Refrigeration!$B$28,'Savings Summary'!$C$8:$C$50,0))*D30+ INDEX('Savings Summary'!$N$8:$N$50,MATCH(Refrigeration!$B$28,'Savings Summary'!$C$8:$C$50,0))*B30+ INDEX('Savings Summary'!$O$8:$O$50,MATCH(Refrigeration!$B$28,'Savings Summary'!$C$8:$C$50,0))*C30,0),2) -> 0
A31: HIDE | B31: =ROUND(IFERROR(D31/H31*VLOOKUP(State&SelectedZone,'Lookup tables'!$D$87:$G$92,4,FALSE),0),3) -> 0 | C31: =ROUND(IFERROR(D31/H31,0),3) -> 0 | D31: =ROUND(IFERROR(0.35*F31/1000*H31*(1+0.28*INDEX('Lookup tables'!$E$87:$F$92,MATCH(State&SelectedZone,'Lookup tables'!$D$87:$D$92,0),MATCH(G31,'Lookup tables'!$E$84:$F$84,0))),0),0) -> 0 | E31: =ROUND(IFERROR(INDEX('Savings Summary'!$P$8:$P$50,MATCH(Refrigeration!$B$28,'Savings Summary'!$C$8:$C$50,0))*D31+ INDEX('Savings Summary'!$N$8:$N$50,MATCH(Refrigeration!$B$28,'Savings Summary'!$C$8:$C$50,0))*B31+ INDEX('Savings Summary'!$O$8:$O$50,MATCH(Refrigeration!$B$28,'Savings Summary'!$C$8:$C$50,0))*C31,0),2) -> 0
A32: HIDE | B32: =ROUND(IFERROR(D32/H32*VLOOKUP(State&SelectedZone,'Lookup tables'!$D$87:$G$92,4,FALSE),0),3) -> 0 | C32: 0 | D32: =ROUND(IFERROR(0.35*F32/1000*H32*(1+0.28*INDEX('Lookup tables'!$E$87:$F$92,MATCH(State&SelectedZone,'Lookup tables'!$D$87:$D$92,0),MATCH(G32,'Lookup tables'!$E$84:$F$84,0))),0),0) -> 0 | E32: =ROUND(IFERROR(INDEX('Savings Summary'!$P$8:$P$50,MATCH(Refrigeration!$B$28,'Savings Summary'!$C$8:$C$50,0))*D32+ INDEX('Savings Summary'!$N$8:$N$50,MATCH(Refrigeration!$B$28,'Savings Summary'!$C$8:$C$50,0))*B32+ INDEX('Savings Summary'!$O$8:$O$50,MATCH(Refrigeration!$B$28,'Savings Summary'!$C$8:$C$50,0))*C32,0),2) -> 0
A33: HIDE | B33: =ROUND(IFERROR(D33/H33*VLOOKUP(State&SelectedZone,'Lookup tables'!$D$87:$G$92,4,FALSE),0),3) -> 0 | C33: 0 | D33: =ROUND(IFERROR(0.35*F33/1000*H33*(1+0.28*INDEX('Lookup tables'!$E$87:$F$92,MATCH(State&SelectedZone,'Lookup tables'!$D$87:$D$92,0),MATCH(G33,'Lookup tables'!$E$84:$F$84,0))),0),0) -> 0 | E33: =ROUND(IFERROR(INDEX('Savings Summary'!$P$8:$P$50,MATCH(Refrigeration!$B$28,'Savings Summary'!$C$8:$C$50,0))*D33+ INDEX('Savings Summary'!$N$8:$N$50,MATCH(Refrigeration!$B$28,'Savings Summary'!$C$8:$C$50,0))*B33+ INDEX('Savings Summary'!$O$8:$O$50,MATCH(Refrigeration!$B$28,'Savings Summary'!$C$8:$C$50,0))*C33,0),2) -> 0
A34: HIDE | B34: =ROUND(IFERROR(D34/H34*VLOOKUP(State&SelectedZone,'Lookup tables'!$D$87:$G$92,4,FALSE),0),3) -> 0 | C34: 0 | D34: =ROUND(IFERROR(0.35*F34/1000*H34*(1+0.28*INDEX('Lookup tables'!$E$87:$F$92,MATCH(State&SelectedZone,'Lookup tables'!$D$87:$D$92,0),MATCH(G34,'Lookup tables'!$E$84:$F$84,0))),0),0) -> 0 | E34: =ROUND(IFERROR(INDEX('Savings Summary'!$P$8:$P$50,MATCH(Refrigeration!$B$28,'Savings Summary'!$C$8:$C$50,0))*D34+ INDEX('Savings Summary'!$N$8:$N$50,MATCH(Refrigeration!$B$28,'Savings Summary'!$C$8:$C$50,0))*B34+ INDEX('Savings Summary'!$O$8:$O$50,MATCH(Refrigeration!$B$28,'Savings Summary'!$C$8:$C$50,0))*C34,0),2) -> 0
A35: HIDE | B35: =SUM(B30:B34) -> 0 | C35: =SUM(C30:C34) -> 0 | D35: =SUM(D30:D34) -> 0 | E35: =SUM(E30:E34) -> 0
B36: Evaporator Fan Controls
A37: HIDE | B37: Peak kW | C37: NC kW | D37: kWh | E37: Uncapped Incentive | F37: Number of Evaporator Fans | G37: Refrigeration Temperature
A38: HIDE | B38: =ROUND(IFERROR(IF(F38="",0,(0.123*F38-0.035)*(1-0.5)*VLOOKUP(G38,'Lookup tables'!$D$78:$F$80,2,FALSE)*VLOOKUP(G38,'Lookup tables'!$D$78:$F$80,3,FALSE)*IF(SelectedZone="CPS",CFr,1)),0),3) -> 0 | C38: =ROUND(IFERROR(IF(F38="",0,(0.123*F38-0.035)*(1-0.5)*VLOOKUP(G38,'Lookup tables'!$D$78:$F$80,2,FALSE)*VLOOKUP(G38,'Lookup tables'!$D$78:$F$80,3,FALSE)*NCFr),0),3) -> 0 | D38: =ROUND(IFERROR(IF(F38="",0,(0.123*F38-0.035)*(1-0.5)*VLOOKUP(G38,'Lookup tables'!$D$78:$F$80,2,FALSE)*VLOOKUP(G38,'Lookup tables'!$D$78:$F$80,3,FALSE)*8760),0),0) -> 0 | E38: =ROUND(IFERROR(INDEX('Savings Summary'!$P$8:$P$50,MATCH(Refrigeration!$B$36,'Savings Summary'!$C$8:$C$50,0))*D38+ INDEX('Savings Summary'!$N$8:$N$50,MATCH(Refrigeration!$B$36,'Savings Summary'!$C$8:$C$50,0))*B38+ INDEX('Savings Summary'!$O$8:$O$50,MATCH(Refrigeration!$B$36,'Savings Summary'!$C$8:$C$50,0))*C38,0),2) -> 0
A39: HIDE | B39: =ROUND(IFERROR(IF(F39="",0,(0.123*F39-0.035)*(1-0.5)*VLOOKUP(G39,'Lookup tables'!$D$78:$F$80,2,FALSE)*VLOOKUP(G39,'Lookup tables'!$D$78:$F$80,3,FALSE)*IF(SelectedZone="CPS",CFr,1)),0),3) -> 0 | C39: =ROUND(IFERROR(IF(F39="",0,(0.123*F39-0.035)*(1-0.5)*VLOOKUP(G39,'Lookup tables'!$D$78:$F$80,2,FALSE)*VLOOKUP(G39,'Lookup tables'!$D$78:$F$80,3,FALSE)*NCFr),0),3) -> 0 | D39: =ROUND(IFERROR(IF(F39="",0,(0.123*F39-0.035)*(1-0.5)*VLOOKUP(G39,'Lookup tables'!$D$78:$F$80,2,FALSE)*VLOOKUP(G39,'Lookup tables'!$D$78:$F$80,3,FALSE)*8760),0),0) -> 0 | E39: =ROUND(IFERROR(INDEX('Savings Summary'!$P$8:$P$50,MATCH(Refrigeration!$B$36,'Savings Summary'!$C$8:$C$50,0))*D39+ INDEX('Savings Summary'!$N$8:$N$50,MATCH(Refrigeration!$B$36,'Savings Summary'!$C$8:$C$50,0))*B39+ INDEX('Savings Summary'!$O$8:$O$50,MATCH(Refrigeration!$B$36,'Savings Summary'!$C$8:$C$50,0))*C39,0),2) -> 0
A40: HIDE | B40: =ROUND(IFERROR(IF(F40="",0,(0.123*F40-0.035)*(1-0.5)*VLOOKUP(G40,'Lookup tables'!$D$78:$F$80,2,FALSE)*VLOOKUP(G40,'Lookup tables'!$D$78:$F$80,3,FALSE)*IF(SelectedZone="CPS",CFr,1)),0),3) -> 0 | C40: =ROUND(IFERROR(IF(F40="",0,(0.123*F40-0.035)*(1-0.5)*VLOOKUP(G40,'Lookup tables'!$D$78:$F$80,2,FALSE)*VLOOKUP(G40,'Lookup tables'!$D$78:$F$80,3,FALSE)*NCFr),0),3) -> 0 | D40: =ROUND(IFERROR(IF(F40="",0,(0.123*F40-0.035)*(1-0.5)*VLOOKUP(G40,'Lookup tables'!$D$78:$F$80,2,FALSE)*VLOOKUP(G40,'Lookup tables'!$D$78:$F$80,3,FALSE)*8760),0),0) -> 0 | E40: =ROUND(IFERROR(INDEX('Savings Summary'!$P$8:$P$50,MATCH(Refrigeration!$B$36,'Savings Summary'!$C$8:$C$50,0))*D40+ INDEX('Savings Summary'!$N$8:$N$50,MATCH(Refrigeration!$B$36,'Savings Summary'!$C$8:$C$50,0))*B40+ INDEX('Savings Summary'!$O$8:$O$50,MATCH(Refrigeration!$B$36,'Savings Summary'!$C$8:$C$50,0))*C40,0),2) -> 0
A41: HIDE | B41: =SUM(B38:B40) -> 0 | C41: =SUM(C38:C40) -> 0 | D41: =SUM(D38:D40) -> 0 | E41: =SUM(E38:E40) -> 0
B42: Night Covers for Open Vertical and Horizontal Refrigerated Display Cases
A43: HIDE | B43: Peak kW | C43: NC kW | D43: kWh | E43: Uncapped Incentive | F43: Linear Feet (width) of Case* | G43: Refrigeration Temperature | H43: Condensing Unit Configuration | I43: Display Case Orientation
A44: HIDE | B44: 0 | C44: =ROUND(IFERROR(INDEX('Lookup tables'!$E$13:$E$19,MATCH(Refrigeration!G44&Refrigeration!H44&Refrigeration!I44,'Lookup tables'!$D$13:$D$19,0))*F44,0),3) -> 0 | D44: =ROUND(IFERROR(INDEX('Lookup tables'!$F$13:$F$19,MATCH(Refrigeration!G44&Refrigeration!H44&Refrigeration!I44,'Lookup tables'!$D$13:$D$19,0))*F44,0),0) -> 0 | E44: =ROUND(IFERROR(INDEX('Savings Summary'!$P$8:$P$50,MATCH(Refrigeration!$B$42,'Savings Summary'!$C$8:$C$50,0))*D44+ INDEX('Savings Summary'!$N$8:$N$50,MATCH(Refrigeration!$B$42,'Savings Summary'!$C$8:$C$50,0))*B44+ INDEX('Savings Summary'!$O$8:$O$50,MATCH(Refrigeration!$B$42,'Savings Summary'!$C$8:$C$50,0))*C44,0),2) -> 0
A45: HIDE | B45: 0 | C45: =ROUND(IFERROR(INDEX('Lookup tables'!$E$13:$E$19,MATCH(Refrigeration!G45&Refrigeration!H45&Refrigeration!I45,'Lookup tables'!$D$13:$D$19,0))*F45,0),3) -> 0 | D45: =ROUND(IFERROR(INDEX('Lookup tables'!$F$13:$F$19,MATCH(Refrigeration!G45&Refrigeration!H45&Refrigeration!I45,'Lookup tables'!$D$13:$D$19,0))*F45,0),0) -> 0 | E45: =ROUND(IFERROR(INDEX('Savings Summary'!$P$8:$P$50,MATCH(Refrigeration!$B$42,'Savings Summary'!$C$8:$C$50,0))*D45+ INDEX('Savings Summary'!$N$8:$N$50,MATCH(Refrigeration!$B$42,'Savings Summary'!$C$8:$C$50,0))*B45+ INDEX('Savings Summary'!$O$8:$O$50,MATCH(Refrigeration!$B$42,'Savings Summary'!$C$8:$C$50,0))*C45,0),2) -> 0
A46: HIDE | B46: 0 | C46: =ROUND(IFERROR(INDEX('Lookup tables'!$E$13:$E$19,MATCH(Refrigeration!G46&Refrigeration!H46&Refrigeration!I46,'Lookup tables'!$D$13:$D$19,0))*F46,0),3) -> 0 | D46: =ROUND(IFERROR(INDEX('Lookup tables'!$F$13:$F$19,MATCH(Refrigeration!G46&Refrigeration!H46&Refrigeration!I46,'Lookup tables'!$D$13:$D$19,0))*F46,0),0) -> 0 | E46: =ROUND(IFERROR(INDEX('Savings Summary'!$P$8:$P$50,MATCH(Refrigeration!$B$42,'Savings Summary'!$C$8:$C$50,0))*D46+ INDEX('Savings Summary'!$N$8:$N$50,MATCH(Refrigeration!$B$42,'Savings Summary'!$C$8:$C$50,0))*B46+ INDEX('Savings Summary'!$O$8:$O$50,MATCH(Refrigeration!$B$42,'Savings Summary'!$C$8:$C$50,0))*C46,0),2) -> 0
A47: HIDE | B47: 0 | C47: =ROUND(IFERROR(INDEX('Lookup tables'!$E$13:$E$19,MATCH(Refrigeration!G47&Refrigeration!H47&Refrigeration!I47,'Lookup tables'!$D$13:$D$19,0))*F47,0),3) -> 0 | D47: =ROUND(IFERROR(INDEX('Lookup tables'!$F$13:$F$19,MATCH(Refrigeration!G47&Refrigeration!H47&Refrigeration!I47,'Lookup tables'!$D$13:$D$19,0))*F47,0),0) -> 0 | E47: =ROUND(IFERROR(INDEX('Savings Summary'!$P$8:$P$50,MATCH(Refrigeration!$B$42,'Savings Summary'!$C$8:$C$50,0))*D47+ INDEX('Savings Summary'!$N$8:$N$50,MATCH(Refrigeration!$B$42,'Savings Summary'!$C$8:$C$50,0))*B47+ INDEX('Savings Summary'!$O$8:$O$50,MATCH(Refrigeration!$B$42,'Savings Summary'!$C$8:$C$50,0))*C47,0),2) -> 0
A48: HIDE | B48: 0 | C48: =ROUND(IFERROR(INDEX('Lookup tables'!$E$13:$E$19,MATCH(Refrigeration!G48&Refrigeration!H48&Refrigeration!I48,'Lookup tables'!$D$13:$D$19,0))*F48,0),3) -> 0 | D48: =ROUND(IFERROR(INDEX('Lookup tables'!$F$13:$F$19,MATCH(Refrigeration!G48&Refrigeration!H48&Refrigeration!I48,'Lookup tables'!$D$13:$D$19,0))*F48,0),0) -> 0 | E48: =ROUND(IFERROR(INDEX('Savings Summary'!$P$8:$P$50,MATCH(Refrigeration!$B$42,'Savings Summary'!$C$8:$C$50,0))*D48+ INDEX('Savings Summary'!$N$8:$N$50,MATCH(Refrigeration!$B$42,'Savings Summary'!$C$8:$C$50,0))*B48+ INDEX('Savings Summary'!$O$8:$O$50,MATCH(Refrigeration!$B$42,'Savings Summary'!$C$8:$C$50,0))*C48,0),2) -> 0
A49: HIDE | B49: =SUM(B44:B48) -> 0 | C49: =SUM(C44:C48) -> 0 | D49: =SUM(D44:D48) -> 0 | E49: =SUM(E44:E48) -> 0 | F49: *Quantity is linear feet (width) of the case(s) getting Night Covers installed. Typical width of a single reach-in refrigerated display case door is » 2.5 ft.
B50: ENERGY STAR Commercial Refrigerators
A51: HIDE | B51: Peak kW | C51: NC kW | D51: kWh | E51: Uncapped Incentive | F51: Number of Cases | G51: Model # | H51: Interior Volume (cubic feet) | I51: Unit Type | J51: Door Type
A52: HIDE | B52: =ROUND(IFERROR(IF(COUNTA(H52:J52)<3,0,INDEX('Lookup tables'!$G$45:$G$60,IF(Refrigeration!I52="Freezer",8,0)+IF(Refrigeration!J52="Glass",4,0)+MATCH(H52,'Lookup tables'!$E$45:$E$48,1))),0)*F52,3) -> 0 | C52: =ROUND(IFERROR(D52/8760*NCFr,0),3) -> 0 | D52: =ROUND(IFERROR(IF(COUNTA(H52:J52)<3,0,INDEX('Lookup tables'!$F$45:$F$60,IF(Refrigeration!I52="Freezer",8,0)+IF(Refrigeration!J52="Glass",4,0)+MATCH(H52,'Lookup tables'!$E$45:$E$48,1))),0)*F52,0) -> 0 | E52: =ROUND(IFERROR(INDEX('Savings Summary'!$P$8:$P$50,MATCH(Refrigeration!$B$50,'Savings Summary'!$C$8:$C$50,0))*D52+ INDEX('Savings Summary'!$N$8:$N$50,MATCH(Refrigeration!$B$50,'Savings Summary'!$C$8:$C$50,0))*B52+ INDEX('Savings Summary'!$O$8:$O$50,MATCH(Refrigeration!$B$50,'Savings Summary'!$C$8:$C$50,0))*C52,0),2) -> 0
A53: HIDE | B53: =ROUND(IFERROR(IF(COUNTA(H53:J53)<3,0,INDEX('Lookup tables'!$G$45:$G$60,IF(Refrigeration!I53="Freezer",8,0)+IF(Refrigeration!J53="Glass",4,0)+MATCH(H53,'Lookup tables'!$E$45:$E$48,1))),0)*F53,3) -> 0 | C53: =ROUND(IFERROR(D53/8760*NCFr,0),3) -> 0 | D53: =ROUND(IFERROR(IF(COUNTA(H53:J53)<3,0,INDEX('Lookup tables'!$F$45:$F$60,IF(Refrigeration!I53="Freezer",8,0)+IF(Refrigeration!J53="Glass",4,0)+MATCH(H53,'Lookup tables'!$E$45:$E$48,1))),0)*F53,0) -> 0 | E53: =ROUND(IFERROR(INDEX('Savings Summary'!$P$8:$P$50,MATCH(Refrigeration!$B$50,'Savings Summary'!$C$8:$C$50,0))*D53+ INDEX('Savings Summary'!$N$8:$N$50,MATCH(Refrigeration!$B$50,'Savings Summary'!$C$8:$C$50,0))*B53+ INDEX('Savings Summary'!$O$8:$O$50,MATCH(Refrigeration!$B$50,'Savings Summary'!$C$8:$C$50,0))*C53,0),2) -> 0
A54: HIDE | B54: =ROUND(IFERROR(IF(COUNTA(H54:J54)<3,0,INDEX('Lookup tables'!$G$45:$G$60,IF(Refrigeration!I54="Freezer",8,0)+IF(Refrigeration!J54="Glass",4,0)+MATCH(H54,'Lookup tables'!$E$45:$E$48,1))),0)*F54,3) -> 0 | C54: =ROUND(IFERROR(D54/8760*NCFr,0),3) -> 0 | D54: =ROUND(IFERROR(IF(COUNTA(H54:J54)<3,0,INDEX('Lookup tables'!$F$45:$F$60,IF(Refrigeration!I54="Freezer",8,0)+IF(Refrigeration!J54="Glass",4,0)+MATCH(H54,'Lookup tables'!$E$45:$E$48,1))),0)*F54,0) -> 0 | E54: =ROUND(IFERROR(INDEX('Savings Summary'!$P$8:$P$50,MATCH(Refrigeration!$B$50,'Savings Summary'!$C$8:$C$50,0))*D54+ INDEX('Savings Summary'!$N$8:$N$50,MATCH(Refrigeration!$B$50,'Savings Summary'!$C$8:$C$50,0))*B54+ INDEX('Savings Summary'!$O$8:$O$50,MATCH(Refrigeration!$B$50,'Savings Summary'!$C$8:$C$50,0))*C54,0),2) -> 0
A55: HIDE | B55: =ROUND(IFERROR(IF(COUNTA(H55:J55)<3,0,INDEX('Lookup tables'!$G$45:$G$60,IF(Refrigeration!I55="Freezer",8,0)+IF(Refrigeration!J55="Glass",4,0)+MATCH(H55,'Lookup tables'!$E$45:$E$48,1))),0)*F55,3) -> 0 | C55: =ROUND(IFERROR(D55/8760*NCFr,0),3) -> 0 | D55: =ROUND(IFERROR(IF(COUNTA(H55:J55)<3,0,INDEX('Lookup tables'!$F$45:$F$60,IF(Refrigeration!I55="Freezer",8,0)+IF(Refrigeration!J55="Glass",4,0)+MATCH(H55,'Lookup tables'!$E$45:$E$48,1))),0)*F55,0) -> 0 | E55: =ROUND(IFERROR(INDEX('Savings Summary'!$P$8:$P$50,MATCH(Refrigeration!$B$50,'Savings Summary'!$C$8:$C$50,0))*D55+ INDEX('Savings Summary'!$N$8:$N$50,MATCH(Refrigeration!$B$50,'Savings Summary'!$C$8:$C$50,0))*B55+ INDEX('Savings Summary'!$O$8:$O$50,MATCH(Refrigeration!$B$50,'Savings Summary'!$C$8:$C$50,0))*C55,0),2) -> 0
A56: HIDE | B56: =ROUND(IFERROR(IF(COUNTA(H56:J56)<3,0,INDEX('Lookup tables'!$G$45:$G$60,IF(Refrigeration!I56="Freezer",8,0)+IF(Refrigeration!J56="Glass",4,0)+MATCH(H56,'Lookup tables'!$E$45:$E$48,1))),0)*F56,3) -> 0 | C56: =ROUND(IFERROR(D56/8760*NCFr,0),3) -> 0 | D56: =ROUND(IFERROR(IF(COUNTA(H56:J56)<3,0,INDEX('Lookup tables'!$F$45:$F$60,IF(Refrigeration!I56="Freezer",8,0)+IF(Refrigeration!J56="Glass",4,0)+MATCH(H56,'Lookup tables'!$E$45:$E$48,1))),0)*F56,0) -> 0 | E56: =ROUND(IFERROR(INDEX('Savings Summary'!$P$8:$P$50,MATCH(Refrigeration!$B$50,'Savings Summary'!$C$8:$C$50,0))*D56+ INDEX('Savings Summary'!$N$8:$N$50,MATCH(Refrigeration!$B$50,'Savings Summary'!$C$8:$C$50,0))*B56+ INDEX('Savings Summary'!$O$8:$O$50,MATCH(Refrigeration!$B$50,'Savings Summary'!$C$8:$C$50,0))*C56,0),2) -> 0
A57: HIDE | B57: =SUM(B52:B56) -> 0 | C57: =SUM(C52:C56) -> 0 | D57: =SUM(D52:D56) -> 0 | E57: =SUM(E52:E56) -> 0
B58: Strip Curtains for Walk-In Refrigerated Storage
A59: HIDE | B59: Peak kW | C59: NC kW | D59: kWh | E59: Uncapped Incentive | F59: Number of Doorways | G59: Refrigeration Temperature | H59: Facility Type
A60: HIDE | B60: =ROUND(IFERROR(INDEX('Lookup tables'!$E$95:$E$102,MATCH(Refrigeration!H60&Refrigeration!G60,'Lookup tables'!$D$95:$D$102,0))*$F60,0),3) -> 0 | C60: =ROUND(IFERROR(INDEX('Lookup tables'!$F$95:$F$102,MATCH(Refrigeration!H60&Refrigeration!G60,'Lookup tables'!$D$95:$D$102,0))*$F60,0),3) -> 0 | D60: =ROUND(IFERROR(INDEX('Lookup tables'!$G$95:$G$102,MATCH(Refrigeration!H60&Refrigeration!G60,'Lookup tables'!$D$95:$D$102,0))*$F60,0),0) -> 0 | E60: =ROUND(IFERROR(INDEX('Savings Summary'!$P$8:$P$50,MATCH(Refrigeration!$B$58,'Savings Summary'!$C$8:$C$50,0))*D60+ INDEX('Savings Summary'!$N$8:$N$50,MATCH(Refrigeration!$B$58,'Savings Summary'!$C$8:$C$50,0))*B60+ INDEX('Savings Summary'!$O$8:$O$50,MATCH(Refrigeration!$B$58,'Savings Summary'!$C$8:$C$50,0))*C60,0),2) -> 0
A61: HIDE | B61: =ROUND(IFERROR(INDEX('Lookup tables'!$E$95:$E$102,MATCH(Refrigeration!H61&Refrigeration!G61,'Lookup tables'!$D$95:$D$102,0))*$F61,0),3) -> 0 | C61: =ROUND(IFERROR(INDEX('Lookup tables'!$F$95:$F$102,MATCH(Refrigeration!H61&Refrigeration!G61,'Lookup tables'!$D$95:$D$102,0))*$F61,0),3) -> 0 | D61: =ROUND(IFERROR(INDEX('Lookup tables'!$G$95:$G$102,MATCH(Refrigeration!H61&Refrigeration!G61,'Lookup tables'!$D$95:$D$102,0))*$F61,0),0) -> 0 | E61: =ROUND(IFERROR(INDEX('Savings Summary'!$P$8:$P$50,MATCH(Refrigeration!$B$58,'Savings Summary'!$C$8:$C$50,0))*D61+ INDEX('Savings Summary'!$N$8:$N$50,MATCH(Refrigeration!$B$58,'Savings Summary'!$C$8:$C$50,0))*B61+ INDEX('Savings Summary'!$O$8:$O$50,MATCH(Refrigeration!$B$58,'Savings Summary'!$C$8:$C$50,0))*C61,0),2) -> 0
A62: HIDE | B62: =ROUND(IFERROR(INDEX('Lookup tables'!$E$95:$E$102,MATCH(Refrigeration!H62&Refrigeration!G62,'Lookup tables'!$D$95:$D$102,0))*$F62,0),3) -> 0 | C62: =ROUND(IFERROR(INDEX('Lookup tables'!$F$95:$F$102,MATCH(Refrigeration!H62&Refrigeration!G62,'Lookup tables'!$D$95:$D$102,0))*$F62,0),3) -> 0 | D62: =ROUND(IFERROR(INDEX('Lookup tables'!$G$95:$G$102,MATCH(Refrigeration!H62&Refrigeration!G62,'Lookup tables'!$D$95:$D$102,0))*$F62,0),0) -> 0 | E62: =ROUND(IFERROR(INDEX('Savings Summary'!$P$8:$P$50,MATCH(Refrigeration!$B$58,'Savings Summary'!$C$8:$C$50,0))*D62+ INDEX('Savings Summary'!$N$8:$N$50,MATCH(Refrigeration!$B$58,'Savings Summary'!$C$8:$C$50,0))*B62+ INDEX('Savings Summary'!$O$8:$O$50,MATCH(Refrigeration!$B$58,'Savings Summary'!$C$8:$C$50,0))*C62,0),2) -> 0
A63: HIDE | B63: =SUM(B60:B62) -> 0 | C63: =SUM(C60:C62) -> 0 | D63: =SUM(D60:D62) -> 0 | E63: =SUM(E60:E62) -> 0
B64: Zero-Energy Doors for Refrigerated Cases
A65: HIDE | B65: Peak kW | C65: NC kW | D65: kWh | E65: Uncapped Incentive | F65: Length of Case (ft) | G65: Refrigeration Temperature | H65: This measure cannot be used in conjunction with anti-sweat heat (ASH) controls.
A66: HIDE | B66: =ROUND(IFERROR(F66*INDEX('Lookup tables'!$E$64:$G$76,MATCH(State&SelectedZone&Refrigeration!$G66,'Lookup tables'!$D$64:$D$76,0),MATCH(Refrigeration!B$65,'Lookup tables'!$E$63:$G$63,0)),0),3) -> 0 | C66: =ROUND(IFERROR(F66*INDEX('Lookup tables'!$E$64:$G$75,MATCH(State&SelectedZone&Refrigeration!$G66,'Lookup tables'!$D$64:$D$75,0),MATCH(Refrigeration!C$65,'Lookup tables'!$E$63:$G$63,0)),0),3) -> 0 | D66: =ROUND(IFERROR(F66*INDEX('Lookup tables'!$E$64:$G$75,MATCH(State&SelectedZone&Refrigeration!$G66,'Lookup tables'!$D$64:$D$75,0),MATCH(Refrigeration!D$65,'Lookup tables'!$E$63:$G$63,0)),0),0) -> 0 | E66: =ROUND(IFERROR(INDEX('Savings Summary'!$P$8:$P$50,MATCH(Refrigeration!$B$64,'Savings Summary'!$C$8:$C$50,0))*D66+ INDEX('Savings Summary'!$N$8:$N$50,MATCH(Refrigeration!$B$64,'Savings Summary'!$C$8:$C$50,0))*B66+ INDEX('Savings Summary'!$O$8:$O$50,MATCH(Refrigeration!$B$64,'Savings Summary'!$C$8:$C$50,0))*C66,0),2) -> 0
A67: HIDE | B67: =ROUND(IFERROR(F67*INDEX('Lookup tables'!$E$64:$G$76,MATCH(State&SelectedZone&Refrigeration!$G67,'Lookup tables'!$D$64:$D$76,0),MATCH(Refrigeration!B$65,'Lookup tables'!$E$63:$G$63,0)),0),3) -> 0 | C67: =ROUND(IFERROR(F67*INDEX('Lookup tables'!$E$64:$G$75,MATCH(State&SelectedZone&Refrigeration!$G67,'Lookup tables'!$D$64:$D$75,0),MATCH(Refrigeration!C$65,'Lookup tables'!$E$63:$G$63,0)),0),3) -> 0 | D67: =ROUND(IFERROR(F67*INDEX('Lookup tables'!$E$64:$G$75,MATCH(State&SelectedZone&Refrigeration!$G67,'Lookup tables'!$D$64:$D$75,0),MATCH(Refrigeration!D$65,'Lookup tables'!$E$63:$G$63,0)),0),0) -> 0 | E67: =ROUND(IFERROR(INDEX('Savings Summary'!$P$8:$P$50,MATCH(Refrigeration!$B$64,'Savings Summary'!$C$8:$C$50,0))*D67+ INDEX('Savings Summary'!$N$8:$N$50,MATCH(Refrigeration!$B$64,'Savings Summary'!$C$8:$C$50,0))*B67+ INDEX('Savings Summary'!$O$8:$O$50,MATCH(Refrigeration!$B$64,'Savings Summary'!$C$8:$C$50,0))*C67,0),2) -> 0
A68: HIDE | B68: =ROUND(IFERROR(F68*INDEX('Lookup tables'!$E$64:$G$76,MATCH(State&SelectedZone&Refrigeration!$G68,'Lookup tables'!$D$64:$D$76,0),MATCH(Refrigeration!B$65,'Lookup tables'!$E$63:$G$63,0)),0),3) -> 0 | C68: =ROUND(IFERROR(F68*INDEX('Lookup tables'!$E$64:$G$75,MATCH(State&SelectedZone&Refrigeration!$G68,'Lookup tables'!$D$64:$D$75,0),MATCH(Refrigeration!C$65,'Lookup tables'!$E$63:$G$63,0)),0),3) -> 0 | D68: =ROUND(IFERROR(F68*INDEX('Lookup tables'!$E$64:$G$75,MATCH(State&SelectedZone&Refrigeration!$G68,'Lookup tables'!$D$64:$D$75,0),MATCH(Refrigeration!D$65,'Lookup tables'!$E$63:$G$63,0)),0),0) -> 0 | E68: =ROUND(IFERROR(INDEX('Savings Summary'!$P$8:$P$50,MATCH(Refrigeration!$B$64,'Savings Summary'!$C$8:$C$50,0))*D68+ INDEX('Savings Summary'!$N$8:$N$50,MATCH(Refrigeration!$B$64,'Savings Summary'!$C$8:$C$50,0))*B68+ INDEX('Savings Summary'!$O$8:$O$50,MATCH(Refrigeration!$B$64,'Savings Summary'!$C$8:$C$50,0))*C68,0),2) -> 0
A69: HIDE | B69: =SUM(B66:B68) -> 0 | C69: =SUM(C66:C68) -> 0 | D69: =SUM(D66:D68) -> 0 | E69: =SUM(E66:E68) -> 0
B70: Vending Machine Controls
A71: HIDE | B71: Peak kW | C71: NC kW | D71: kWh | E71: Uncapped Incentive | F71: Number of Machines | G71: Type of Machine
A72: HIDE | B72: =ROUND(IFERROR(INDEX('Lookup tables'!G$228:L$230,MATCH(Refrigeration!G72,Vending,0),MATCH(State&SelectedZone,'Lookup tables'!G$227:L$227,0))*F72,0),3) -> 0 | C72: =ROUND(IFERROR(INDEX('Lookup tables'!F$228:F$230,MATCH(Refrigeration!G72,Vending,0))*F72,0),3) -> 0 | D72: =ROUND(IFERROR(INDEX('Lookup tables'!E$228:E$230,MATCH(Refrigeration!G72,Vending,0))*F72,0),0) -> 0 | E72: =ROUND(IFERROR(INDEX('Savings Summary'!$P$8:$P$50,MATCH(Refrigeration!$B$70,'Savings Summary'!$C$8:$C$50,0))*D72+ INDEX('Savings Summary'!$N$8:$N$50,MATCH(Refrigeration!$B$70,'Savings Summary'!$C$8:$C$50,0))*B72+ INDEX('Savings Summary'!$O$8:$O$50,MATCH(Refrigeration!$B$70,'Savings Summary'!$C$8:$C$50,0))*C72,0),2) -> 0
A73: HIDE | B73: =ROUND(IFERROR(INDEX('Lookup tables'!G$228:L$230,MATCH(Refrigeration!G73,Vending,0),MATCH(State&SelectedZone,'Lookup tables'!G$227:L$227,0))*F73,0),3) -> 0 | C73: =ROUND(IFERROR(INDEX('Lookup tables'!F$228:F$230,MATCH(Refrigeration!G73,Vending,0))*F73,0),3) -> 0 | D73: =ROUND(IFERROR(INDEX('Lookup tables'!E$228:E$230,MATCH(Refrigeration!G73,Vending,0))*F73,0),0) -> 0 | E73: =ROUND(IFERROR(INDEX('Savings Summary'!$P$8:$P$50,MATCH(Refrigeration!$B$70,'Savings Summary'!$C$8:$C$50,0))*D73+ INDEX('Savings Summary'!$N$8:$N$50,MATCH(Refrigeration!$B$70,'Savings Summary'!$C$8:$C$50,0))*B73+ INDEX('Savings Summary'!$O$8:$O$50,MATCH(Refrigeration!$B$70,'Savings Summary'!$C$8:$C$50,0))*C73,0),2) -> 0
A74: HIDE | B74: =ROUND(IFERROR(INDEX('Lookup tables'!G$228:L$230,MATCH(Refrigeration!G74,Vending,0),MATCH(State&SelectedZone,'Lookup tables'!G$227:L$227,0))*F74,0),3) -> 0 | C74: =ROUND(IFERROR(INDEX('Lookup tables'!F$228:F$230,MATCH(Refrigeration!G74,Vending,0))*F74,0),3) -> 0 | D74: =ROUND(IFERROR(INDEX('Lookup tables'!E$228:E$230,MATCH(Refrigeration!G74,Vending,0))*F74,0),0) -> 0 | E74: =ROUND(IFERROR(INDEX('Savings Summary'!$P$8:$P$50,MATCH(Refrigeration!$B$70,'Savings Summary'!$C$8:$C$50,0))*D74+ INDEX('Savings Summary'!$N$8:$N$50,MATCH(Refrigeration!$B$70,'Savings Summary'!$C$8:$C$50,0))*B74+ INDEX('Savings Summary'!$O$8:$O$50,MATCH(Refrigeration!$B$70,'Savings Summary'!$C$8:$C$50,0))*C74,0),2) -> 0
A75: HIDE | B75: =SUM(B72:B74) -> 0 | C75: =SUM(C72:C74) -> 0 | D75: =SUM(D72:D74) -> 0 | E75: =SUM(E72:E74) -> 0
B76: High Speed Doors for Cold Storage
A77: HIDE | B77: Peak kW | C77: NC kW | D77: kWh | E77: Uncapped Incentive | F77: Number of Doors | G77: Door Width (ft) | H77: Door Height (ft) | I77: Cold Room Temperature (choose closest option) | J77: Is the other side of the door conditioned space? | L77: COP | M77: EnergyFactor | N77: Demand Factor
A78: HIDE | B78: =ROUND(IF(COUNTA(F78:J78)=5,IFERROR(G78*H78^1.5*N78/(L78*3412)*F78,0),0),3) -> 0 | C78: =B78 -> 0 | D78: =ROUND(IF(COUNTA(F78:J78)=5,IFERROR(G78*H78^1.5*M78/(L78*3412)*F78,0),0),0) -> 0 | E78: =ROUND(IFERROR(INDEX('Savings Summary'!$P$8:$P$50,MATCH(Refrigeration!$B$76,'Savings Summary'!$C$8:$C$50,0))*D78+ INDEX('Savings Summary'!$N$8:$N$50,MATCH(Refrigeration!$B$76,'Savings Summary'!$C$8:$C$50,0))*B78+ INDEX('Savings Summary'!$O$8:$O$50,MATCH(Refrigeration!$B$76,'Savings Summary'!$C$8:$C$50,0))*C78,0),2) -> 0 | L78: =2.8 -> 2.8 | M78: =INDEX('Lookup tables'!$F$106:$I$112,IF(Refrigeration!$J78="Yes",1,MATCH(State&SelectedZone,'Lookup tables'!$E$106:$E$112,0)),MATCH(Refrigeration!$I78,HighSpeedDoorColdRoomTemp,0)) ->  | N78: =INDEX('Lookup tables'!$F$116:$I$122,IF(Refrigeration!$J78="Yes",1,MATCH(State&SelectedZone,'Lookup tables'!$E$106:$E$112,0)),MATCH(Refrigeration!$I78,HighSpeedDoorColdRoomTemp,0)) -> 
A79: HIDE | B79: =ROUND(IF(COUNTA(F79:J79)=5,IFERROR(G79*H79^1.5*N79/(L79*3412)*F79,0),0),3) -> 0 | C79: =B79 -> 0 | D79: =ROUND(IF(COUNTA(F79:J79)=5,IFERROR(G79*H79^1.5*M79/(L79*3412)*F79,0),0),0) -> 0 | E79: =ROUND(IFERROR(INDEX('Savings Summary'!$P$8:$P$50,MATCH(Refrigeration!$B$76,'Savings Summary'!$C$8:$C$50,0))*D79+ INDEX('Savings Summary'!$N$8:$N$50,MATCH(Refrigeration!$B$76,'Savings Summary'!$C$8:$C$50,0))*B79+ INDEX('Savings Summary'!$O$8:$O$50,MATCH(Refrigeration!$B$76,'Savings Summary'!$C$8:$C$50,0))*C79,0),2) -> 0 | L79: =2.8 -> 2.8 | M79: =INDEX('Lookup tables'!$F$106:$I$112,IF(Refrigeration!$J79="Yes",1,MATCH(State&SelectedZone,'Lookup tables'!$E$106:$E$112,0)),MATCH(Refrigeration!$I79,HighSpeedDoorColdRoomTemp,0)) ->  | N79: =INDEX('Lookup tables'!$F$116:$I$122,IF(Refrigeration!$J79="Yes",1,MATCH(State&SelectedZone,'Lookup tables'!$E$106:$E$112,0)),MATCH(Refrigeration!$I79,HighSpeedDoorColdRoomTemp,0)) -> 
A80: HIDE | B80: 0 | C80: 0 | D80: 0 | E80: =ROUND(IFERROR(INDEX('Savings Summary'!$P$8:$P$50,MATCH(Refrigeration!$B$76,'Savings Summary'!$C$8:$C$50,0))*D80+ INDEX('Savings Summary'!$N$8:$N$50,MATCH(Refrigeration!$B$76,'Savings Summary'!$C$8:$C$50,0))*B80+ INDEX('Savings Summary'!$O$8:$O$50,MATCH(Refrigeration!$B$76,'Savings Summary'!$C$8:$C$50,0))*C80,0),2) -> 0 | L80: 2.8 | M80: =INDEX('Lookup tables'!$F$106:$I$112,IF(Refrigeration!$J80="Yes",1,MATCH(State&SelectedZone,'Lookup tables'!$E$106:$E$112,0)),MATCH(Refrigeration!$I80,HighSpeedDoorColdRoomTemp,0)) ->  | N80: =INDEX('Lookup tables'!$F$116:$I$122,IF(Refrigeration!$J80="Yes",1,MATCH(State&SelectedZone,'Lookup tables'!$E$106:$E$112,0)),MATCH(Refrigeration!$I80,HighSpeedDoorColdRoomTemp,0)) -> 
A81: HIDE | B81: =SUM(B78:B80) -> 0 | C81: =SUM(C78:C80) -> 0 | D81: =SUM(D78:D80) -> 0 | E81: =SUM(E78:E80) -> 0

Sheet Food Service & DHW
B1: Commercial Food Service & Domestic Hot Water Measures | N1: HIDE | O1: HIDE | P1: HIDE | Q1: HIDE | R1: HIDE | S1: HIDE | T1: HIDE | U1: HIDE | V1: HIDE | W1: HIDE | X1: HIDE
B2: Click on headings to expand or collapse sections. Blue Peak kW values indicate winter peak.
B3: ENERGY STAR Electric Convection Oven
A4: HIDE | B4: Peak kW | C4: NC kW | D4: kWh | E4: Uncapped Incentive | F4: Number of Ovens | G4: Model # | H4: Oven Size
A5: HIDE | B5: =ROUND(IFERROR(VLOOKUP(H5,'Lookup tables'!$D$126:$H$128,3,FALSE)*F5,0),3) -> 0 | C5: =ROUND(IFERROR(VLOOKUP(H5,'Lookup tables'!$D$126:$H$128,4,FALSE)*F5,0),3) -> 0 | D5: =ROUND(IFERROR(VLOOKUP(H5,'Lookup tables'!$D$126:$H$128,2,FALSE)*F5,0),0) -> 0 | E5: =ROUND(IFERROR(INDEX('Savings Summary'!$P$8:$P$50,MATCH($B$3,'Savings Summary'!$C$8:$C$50,0))*D5+ INDEX('Savings Summary'!$N$8:$N$50,MATCH($B$3,'Savings Summary'!$C$8:$C$50,0))*B5+ INDEX('Savings Summary'!$O$8:$O$50,MATCH($B$3,'Savings Summary'!$C$8:$C$50,0))*C5,0),2) -> 0
A6: HIDE | B6: =ROUND(IFERROR(VLOOKUP(H6,'Lookup tables'!$D$126:$H$128,3,FALSE)*F6,0),3) -> 0 | C6: =ROUND(IFERROR(VLOOKUP(H6,'Lookup tables'!$D$126:$H$128,4,FALSE)*F6,0),3) -> 0 | D6: =ROUND(IFERROR(VLOOKUP(H6,'Lookup tables'!$D$126:$H$128,2,FALSE)*F6,0),0) -> 0 | E6: =ROUND(IFERROR(INDEX('Savings Summary'!$P$8:$P$50,MATCH($B$3,'Savings Summary'!$C$8:$C$50,0))*D6+ INDEX('Savings Summary'!$N$8:$N$50,MATCH($B$3,'Savings Summary'!$C$8:$C$50,0))*B6+ INDEX('Savings Summary'!$O$8:$O$50,MATCH($B$3,'Savings Summary'!$C$8:$C$50,0))*C6,0),2) -> 0
A7: HIDE | B7: =ROUND(IFERROR(VLOOKUP(H7,'Lookup tables'!$D$126:$H$128,3,FALSE)*F7,0),3) -> 0 | C7: =ROUND(IFERROR(VLOOKUP(H7,'Lookup tables'!$D$126:$H$128,4,FALSE)*F7,0),3) -> 0 | D7: =ROUND(IFERROR(VLOOKUP(H7,'Lookup tables'!$D$126:$H$128,2,FALSE)*F7,0),0) -> 0 | E7: =ROUND(IFERROR(INDEX('Savings Summary'!$P$8:$P$50,MATCH($B$3,'Savings Summary'!$C$8:$C$50,0))*D7+ INDEX('Savings Summary'!$N$8:$N$50,MATCH($B$3,'Savings Summary'!$C$8:$C$50,0))*B7+ INDEX('Savings Summary'!$O$8:$O$50,MATCH($B$3,'Savings Summary'!$C$8:$C$50,0))*C7,0),2) -> 0
A8: HIDE | B8: =SUM(B5:B7) -> 0 | C8: =SUM(C5:C7) -> 0 | D8: =SUM(D5:D7) -> 0 | E8: =SUM(E5:E7) -> 0
B9: ENERGY STAR Combination Oven
A10: HIDE | B10: Peak kW | C10: NC kW | D10: kWh | E10: Uncapped Incentive | F10: Number of Ovens | G10: Model # | H10: Pan Capacity
A11: HIDE | B11: =ROUND(IFERROR(F11*INDEX('Lookup tables'!F$132:F$169,MATCH('Food Service & DHW'!H11,CombinationOvenPanCapacity,0)),0),3) -> 0 | C11: =ROUND(IFERROR(F11*INDEX('Lookup tables'!G$132:G$169,MATCH('Food Service & DHW'!H11,CombinationOvenPanCapacity,0)),0),3) -> 0 | D11: =ROUND(IFERROR(F11*INDEX('Lookup tables'!E$132:E$169,MATCH('Food Service & DHW'!H11,CombinationOvenPanCapacity,0)),0),0) -> 0 | E11: =ROUND(IFERROR(INDEX('Savings Summary'!$P$8:$P$50,MATCH($B$9,'Savings Summary'!$C$8:$C$50,0))*D11+ INDEX('Savings Summary'!$N$8:$N$50,MATCH($B$9,'Savings Summary'!$C$8:$C$50,0))*B11+ INDEX('Savings Summary'!$O$8:$O$50,MATCH($B$9,'Savings Summary'!$C$8:$C$50,0))*C11,0),2) -> 0
A12: HIDE | B12: =ROUND(IFERROR(F12*INDEX('Lookup tables'!F$132:F$169,MATCH('Food Service & DHW'!H12,CombinationOvenPanCapacity,0)),0),3) -> 0 | C12: =ROUND(IFERROR(F12*INDEX('Lookup tables'!G$132:G$169,MATCH('Food Service & DHW'!H12,CombinationOvenPanCapacity,0)),0),3) -> 0 | D12: =ROUND(IFERROR(F12*INDEX('Lookup tables'!E$132:E$169,MATCH('Food Service & DHW'!H12,CombinationOvenPanCapacity,0)),0),0) -> 0 | E12: =ROUND(IFERROR(INDEX('Savings Summary'!$P$8:$P$50,MATCH($B$9,'Savings Summary'!$C$8:$C$50,0))*D12+ INDEX('Savings Summary'!$N$8:$N$50,MATCH($B$9,'Savings Summary'!$C$8:$C$50,0))*B12+ INDEX('Savings Summary'!$O$8:$O$50,MATCH($B$9,'Savings Summary'!$C$8:$C$50,0))*C12,0),2) -> 0
A13: HIDE | B13: =ROUND(IFERROR(F13*INDEX('Lookup tables'!F$132:F$169,MATCH('Food Service & DHW'!H13,CombinationOvenPanCapacity,0)),0),3) -> 0 | C13: =ROUND(IFERROR(F13*INDEX('Lookup tables'!G$132:G$169,MATCH('Food Service & DHW'!H13,CombinationOvenPanCapacity,0)),0),3) -> 0 | D13: =ROUND(IFERROR(F13*INDEX('Lookup tables'!E$132:E$169,MATCH('Food Service & DHW'!H13,CombinationOvenPanCapacity,0)),0),0) -> 0 | E13: =ROUND(IFERROR(INDEX('Savings Summary'!$P$8:$P$50,MATCH($B$9,'Savings Summary'!$C$8:$C$50,0))*D13+ INDEX('Savings Summary'!$N$8:$N$50,MATCH($B$9,'Savings Summary'!$C$8:$C$50,0))*B13+ INDEX('Savings Summary'!$O$8:$O$50,MATCH($B$9,'Savings Summary'!$C$8:$C$50,0))*C13,0),2) -> 0
A14: HIDE | B14: =SUM(B11:B13) -> 0 | C14: =SUM(C11:C13) -> 0 | D14: =SUM(D11:D13) -> 0 | E14: =SUM(E11:E13) -> 0
B15: ENERGY STAR Commercial Dishwashers | K15: Click for dishwasher type descriptions
A16: HIDE | B16: Peak kW | C16: NC kW | D16: kWh | E16: Uncapped Incentive | F16: Number of Dishwashers | G16: Model # | H16: Dishwasher Type | I16: Dishwasher Temperature/Supply | O16: Measure Life
A17: HIDE | B17: =ROUND(IFERROR($F17*INDEX('Lookup tables'!$E$176:$S$179,MATCH('Food Service & DHW'!$I17,'Lookup tables'!$D$176:$D$179,0),MATCH('Food Service & DHW'!$H17&'Food Service & DHW'!B$16,'Lookup tables'!$E$175:$S$175,0)),0),3) -> 0 | C17: =ROUND(IFERROR($F17*INDEX('Lookup tables'!$E$176:$S$179,MATCH('Food Service & DHW'!$I17,'Lookup tables'!$D$176:$D$179,0),MATCH('Food Service & DHW'!$H17&'Food Service & DHW'!C$16,'Lookup tables'!$E$175:$S$175,0)),0),3) -> 0 | D17: =ROUND(IFERROR($F17*INDEX('Lookup tables'!$E$176:$R$179,MATCH('Food Service & DHW'!$I17,'Lookup tables'!$D$176:$D$179,0),MATCH('Food Service & DHW'!$H17&'Food Service & DHW'!D$16,'Lookup tables'!$E$175:$S$175,0)),0),0) -> 0 | E17: =ROUND(IFERROR(INDEX('Savings Summary'!$P$8:$P$50,MATCH($B$15,'Savings Summary'!$C$8:$C$50,0))*D17+ INDEX('Savings Summary'!$N$8:$N$50,MATCH($B$15,'Savings Summary'!$C$8:$C$50,0))*B17+ INDEX('Savings Summary'!$O$8:$O$50,MATCH($B$15,'Savings Summary'!$C$8:$C$50,0))*C17,0),2) -> 0 | O17: =IFERROR(INDEX('Lookup tables'!$V$174:$V$178,MATCH('Food Service & DHW'!H17,'Lookup tables'!$U$174:$U$178,0)),0) -> 0
A18: HIDE | B18: =ROUND(IFERROR($F18*INDEX('Lookup tables'!$E$176:$S$179,MATCH('Food Service & DHW'!$I18,'Lookup tables'!$D$176:$D$179,0),MATCH('Food Service & DHW'!$H18&'Food Service & DHW'!B$16,'Lookup tables'!$E$175:$S$175,0)),0),3) -> 0 | C18: =ROUND(IFERROR($F18*INDEX('Lookup tables'!$E$176:$S$179,MATCH('Food Service & DHW'!$I18,'Lookup tables'!$D$176:$D$179,0),MATCH('Food Service & DHW'!$H18&'Food Service & DHW'!C$16,'Lookup tables'!$E$175:$S$175,0)),0),3) -> 0 | D18: =ROUND(IFERROR($F18*INDEX('Lookup tables'!$E$176:$R$179,MATCH('Food Service & DHW'!$I18,'Lookup tables'!$D$176:$D$179,0),MATCH('Food Service & DHW'!$H18&'Food Service & DHW'!D$16,'Lookup tables'!$E$175:$S$175,0)),0),0) -> 0 | E18: =ROUND(IFERROR(INDEX('Savings Summary'!$P$8:$P$50,MATCH($B$15,'Savings Summary'!$C$8:$C$50,0))*D18+ INDEX('Savings Summary'!$N$8:$N$50,MATCH($B$15,'Savings Summary'!$C$8:$C$50,0))*B18+ INDEX('Savings Summary'!$O$8:$O$50,MATCH($B$15,'Savings Summary'!$C$8:$C$50,0))*C18,0),2) -> 0 | O18: =IFERROR(INDEX('Lookup tables'!$V$174:$V$178,MATCH('Food Service & DHW'!H18,'Lookup tables'!$U$174:$U$178,0)),0) -> 0
A19: HIDE | B19: =ROUND(IFERROR($F19*INDEX('Lookup tables'!$E$176:$S$179,MATCH('Food Service & DHW'!$I19,'Lookup tables'!$D$176:$D$179,0),MATCH('Food Service & DHW'!$H19&'Food Service & DHW'!B$16,'Lookup tables'!$E$175:$S$175,0)),0),3) -> 0 | C19: =ROUND(IFERROR($F19*INDEX('Lookup tables'!$E$176:$S$179,MATCH('Food Service & DHW'!$I19,'Lookup tables'!$D$176:$D$179,0),MATCH('Food Service & DHW'!$H19&'Food Service & DHW'!C$16,'Lookup tables'!$E$175:$S$175,0)),0),3) -> 0 | D19: =ROUND(IFERROR($F19*INDEX('Lookup tables'!$E$176:$R$179,MATCH('Food Service & DHW'!$I19,'Lookup tables'!$D$176:$D$179,0),MATCH('Food Service & DHW'!$H19&'Food Service & DHW'!D$16,'Lookup tables'!$E$175:$S$175,0)),0),0) -> 0 | E19: =ROUND(IFERROR(INDEX('Savings Summary'!$P$8:$P$50,MATCH($B$15,'Savings Summary'!$C$8:$C$50,0))*D19+ INDEX('Savings Summary'!$N$8:$N$50,MATCH($B$15,'Savings Summary'!$C$8:$C$50,0))*B19+ INDEX('Savings Summary'!$O$8:$O$50,MATCH($B$15,'Savings Summary'!$C$8:$C$50,0))*C19,0),2) -> 0 | O19: =IFERROR(INDEX('Lookup tables'!$V$174:$V$178,MATCH('Food Service & DHW'!H19,'Lookup tables'!$U$174:$U$178,0)),0) -> 0
A20: HIDE | B20: =SUM(B17:B19) -> 0 | C20: =SUM(C17:C19) -> 0 | D20: =SUM(D17:D19) -> 0 | E20: =SUM(E17:E19) -> 0 | N20: Weighted Average: | O20: =ROUND(IFERROR(SUMPRODUCT(O17:O19,D17:D19)/SUM(D17:D19),10),1) -> 10
B21: ENERGY STAR Electric Steam Cookers
A22: HIDE | B22: Peak kW | C22: NC kW | D22: kWh | E22: Uncapped Incentive | F22: Number of Cookers | G22: Model # | H22: Number of Pans per Cooker | I22: Steam Cooker Type
A23: HIDE | B23: =ROUND(IFERROR(INDEX('Lookup tables'!E197:G212,MATCH(TRM&I23&H23,'Lookup tables'!D197:D212,0),MATCH($B$22,'Lookup tables'!$E$196:$G$196,0))*F23,0),3) -> 0 | C23: =ROUND(IFERROR(INDEX('Lookup tables'!E197:G212,MATCH(TRM&I23&H23,'Lookup tables'!D197:D212,0),MATCH($C$22,'Lookup tables'!$E$196:$G$196,0))*F23,0),3) -> 0 | D23: =ROUND(IFERROR(INDEX('Lookup tables'!E197:G212,MATCH(TRM&I23&H23,'Lookup tables'!D197:D212,0),MATCH($D$22,'Lookup tables'!$E$196:$G$196,0))*F23,0),2) -> 0 | E23: =ROUND(IFERROR(INDEX('Savings Summary'!$P$8:$P$50,MATCH($B$21,'Savings Summary'!$C$8:$C$50,0))*D23+ INDEX('Savings Summary'!$N$8:$N$50,MATCH($B$21,'Savings Summary'!$C$8:$C$50,0))*B23+ INDEX('Savings Summary'!$O$8:$O$50,MATCH($B$21,'Savings Summary'!$C$8:$C$50,0))*C23,0),2) -> 0
A24: HIDE | B24: =ROUND(IFERROR(INDEX('Lookup tables'!E198:G213,MATCH(TRM&I24&H24,'Lookup tables'!D198:D213,0),MATCH($B$22,'Lookup tables'!$E$196:$G$196,0))*F24,0),3) -> 0 | C24: =ROUND(IFERROR(INDEX('Lookup tables'!E198:G213,MATCH(TRM&I24&H24,'Lookup tables'!D198:D213,0),MATCH($C$22,'Lookup tables'!$E$196:$G$196,0))*F24,0),3) -> 0 | D24: =ROUND(IFERROR(INDEX('Lookup tables'!E198:G213,MATCH(TRM&I24&H24,'Lookup tables'!D198:D213,0),MATCH($D$22,'Lookup tables'!$E$196:$G$196,0))*F24,0),2) -> 0 | E24: =ROUND(IFERROR(INDEX('Savings Summary'!$P$8:$P$50,MATCH($B$21,'Savings Summary'!$C$8:$C$50,0))*D24+ INDEX('Savings Summary'!$N$8:$N$50,MATCH($B$21,'Savings Summary'!$C$8:$C$50,0))*B24+ INDEX('Savings Summary'!$O$8:$O$50,MATCH($B$21,'Savings Summary'!$C$8:$C$50,0))*C24,0),2) -> 0
A25: HIDE | B25: =ROUND(IFERROR(INDEX('Lookup tables'!E199:G214,MATCH(TRM&I25&H25,'Lookup tables'!D199:D214,0),MATCH($B$22,'Lookup tables'!$E$196:$G$196,0))*F25,0),3) -> 0 | C25: =ROUND(IFERROR(INDEX('Lookup tables'!E199:G214,MATCH(TRM&I25&H25,'Lookup tables'!D199:D214,0),MATCH($C$22,'Lookup tables'!$E$196:$G$196,0))*F25,0),3) -> 0 | D25: =ROUND(IFERROR(INDEX('Lookup tables'!E199:G214,MATCH(TRM&I25&H25,'Lookup tables'!D199:D214,0),MATCH($D$22,'Lookup tables'!$E$196:$G$196,0))*F25,0),2) -> 0 | E25: =ROUND(IFERROR(INDEX('Savings Summary'!$P$8:$P$50,MATCH($B$21,'Savings Summary'!$C$8:$C$50,0))*D25+ INDEX('Savings Summary'!$N$8:$N$50,MATCH($B$21,'Savings Summary'!$C$8:$C$50,0))*B25+ INDEX('Savings Summary'!$O$8:$O$50,MATCH($B$21,'Savings Summary'!$C$8:$C$50,0))*C25,0),2) -> 0
A26: HIDE | B26: =SUM(B23:B25) -> 0 | C26: =SUM(C23:C25) -> 0 | D26: =SUM(D23:D25) -> 0 | E26: =SUM(E23:E25) -> 0
B27: ENERGY STAR Electric Fryers
A28: HIDE | B28: Peak kW | C28: NC kW | D28: kWh | E28: Uncapped Incentive | F28: Number of Fryers | G28: Model # | H28: Fryer Type
A29: HIDE | B29: =ROUND(IFERROR(INDEX('Lookup tables'!$E$222:$G$223,MATCH($H29,'Lookup tables'!$D$222:$D$223,0),2),0)*$F29,3) -> 0 | C29: =ROUND(IFERROR(INDEX('Lookup tables'!$E$222:$G$223,MATCH($H29,'Lookup tables'!$D$222:$D$223,0),3),0)*$F29,3) -> 0 | D29: =ROUND(IFERROR(INDEX('Lookup tables'!$E$222:$G$223,MATCH($H29,'Lookup tables'!$D$222:$D$223,0),1)*F29,0),2) -> 0 | E29: =ROUND(IFERROR(INDEX('Savings Summary'!$P$8:$P$50,MATCH($B$27,'Savings Summary'!$C$8:$C$50,0))*D29+ INDEX('Savings Summary'!$N$8:$N$50,MATCH($B$27,'Savings Summary'!$C$8:$C$50,0))*B29+ INDEX('Savings Summary'!$O$8:$O$50,MATCH($B$27,'Savings Summary'!$C$8:$C$50,0))*C29,0),2) -> 0
A30: HIDE | B30: =ROUND(IFERROR(INDEX('Lookup tables'!$E$222:$G$223,MATCH($H30,'Lookup tables'!$D$222:$D$223,0),2),0)*$F30,3) -> 0 | C30: =ROUND(IFERROR(INDEX('Lookup tables'!$E$222:$G$223,MATCH($H30,'Lookup tables'!$D$222:$D$223,0),3),0)*$F30,3) -> 0 | D30: =ROUND(IFERROR(INDEX('Lookup tables'!$E$222:$G$223,MATCH($H30,'Lookup tables'!$D$222:$D$223,0),1)*F30,0),2) -> 0 | E30: =ROUND(IFERROR(INDEX('Savings Summary'!$P$8:$P$50,MATCH($B$27,'Savings Summary'!$C$8:$C$50,0))*D30+ INDEX('Savings Summary'!$N$8:$N$50,MATCH($B$27,'Savings Summary'!$C$8:$C$50,0))*B30+ INDEX('Savings Summary'!$O$8:$O$50,MATCH($B$27,'Savings Summary'!$C$8:$C$50,0))*C30,0),2) -> 0
A31: HIDE | B31: =ROUND(IFERROR(INDEX('Lookup tables'!$E$222:$G$223,MATCH($H31,'Lookup tables'!$D$222:$D$223,0),2),0)*$F31,3) -> 0 | C31: =ROUND(IFERROR(INDEX('Lookup tables'!$E$222:$G$223,MATCH($H31,'Lookup tables'!$D$222:$D$223,0),3),0)*$F31,3) -> 0 | D31: =ROUND(IFERROR(INDEX('Lookup tables'!$E$222:$G$223,MATCH($H31,'Lookup tables'!$D$222:$D$223,0),1)*F31,0),2) -> 0 | E31: =ROUND(IFERROR(INDEX('Savings Summary'!$P$8:$P$50,MATCH($B$27,'Savings Summary'!$C$8:$C$50,0))*D31+ INDEX('Savings Summary'!$N$8:$N$50,MATCH($B$27,'Savings Summary'!$C$8:$C$50,0))*B31+ INDEX('Savings Summary'!$O$8:$O$50,MATCH($B$27,'Savings Summary'!$C$8:$C$50,0))*C31,0),2) -> 0
A32: HIDE | B32: =SUM(B29:B31) -> 0 | C32: =SUM(C29:C31) -> 0 | D32: =SUM(D29:D31) -> 0 | E32: =SUM(E29:E31) -> 0
B33: ENERGY STAR Electric Hot Food Holding Cabinets
A34: HIDE | B34: Peak kW | C34: NC kW | D34: kWh | E34: Uncapped Incentive | F34: Number of Cabinets | G34: Model # | H34: Cabinet Volume (ft3)
A35: HIDE | B35: =ROUND(IFERROR(INDEX('Lookup tables'!$E$216:$G$218,MATCH($H35,'Lookup tables'!$D$216:$D$218,0),2),0)*$F35,3) -> 0 | C35: =ROUND(IFERROR(INDEX('Lookup tables'!$E$216:$G$218,MATCH($H35,'Lookup tables'!$D$216:$D$218,0),3),0)*$F35,3) -> 0 | D35: =ROUND(IFERROR(INDEX('Lookup tables'!$E$216:$G$218,MATCH($H35,'Lookup tables'!$D$216:$D$218,0),1)*F35,0),0) -> 0 | E35: =ROUND(IFERROR(INDEX('Savings Summary'!$P$8:$P$50,MATCH($B$33,'Savings Summary'!$C$8:$C$50,0))*D35+ INDEX('Savings Summary'!$N$8:$N$50,MATCH($B$33,'Savings Summary'!$C$8:$C$50,0))*B35+ INDEX('Savings Summary'!$O$8:$O$50,MATCH($B$33,'Savings Summary'!$C$8:$C$50,0))*C35,0),2) -> 0
A36: HIDE | B36: =ROUND(IFERROR(INDEX('Lookup tables'!$E$216:$G$218,MATCH($H36,'Lookup tables'!$D$216:$D$218,0),2),0)*$F36,3) -> 0 | C36: =ROUND(IFERROR(INDEX('Lookup tables'!$E$216:$G$218,MATCH($H36,'Lookup tables'!$D$216:$D$218,0),3),0)*$F36,3) -> 0 | D36: =ROUND(IFERROR(INDEX('Lookup tables'!$E$216:$G$218,MATCH($H36,'Lookup tables'!$D$216:$D$218,0),1)*F36,0),0) -> 0 | E36: =ROUND(IFERROR(INDEX('Savings Summary'!$P$8:$P$50,MATCH($B$33,'Savings Summary'!$C$8:$C$50,0))*D36+ INDEX('Savings Summary'!$N$8:$N$50,MATCH($B$33,'Savings Summary'!$C$8:$C$50,0))*B36+ INDEX('Savings Summary'!$O$8:$O$50,MATCH($B$33,'Savings Summary'!$C$8:$C$50,0))*C36,0),2) -> 0
A37: HIDE | B37: =ROUND(IFERROR(INDEX('Lookup tables'!$E$216:$G$218,MATCH($H37,'Lookup tables'!$D$216:$D$218,0),2),0)*$F37,3) -> 0 | C37: =ROUND(IFERROR(INDEX('Lookup tables'!$E$216:$G$218,MATCH($H37,'Lookup tables'!$D$216:$D$218,0),3),0)*$F37,3) -> 0 | D37: =ROUND(IFERROR(INDEX('Lookup tables'!$E$216:$G$218,MATCH($H37,'Lookup tables'!$D$216:$D$218,0),1)*F37,0),0) -> 0 | E37: =ROUND(IFERROR(INDEX('Savings Summary'!$P$8:$P$50,MATCH($B$33,'Savings Summary'!$C$8:$C$50,0))*D37+ INDEX('Savings Summary'!$N$8:$N$50,MATCH($B$33,'Savings Summary'!$C$8:$C$50,0))*B37+ INDEX('Savings Summary'!$O$8:$O$50,MATCH($B$33,'Savings Summary'!$C$8:$C$50,0))*C37,0),2) -> 0
A38: HIDE | B38: =SUM(B35:B37) -> 0 | C38: =SUM(C35:C37) -> 0 | D38: =SUM(D35:D37) -> 0 | E38: =SUM(E35:E37) -> 0
B39: Low Flow Pre-Rinse Spray Valve
A40: HIDE | B40: Peak kW | C40: NC kW | D40: kWh | E40: Uncapped Incentive | F40: Quantity (#) | G40: Building Type | H40: Product Class | I40: Installed Flow Rate (GPM) | J40: Max Flow Rate (GPM) | N40: U | O40: (TH-TC) | P40: Days | Q40: CH | R40: (CE/EffE) | S40: PLS
A41: HIDE | B41: =ROUND(IF(I41="",0,D41*S41/1000000),3) -> 0 | C41: =B41 -> 0 | D41: =ROUND(IF(I41="",0,$F41*IFERROR((J41-I41)*N41*P41*O41*Q41*R41,0)),0) -> 0 | E41: =ROUND(IFERROR(INDEX('Savings Summary'!$P$8:$P$50,MATCH($B$39,'Savings Summary'!$C$8:$C$50,0))*D41+ INDEX('Savings Summary'!$N$8:$N$50,MATCH($B$39,'Savings Summary'!$C$8:$C$50,0))*B41+ INDEX('Savings Summary'!$O$8:$O$50,MATCH($B$39,'Savings Summary'!$C$8:$C$50,0))*C41,0),2) -> 0 | J41: =IFERROR(INDEX('Lookup tables'!O$235:O$237,MATCH('Food Service & DHW'!H41,SprayValveProductClass,0)),"-") -> - | L41: 1 | M41: 1 | N41: =INDEX('Lookup tables'!E$235:G$239,MATCH('Food Service & DHW'!G41,SprayValveBldg,0),1) ->  | O41: =140.5-71.4 -> 69.1 | P41: =INDEX('Lookup tables'!E$235:G$239,MATCH('Food Service & DHW'!G41,SprayValveBldg,0),2) ->  | Q41: =8.33 -> 8.33 | R41: =0.00029308/1 -> 0.00029308 | S41: =INDEX('Lookup tables'!$G$235:$L$239,MATCH('Food Service & DHW'!G41,SprayValveBldg,0),MATCH(State&SelectedZone,'Lookup tables'!$G$234:$L$234,0)) -> 
A42: HIDE | B42: =ROUND(IF(I42="",0,D42*S42/1000000),3) -> 0 | C42: =B42 -> 0 | D42: =ROUND(IF(I42="",0,$F42*IFERROR((J42-I42)*N42*P42*O42*Q42*R42,0)),0) -> 0 | E42: =ROUND(IFERROR(INDEX('Savings Summary'!$P$8:$P$50,MATCH($B$39,'Savings Summary'!$C$8:$C$50,0))*D42+ INDEX('Savings Summary'!$N$8:$N$50,MATCH($B$39,'Savings Summary'!$C$8:$C$50,0))*B42+ INDEX('Savings Summary'!$O$8:$O$50,MATCH($B$39,'Savings Summary'!$C$8:$C$50,0))*C42,0),2) -> 0 | J42: =IFERROR(INDEX('Lookup tables'!O$235:O$237,MATCH('Food Service & DHW'!H42,SprayValveProductClass,0)),"-") -> - | N42: =INDEX('Lookup tables'!E$235:G$239,MATCH('Food Service & DHW'!G42,SprayValveBldg,0),1) ->  | O42: =140.5-71.4 -> 69.1 | P42: =INDEX('Lookup tables'!E$235:G$239,MATCH('Food Service & DHW'!G42,SprayValveBldg,0),2) ->  | Q42: =8.33 -> 8.33 | R42: =0.00029308/1 -> 0.00029308 | S42: =INDEX('Lookup tables'!$G$235:$L$239,MATCH('Food Service & DHW'!G42,SprayValveBldg,0),MATCH(State&SelectedZone,'Lookup tables'!$G$234:$L$234,0)) -> 
A43: HIDE | B43: 0 | C43: 0 | D43: 0 | E43: =ROUND(IFERROR(INDEX('Savings Summary'!$P$8:$P$50,MATCH($B$39,'Savings Summary'!$C$8:$C$50,0))*D43+ INDEX('Savings Summary'!$N$8:$N$50,MATCH($B$39,'Savings Summary'!$C$8:$C$50,0))*B43+ INDEX('Savings Summary'!$O$8:$O$50,MATCH($B$39,'Savings Summary'!$C$8:$C$50,0))*C43,0),2) -> 0 | J43: =IFERROR(INDEX('Lookup tables'!O$235:O$237,MATCH('Food Service & DHW'!H43,SprayValveProductClass,0)),"-") -> - | N43: =INDEX('Lookup tables'!E$235:G$239,MATCH('Food Service & DHW'!G43,SprayValveBldg,0),1) ->  | O43: 69.1 | P43: =INDEX('Lookup tables'!E$235:G$239,MATCH('Food Service & DHW'!G43,SprayValveBldg,0),2) ->  | Q43: =8.33 -> 8.33 | R43: 0.00029308 | S43: =INDEX('Lookup tables'!$G$235:$L$239,MATCH('Food Service & DHW'!G43,SprayValveBldg,0),MATCH(State&SelectedZone,'Lookup tables'!$G$234:$L$234,0)) -> 
A44: HIDE | B44: =SUM(B41:B43) -> 0 | C44: =SUM(C41:C43) -> 0 | D44: =SUM(D41:D43) -> 0 | E44: =SUM(E41:E43) -> 0 | F44: Eligibility Criteria: | G44: ·Must be electric water heating
B45: Demand Controlled Kitchen Ventilation
A46: HIDE | B46: Peak kW | C46: NCP kW | D46: kWh | E46: Uncapped Incentive | F46: Quantity (#) | G46: Building Type | H46: Exhaust Fan HP | I46: Dedicated Make-Up Air Unit (MAU)? | N46: kWh/HP savings | O46: Wntr kW/HP savings | P46: Wntr kW | Q46: Sumr kW/HP | R46: Sumr kW | S46: Summer Peak?
A47: HIDE | B47: =ROUND(IFERROR(IF(S47,R47,P47),0),3) -> 0 | C47: =B47 -> 0 | D47: =ROUND(IFERROR(F47*H47*N47,0),0) -> 0 | E47: =ROUND(IFERROR(INDEX('Savings Summary'!$P$8:$P$50,MATCH($B$45,'Savings Summary'!$C$8:$C$50,0))*D47+ INDEX('Savings Summary'!$N$8:$N$50,MATCH($B$45,'Savings Summary'!$C$8:$C$50,0))*B47+ INDEX('Savings Summary'!$O$8:$O$50,MATCH($B$45,'Savings Summary'!$C$8:$C$50,0))*C47,0),2) -> 0 | N47: =INDEX('Lookup tables'!$E$244:$J$267,MATCH(State&SelectedZone&$G47,'Lookup tables'!$D$244:$D$267,0),MATCH($I47,YesNo,0)) ->  | O47: =INDEX('Lookup tables'!$E$244:$J$267,MATCH(State&SelectedZone&$G47,'Lookup tables'!$D$244:$D$267,0),MATCH($I47,YesNo,0)+2) ->  | P47: =IFERROR(O47*F47*H47,0) -> 0 | Q47: =INDEX('Lookup tables'!$E$244:$J$267,MATCH(State&SelectedZone&$G47,'Lookup tables'!$D$244:$D$267,0),MATCH($I47,YesNo,0)+4) ->  | R47: =IFERROR(F47*H47*Q47,0) -> 0 | S47: =R47>=P47 -> TRUE
A48: HIDE | B48: =ROUND(IFERROR(IF(S48,R48,P48),0),3) -> 0 | C48: =B48 -> 0 | D48: =ROUND(IFERROR(F48*H48*N48,0),0) -> 0 | E48: =ROUND(IFERROR(INDEX('Savings Summary'!$P$8:$P$50,MATCH($B$45,'Savings Summary'!$C$8:$C$50,0))*D48+ INDEX('Savings Summary'!$N$8:$N$50,MATCH($B$45,'Savings Summary'!$C$8:$C$50,0))*B48+ INDEX('Savings Summary'!$O$8:$O$50,MATCH($B$45,'Savings Summary'!$C$8:$C$50,0))*C48,0),2) -> 0 | N48: =INDEX('Lookup tables'!$E$244:$J$267,MATCH(State&SelectedZone&$G48,'Lookup tables'!$D$244:$D$267,0),MATCH($I48,YesNo,0)) ->  | O48: =INDEX('Lookup tables'!$E$244:$J$267,MATCH(State&SelectedZone&$G48,'Lookup tables'!$D$244:$D$267,0),MATCH($I48,YesNo,0)+2) ->  | P48: =IFERROR(O48*F48*H48,0) -> 0 | Q48: =INDEX('Lookup tables'!$E$244:$J$267,MATCH(State&SelectedZone&$G48,'Lookup tables'!$D$244:$D$267,0),MATCH($I48,YesNo,0)+4) ->  | R48: =IFERROR(F48*H48*Q48,0) -> 0 | S48: =R48>=P48 -> TRUE
A49: HIDE | B49: 0 | C49: =B49 -> 0 | D49: 0 | E49: =ROUND(IFERROR(INDEX('Savings Summary'!$P$8:$P$50,MATCH($B$45,'Savings Summary'!$C$8:$C$50,0))*D49+ INDEX('Savings Summary'!$N$8:$N$50,MATCH($B$45,'Savings Summary'!$C$8:$C$50,0))*B49+ INDEX('Savings Summary'!$O$8:$O$50,MATCH($B$45,'Savings Summary'!$C$8:$C$50,0))*C49,0),2) -> 0 | N49: =INDEX('Lookup tables'!$E$244:$J$267,MATCH(State&SelectedZone&$G49,'Lookup tables'!$D$244:$D$267,0),MATCH($I49,YesNo,0)) ->  | O49: =INDEX('Lookup tables'!$E$244:$J$267,MATCH(State&SelectedZone&$G49,'Lookup tables'!$D$244:$D$267,0),MATCH($I49,YesNo,0)+2) ->  | P49: 0 | Q49: =INDEX('Lookup tables'!$E$244:$J$267,MATCH(State&SelectedZone&$G49,'Lookup tables'!$D$244:$D$267,0),MATCH($I49,YesNo,0)+4) ->  | R49: 0 | S49: TRUE
A50: HIDE | B50: 0 | C50: 0 | D50: 0 | E50: =ROUND(IFERROR(INDEX('Savings Summary'!$P$8:$P$50,MATCH($B$45,'Savings Summary'!$C$8:$C$50,0))*D50+ INDEX('Savings Summary'!$N$8:$N$50,MATCH($B$45,'Savings Summary'!$C$8:$C$50,0))*B50+ INDEX('Savings Summary'!$O$8:$O$50,MATCH($B$45,'Savings Summary'!$C$8:$C$50,0))*C50,0),2) -> 0 | N50: =INDEX('Lookup tables'!$E$244:$J$267,MATCH(State&SelectedZone&$G50,'Lookup tables'!$D$244:$D$267,0),MATCH($I50,YesNo,0)) ->  | O50: =INDEX('Lookup tables'!$E$244:$J$267,MATCH(State&SelectedZone&$G50,'Lookup tables'!$D$244:$D$267,0),MATCH($I50,YesNo,0)+2) ->  | P50: 0 | Q50: =INDEX('Lookup tables'!$E$244:$J$267,MATCH(State&SelectedZone&$G50,'Lookup tables'!$D$244:$D$267,0),MATCH($I50,YesNo,0)+4) ->  | R50: 0 | S50: TRUE
A51: HIDE | B51: 0 | C51: =B51 -> 0 | D51: 0 | E51: =ROUND(IFERROR(INDEX('Savings Summary'!$P$8:$P$50,MATCH($B$45,'Savings Summary'!$C$8:$C$50,0))*D51+ INDEX('Savings Summary'!$N$8:$N$50,MATCH($B$45,'Savings Summary'!$C$8:$C$50,0))*B51+ INDEX('Savings Summary'!$O$8:$O$50,MATCH($B$45,'Savings Summary'!$C$8:$C$50,0))*C51,0),2) -> 0 | N51: =INDEX('Lookup tables'!$E$244:$J$267,MATCH(State&SelectedZone&$G51,'Lookup tables'!$D$244:$D$267,0),MATCH($I51,YesNo,0)) ->  | O51: =INDEX('Lookup tables'!$E$244:$J$267,MATCH(State&SelectedZone&$G51,'Lookup tables'!$D$244:$D$267,0),MATCH($I51,YesNo,0)+2) ->  | P51: 0 | Q51: =INDEX('Lookup tables'!$E$244:$J$267,MATCH(State&SelectedZone&$G51,'Lookup tables'!$D$244:$D$267,0),MATCH($I51,YesNo,0)+4) ->  | R51: 0 | S51: TRUE
A52: HIDE | B52: =SUM(B47:B51) -> 0 | C52: =SUM(C47:C51) -> 0 | D52: 0 | E52: =SUM(E47:E51) -> 0 | P52: =SUM(P47:P51) -> 0 | R52: =SUM(R47:R51) -> 0 | S52: =R52>P52 -> FALSE
B53: ENERGY STAR Commercial Ice Makers | N53: Base Energy Use Const | O53: Base Energy Use Mult | P53: Use Rate Base (kWh/100 lb ice)
A54: HIDE | B54: Peak kW | C54: NCP kW | D54: kWh | E54: Uncapped Incentive | F54: Quantity (#) | G54: Model # | H54: Type | I54: Operation | J54: Harvest Rate (lbs/day) | K54: Energy Use (kWh/100 lbs ice) | Q54: Duty Cycle | R54: Days | S54: PLS | T54: kWh | U54: kW
A55: HIDE | B55: =ROUND(U55,3) -> 0 | C55: =ROUND(B55,3) -> 0 | D55: =ROUND(T55,0) -> 0 | E55: =ROUND(IFERROR(INDEX('Savings Summary'!$P$8:$P$50,MATCH($B$53,'Savings Summary'!$C$8:$C$50,0))*D55+ INDEX('Savings Summary'!$N$8:$N$50,MATCH($B$53,'Savings Summary'!$C$8:$C$50,0))*B55+ INDEX('Savings Summary'!$O$8:$O$50,MATCH($B$53,'Savings Summary'!$C$8:$C$50,0))*C55,0),2) -> 0 | N55: =INDEX('Lookup tables'!$G$271:$G$291,MATCH(1,('Food Service & DHW'!H55='Lookup tables'!$D$271:$D$291)*('Food Service & DHW'!I55='Lookup tables'!$E$271:$E$291)*('Food Service & DHW'!J55<'Lookup tables'!$F$271:$F$291),0)) ->  | O55: =INDEX('Lookup tables'!$H$271:$H$291,MATCH(1,('Food Service & DHW'!H55='Lookup tables'!$D$271:$D$291)*('Food Service & DHW'!I55='Lookup tables'!$E$271:$E$291)*('Food Service & DHW'!J55<'Lookup tables'!$F$271:$F$291),0)) ->  | P55: =N55+J55*O55 ->  | Q55: 0.75 | R55: 365 | S55: 0.00012 | T55: =IF(COUNTA(F55:K55)<6,0,F55*(P55-K55)*J55/100*Q55*R55) -> 0 | U55: =T55*S55 -> 0
A56: HIDE | B56: =ROUND(U56,3) -> 0 | C56: =ROUND(B56,3) -> 0 | D56: =ROUND(T56,0) -> 0 | E56: =ROUND(IFERROR(INDEX('Savings Summary'!$P$8:$P$50,MATCH($B$53,'Savings Summary'!$C$8:$C$50,0))*D56+ INDEX('Savings Summary'!$N$8:$N$50,MATCH($B$53,'Savings Summary'!$C$8:$C$50,0))*B56+ INDEX('Savings Summary'!$O$8:$O$50,MATCH($B$53,'Savings Summary'!$C$8:$C$50,0))*C56,0),2) -> 0 | N56: =INDEX('Lookup tables'!$G$271:$G$291,MATCH(1,('Food Service & DHW'!H56='Lookup tables'!$D$271:$D$291)*('Food Service & DHW'!I56='Lookup tables'!$E$271:$E$291)*('Food Service & DHW'!J56<'Lookup tables'!$F$271:$F$291),0)) ->  | O56: =INDEX('Lookup tables'!$H$271:$H$291,MATCH(1,('Food Service & DHW'!H56='Lookup tables'!$D$271:$D$291)*('Food Service & DHW'!I56='Lookup tables'!$E$271:$E$291)*('Food Service & DHW'!J56<'Lookup tables'!$F$271:$F$291),0)) ->  | P56: =N56+J56*O56 ->  | Q56: 0.75 | R56: 365 | S56: 0.00012 | T56: =IF(COUNTA(F56:K56)<6,0,F56*(P56-K56)*J56/100*Q56*R56) -> 0 | U56: =T56*S56 -> 0
A57: HIDE | B57: 0 | C57: 0 | D57: 0 | E57: =ROUND(IFERROR(INDEX('Savings Summary'!$P$8:$P$50,MATCH($B$53,'Savings Summary'!$C$8:$C$50,0))*D57+ INDEX('Savings Summary'!$N$8:$N$50,MATCH($B$53,'Savings Summary'!$C$8:$C$50,0))*B57+ INDEX('Savings Summary'!$O$8:$O$50,MATCH($B$53,'Savings Summary'!$C$8:$C$50,0))*C57,0),2) -> 0 | N57: =INDEX('Lookup tables'!$G$271:$G$291,MATCH(1,('Food Service & DHW'!H57='Lookup tables'!$D$271:$D$291)*('Food Service & DHW'!I57='Lookup tables'!$E$271:$E$291)*('Food Service & DHW'!J57<'Lookup tables'!$F$271:$F$291),0)) ->  | O57: =INDEX('Lookup tables'!$H$271:$H$291,MATCH(1,('Food Service & DHW'!H57='Lookup tables'!$D$271:$D$291)*('Food Service & DHW'!I57='Lookup tables'!$E$271:$E$291)*('Food Service & DHW'!J57<'Lookup tables'!$F$271:$F$291),0)) ->  | P57: =N57+J57*O57 ->  | Q57: 0.75 | R57: 365 | S57: 0.00012 | T57: 0 | U57: =T57*S57 -> 0
A58: HIDE | B58: 0 | C58: 0 | D58: 0 | E58: =ROUND(IFERROR(INDEX('Savings Summary'!$P$8:$P$50,MATCH($B$53,'Savings Summary'!$C$8:$C$50,0))*D58+ INDEX('Savings Summary'!$N$8:$N$50,MATCH($B$53,'Savings Summary'!$C$8:$C$50,0))*B58+ INDEX('Savings Summary'!$O$8:$O$50,MATCH($B$53,'Savings Summary'!$C$8:$C$50,0))*C58,0),2) -> 0 | N58: =INDEX('Lookup tables'!$G$271:$G$291,MATCH(1,('Food Service & DHW'!H58='Lookup tables'!$D$271:$D$291)*('Food Service & DHW'!I58='Lookup tables'!$E$271:$E$291)*('Food Service & DHW'!J58<'Lookup tables'!$F$271:$F$291),0)) ->  | O58: =INDEX('Lookup tables'!$H$271:$H$291,MATCH(1,('Food Service & DHW'!H58='Lookup tables'!$D$271:$D$291)*('Food Service & DHW'!I58='Lookup tables'!$E$271:$E$291)*('Food Service & DHW'!J58<'Lookup tables'!$F$271:$F$291),0)) ->  | P58: =N58+J58*O58 ->  | Q58: 0.75 | R58: 365 | S58: 0.00012 | T58: 0 | U58: 0
A59: HIDE | B59: 0 | C59: 0 | D59: 0 | E59: =ROUND(IFERROR(INDEX('Savings Summary'!$P$8:$P$50,MATCH($B$53,'Savings Summary'!$C$8:$C$50,0))*D59+ INDEX('Savings Summary'!$N$8:$N$50,MATCH($B$53,'Savings Summary'!$C$8:$C$50,0))*B59+ INDEX('Savings Summary'!$O$8:$O$50,MATCH($B$53,'Savings Summary'!$C$8:$C$50,0))*C59,0),2) -> 0 | N59: =INDEX('Lookup tables'!$G$271:$G$291,MATCH(1,('Food Service & DHW'!H59='Lookup tables'!$D$271:$D$291)*('Food Service & DHW'!I59='Lookup tables'!$E$271:$E$291)*('Food Service & DHW'!J59<'Lookup tables'!$F$271:$F$291),0)) ->  | O59: =INDEX('Lookup tables'!$H$271:$H$291,MATCH(1,('Food Service & DHW'!H59='Lookup tables'!$D$271:$D$291)*('Food Service & DHW'!I59='Lookup tables'!$E$271:$E$291)*('Food Service & DHW'!J59<'Lookup tables'!$F$271:$F$291),0)) ->  | P59: =N59+J59*O59 ->  | Q59: 0.75 | R59: 365 | S59: 0.00012 | T59: 0 | U59: 0
A60: HIDE | B60: =SUM(B55:B59) -> 0 | C60: =SUM(C55:C59) -> 0 | D60: 0 | E60: =SUM(E55:E59) -> 0
B61: Vacuum-Sealing & Packaging Machines
A62: HIDE | B62: Peak kW | C62: NCP kW | D62: kWh | E62: Uncapped Incentive | F62: Quantity (#) | G62: Machine Operation Style
A63: HIDE | B63: =ROUND(IF(G63="On-Demand",F63*'Lookup tables'!F295,0),3) -> 0 | C63: =B63 -> 0 | D63: =ROUND(IF(G63="On-Demand",F63*'Lookup tables'!E295,0),0) -> 0 | E63: =ROUND(IFERROR(INDEX('Savings Summary'!$P$8:$P$50,MATCH($B$61,'Savings Summary'!$C$8:$C$50,0))*D63+ INDEX('Savings Summary'!$N$8:$N$50,MATCH($B$61,'Savings Summary'!$C$8:$C$50,0))*B63+ INDEX('Savings Summary'!$O$8:$O$50,MATCH($B$61,'Savings Summary'!$C$8:$C$50,0))*C63,0),2) -> 0
A64: HIDE | B64: =B63 -> 0 | C64: =C63 -> 0 | D64: =D63 -> 0 | E64: =E63 -> 0
B65: Low Flow Faucet Aerators
A66: HIDE | B66: Peak kW | C66: NC kW | D66: kWh | E66: Uncapped Incentive | F66: Quantity (#) | G66: Building Type | H66: Water Heater Type | I66: Installed Flow Rate (gpm)* | M66: U | N66: Days | O66: P | P66: WHEff | Q66: TS | R66: kWh
A67: HIDE | B67: =ROUND(IF(OR(F67="",G67="",H67="",I67=""),0,F67*IFERROR(8.33*M67*(2.2-I67)*(105-Q67)*O67/P67/3412,0)),3) -> 0 | C67: =B67 -> 0 | D67: =ROUND(IF(OR(F67="",G67="",H67="",I67=""),0,IFERROR(R67,0)),0) -> 0 | E67: =ROUND(IFERROR(INDEX('Savings Summary'!$P$8:$P$50,MATCH($B$65,'Savings Summary'!$C$8:$C$50,0))*D67+ INDEX('Savings Summary'!$N$8:$N$50,MATCH($B$65,'Savings Summary'!$C$8:$C$50,0))*B67+ INDEX('Savings Summary'!$O$8:$O$50,MATCH($B$65,'Savings Summary'!$C$8:$C$50,0))*C67,0),2) -> 0 | M67: =INDEX('Lookup tables'!E$730:E$736,MATCH('Food Service & DHW'!$G67,'Lookup tables'!$D$730:$D$736,0)) ->  | N67: =INDEX('Lookup tables'!F$730:F$736,MATCH('Food Service & DHW'!$G67,'Lookup tables'!$D$730:$D$736,0)) ->  | O67: =INDEX('Lookup tables'!G$730:G$736,MATCH('Food Service & DHW'!$G67,'Lookup tables'!$D$730:$D$736,0)) ->  | P67: =INDEX(WaterHeaterEff,MATCH(H67,WaterHeaterType,0)) ->  | Q67: ='Lookup tables'!$F$726 -> 77.2 | R67: =F67*8.33*M67*(2.2-I67)*(105-Q67)*N67/P67/3412 -> 
A68: HIDE | B68: =ROUND(IF(OR(F68="",G68="",H68="",I68=""),0,F68*IFERROR(8.33*M68*(2.2-I68)*(105-Q68)*O68/P68/3412,0)),3) -> 0 | C68: =B68 -> 0 | D68: =ROUND(IF(OR(F68="",G68="",H68="",I68=""),0,IFERROR(R68,0)),0) -> 0 | E68: =ROUND(IFERROR(INDEX('Savings Summary'!$P$8:$P$50,MATCH($B$65,'Savings Summary'!$C$8:$C$50,0))*D68+ INDEX('Savings Summary'!$N$8:$N$50,MATCH($B$65,'Savings Summary'!$C$8:$C$50,0))*B68+ INDEX('Savings Summary'!$O$8:$O$50,MATCH($B$65,'Savings Summary'!$C$8:$C$50,0))*C68,0),2) -> 0 | M68: =INDEX('Lookup tables'!E$730:E$736,MATCH('Food Service & DHW'!$G68,'Lookup tables'!$D$730:$D$736,0)) ->  | N68: =INDEX('Lookup tables'!F$730:F$736,MATCH('Food Service & DHW'!$G68,'Lookup tables'!$D$730:$D$736,0)) ->  | O68: =INDEX('Lookup tables'!G$730:G$736,MATCH('Food Service & DHW'!$G68,'Lookup tables'!$D$730:$D$736,0)) ->  | P68: =INDEX(WaterHeaterEff,MATCH(H68,WaterHeaterType,0)) ->  | Q68: ='Lookup tables'!$F$726 -> 77.2 | R68: =F68*8.33*M68*(2.2-I68)*(105-Q68)*N68/P68/3412 -> 
A69: HIDE | B69: 0 | C69: =B69 -> 0 | D69: 0 | E69: =ROUND(IFERROR(INDEX('Savings Summary'!$P$8:$P$50,MATCH($B$65,'Savings Summary'!$C$8:$C$50,0))*D69+ INDEX('Savings Summary'!$N$8:$N$50,MATCH($B$65,'Savings Summary'!$C$8:$C$50,0))*B69+ INDEX('Savings Summary'!$O$8:$O$50,MATCH($B$65,'Savings Summary'!$C$8:$C$50,0))*C69,0),2) -> 0 | M69: =INDEX('Lookup tables'!E$730:E$736,MATCH('Food Service & DHW'!$G69,'Lookup tables'!$D$730:$D$736,0)) ->  | N69: =INDEX('Lookup tables'!F$730:F$736,MATCH('Food Service & DHW'!$G69,'Lookup tables'!$D$730:$D$736,0)) ->  | O69: =INDEX('Lookup tables'!G$730:G$736,MATCH('Food Service & DHW'!$G69,'Lookup tables'!$D$730:$D$736,0)) ->  | P69: =INDEX(WaterHeaterEff,MATCH(H69,WaterHeaterType,0)) ->  | Q69: ='Lookup tables'!$F$726 -> 77.2 | R69: =F69*8.33*M69*(2.2-I69)*(105-Q69)*N69/P69/3412 -> 
A70: HIDE | B70: =SUM(B67:B69) -> 0 | C70: =SUM(C67:C69) -> 0 | D70: =SUM(D67:D69) -> 0 | E70: =SUM(E67:E69) -> 0 | I70: *1.5GPM maximum
B71: Low Flow Showerheads
A72: HIDE | B72: Peak kW | C72: NC kW | D72: kWh | E72: Uncapped Incentive | F72: Quantity (#) | G72: Building Type | H72: Water Heater Type | I72: Installed Flow Rate (gpm)* | M72: Days | N72: N | O72: P | P72: WHEff | Q72: TS | R72: FHW | S72: kWh
A73: HIDE | B73: =ROUND(IF(COUNTA(F73:I73)<4,0,F73*IFERROR(8.33*7.8*N73*(2.5-I73)*R73*(120-Q73)*O73/P73/3412,0)),3) -> 0 | C73: =B73 -> 0 | D73: =ROUND(IF(COUNTA(F73:I73)<4,0,IFERROR(S73,0)),0) -> 0 | E73: =ROUND(IFERROR(INDEX('Savings Summary'!$P$8:$P$50,MATCH($B$71,'Savings Summary'!$C$8:$C$50,0))*D73+ INDEX('Savings Summary'!$N$8:$N$50,MATCH($B$71,'Savings Summary'!$C$8:$C$50,0))*B73+ INDEX('Savings Summary'!$O$8:$O$50,MATCH($B$71,'Savings Summary'!$C$8:$C$50,0))*C73,0),2) -> 0 | M73: =INDEX('Lookup tables'!E$739:E$743,MATCH('Food Service & DHW'!$G73,'Lookup tables'!$D$739:$D$743,0)) ->  | N73: =INDEX('Lookup tables'!F$739:F$743,MATCH('Food Service & DHW'!$G73,'Lookup tables'!$D$739:$D$743,0)) ->  | O73: =INDEX('Lookup tables'!G$739:G$743,MATCH('Food Service & DHW'!$G73,'Lookup tables'!$D$739:$D$743,0)) ->  | P73: =INDEX(WaterHeaterEff,MATCH(H73,WaterHeaterType,0)) ->  | Q73: ='Lookup tables'!$F$726 -> 77.2 | R73: ='Lookup tables'!$I$740 ->  | S73: =F73*8.33*7.8*N73*(2.5-I73)*R73*(120-Q73)*M73/P73/3412 -> 
A74: HIDE | B74: =ROUND(IF(COUNTA(F74:I74)<4,0,F74*IFERROR(8.33*7.8*N74*(2.5-I74)*R74*(120-Q74)*O74/P74/3412,0)),3) -> 0 | C74: =B74 -> 0 | D74: =ROUND(IF(COUNTA(F74:I74)<4,0,IFERROR(S74,0)),0) -> 0 | E74: =ROUND(IFERROR(INDEX('Savings Summary'!$P$8:$P$50,MATCH($B$71,'Savings Summary'!$C$8:$C$50,0))*D74+ INDEX('Savings Summary'!$N$8:$N$50,MATCH($B$71,'Savings Summary'!$C$8:$C$50,0))*B74+ INDEX('Savings Summary'!$O$8:$O$50,MATCH($B$71,'Savings Summary'!$C$8:$C$50,0))*C74,0),2) -> 0 | M74: =INDEX('Lookup tables'!E$739:E$743,MATCH('Food Service & DHW'!$G74,'Lookup tables'!$D$739:$D$743,0)) ->  | N74: =INDEX('Lookup tables'!F$739:F$743,MATCH('Food Service & DHW'!$G74,'Lookup tables'!$D$739:$D$743,0)) ->  | O74: =INDEX('Lookup tables'!G$739:G$743,MATCH('Food Service & DHW'!$G74,'Lookup tables'!$D$739:$D$743,0)) ->  | P74: =INDEX(WaterHeaterEff,MATCH(H74,WaterHeaterType,0)) ->  | Q74: ='Lookup tables'!$F$726 -> 77.2 | R74: ='Lookup tables'!$I$740 ->  | S74: =F74*8.33*7.8*N74*(2.5-I74)*R74*(120-Q74)*M74/P74/3412 -> 
A75: HIDE | B75: 0 | C75: =B75 -> 0 | D75: 0 | E75: =ROUND(IFERROR(INDEX('Savings Summary'!$P$8:$P$50,MATCH($B$71,'Savings Summary'!$C$8:$C$50,0))*D75+ INDEX('Savings Summary'!$N$8:$N$50,MATCH($B$71,'Savings Summary'!$C$8:$C$50,0))*B75+ INDEX('Savings Summary'!$O$8:$O$50,MATCH($B$71,'Savings Summary'!$C$8:$C$50,0))*C75,0),2) -> 0 | M75: =INDEX('Lookup tables'!E$739:E$743,MATCH('Food Service & DHW'!$G75,'Lookup tables'!$D$739:$D$743,0)) ->  | N75: =INDEX('Lookup tables'!F$739:F$743,MATCH('Food Service & DHW'!$G75,'Lookup tables'!$D$739:$D$743,0)) ->  | O75: =INDEX('Lookup tables'!G$739:G$743,MATCH('Food Service & DHW'!$G75,'Lookup tables'!$D$739:$D$743,0)) ->  | P75: =INDEX(WaterHeaterEff,MATCH(H75,WaterHeaterType,0)) ->  | Q75: ='Lookup tables'!$F$726 -> 77.2 | R75: ='Lookup tables'!$I$740 ->  | S75: =F75*8.33*7.8*N75*(2.5-I75)*R75*(120-Q75)*M75/P75/3412 -> 
A76: HIDE | B76: =SUM(B73:B75) -> 0 | C76: =SUM(C73:C75) -> 0 | D76: =SUM(D73:D75) -> 0 | E76: =SUM(E73:E75) -> 0 | I76: *2GPM maximum
B77: Temperature-Sensitive Restrictor Valves for Showers
A78: HIDE | B78: Peak kW | C78: NC kW | D78: kWh | E78: Uncapped Incentive | F78: Quantity (#) | G78: Configuration | H78: Flowrate (GPM) (choose closest option) | I78: Water Heater Type | M78: V saved | N78: rho*Cp | O78: TSavg | P78: RE | Q78: Conv | R78: kWh/ea | S78: TS_sumr | T78: CP_sumr | U78: kW_sumr/ea | V78: TS_wntr | W78: CP_wntr | X78: kW_wntr/ea | Y78: Summer Pk?
A79: HIDE | B79: =ROUND(IFERROR(F79*MAX(U79,X79),0),3) -> 0 | C79: =B79 -> 0 | D79: =ROUND(IFERROR(F79*R79,0),0) -> 0 | E79: =ROUND(IFERROR(INDEX('Savings Summary'!$P$8:$P$50,MATCH($B$77,'Savings Summary'!$C$8:$C$50,0))*D79+ INDEX('Savings Summary'!$N$8:$N$50,MATCH($B$77,'Savings Summary'!$C$8:$C$50,0))*B79+ INDEX('Savings Summary'!$O$8:$O$50,MATCH($B$77,'Savings Summary'!$C$8:$C$50,0))*C79,0),2) -> 0 | M79: =INDEX('Lookup tables'!$E$746:$E$753,MATCH('Food Service & DHW'!$G79&'Food Service & DHW'!$H79,'Lookup tables'!$D$746:$D$753,0)) ->  | N79: =8.33*1 -> 8.33 | O79: =INDEX('Lookup tables'!$H$746:$L$751,MATCH(State&SelectedZone,'Lookup tables'!$G$746:$G$751,0),1) -> 77.2 | P79: =INDEX(WaterHeaterEff,MATCH(I79,WaterHeaterType,0)) ->  | Q79: =3412 -> 3412 | R79: =M79*N79*(120-O79)/(P79*Q79) ->  | S79: =INDEX('Lookup tables'!$H$746:$L$751,MATCH(State&SelectedZone,'Lookup tables'!$G$746:$G$751,0),2) -> 86.1 | T79: =INDEX('Lookup tables'!$H$746:$L$751,MATCH(State&SelectedZone,'Lookup tables'!$G$746:$G$751,0),4) -> 0.038 | U79: =IFERROR(M79*N79*(120-S79)/(P79*Q79*365)*T79,0) -> 0 | V79: =INDEX('Lookup tables'!$H$746:$L$751,MATCH(State&SelectedZone,'Lookup tables'!$G$746:$G$751,0),3) -> 68.5 | W79: =INDEX('Lookup tables'!$H$746:$L$751,MATCH(State&SelectedZone,'Lookup tables'!$G$746:$G$751,0),5) -> 0.068 | X79: =IFERROR(M79*N79*(120-V79)/(P79*Q79*365)*W79,0) -> 0 | Y79: =U79>=X79 -> TRUE
A80: HIDE | B80: =ROUND(IFERROR(F80*MAX(U80,X80),0),3) -> 0 | C80: =B80 -> 0 | D80: =ROUND(IFERROR(F80*R80,0),0) -> 0 | E80: =ROUND(IFERROR(INDEX('Savings Summary'!$P$8:$P$50,MATCH($B$77,'Savings Summary'!$C$8:$C$50,0))*D80+ INDEX('Savings Summary'!$N$8:$N$50,MATCH($B$77,'Savings Summary'!$C$8:$C$50,0))*B80+ INDEX('Savings Summary'!$O$8:$O$50,MATCH($B$77,'Savings Summary'!$C$8:$C$50,0))*C80,0),2) -> 0 | M80: =INDEX('Lookup tables'!$E$746:$E$753,MATCH('Food Service & DHW'!$G80&'Food Service & DHW'!$H80,'Lookup tables'!$D$746:$D$753,0)) ->  | N80: =8.33*1 -> 8.33 | O80: =INDEX('Lookup tables'!$H$746:$L$751,MATCH(State&SelectedZone,'Lookup tables'!$G$746:$G$751,0),1) -> 77.2 | P80: =INDEX(WaterHeaterEff,MATCH(I80,WaterHeaterType,0)) ->  | Q80: =3412 -> 3412 | R80: =M80*N80*(120-O80)/(P80*Q80) ->  | S80: =INDEX('Lookup tables'!$H$746:$L$751,MATCH(State&SelectedZone,'Lookup tables'!$G$746:$G$751,0),2) -> 86.1 | T80: =INDEX('Lookup tables'!$H$746:$L$751,MATCH(State&SelectedZone,'Lookup tables'!$G$746:$G$751,0),4) -> 0.038 | U80: =IFERROR(M80*N80*(120-S80)/(P80*Q80*365)*T80,0) -> 0 | V80: =INDEX('Lookup tables'!$H$746:$L$751,MATCH(State&SelectedZone,'Lookup tables'!$G$746:$G$751,0),3) -> 68.5 | W80: =INDEX('Lookup tables'!$H$746:$L$751,MATCH(State&SelectedZone,'Lookup tables'!$G$746:$G$751,0),5) -> 0.068 | X80: =IFERROR(M80*N80*(120-V80)/(P80*Q80*365)*W80,0) -> 0 | Y80: =U80>=X80 -> TRUE
A81: HIDE | B81: 0 | C81: =B81 -> 0 | D81: 0 | E81: =ROUND(IFERROR(INDEX('Savings Summary'!$P$8:$P$50,MATCH($B$77,'Savings Summary'!$C$8:$C$50,0))*D81+ INDEX('Savings Summary'!$N$8:$N$50,MATCH($B$77,'Savings Summary'!$C$8:$C$50,0))*B81+ INDEX('Savings Summary'!$O$8:$O$50,MATCH($B$77,'Savings Summary'!$C$8:$C$50,0))*C81,0),2) -> 0 | M81: =INDEX('Lookup tables'!$E$746:$E$753,MATCH('Food Service & DHW'!$G81&'Food Service & DHW'!$H81,'Lookup tables'!$D$746:$D$753,0)) ->  | N81: =8.33*1 -> 8.33 | O81: =INDEX('Lookup tables'!$H$746:$L$751,MATCH(State&SelectedZone,'Lookup tables'!$G$746:$G$751,0),1) -> 77.2 | P81: =INDEX(WaterHeaterEff,MATCH(I81,WaterHeaterType,0)) ->  | Q81: =3412 -> 3412 | R81: =M81*N81*(120-O81)/(P81*Q81) ->  | S81: =INDEX('Lookup tables'!$H$746:$L$751,MATCH(State&SelectedZone,'Lookup tables'!$G$746:$G$751,0),2) -> 86.1 | T81: =INDEX('Lookup tables'!$H$746:$L$751,MATCH(State&SelectedZone,'Lookup tables'!$G$746:$G$751,0),4) -> 0.038 | U81: 0 | V81: =INDEX('Lookup tables'!$H$746:$L$751,MATCH(State&SelectedZone,'Lookup tables'!$G$746:$G$751,0),3) -> 68.5 | W81: =INDEX('Lookup tables'!$H$746:$L$751,MATCH(State&SelectedZone,'Lookup tables'!$G$746:$G$751,0),5) -> 0.068 | X81: 0 | Y81: TRUE
A82: HIDE | B82: =SUM(B79:B81) -> 0 | C82: =SUM(C79:C81) -> 0 | D82: =SUM(D79:D81) -> 0 | E82: =SUM(E79:E81) -> 0 | U82: =SUMPRODUCT(U79:U81,F79:F81) -> 0 | X82: =SUMPRODUCT(X79:X81,F79:F81) -> 0 | Y82: =U82>=X82 -> TRUE
B83: Central Domestic Hot Water (DHW) Controls | O83: Summer | R83: Winter
A84: HIDE | B84: Peak kW | C84: NCP kW | D84: kWh | E84: Uncapped Incentive | F84: Building Type | G84: Water Heater Type | H84: Circulating Pump Size (watts) | I84: # of Units Served | M84: kWh/pump | N84: kWh/unit | O84: kW/pump | P84: kW/unit | Q84: kW Total | R84: kW/pump | S84: kW/unit | T84: kW Total | U84: Summer Pk?
A85: HIDE | B85: =ROUND(MAX(Q85,T85),3) -> 0 | C85: =B85 -> 0 | D85: =ROUND(IFERROR(M85+N85*I85,0),0) -> 0 | E85: =ROUND(IFERROR(INDEX('Savings Summary'!$P$8:$P$50,MATCH($B$83,'Savings Summary'!$C$8:$C$50,0))*D85+ INDEX('Savings Summary'!$N$8:$N$50,MATCH($B$83,'Savings Summary'!$C$8:$C$50,0))*B85+ INDEX('Savings Summary'!$O$8:$O$50,MATCH($B$83,'Savings Summary'!$C$8:$C$50,0))*C85,0),2) -> 0 | M85: =INDEX('Lookup tables'!F$710:F$713,MATCH('Food Service & DHW'!H85,DHWPumpSize,0)) ->  | N85: =INDEX('Lookup tables'!E$718:P$723,MATCH(State&SelectedZone,'Lookup tables'!D$718:D$723,0),MATCH('Food Service & DHW'!G85&'Food Service & DHW'!F85&"kWh",'Lookup tables'!E$717:P$717,0)) ->  | O85: =INDEX('Lookup tables'!G$710:L$713,MATCH('Food Service & DHW'!H85,DHWPumpSize,0),MATCH(State&SelectedZone,'Lookup tables'!G$709:L$709,0)) ->  | P85: =INDEX('Lookup tables'!E$718:P$723,MATCH(State&SelectedZone,'Lookup tables'!D$718:D$723,0),MATCH('Food Service & DHW'!G85&'Food Service & DHW'!F85&"kWs",'Lookup tables'!E$717:P$717,0)) ->  | Q85: =IFERROR(I85*P85+O85,0) -> 0 | R85: =INDEX('Lookup tables'!M$710:R$713,MATCH('Food Service & DHW'!H85,DHWPumpSize,0),MATCH(State&SelectedZone,'Lookup tables'!G$709:L$709,0)) ->  | S85: =INDEX('Lookup tables'!E$718:P$723,MATCH(State&SelectedZone,'Lookup tables'!D$718:D$723,0),MATCH('Food Service & DHW'!G85&'Food Service & DHW'!F85&"kWw",'Lookup tables'!E$717:P$717,0)) ->  | T85: =IFERROR(I85*S85+R85,0) -> 0 | U85: =Q85>=T85 -> TRUE
A86: HIDE | B86: =ROUND(MAX(Q86,T86),3) -> 0 | C86: =B86 -> 0 | D86: =ROUND(IFERROR(M86+N86*I86,0),0) -> 0 | E86: =ROUND(IFERROR(INDEX('Savings Summary'!$P$8:$P$50,MATCH($B$83,'Savings Summary'!$C$8:$C$50,0))*D86+ INDEX('Savings Summary'!$N$8:$N$50,MATCH($B$83,'Savings Summary'!$C$8:$C$50,0))*B86+ INDEX('Savings Summary'!$O$8:$O$50,MATCH($B$83,'Savings Summary'!$C$8:$C$50,0))*C86,0),2) -> 0 | M86: =INDEX('Lookup tables'!F$710:F$713,MATCH('Food Service & DHW'!H86,DHWPumpSize,0)) ->  | N86: =INDEX('Lookup tables'!E$718:P$723,MATCH(State&SelectedZone,'Lookup tables'!D$718:D$723,0),MATCH('Food Service & DHW'!G86&'Food Service & DHW'!F86&"kWh",'Lookup tables'!E$717:P$717,0)) ->  | O86: =INDEX('Lookup tables'!G$710:L$713,MATCH('Food Service & DHW'!H86,DHWPumpSize,0),MATCH(State&SelectedZone,'Lookup tables'!G$709:L$709,0)) ->  | P86: =INDEX('Lookup tables'!E$718:P$723,MATCH(State&SelectedZone,'Lookup tables'!D$718:D$723,0),MATCH('Food Service & DHW'!G86&'Food Service & DHW'!F86&"kWs",'Lookup tables'!E$717:P$717,0)) ->  | Q86: =IFERROR(I86*P86+O86,0) -> 0 | R86: =INDEX('Lookup tables'!M$710:R$713,MATCH('Food Service & DHW'!H86,DHWPumpSize,0),MATCH(State&SelectedZone,'Lookup tables'!G$709:L$709,0)) ->  | S86: =INDEX('Lookup tables'!E$718:P$723,MATCH(State&SelectedZone,'Lookup tables'!D$718:D$723,0),MATCH('Food Service & DHW'!G86&'Food Service & DHW'!F86&"kWw",'Lookup tables'!E$717:P$717,0)) ->  | T86: =IFERROR(I86*S86+R86,0) -> 0 | U86: =Q86>=T86 -> TRUE
A87: HIDE | B87: 0 | C87: 0 | D87: 0 | E87: =ROUND(IFERROR(INDEX('Savings Summary'!$P$8:$P$50,MATCH($B$83,'Savings Summary'!$C$8:$C$50,0))*D87+ INDEX('Savings Summary'!$N$8:$N$50,MATCH($B$83,'Savings Summary'!$C$8:$C$50,0))*B87+ INDEX('Savings Summary'!$O$8:$O$50,MATCH($B$83,'Savings Summary'!$C$8:$C$50,0))*C87,0),2) -> 0 | M87: =INDEX('Lookup tables'!F$710:F$713,MATCH('Food Service & DHW'!H87,DHWPumpSize,0)) ->  | N87: =INDEX('Lookup tables'!E$718:P$723,MATCH(State&SelectedZone,'Lookup tables'!D$718:D$723,0),MATCH('Food Service & DHW'!G87&'Food Service & DHW'!F87&"kWh",'Lookup tables'!E$717:P$717,0)) ->  | O87: =INDEX('Lookup tables'!G$710:L$713,MATCH('Food Service & DHW'!H87,DHWPumpSize,0),MATCH(State&SelectedZone,'Lookup tables'!G$709:L$709,0)) ->  | P87: =INDEX('Lookup tables'!E$718:P$723,MATCH(State&SelectedZone,'Lookup tables'!D$718:D$723,0),MATCH('Food Service & DHW'!G87&'Food Service & DHW'!F87&"kWs",'Lookup tables'!E$717:P$717,0)) ->  | Q87: =IFERROR(I87*P87+O87,0) -> 0 | R87: =INDEX('Lookup tables'!M$710:R$713,MATCH('Food Service & DHW'!H87,DHWPumpSize,0),MATCH(State&SelectedZone,'Lookup tables'!G$709:L$709,0)) ->  | S87: =INDEX('Lookup tables'!E$718:P$723,MATCH(State&SelectedZone,'Lookup tables'!D$718:D$723,0),MATCH('Food Service & DHW'!G87&'Food Service & DHW'!F87&"kWw",'Lookup tables'!E$717:P$717,0)) ->  | T87: =IFERROR(I87*S87+R87,0) -> 0 | U87: TRUE
A88: HIDE | B88: 0 | C88: 0 | D88: 0 | E88: =ROUND(IFERROR(INDEX('Savings Summary'!$P$8:$P$50,MATCH($B$83,'Savings Summary'!$C$8:$C$50,0))*D88+ INDEX('Savings Summary'!$N$8:$N$50,MATCH($B$83,'Savings Summary'!$C$8:$C$50,0))*B88+ INDEX('Savings Summary'!$O$8:$O$50,MATCH($B$83,'Savings Summary'!$C$8:$C$50,0))*C88,0),2) -> 0 | M88: =INDEX('Lookup tables'!F$710:F$713,MATCH('Food Service & DHW'!H88,DHWPumpSize,0)) ->  | N88: =INDEX('Lookup tables'!E$718:P$723,MATCH(State&SelectedZone,'Lookup tables'!D$718:D$723,0),MATCH('Food Service & DHW'!G88&'Food Service & DHW'!F88&"kWh",'Lookup tables'!E$717:P$717,0)) ->  | O88: =INDEX('Lookup tables'!G$710:L$713,MATCH('Food Service & DHW'!H88,DHWPumpSize,0),MATCH(State&SelectedZone,'Lookup tables'!G$709:L$709,0)) ->  | P88: =INDEX('Lookup tables'!E$718:P$723,MATCH(State&SelectedZone,'Lookup tables'!D$718:D$723,0),MATCH('Food Service & DHW'!G88&'Food Service & DHW'!F88&"kWs",'Lookup tables'!E$717:P$717,0)) ->  | Q88: =IFERROR(I88*P88+O88,0) -> 0 | R88: =INDEX('Lookup tables'!M$710:R$713,MATCH('Food Service & DHW'!H88,DHWPumpSize,0),MATCH(State&SelectedZone,'Lookup tables'!G$709:L$709,0)) ->  | S88: =INDEX('Lookup tables'!E$718:P$723,MATCH(State&SelectedZone,'Lookup tables'!D$718:D$723,0),MATCH('Food Service & DHW'!G88&'Food Service & DHW'!F88&"kWw",'Lookup tables'!E$717:P$717,0)) ->  | T88: =IFERROR(I88*S88+R88,0) -> 0 | U88: TRUE
A89: HIDE | B89: =SUM(B85:B88) -> 0 | C89: =SUM(C85:C88) -> 0 | D89: =SUM(D85:D88) -> 0 | E89: =SUM(E85:E88) -> 0 | Q89: =SUM(Q85:Q88) -> 0 | T89: =SUM(T85:T88) -> 0 | U89: TRUE
A91: HIDE | B91: Dishwasher Type | C91: Equipment Description
A92: HIDE | B92: Under Counter Dishwasher | C92: A machine with overall height of 38" or less, in which a rack of dishes remains stationary within the machine while being subjected to sequential wash and rinse sprays, and is designed to be installed under food preparation workspaces. Under counter dishwashers can be either chemical or hot water sanitizing, with an internal booster heater for the latter. For purposes of this specification, only those machines designed for wash cycles of 10 minutes or less can qualify for ENERGY STAR®.
A93: HIDE
A94: HIDE | B94: Stationary Rack, Single Tank, Door Type Dishwasher | C94: A machine in which a rack of dishes remains stationary within the machine while subjected to sequential wash and rinse sprays. This definition also applies to machines in which the rack revolves on an axis during the wash and rinse cycles. Subcategories of stationary door type machines include: single and multiple wash tank, double rack, pot, pan and utensil washers, chemical dump type and hooded wash compartment ("hood type"). Stationary rack, single tank, door type models are covered by this specification and can be either chemical or hot water sanitizing, with an internal or external booster heater for the latter.
A95: HIDE
A96: HIDE | B96: Single Tank Conveyor Dishwasher | C96: A washing machine that employs a conveyor or similar mechanism to carry dishes through a series of wash and rinse sprays within the machine. Specifically, a single tank conveyor machine has a tank for wash water followed by a final sanitizing rinse and does not have a pumped rinse tank. This type of machine may include a pre-washing section before the washing section. Single tank conveyor dishwashers can either be chemical or hot water sanitizing, with an internal or external booster heater for the latter.
A97: HIDE
A98: HIDE | B98: Multiple Tank Conveyor Dishwasher | C98: A conveyor type machine that has one or more tanks for wash water and one or more tanks for pumped rinse water, followed by a final sanitizing rinse. This type of machine may include one more pre-washing sections before the washing section. Multiple tank conveyor dishwashers can be either chemical or hot water sanitizing, with an internal or external hot water booster heater for the latter.
A99: HIDE
A100: HIDE | B100: Pot, Pan, and Utensil | C100: A stationary rack, door type machine designed to clean and sanitize pots, pans, and kitchen utensils.

Sheet HVAC & Envelope (hidden)
B1: HVAC & Building Envelope Measures | M1: HIDE | N1: HIDE | O1: HIDE | P1: HIDE | Q1: HIDE | R1: HIDE | S1: HIDE | T1: HIDE | U1: HIDE | V1: HIDE | W1: HIDE | X1: HIDE
B2: Click on headings to expand or collapse sections. Blue Peak kW values indicate winter peak.
B3: Cool Roofs
A4: HIDE | B4: Peak kW | C4: NCP kW | D4: kWh | E4: Uncapped Incentive | F4: Building Type | G4: Installed Roof Area Over Conditioned Space (sq ft) | H4: Initial Solar Reflectance | I4: 3-Year Solar Reflectance | J4: Baseline Insulation R-Value (or) Building Manufacture Year | K4: Post-Retrofit Insulation R-Value | M4: Post Lookup | N4: Pre R value | O4: Post R value | P4: Eligible?
A5: HIDE | B5: =ROUND(IFERROR(INDEX(INDIRECT(State&SelectedZone&SUBSTITUTE(SUBSTITUTE(F5," (",""),")","")),MATCH(N5,PreRvalues,0),3+MATCH(O5,PreRvalues,0)),0)*G5,3) -> 0 | C5: =B5 -> 0 | D5: =ROUND(IFERROR(INDEX(INDIRECT(State&SelectedZone&SUBSTITUTE(SUBSTITUTE(F5," (",""),")","")),MATCH(N5,PreRvalues,0),MATCH(O5,PreRvalues,0)),0)*G5,0) -> 0 | E5: =ROUND(IFERROR(INDEX('Savings Summary'!$P$8:$P$50,MATCH($B$3,'Savings Summary'!$C$8:$C$50,0))*D5+ INDEX('Savings Summary'!$N$8:$N$50,MATCH($B$3,'Savings Summary'!$C$8:$C$50,0))*B5+ INDEX('Savings Summary'!$O$8:$O$50,MATCH($B$3,'Savings Summary'!$C$8:$C$50,0))*C5,0),2) -> 0 | M5: =INDEX('Lookup tables'!C$558:C$563,MATCH(J5,PreRvalues,0)) ->  | N5: =IF(MATCH(J5,PreRvalues,0)<=3,J5,INDEX(PreRvalues,MATCH(J5,PreRvalues,0)-3)) ->  | O5: =IF(OR(LEFT(K5,2)="No",MATCH(J5,PreRvalues,0)>3),N5,K5) ->  | P5: =IF(H5<0.65,"No",IF(I5<0.5,"No","Yes")) -> No
A6: HIDE | B6: =ROUND(IFERROR(INDEX(INDIRECT(State&SelectedZone&SUBSTITUTE(SUBSTITUTE(F6," (",""),")","")),MATCH(N6,PreRvalues,0),3+MATCH(O6,PreRvalues,0)),0)*G6,3) -> 0 | C6: =B6 -> 0 | D6: =ROUND(IFERROR(INDEX(INDIRECT(State&SelectedZone&SUBSTITUTE(SUBSTITUTE(F6," (",""),")","")),MATCH(N6,PreRvalues,0),MATCH(O6,PreRvalues,0)),0)*G6,0) -> 0 | E6: =ROUND(IFERROR(INDEX('Savings Summary'!$P$8:$P$50,MATCH($B$3,'Savings Summary'!$C$8:$C$50,0))*D6+ INDEX('Savings Summary'!$N$8:$N$50,MATCH($B$3,'Savings Summary'!$C$8:$C$50,0))*B6+ INDEX('Savings Summary'!$O$8:$O$50,MATCH($B$3,'Savings Summary'!$C$8:$C$50,0))*C6,0),2) -> 0 | M6: =INDEX('Lookup tables'!C$558:C$563,MATCH(J6,PreRvalues,0)) ->  | N6: =IF(MATCH(J6,PreRvalues,0)<=3,J6,INDEX(PreRvalues,MATCH(J6,PreRvalues,0)-3)) ->  | O6: =IF(OR(LEFT(K6,2)="No",MATCH(J6,PreRvalues,0)>3),N6,K6) ->  | P6: =IF(H6<0.65,"No",IF(I6<0.5,"No","Yes")) -> No
A7: HIDE | B7: =ROUND(IFERROR(INDEX(INDIRECT(State&SelectedZone&SUBSTITUTE(SUBSTITUTE(F7," (",""),")","")),MATCH(N7,PreRvalues,0),3+MATCH(O7,PreRvalues,0)),0)*G7,3) -> 0 | C7: 0 | D7: =ROUND(IFERROR(INDEX(INDIRECT(State&SelectedZone&SUBSTITUTE(SUBSTITUTE(F7," (",""),")","")),MATCH(N7,PreRvalues,0),MATCH(O7,PreRvalues,0)),0)*G7,0) -> 0 | E7: =ROUND(IFERROR(INDEX('Savings Summary'!$P$8:$P$50,MATCH($B$3,'Savings Summary'!$C$8:$C$50,0))*D7+ INDEX('Savings Summary'!$N$8:$N$50,MATCH($B$3,'Savings Summary'!$C$8:$C$50,0))*B7+ INDEX('Savings Summary'!$O$8:$O$50,MATCH($B$3,'Savings Summary'!$C$8:$C$50,0))*C7,0),2) -> 0 | M7: =INDEX('Lookup tables'!C$558:C$563,MATCH(J7,PreRvalues,0)) ->  | N7: =IF(MATCH(J7,PreRvalues,0)<=3,J7,INDEX(PreRvalues,MATCH(J7,PreRvalues,0)-3)) ->  | O7: =IF(OR(LEFT(K7,2)="No",MATCH(J7,PreRvalues,0)>3),N7,K7) ->  | P7: =IF(H7<0.65,"No",IF(I7<0.5,"No","Yes")) -> No
A8: HIDE | B8: =SUM(B5:B7) -> 0 | C8: =SUM(C5:C7) -> 0 | D8: =SUM(D5:D7) -> 0 | E8: =SUM(E5:E7) -> 0 | F8: Eligibility Criteria: | G8: ·Must be Low-Slope (2:12 or less)
B9: Entrance & Exit Door Air Infiltration
A10: HIDE | B10: Peak kW | C10: NCP kW | D10: kWh | E10: Uncapped Incentive | F10: Number of Doors* Sealed | G10: Seal Type | H10: Amount of Weather Stripping (ft per door) | I10: Gap Width (inches) | J10: Primary Heating Type | M10: Total ft | N10: Cooling kWh/ft | O10: Heating kWh/ft | P10: Winter Peak savings | Q10: Summer Peak savings | R10: NCP kW | S10: Incentive | T10: Summer Pk?
A11: HIDE | B11: =ROUND(MAX(P11:Q11),3) -> 0 | C11: =ROUND(R11,3) -> 0 | D11: =ROUND((N11+O11)*M11,0) -> 0 | E11: =ROUND(_xlfn.IFNA(S11,IFERROR(INDEX('Savings Summary'!$P$8:$P$50,MATCH($B$9,'Savings Summary'!$C$8:$C$50,0))*D11+ INDEX('Savings Summary'!$N$8:$N$50,MATCH($B$9,'Savings Summary'!$C$8:$C$50,0))*B11+ INDEX('Savings Summary'!$O$8:$O$50,MATCH($B$9,'Savings Summary'!$C$8:$C$50,0))*C11,2)),2) -> 0 | M11: =IF(G11="Door Sweep",3,H11)*F11 -> 0 | N11: =IF(OR(I11="",J11=""),0,IFERROR(INDEX('Lookup tables'!$E$689:$AB$694,MATCH(State&SelectedZone,'Lookup tables'!$D$689:$D$694,0),MATCH(I11,DoorGap,0)),0)) -> 0 | O11: =IFERROR(IF(OR(J11="Gas or None",J11="",I11=""),0,INDEX('Lookup tables'!$E$689:$AB$694,MATCH(State&SelectedZone,'Lookup tables'!$D$689:$D$694,0),IF(J11="Electric Resistance",4,8)+MATCH(I11,DoorGap,0))),0) -> 0 | P11: =IFERROR(IF(OR(J11="Gas or None",J11="",I11=""),0,INDEX('Lookup tables'!$E$689:$AB$694,MATCH(State&SelectedZone,'Lookup tables'!$D$689:$D$694,0),IF(J11="Electric Resistance",16,20)+MATCH(I11,DoorGap,0))),0)*M11 -> 0 | Q11: =IF(OR(I11="",J11=""),0,IFERROR(INDEX('Lookup tables'!$E$689:$AB$694,MATCH(State&SelectedZone,'Lookup tables'!$D$689:$D$694,0),12+MATCH(I11,DoorGap,0)),0))*IF(G11="Door Sweep",3,H11)*M11 -> 0 | R11: =IF(OR(I11="",J11=""),0,IFERROR(INDEX('Lookup tables'!$E$689:$AG$694,MATCH(State&SelectedZone,'Lookup tables'!$D$689:$D$694,0),24+MATCH(I11,DoorGap,0)),0))*M11 -> 0 | S11: =IF(D11=0,0,IF(G11="Door Sweep",'Utility Admin'!$O$2,IF(G11="Weather Stripping",'Utility Admin'!$P$2,0))*'HVAC & Envelope'!F11) -> 0 | T11: =Q11>=P11 -> TRUE
A12: HIDE | B12: =ROUND(MAX(P12:Q12),3) -> 0 | C12: =ROUND(R12,3) -> 0 | D12: =ROUND((N12+O12)*M12,0) -> 0 | E12: =ROUND(_xlfn.IFNA(S12,IFERROR(INDEX('Savings Summary'!$P$8:$P$50,MATCH($B$9,'Savings Summary'!$C$8:$C$50,0))*D12+ INDEX('Savings Summary'!$N$8:$N$50,MATCH($B$9,'Savings Summary'!$C$8:$C$50,0))*B12+ INDEX('Savings Summary'!$O$8:$O$50,MATCH($B$9,'Savings Summary'!$C$8:$C$50,0))*C12,2)),2) -> 0 | M12: =IF(G12="Door Sweep",3,H12)*F12 -> 0 | N12: =IF(OR(I12="",J12=""),0,IFERROR(INDEX('Lookup tables'!$E$689:$AB$694,MATCH(State&SelectedZone,'Lookup tables'!$D$689:$D$694,0),MATCH(I12,DoorGap,0)),0)) -> 0 | O12: =IFERROR(IF(OR(J12="Gas or None",J12="",I12=""),0,INDEX('Lookup tables'!$E$689:$AB$694,MATCH(State&SelectedZone,'Lookup tables'!$D$689:$D$694,0),IF(J12="Electric Resistance",4,8)+MATCH(I12,DoorGap,0))),0) -> 0 | P12: =IFERROR(IF(OR(J12="Gas or None",J12="",I12=""),0,INDEX('Lookup tables'!$E$689:$AB$694,MATCH(State&SelectedZone,'Lookup tables'!$D$689:$D$694,0),IF(J12="Electric Resistance",16,20)+MATCH(I12,DoorGap,0))),0)*M12 -> 0 | Q12: =IF(OR(I12="",J12=""),0,IFERROR(INDEX('Lookup tables'!$E$689:$AB$694,MATCH(State&SelectedZone,'Lookup tables'!$D$689:$D$694,0),12+MATCH(I12,DoorGap,0)),0))*IF(G12="Door Sweep",3,H12)*M12 -> 0 | R12: =IF(OR(I12="",J12=""),0,IFERROR(INDEX('Lookup tables'!$E$689:$AG$694,MATCH(State&SelectedZone,'Lookup tables'!$D$689:$D$694,0),24+MATCH(I12,DoorGap,0)),0))*M12 -> 0 | S12: =IF(D12=0,0,IF(G12="Door Sweep",'Utility Admin'!$O$2,IF(G12="Weather Stripping",'Utility Admin'!$P$2,0))*'HVAC & Envelope'!F12) -> 0 | T12: =Q12>=P12 -> TRUE
A13: HIDE | B13: 0 | C13: =ROUND(R13,3) -> 0 | D13: =ROUND((N13+O13)*M13,0) -> 0 | E13: =ROUND(_xlfn.IFNA(S13,IFERROR(INDEX('Savings Summary'!$P$8:$P$50,MATCH($B$9,'Savings Summary'!$C$8:$C$50,0))*D13+ INDEX('Savings Summary'!$N$8:$N$50,MATCH($B$9,'Savings Summary'!$C$8:$C$50,0))*B13+ INDEX('Savings Summary'!$O$8:$O$50,MATCH($B$9,'Savings Summary'!$C$8:$C$50,0))*C13,2)),2) -> 0 | M13: =IF(G13="Door Sweep",3,H13)*F13 -> 0 | N13: =IF(OR(I13="",J13=""),0,IFERROR(INDEX('Lookup tables'!$E$689:$AB$694,MATCH(State&SelectedZone,'Lookup tables'!$D$689:$D$694,0),MATCH(I13,DoorGap,0)),0)) -> 0 | O13: =IFERROR(IF(OR(J13="Gas or None",J13="",I13=""),0,INDEX('Lookup tables'!$E$689:$AB$694,MATCH(State&SelectedZone,'Lookup tables'!$D$689:$D$694,0),IF(J13="Electric Resistance",4,8)+MATCH(I13,DoorGap,0))),0) -> 0 | P13: =IFERROR(IF(OR(J13="Gas or None",J13="",I13=""),0,INDEX('Lookup tables'!$E$689:$AB$694,MATCH(State&SelectedZone,'Lookup tables'!$D$689:$D$694,0),IF(J13="Electric Resistance",16,20)+MATCH(I13,DoorGap,0))),0)*M13 -> 0 | Q13: =IF(OR(I13="",J13=""),0,IFERROR(INDEX('Lookup tables'!$E$689:$AB$694,MATCH(State&SelectedZone,'Lookup tables'!$D$689:$D$694,0),12+MATCH(I13,DoorGap,0)),0))*IF(G13="Door Sweep",3,H13)*M13 -> 0 | R13: =IF(OR(I13="",J13=""),0,IFERROR(INDEX('Lookup tables'!$E$689:$AG$694,MATCH(State&SelectedZone,'Lookup tables'!$D$689:$D$694,0),24+MATCH(I13,DoorGap,0)),0))*M13 -> 0 | S13: =IF(D13=0,0,IF(G13="Door Sweep",'Utility Admin'!$O$2,IF(G13="Weather Stripping",'Utility Admin'!$P$2,0))*'HVAC & Envelope'!F13) -> 0 | T13: TRUE
A14: HIDE | B14: 0 | C14: =ROUND(R14,3) -> 0 | D14: 0 | E14: =ROUND(_xlfn.IFNA(S14,IFERROR(INDEX('Savings Summary'!$P$8:$P$50,MATCH($B$9,'Savings Summary'!$C$8:$C$50,0))*D14+ INDEX('Savings Summary'!$N$8:$N$50,MATCH($B$9,'Savings Summary'!$C$8:$C$50,0))*B14+ INDEX('Savings Summary'!$O$8:$O$50,MATCH($B$9,'Savings Summary'!$C$8:$C$50,0))*C14,2)),2) -> 0 | M14: =IF(G14="Door Sweep",3,H14)*F14 -> 0 | N14: =IF(OR(I14="",J14=""),0,IFERROR(INDEX('Lookup tables'!$E$689:$AB$694,MATCH(State&SelectedZone,'Lookup tables'!$D$689:$D$694,0),MATCH(I14,DoorGap,0)),0)) -> 0 | O14: =IFERROR(IF(OR(J14="Gas or None",J14="",I14=""),0,INDEX('Lookup tables'!$E$689:$AB$694,MATCH(State&SelectedZone,'Lookup tables'!$D$689:$D$694,0),IF(J14="Electric Resistance",4,8)+MATCH(I14,DoorGap,0))),0) -> 0 | P14: =IFERROR(IF(OR(J14="Gas or None",J14="",I14=""),0,INDEX('Lookup tables'!$E$689:$AB$694,MATCH(State&SelectedZone,'Lookup tables'!$D$689:$D$694,0),IF(J14="Electric Resistance",16,20)+MATCH(I14,DoorGap,0))),0)*M14 -> 0 | Q14: =IF(OR(I14="",J14=""),0,IFERROR(INDEX('Lookup tables'!$E$689:$AB$694,MATCH(State&SelectedZone,'Lookup tables'!$D$689:$D$694,0),12+MATCH(I14,DoorGap,0)),0))*IF(G14="Door Sweep",3,H14)*M14 -> 0 | R14: =IF(OR(I14="",J14=""),0,IFERROR(INDEX('Lookup tables'!$E$689:$AG$694,MATCH(State&SelectedZone,'Lookup tables'!$D$689:$D$694,0),24+MATCH(I14,DoorGap,0)),0))*M14 -> 0 | S14: =IF(D14=0,0,IF(G14="Door Sweep",'Utility Admin'!$O$2,IF(G14="Weather Stripping",'Utility Admin'!$P$2,0))*'HVAC & Envelope'!F14) -> 0 | T14: TRUE
A15: HIDE | B15: =SUM(B11:B14) -> 0 | C15: =SUM(C11:C14) -> 0 | D15: =SUM(D11:D14) -> 0 | E15: =SUM(E11:E14) -> 0 | F15: *Double doors count as 2 doors. | P15: =SUM(P11:P14) -> 0 | Q15: =SUM(Q11:Q14) -> 0 | S15: =SUM(S11:S14) -> 0 | T15: TRUE
B16: Window Film Treatment
A17: HIDE | B17: Peak kW | C17: NCP kW | D17: kWh | E17: Uncapped Incentive | F17: Area of Window Film (square feet) | G17: Window Orientation | H17: Existing Window Type | I17: Post Shading Coefficient (from manufacturer specs) | J17: HVAC Type | K17: HVAC Installation Year | M17: SHG | N17: SHGF | O17: SHGF NCP | P17: SCpre | Q17: SCpost | R17: Conversion Factor (Btu/kW) | S17: COP | T17: kWh
A18: HIDE | B18: =ROUND(IFERROR(IF(I18="",0,F18*N18*(P18-Q18)/(R18*S18)),0),3) -> 0 | C18: =ROUND(IFERROR(IF(I18="",0,F18*O18*(P18-Q18)/(R18*S18)),0),3) -> 0 | D18: =ROUND(IFERROR(IF(I18="",0,T18),0),0) -> 0 | E18: =ROUND(IFERROR(INDEX('Savings Summary'!$P$8:$P$50,MATCH($B$16,'Savings Summary'!$C$8:$C$50,0))*D18+ INDEX('Savings Summary'!$N$8:$N$50,MATCH($B$16,'Savings Summary'!$C$8:$C$50,0))*B18+ INDEX('Savings Summary'!$O$8:$O$50,MATCH($B$16,'Savings Summary'!$C$8:$C$50,0))*C18,0),2) -> 0 | M18: =VLOOKUP(G18,'Lookup tables'!$D$529:$E$537,2,FALSE) ->  | N18: =VLOOKUP(G18,'Lookup tables'!$D$529:$K$537,MATCH(State&SelectedZone,'Lookup tables'!$D$528:$K$528,0),FALSE) ->  | O18: =INDEX('Lookup tables'!L$529:L$537,MATCH('HVAC & Envelope'!G18,Orientation,0)) ->  | P18: =INDEX('Lookup tables'!P$529:P$532,MATCH('HVAC & Envelope'!H18,WindowFilmExistingWindowType,0)) ->  | Q18: =I18 -> 0 | R18: 3413 | S18: =INDEX('Lookup tables'!S$530:V$532,MATCH('HVAC & Envelope'!K18,WindowFilmConstruction,0),MATCH('HVAC & Envelope'!J18,WindowFilmHVACType,0)) ->  | T18: =F18*M18*(P18-Q18)/(R18*S18) -> 
A19: HIDE | B19: =ROUND(IFERROR(IF(I19="",0,F19*N19*(P19-Q19)/(R19*S19)),0),3) -> 0 | C19: =ROUND(IFERROR(IF(I19="",0,F19*O19*(P19-Q19)/(R19*S19)),0),3) -> 0 | D19: =ROUND(IFERROR(IF(I19="",0,T19),0),0) -> 0 | E19: =ROUND(IFERROR(INDEX('Savings Summary'!$P$8:$P$50,MATCH($B$16,'Savings Summary'!$C$8:$C$50,0))*D19+ INDEX('Savings Summary'!$N$8:$N$50,MATCH($B$16,'Savings Summary'!$C$8:$C$50,0))*B19+ INDEX('Savings Summary'!$O$8:$O$50,MATCH($B$16,'Savings Summary'!$C$8:$C$50,0))*C19,0),2) -> 0 | M19: =VLOOKUP(G19,'Lookup tables'!$D$529:$E$537,2,FALSE) ->  | N19: =VLOOKUP(G19,'Lookup tables'!$D$529:$K$537,MATCH(State&SelectedZone,'Lookup tables'!$D$528:$K$528,0),FALSE) ->  | O19: =INDEX('Lookup tables'!L$529:L$537,MATCH('HVAC & Envelope'!G19,Orientation,0)) ->  | P19: =INDEX('Lookup tables'!P$529:P$532,MATCH('HVAC & Envelope'!H19,WindowFilmExistingWindowType,0)) ->  | Q19: =I19 -> 0 | R19: 3413 | S19: =INDEX('Lookup tables'!S$530:V$532,MATCH('HVAC & Envelope'!K19,WindowFilmConstruction,0),MATCH('HVAC & Envelope'!J19,WindowFilmHVACType,0)) ->  | T19: =F19*M19*(P19-Q19)/(R19*S19) -> 
A20: HIDE | B20: =ROUND(IFERROR(IF(I20="",0,F20*N20*(P20-Q20)/(R20*S20)),0),3) -> 0 | C20: =ROUND(IFERROR(IF(I20="",0,F20*O20*(P20-Q20)/(R20*S20)),0),3) -> 0 | D20: =ROUND(IFERROR(IF(I20="",0,T20),0),0) -> 0 | E20: =ROUND(IFERROR(INDEX('Savings Summary'!$P$8:$P$50,MATCH($B$16,'Savings Summary'!$C$8:$C$50,0))*D20+ INDEX('Savings Summary'!$N$8:$N$50,MATCH($B$16,'Savings Summary'!$C$8:$C$50,0))*B20+ INDEX('Savings Summary'!$O$8:$O$50,MATCH($B$16,'Savings Summary'!$C$8:$C$50,0))*C20,0),2) -> 0 | M20: =VLOOKUP(G20,'Lookup tables'!$D$529:$E$537,2,FALSE) ->  | N20: =VLOOKUP(G20,'Lookup tables'!$D$529:$K$537,MATCH(State&SelectedZone,'Lookup tables'!$D$528:$K$528,0),FALSE) ->  | O20: =INDEX('Lookup tables'!L$529:L$537,MATCH('HVAC & Envelope'!G20,Orientation,0)) ->  | P20: =INDEX('Lookup tables'!P$529:P$532,MATCH('HVAC & Envelope'!H20,WindowFilmExistingWindowType,0)) ->  | Q20: =I20 -> 0 | R20: 3413 | S20: =INDEX('Lookup tables'!S$530:V$532,MATCH('HVAC & Envelope'!K20,WindowFilmConstruction,0),MATCH('HVAC & Envelope'!J20,WindowFilmHVACType,0)) ->  | T20: =F20*M20*(P20-Q20)/(R20*S20) -> 
A21: HIDE | B21: =ROUND(IFERROR(IF(I21="",0,F21*N21*(P21-Q21)/(R21*S21)),0),3) -> 0 | C21: =ROUND(IFERROR(IF(I21="",0,F21*O21*(P21-Q21)/(R21*S21)),0),3) -> 0 | D21: =ROUND(IFERROR(IF(I21="",0,T21),0),0) -> 0 | E21: =ROUND(IFERROR(INDEX('Savings Summary'!$P$8:$P$50,MATCH($B$16,'Savings Summary'!$C$8:$C$50,0))*D21+ INDEX('Savings Summary'!$N$8:$N$50,MATCH($B$16,'Savings Summary'!$C$8:$C$50,0))*B21+ INDEX('Savings Summary'!$O$8:$O$50,MATCH($B$16,'Savings Summary'!$C$8:$C$50,0))*C21,0),2) -> 0 | M21: =VLOOKUP(G21,'Lookup tables'!$D$529:$E$537,2,FALSE) ->  | N21: =VLOOKUP(G21,'Lookup tables'!$D$529:$K$537,MATCH(State&SelectedZone,'Lookup tables'!$D$528:$K$528,0),FALSE) ->  | O21: =INDEX('Lookup tables'!L$529:L$537,MATCH('HVAC & Envelope'!G21,Orientation,0)) ->  | P21: =INDEX('Lookup tables'!P$529:P$532,MATCH('HVAC & Envelope'!H21,WindowFilmExistingWindowType,0)) ->  | Q21: =I21 -> 0 | R21: 3413 | S21: =INDEX('Lookup tables'!S$530:V$532,MATCH('HVAC & Envelope'!K21,WindowFilmConstruction,0),MATCH('HVAC & Envelope'!J21,WindowFilmHVACType,0)) ->  | T21: =F21*M21*(P21-Q21)/(R21*S21) -> 
A22: HIDE | B22: =ROUND(IFERROR(IF(I22="",0,F22*N22*(P22-Q22)/(R22*S22)),0),3) -> 0 | C22: =ROUND(IFERROR(IF(I22="",0,F22*O22*(P22-Q22)/(R22*S22)),0),3) -> 0 | D22: =ROUND(IFERROR(IF(I22="",0,T22),0),0) -> 0 | E22: =ROUND(IFERROR(INDEX('Savings Summary'!$P$8:$P$50,MATCH($B$16,'Savings Summary'!$C$8:$C$50,0))*D22+ INDEX('Savings Summary'!$N$8:$N$50,MATCH($B$16,'Savings Summary'!$C$8:$C$50,0))*B22+ INDEX('Savings Summary'!$O$8:$O$50,MATCH($B$16,'Savings Summary'!$C$8:$C$50,0))*C22,0),2) -> 0 | M22: =VLOOKUP(G22,'Lookup tables'!$D$529:$E$537,2,FALSE) ->  | N22: =VLOOKUP(G22,'Lookup tables'!$D$529:$K$537,MATCH(State&SelectedZone,'Lookup tables'!$D$528:$K$528,0),FALSE) ->  | O22: =INDEX('Lookup tables'!L$529:L$537,MATCH('HVAC & Envelope'!G22,Orientation,0)) ->  | P22: =INDEX('Lookup tables'!P$529:P$532,MATCH('HVAC & Envelope'!H22,WindowFilmExistingWindowType,0)) ->  | Q22: =I22 -> 0 | R22: 3413 | S22: =INDEX('Lookup tables'!S$530:V$532,MATCH('HVAC & Envelope'!K22,WindowFilmConstruction,0),MATCH('HVAC & Envelope'!J22,WindowFilmHVACType,0)) ->  | T22: =F22*M22*(P22-Q22)/(R22*S22) -> 
A23: HIDE | B23: =MAX(B18:B22) -> 0 | C23: =MAX(C18:C22) -> 0 | D23: =SUM(D18:D22) -> 0 | E23: =SUM(E18:E22) -> 0 | F23: Eligibility Criteria: | G23: ·Existing windows must have no solar films, solar screens, or interior shades ·Must not be shaded by exterior awnings, curtains, or overhangs | J23: Note: per the TRM, claimed peak demand savings are the maximum value across the various orientations, rather than being additive.
B24: HVAC Variable Frequency Drives (VFD's)
A25: HIDE | B25: Peak kW | C25: NCP kW | D25: kWh | E25: Uncapped Incentive | F25: Quantity | G25: Application | H25: Building Type | J25: Motor Size (HP) | K25: Existing Control Type (AHU Supply Fans Only) | M25: kWh/HP | N25: kW/HP Summer | O25: kW/HP Winter | P25: NCP kW/HP
A26: HIDE | B26: =ROUND(F26*J26*MAX(N26,O26),3) -> 0 | C26: =ROUND(F26*J26*P26,3) -> 0 | D26: =ROUND(F26*J26*M26,0) -> 0 | E26: =ROUND(IFERROR(INDEX('Savings Summary'!$P$8:$P$50,MATCH($B$24,'Savings Summary'!$C$8:$C$50,0))*D26+ INDEX('Savings Summary'!$N$8:$N$50,MATCH($B$24,'Savings Summary'!$C$8:$C$50,0))*B26+ INDEX('Savings Summary'!$O$8:$O$50,MATCH($B$24,'Savings Summary'!$C$8:$C$50,0))*C26,0),2) -> 0 | M26: =IFERROR(INDEX(VFDSavingsTable,MATCH(1,(State&SelectedZone='Lookup tables'!$D$300:$D$335)*('HVAC & Envelope'!G26='Lookup tables'!$E$300:$E$335)*('HVAC & Envelope'!K26='Lookup tables'!$F$300:$F$335),0),MATCH(1,('HVAC & Envelope'!H26='Lookup tables'!$G$298:$AP$298)*("kWh"='Lookup tables'!$G$299:$AR$299),0)),0) -> 0 | N26: =IF(G26="Hot Water Pump",0,IFERROR(INDEX(VFDSavingsTable,MATCH(1,(State&SelectedZone='Lookup tables'!$D$300:$D$335)*('HVAC & Envelope'!G26='Lookup tables'!$E$300:$E$335)*('HVAC & Envelope'!K26='Lookup tables'!$F$300:$F$335),0),MATCH(1,('HVAC & Envelope'!H26='Lookup tables'!$G$298:$AP$298)*("kW"='Lookup tables'!$G$299:$AR$299),0)),0)) -> 0 | O26: =IF(G26="Hot Water Pump",IFERROR(INDEX(VFDSavingsTable,MATCH(1,(State&SelectedZone='Lookup tables'!$D$300:$D$335)*('HVAC & Envelope'!G26='Lookup tables'!$E$300:$E$335)*('HVAC & Envelope'!K26='Lookup tables'!$F$300:$F$335),0),MATCH(1,('HVAC & Envelope'!H26='Lookup tables'!$G$298:$AP$298)*("kW"='Lookup tables'!$G$299:$AR$299),0)),0),0) -> 0 | P26: =IFERROR(INDEX(VFDSavingsTable,MATCH(1,(State&SelectedZone='Lookup tables'!$D$300:$D$335)*('HVAC & Envelope'!G26='Lookup tables'!$E$300:$E$335)*('HVAC & Envelope'!K26='Lookup tables'!$F$300:$F$335),0),MATCH(1,('HVAC & Envelope'!H26='Lookup tables'!$G$298:$BI$298)*("NCP kW"='Lookup tables'!$G$299:$BK$299),0)),0) -> 0
A27: HIDE | B27: 0 | C27: 0 | D27: 0 | E27: =ROUND(IFERROR(INDEX('Savings Summary'!$P$8:$P$50,MATCH($B$24,'Savings Summary'!$C$8:$C$50,0))*D27+ INDEX('Savings Summary'!$N$8:$N$50,MATCH($B$24,'Savings Summary'!$C$8:$C$50,0))*B27+ INDEX('Savings Summary'!$O$8:$O$50,MATCH($B$24,'Savings Summary'!$C$8:$C$50,0))*C27,0),2) -> 0 | M27: =IFERROR(INDEX(VFDSavingsTable,MATCH(1,(State&SelectedZone='Lookup tables'!$D$300:$D$335)*('HVAC & Envelope'!G27='Lookup tables'!$E$300:$E$335)*('HVAC & Envelope'!K27='Lookup tables'!$F$300:$F$335),0),MATCH(1,('HVAC & Envelope'!H27='Lookup tables'!$G$298:$AP$298)*("kWh"='Lookup tables'!$G$299:$AR$299),0)),0) -> 0 | N27: =IF(G27="Hot Water Pump",0,IFERROR(INDEX(VFDSavingsTable,MATCH(1,(State&SelectedZone='Lookup tables'!$D$300:$D$335)*('HVAC & Envelope'!G27='Lookup tables'!$E$300:$E$335)*('HVAC & Envelope'!K27='Lookup tables'!$F$300:$F$335),0),MATCH(1,('HVAC & Envelope'!H27='Lookup tables'!$G$298:$AP$298)*("kW"='Lookup tables'!$G$299:$AR$299),0)),0)) -> 0 | O27: =IF(G27="Hot Water Pump",IFERROR(INDEX(VFDSavingsTable,MATCH(1,(State&SelectedZone='Lookup tables'!$D$300:$D$335)*('HVAC & Envelope'!G27='Lookup tables'!$E$300:$E$335)*('HVAC & Envelope'!K27='Lookup tables'!$F$300:$F$335),0),MATCH(1,('HVAC & Envelope'!H27='Lookup tables'!$G$298:$AP$298)*("kW"='Lookup tables'!$G$299:$AR$299),0)),0),0) -> 0 | P27: =IFERROR(INDEX(VFDSavingsTable,MATCH(1,(State&SelectedZone='Lookup tables'!$D$300:$D$335)*('HVAC & Envelope'!G27='Lookup tables'!$E$300:$E$335)*('HVAC & Envelope'!K27='Lookup tables'!$F$300:$F$335),0),MATCH(1,('HVAC & Envelope'!H27='Lookup tables'!$G$298:$BI$298)*("NCP kW"='Lookup tables'!$G$299:$BK$299),0)),0) -> 0
A28: HIDE | B28: 0 | C28: 0 | D28: 0 | E28: =ROUND(IFERROR(INDEX('Savings Summary'!$P$8:$P$50,MATCH($B$24,'Savings Summary'!$C$8:$C$50,0))*D28+ INDEX('Savings Summary'!$N$8:$N$50,MATCH($B$24,'Savings Summary'!$C$8:$C$50,0))*B28+ INDEX('Savings Summary'!$O$8:$O$50,MATCH($B$24,'Savings Summary'!$C$8:$C$50,0))*C28,0),2) -> 0 | M28: =IFERROR(INDEX(VFDSavingsTable,MATCH(1,(State&SelectedZone='Lookup tables'!$D$300:$D$335)*('HVAC & Envelope'!G28='Lookup tables'!$E$300:$E$335)*('HVAC & Envelope'!K28='Lookup tables'!$F$300:$F$335),0),MATCH(1,('HVAC & Envelope'!H28='Lookup tables'!$G$298:$AP$298)*("kWh"='Lookup tables'!$G$299:$AR$299),0)),0) -> 0 | N28: =IF(G28="Hot Water Pump",0,IFERROR(INDEX(VFDSavingsTable,MATCH(1,(State&SelectedZone='Lookup tables'!$D$300:$D$335)*('HVAC & Envelope'!G28='Lookup tables'!$E$300:$E$335)*('HVAC & Envelope'!K28='Lookup tables'!$F$300:$F$335),0),MATCH(1,('HVAC & Envelope'!H28='Lookup tables'!$G$298:$AP$298)*("kW"='Lookup tables'!$G$299:$AR$299),0)),0)) -> 0 | O28: =IF(G28="Hot Water Pump",IFERROR(INDEX(VFDSavingsTable,MATCH(1,(State&SelectedZone='Lookup tables'!$D$300:$D$335)*('HVAC & Envelope'!G28='Lookup tables'!$E$300:$E$335)*('HVAC & Envelope'!K28='Lookup tables'!$F$300:$F$335),0),MATCH(1,('HVAC & Envelope'!H28='Lookup tables'!$G$298:$AP$298)*("kW"='Lookup tables'!$G$299:$AR$299),0)),0),0) -> 0 | P28: =IFERROR(INDEX(VFDSavingsTable,MATCH(1,(State&SelectedZone='Lookup tables'!$D$300:$D$335)*('HVAC & Envelope'!G28='Lookup tables'!$E$300:$E$335)*('HVAC & Envelope'!K28='Lookup tables'!$F$300:$F$335),0),MATCH(1,('HVAC & Envelope'!H28='Lookup tables'!$G$298:$BI$298)*("NCP kW"='Lookup tables'!$G$299:$BK$299),0)),0) -> 0
A29: HIDE | B29: 0 | C29: 0 | D29: 0 | E29: =ROUND(IFERROR(INDEX('Savings Summary'!$P$8:$P$50,MATCH($B$24,'Savings Summary'!$C$8:$C$50,0))*D29+ INDEX('Savings Summary'!$N$8:$N$50,MATCH($B$24,'Savings Summary'!$C$8:$C$50,0))*B29+ INDEX('Savings Summary'!$O$8:$O$50,MATCH($B$24,'Savings Summary'!$C$8:$C$50,0))*C29,0),2) -> 0 | M29: =IFERROR(INDEX(VFDSavingsTable,MATCH(1,(State&SelectedZone='Lookup tables'!$D$300:$D$335)*('HVAC & Envelope'!G29='Lookup tables'!$E$300:$E$335)*('HVAC & Envelope'!K29='Lookup tables'!$F$300:$F$335),0),MATCH(1,('HVAC & Envelope'!H29='Lookup tables'!$G$298:$AP$298)*("kWh"='Lookup tables'!$G$299:$AR$299),0)),0) -> 0 | N29: =IF(G29="Hot Water Pump",0,IFERROR(INDEX(VFDSavingsTable,MATCH(1,(State&SelectedZone='Lookup tables'!$D$300:$D$335)*('HVAC & Envelope'!G29='Lookup tables'!$E$300:$E$335)*('HVAC & Envelope'!K29='Lookup tables'!$F$300:$F$335),0),MATCH(1,('HVAC & Envelope'!H29='Lookup tables'!$G$298:$AP$298)*("kW"='Lookup tables'!$G$299:$AR$299),0)),0)) -> 0 | O29: =IF(G29="Hot Water Pump",IFERROR(INDEX(VFDSavingsTable,MATCH(1,(State&SelectedZone='Lookup tables'!$D$300:$D$335)*('HVAC & Envelope'!G29='Lookup tables'!$E$300:$E$335)*('HVAC & Envelope'!K29='Lookup tables'!$F$300:$F$335),0),MATCH(1,('HVAC & Envelope'!H29='Lookup tables'!$G$298:$AP$298)*("kW"='Lookup tables'!$G$299:$AR$299),0)),0),0) -> 0 | P29: =IFERROR(INDEX(VFDSavingsTable,MATCH(1,(State&SelectedZone='Lookup tables'!$D$300:$D$335)*('HVAC & Envelope'!G29='Lookup tables'!$E$300:$E$335)*('HVAC & Envelope'!K29='Lookup tables'!$F$300:$F$335),0),MATCH(1,('HVAC & Envelope'!H29='Lookup tables'!$G$298:$BI$298)*("NCP kW"='Lookup tables'!$G$299:$BK$299),0)),0) -> 0
A30: HIDE | B30: 0 | C30: 0 | D30: 0 | E30: =ROUND(IFERROR(INDEX('Savings Summary'!$P$8:$P$50,MATCH($B$24,'Savings Summary'!$C$8:$C$50,0))*D30+ INDEX('Savings Summary'!$N$8:$N$50,MATCH($B$24,'Savings Summary'!$C$8:$C$50,0))*B30+ INDEX('Savings Summary'!$O$8:$O$50,MATCH($B$24,'Savings Summary'!$C$8:$C$50,0))*C30,0),2) -> 0 | M30: =IFERROR(INDEX(VFDSavingsTable,MATCH(1,(State&SelectedZone='Lookup tables'!$D$300:$D$335)*('HVAC & Envelope'!G30='Lookup tables'!$E$300:$E$335)*('HVAC & Envelope'!K30='Lookup tables'!$F$300:$F$335),0),MATCH(1,('HVAC & Envelope'!H30='Lookup tables'!$G$298:$AP$298)*("kWh"='Lookup tables'!$G$299:$AR$299),0)),0) -> 0 | N30: =IF(G30="Hot Water Pump",0,IFERROR(INDEX(VFDSavingsTable,MATCH(1,(State&SelectedZone='Lookup tables'!$D$300:$D$335)*('HVAC & Envelope'!G30='Lookup tables'!$E$300:$E$335)*('HVAC & Envelope'!K30='Lookup tables'!$F$300:$F$335),0),MATCH(1,('HVAC & Envelope'!H30='Lookup tables'!$G$298:$AP$298)*("kW"='Lookup tables'!$G$299:$AR$299),0)),0)) -> 0 | O30: =IF(G30="Hot Water Pump",IFERROR(INDEX(VFDSavingsTable,MATCH(1,(State&SelectedZone='Lookup tables'!$D$300:$D$335)*('HVAC & Envelope'!G30='Lookup tables'!$E$300:$E$335)*('HVAC & Envelope'!K30='Lookup tables'!$F$300:$F$335),0),MATCH(1,('HVAC & Envelope'!H30='Lookup tables'!$G$298:$AP$298)*("kW"='Lookup tables'!$G$299:$AR$299),0)),0),0) -> 0 | P30: =IFERROR(INDEX(VFDSavingsTable,MATCH(1,(State&SelectedZone='Lookup tables'!$D$300:$D$335)*('HVAC & Envelope'!G30='Lookup tables'!$E$300:$E$335)*('HVAC & Envelope'!K30='Lookup tables'!$F$300:$F$335),0),MATCH(1,('HVAC & Envelope'!H30='Lookup tables'!$G$298:$BI$298)*("NCP kW"='Lookup tables'!$G$299:$BK$299),0)),0) -> 0
A31: HIDE | B31: 0 | C31: 0 | D31: 0 | E31: =ROUND(IFERROR(INDEX('Savings Summary'!$P$8:$P$50,MATCH($B$24,'Savings Summary'!$C$8:$C$50,0))*D31+ INDEX('Savings Summary'!$N$8:$N$50,MATCH($B$24,'Savings Summary'!$C$8:$C$50,0))*B31+ INDEX('Savings Summary'!$O$8:$O$50,MATCH($B$24,'Savings Summary'!$C$8:$C$50,0))*C31,0),2) -> 0 | M31: =IFERROR(INDEX(VFDSavingsTable,MATCH(1,(State&SelectedZone='Lookup tables'!$D$300:$D$335)*('HVAC & Envelope'!G31='Lookup tables'!$E$300:$E$335)*('HVAC & Envelope'!K31='Lookup tables'!$F$300:$F$335),0),MATCH(1,('HVAC & Envelope'!H31='Lookup tables'!$G$298:$AP$298)*("kWh"='Lookup tables'!$G$299:$AR$299),0)),0) -> 0 | N31: =IF(G31="Hot Water Pump",0,IFERROR(INDEX(VFDSavingsTable,MATCH(1,(State&SelectedZone='Lookup tables'!$D$300:$D$335)*('HVAC & Envelope'!G31='Lookup tables'!$E$300:$E$335)*('HVAC & Envelope'!K31='Lookup tables'!$F$300:$F$335),0),MATCH(1,('HVAC & Envelope'!H31='Lookup tables'!$G$298:$AP$298)*("kW"='Lookup tables'!$G$299:$AR$299),0)),0)) -> 0 | O31: =IF(G31="Hot Water Pump",IFERROR(INDEX(VFDSavingsTable,MATCH(1,(State&SelectedZone='Lookup tables'!$D$300:$D$335)*('HVAC & Envelope'!G31='Lookup tables'!$E$300:$E$335)*('HVAC & Envelope'!K31='Lookup tables'!$F$300:$F$335),0),MATCH(1,('HVAC & Envelope'!H31='Lookup tables'!$G$298:$AP$298)*("kW"='Lookup tables'!$G$299:$AR$299),0)),0),0) -> 0 | P31: =IFERROR(INDEX(VFDSavingsTable,MATCH(1,(State&SelectedZone='Lookup tables'!$D$300:$D$335)*('HVAC & Envelope'!G31='Lookup tables'!$E$300:$E$335)*('HVAC & Envelope'!K31='Lookup tables'!$F$300:$F$335),0),MATCH(1,('HVAC & Envelope'!H31='Lookup tables'!$G$298:$BI$298)*("NCP kW"='Lookup tables'!$G$299:$BK$299),0)),0) -> 0
A32: HIDE | B32: 0 | C32: 0 | D32: 0 | E32: =ROUND(IFERROR(INDEX('Savings Summary'!$P$8:$P$50,MATCH($B$24,'Savings Summary'!$C$8:$C$50,0))*D32+ INDEX('Savings Summary'!$N$8:$N$50,MATCH($B$24,'Savings Summary'!$C$8:$C$50,0))*B32+ INDEX('Savings Summary'!$O$8:$O$50,MATCH($B$24,'Savings Summary'!$C$8:$C$50,0))*C32,0),2) -> 0 | M32: =IFERROR(INDEX(VFDSavingsTable,MATCH(1,(State&SelectedZone='Lookup tables'!$D$300:$D$335)*('HVAC & Envelope'!G32='Lookup tables'!$E$300:$E$335)*('HVAC & Envelope'!K32='Lookup tables'!$F$300:$F$335),0),MATCH(1,('HVAC & Envelope'!H32='Lookup tables'!$G$298:$AP$298)*("kWh"='Lookup tables'!$G$299:$AR$299),0)),0) -> 0 | N32: =IF(G32="Hot Water Pump",0,IFERROR(INDEX(VFDSavingsTable,MATCH(1,(State&SelectedZone='Lookup tables'!$D$300:$D$335)*('HVAC & Envelope'!G32='Lookup tables'!$E$300:$E$335)*('HVAC & Envelope'!K32='Lookup tables'!$F$300:$F$335),0),MATCH(1,('HVAC & Envelope'!H32='Lookup tables'!$G$298:$AP$298)*("kW"='Lookup tables'!$G$299:$AR$299),0)),0)) -> 0 | O32: =IF(G32="Hot Water Pump",IFERROR(INDEX(VFDSavingsTable,MATCH(1,(State&SelectedZone='Lookup tables'!$D$300:$D$335)*('HVAC & Envelope'!G32='Lookup tables'!$E$300:$E$335)*('HVAC & Envelope'!K32='Lookup tables'!$F$300:$F$335),0),MATCH(1,('HVAC & Envelope'!H32='Lookup tables'!$G$298:$AP$298)*("kW"='Lookup tables'!$G$299:$AR$299),0)),0),0) -> 0 | P32: =IFERROR(INDEX(VFDSavingsTable,MATCH(1,(State&SelectedZone='Lookup tables'!$D$300:$D$335)*('HVAC & Envelope'!G32='Lookup tables'!$E$300:$E$335)*('HVAC & Envelope'!K32='Lookup tables'!$F$300:$F$335),0),MATCH(1,('HVAC & Envelope'!H32='Lookup tables'!$G$298:$BI$298)*("NCP kW"='Lookup tables'!$G$299:$BK$299),0)),0) -> 0
A33: HIDE | B33: 0 | C33: 0 | D33: 0 | E33: =ROUND(IFERROR(INDEX('Savings Summary'!$P$8:$P$50,MATCH($B$24,'Savings Summary'!$C$8:$C$50,0))*D33+ INDEX('Savings Summary'!$N$8:$N$50,MATCH($B$24,'Savings Summary'!$C$8:$C$50,0))*B33+ INDEX('Savings Summary'!$O$8:$O$50,MATCH($B$24,'Savings Summary'!$C$8:$C$50,0))*C33,0),2) -> 0 | M33: =IFERROR(INDEX(VFDSavingsTable,MATCH(1,(State&SelectedZone='Lookup tables'!$D$300:$D$335)*('HVAC & Envelope'!G33='Lookup tables'!$E$300:$E$335)*('HVAC & Envelope'!K33='Lookup tables'!$F$300:$F$335),0),MATCH(1,('HVAC & Envelope'!H33='Lookup tables'!$G$298:$AP$298)*("kWh"='Lookup tables'!$G$299:$AR$299),0)),0) -> 0 | N33: =IF(G33="Hot Water Pump",0,IFERROR(INDEX(VFDSavingsTable,MATCH(1,(State&SelectedZone='Lookup tables'!$D$300:$D$335)*('HVAC & Envelope'!G33='Lookup tables'!$E$300:$E$335)*('HVAC & Envelope'!K33='Lookup tables'!$F$300:$F$335),0),MATCH(1,('HVAC & Envelope'!H33='Lookup tables'!$G$298:$AP$298)*("kW"='Lookup tables'!$G$299:$AR$299),0)),0)) -> 0 | O33: =IF(G33="Hot Water Pump",IFERROR(INDEX(VFDSavingsTable,MATCH(1,(State&SelectedZone='Lookup tables'!$D$300:$D$335)*('HVAC & Envelope'!G33='Lookup tables'!$E$300:$E$335)*('HVAC & Envelope'!K33='Lookup tables'!$F$300:$F$335),0),MATCH(1,('HVAC & Envelope'!H33='Lookup tables'!$G$298:$AP$298)*("kW"='Lookup tables'!$G$299:$AR$299),0)),0),0) -> 0 | P33: =IFERROR(INDEX(VFDSavingsTable,MATCH(1,(State&SelectedZone='Lookup tables'!$D$300:$D$335)*('HVAC & Envelope'!G33='Lookup tables'!$E$300:$E$335)*('HVAC & Envelope'!K33='Lookup tables'!$F$300:$F$335),0),MATCH(1,('HVAC & Envelope'!H33='Lookup tables'!$G$298:$BI$298)*("NCP kW"='Lookup tables'!$G$299:$BK$299),0)),0) -> 0
A34: HIDE | B34: 0 | C34: 0 | D34: 0 | E34: =ROUND(IFERROR(INDEX('Savings Summary'!$P$8:$P$50,MATCH($B$24,'Savings Summary'!$C$8:$C$50,0))*D34+ INDEX('Savings Summary'!$N$8:$N$50,MATCH($B$24,'Savings Summary'!$C$8:$C$50,0))*B34+ INDEX('Savings Summary'!$O$8:$O$50,MATCH($B$24,'Savings Summary'!$C$8:$C$50,0))*C34,0),2) -> 0 | M34: =IFERROR(INDEX(VFDSavingsTable,MATCH(1,(State&SelectedZone='Lookup tables'!$D$300:$D$335)*('HVAC & Envelope'!G34='Lookup tables'!$E$300:$E$335)*('HVAC & Envelope'!K34='Lookup tables'!$F$300:$F$335),0),MATCH(1,('HVAC & Envelope'!H34='Lookup tables'!$G$298:$AP$298)*("kWh"='Lookup tables'!$G$299:$AR$299),0)),0) -> 0 | N34: =IF(G34="Hot Water Pump",0,IFERROR(INDEX(VFDSavingsTable,MATCH(1,(State&SelectedZone='Lookup tables'!$D$300:$D$335)*('HVAC & Envelope'!G34='Lookup tables'!$E$300:$E$335)*('HVAC & Envelope'!K34='Lookup tables'!$F$300:$F$335),0),MATCH(1,('HVAC & Envelope'!H34='Lookup tables'!$G$298:$AP$298)*("kW"='Lookup tables'!$G$299:$AR$299),0)),0)) -> 0 | O34: =IF(G34="Hot Water Pump",IFERROR(INDEX(VFDSavingsTable,MATCH(1,(State&SelectedZone='Lookup tables'!$D$300:$D$335)*('HVAC & Envelope'!G34='Lookup tables'!$E$300:$E$335)*('HVAC & Envelope'!K34='Lookup tables'!$F$300:$F$335),0),MATCH(1,('HVAC & Envelope'!H34='Lookup tables'!$G$298:$AP$298)*("kW"='Lookup tables'!$G$299:$AR$299),0)),0),0) -> 0 | P34: =IFERROR(INDEX(VFDSavingsTable,MATCH(1,(State&SelectedZone='Lookup tables'!$D$300:$D$335)*('HVAC & Envelope'!G34='Lookup tables'!$E$300:$E$335)*('HVAC & Envelope'!K34='Lookup tables'!$F$300:$F$335),0),MATCH(1,('HVAC & Envelope'!H34='Lookup tables'!$G$298:$BI$298)*("NCP kW"='Lookup tables'!$G$299:$BK$299),0)),0) -> 0
A35: HIDE | B35: 0 | C35: 0 | D35: 0 | E35: =ROUND(IFERROR(INDEX('Savings Summary'!$P$8:$P$50,MATCH($B$24,'Savings Summary'!$C$8:$C$50,0))*D35+ INDEX('Savings Summary'!$N$8:$N$50,MATCH($B$24,'Savings Summary'!$C$8:$C$50,0))*B35+ INDEX('Savings Summary'!$O$8:$O$50,MATCH($B$24,'Savings Summary'!$C$8:$C$50,0))*C35,0),2) -> 0 | M35: =IFERROR(INDEX(VFDSavingsTable,MATCH(1,(State&SelectedZone='Lookup tables'!$D$300:$D$335)*('HVAC & Envelope'!G35='Lookup tables'!$E$300:$E$335)*('HVAC & Envelope'!K35='Lookup tables'!$F$300:$F$335),0),MATCH(1,('HVAC & Envelope'!H35='Lookup tables'!$G$298:$AP$298)*("kWh"='Lookup tables'!$G$299:$AR$299),0)),0) -> 0 | N35: =IF(G35="Hot Water Pump",0,IFERROR(INDEX(VFDSavingsTable,MATCH(1,(State&SelectedZone='Lookup tables'!$D$300:$D$335)*('HVAC & Envelope'!G35='Lookup tables'!$E$300:$E$335)*('HVAC & Envelope'!K35='Lookup tables'!$F$300:$F$335),0),MATCH(1,('HVAC & Envelope'!H35='Lookup tables'!$G$298:$AP$298)*("kW"='Lookup tables'!$G$299:$AR$299),0)),0)) -> 0 | O35: =IF(G35="Hot Water Pump",IFERROR(INDEX(VFDSavingsTable,MATCH(1,(State&SelectedZone='Lookup tables'!$D$300:$D$335)*('HVAC & Envelope'!G35='Lookup tables'!$E$300:$E$335)*('HVAC & Envelope'!K35='Lookup tables'!$F$300:$F$335),0),MATCH(1,('HVAC & Envelope'!H35='Lookup tables'!$G$298:$AP$298)*("kW"='Lookup tables'!$G$299:$AR$299),0)),0),0) -> 0 | P35: =IFERROR(INDEX(VFDSavingsTable,MATCH(1,(State&SelectedZone='Lookup tables'!$D$300:$D$335)*('HVAC & Envelope'!G35='Lookup tables'!$E$300:$E$335)*('HVAC & Envelope'!K35='Lookup tables'!$F$300:$F$335),0),MATCH(1,('HVAC & Envelope'!H35='Lookup tables'!$G$298:$BI$298)*("NCP kW"='Lookup tables'!$G$299:$BK$299),0)),0) -> 0
A36: HIDE | B36: =SUM(B26:B35) -> 0 | C36: =SUM(C26:C35) -> 0 | D36: =SUM(D26:D35) -> 0 | E36: =SUM(E26:E35) -> 0 | F36: Eligibility Criteria: | G36: ·Retrofit Only ·AHU Supply Fans cannnot have Variable Pitch Blades | N36: =SUMPRODUCT(N26:N35,F26:F35,J26:J35) -> 0 | O36: =SUMPRODUCT(O26:O35,F26:F35,J26:J35) -> 0
B37: Condenser Air Evaporative Pre-Cooling
A38: HIDE | B38: Peak kW | C38: NCP kW | D38: kWh | E38: Uncapped Incentive | F38: Unit Quantity | G38: Building Type | H38: HVAC Equipment Type | I38: HVAC AHRI Capacity (Tons or Btu/h) | J38: HVAC AHRI Full-Load Efficiency* (EER or kW/ton) | K38: HVAC AHRI Part-Load Efficiency* (SEER, IEER, or kW/ton) | M38: DRF | N38: EFLH red | O38: Tons to use | P38: FL to use (kW/ton) | Q38: PL to use (kW/ton) | R38: kWh savings | S38: kW savings
A39: HIDE | B39: =ROUND(IFERROR(S39,0),3) -> 0 | C39: =ROUND(IFERROR(S39,0),3) -> 0 | D39: =ROUND(IFERROR(R39,0),0) -> 0 | E39: =ROUND(IFERROR(INDEX('Savings Summary'!$P$8:$P$50,MATCH($B$37,'Savings Summary'!$C$8:$C$50,0))*D39+ INDEX('Savings Summary'!$N$8:$N$50,MATCH($B$37,'Savings Summary'!$C$8:$C$50,0))*B39+ INDEX('Savings Summary'!$O$8:$O$50,MATCH($B$37,'Savings Summary'!$C$8:$C$50,0))*C39,0),2) -> 0 | M39: =INDEX('Lookup tables'!$E$341:$P$363,MATCH(G39,'Lookup tables'!$D$341:$D$363,0),MATCH(State&SelectedZone&IF(H39="Direct Expansion","DX",IF(H39="Air Cooled Chiller","ACC")),'Lookup tables'!$E$340:$P$340,0)) ->  | N39: =INDEX('Lookup tables'!$Q$341:$AB$363,MATCH(G39,'Lookup tables'!$D$341:$D$363,0),MATCH(State&SelectedZone&IF(H39="Direct Expansion","DX",IF(H39="Air Cooled Chiller","ACC")),'Lookup tables'!$E$340:$P$340,0)) ->  | O39: =IF(I39>1000,I39/12000,I39) -> 0 | P39: =IF(J39>4,12/J39,J39) -> 0 | Q39: 0 | R39: =O39*Q39*N39*F39 ->  | S39: =O39*P39*M39*F39 -> 
A40: HIDE | B40: =ROUND(IFERROR(S40,0),3) -> 0 | C40: =ROUND(IFERROR(S40,0),3) -> 0 | D40: =ROUND(IFERROR(R40,0),0) -> 0 | E40: =ROUND(IFERROR(INDEX('Savings Summary'!$P$8:$P$50,MATCH($B$37,'Savings Summary'!$C$8:$C$50,0))*D40+ INDEX('Savings Summary'!$N$8:$N$50,MATCH($B$37,'Savings Summary'!$C$8:$C$50,0))*B40+ INDEX('Savings Summary'!$O$8:$O$50,MATCH($B$37,'Savings Summary'!$C$8:$C$50,0))*C40,0),2) -> 0 | M40: =INDEX('Lookup tables'!$E$341:$P$363,MATCH(G40,'Lookup tables'!$D$341:$D$363,0),MATCH(State&SelectedZone&IF(H40="Direct Expansion","DX",IF(H40="Air Cooled Chiller","ACC")),'Lookup tables'!$E$340:$P$340,0)) ->  | N40: =INDEX('Lookup tables'!$Q$341:$AB$363,MATCH(G40,'Lookup tables'!$D$341:$D$363,0),MATCH(State&SelectedZone&IF(H40="Direct Expansion","DX",IF(H40="Air Cooled Chiller","ACC")),'Lookup tables'!$E$340:$P$340,0)) ->  | O40: =IF(I40>1000,I40/12000,I40) -> 0 | P40: 0 | Q40: 0 | R40: =O40*Q40*N40*F40 ->  | S40: =O40*P40*M40*F40 -> 
A41: HIDE | B41: 0 | C41: 0 | D41: 0 | E41: =ROUND(IFERROR(INDEX('Savings Summary'!$P$8:$P$50,MATCH($B$37,'Savings Summary'!$C$8:$C$50,0))*D41+ INDEX('Savings Summary'!$N$8:$N$50,MATCH($B$37,'Savings Summary'!$C$8:$C$50,0))*B41+ INDEX('Savings Summary'!$O$8:$O$50,MATCH($B$37,'Savings Summary'!$C$8:$C$50,0))*C41,0),2) -> 0 | M41: =INDEX('Lookup tables'!$E$341:$P$363,MATCH(G41,'Lookup tables'!$D$341:$D$363,0),MATCH(State&SelectedZone&IF(H41="Direct Expansion","DX",IF(H41="Air Cooled Chiller","ACC")),'Lookup tables'!$E$340:$P$340,0)) ->  | N41: =INDEX('Lookup tables'!$Q$341:$AB$363,MATCH(G41,'Lookup tables'!$D$341:$D$363,0),MATCH(State&SelectedZone&IF(H41="Direct Expansion","DX",IF(H41="Air Cooled Chiller","ACC")),'Lookup tables'!$E$340:$P$340,0)) ->  | O41: =IF(I41>1000,I41/12000,I41) -> 0 | P41: 0 | Q41: 0 | R41: =O41*Q41*N41*F41 ->  | S41: =O41*P41*M41*F41 -> 
A42: HIDE | B42: 0 | C42: 0 | D42: 0 | E42: =ROUND(IFERROR(INDEX('Savings Summary'!$P$8:$P$50,MATCH($B$37,'Savings Summary'!$C$8:$C$50,0))*D42+ INDEX('Savings Summary'!$N$8:$N$50,MATCH($B$37,'Savings Summary'!$C$8:$C$50,0))*B42+ INDEX('Savings Summary'!$O$8:$O$50,MATCH($B$37,'Savings Summary'!$C$8:$C$50,0))*C42,0),2) -> 0 | M42: =INDEX('Lookup tables'!$E$341:$P$363,MATCH(G42,'Lookup tables'!$D$341:$D$363,0),MATCH(State&SelectedZone&IF(H42="Direct Expansion","DX",IF(H42="Air Cooled Chiller","ACC")),'Lookup tables'!$E$340:$P$340,0)) ->  | N42: =INDEX('Lookup tables'!$Q$341:$AB$363,MATCH(G42,'Lookup tables'!$D$341:$D$363,0),MATCH(State&SelectedZone&IF(H42="Direct Expansion","DX",IF(H42="Air Cooled Chiller","ACC")),'Lookup tables'!$E$340:$P$340,0)) ->  | O42: =IF(I42>1000,I42/12000,I42) -> 0 | P42: 0 | Q42: 0 | R42: =O42*Q42*N42*F42 ->  | S42: =O42*P42*M42*F42 -> 
A43: HIDE | B43: 0 | C43: 0 | D43: 0 | E43: =ROUND(IFERROR(INDEX('Savings Summary'!$P$8:$P$50,MATCH($B$37,'Savings Summary'!$C$8:$C$50,0))*D43+ INDEX('Savings Summary'!$N$8:$N$50,MATCH($B$37,'Savings Summary'!$C$8:$C$50,0))*B43+ INDEX('Savings Summary'!$O$8:$O$50,MATCH($B$37,'Savings Summary'!$C$8:$C$50,0))*C43,0),2) -> 0 | M43: =INDEX('Lookup tables'!$E$341:$P$363,MATCH(G43,'Lookup tables'!$D$341:$D$363,0),MATCH(State&SelectedZone&IF(H43="Direct Expansion","DX",IF(H43="Air Cooled Chiller","ACC")),'Lookup tables'!$E$340:$P$340,0)) ->  | N43: =INDEX('Lookup tables'!$Q$341:$AB$363,MATCH(G43,'Lookup tables'!$D$341:$D$363,0),MATCH(State&SelectedZone&IF(H43="Direct Expansion","DX",IF(H43="Air Cooled Chiller","ACC")),'Lookup tables'!$E$340:$P$340,0)) ->  | O43: =IF(I43>1000,I43/12000,I43) -> 0 | P43: 0 | Q43: 0 | R43: =O43*Q43*N43*F43 ->  | S43: =O43*P43*M43*F43 -> 
A44: HIDE | B44: =SUM(B39:B43) -> 0 | C44: =SUM(C39:C43) -> 0 | D44: =SUM(D39:D43) -> 0 | E44: =SUM(E39:E43) -> 0 | F44: Eligibility Criteria: | G44: ·Must exceed evaporative effectiveness performance of 75% during peak weather conditions. | I44: *If unknown, reference the TX TRM 7.0 Vol 3: tables 2-25 through 2.29 for Air Conditioners & Heat Pumps, or tables 2-40 through 2-51 for Chillers.
B45: Lodging Occupancy Controls
A46: HIDE | B46: Peak kW | C46: NCP kW | D46: kWh | E46: Uncapped Incentive | F46: Number of Rooms | G46: Building Type | H46: Proposed Control Type | I46: Heating Type | J46: Temperature Offset Range
A47: HIDE | B47: =ROUND(IFERROR($F47*INDEX('Lookup tables'!$H$371:$AE$388,MATCH(State&SelectedZone&$G47,'Lookup tables'!$G$371:$G$388,0),MATCH($J47&$I47&$H47&B$25,'Lookup tables'!$H$370:$AE$370,0)),0),3) -> 0 | C47: =ROUND(IFERROR($F47*INDEX('Lookup tables'!$H$371:$AE$388,MATCH(State&SelectedZone&$G47,'Lookup tables'!$G$371:$G$388,0),MATCH($J47&$I47&$H47&C$25,'Lookup tables'!$H$370:$AE$370,0)),0),3) -> 0 | D47: =ROUND(IFERROR($F47*INDEX('Lookup tables'!$H$371:$AE$388,MATCH(State&SelectedZone&$G47,'Lookup tables'!$G$371:$G$388,0),MATCH($J47&$I47&$H47&D$25,'Lookup tables'!$H$370:$AE$370,0)),0),0) -> 0 | E47: =ROUND(IFERROR(INDEX('Savings Summary'!$P$8:$P$50,MATCH($B$45,'Savings Summary'!$C$8:$C$50,0))*D47+ INDEX('Savings Summary'!$N$8:$N$50,MATCH($B$45,'Savings Summary'!$C$8:$C$50,0))*B47+ INDEX('Savings Summary'!$O$8:$O$50,MATCH($B$45,'Savings Summary'!$C$8:$C$50,0))*C47,0),2) -> 0
A48: HIDE | B48: =ROUND(IFERROR($F48*INDEX('Lookup tables'!$H$371:$AE$388,MATCH(State&SelectedZone&$G48,'Lookup tables'!$G$371:$G$388,0),MATCH($J48&$I48&$H48&B$25,'Lookup tables'!$H$370:$AE$370,0)),0),3) -> 0 | C48: =ROUND(IFERROR($F48*INDEX('Lookup tables'!$H$371:$AE$388,MATCH(State&SelectedZone&$G48,'Lookup tables'!$G$371:$G$388,0),MATCH($J48&$I48&$H48&C$25,'Lookup tables'!$H$370:$AE$370,0)),0),3) -> 0 | D48: =ROUND(IFERROR($F48*INDEX('Lookup tables'!$H$371:$AE$388,MATCH(State&SelectedZone&$G48,'Lookup tables'!$G$371:$G$388,0),MATCH($J48&$I48&$H48&D$25,'Lookup tables'!$H$370:$AE$370,0)),0),0) -> 0 | E48: =ROUND(IFERROR(INDEX('Savings Summary'!$P$8:$P$50,MATCH($B$45,'Savings Summary'!$C$8:$C$50,0))*D48+ INDEX('Savings Summary'!$N$8:$N$50,MATCH($B$45,'Savings Summary'!$C$8:$C$50,0))*B48+ INDEX('Savings Summary'!$O$8:$O$50,MATCH($B$45,'Savings Summary'!$C$8:$C$50,0))*C48,0),2) -> 0
A49: HIDE | B49: =ROUND(IFERROR($F49*INDEX('Lookup tables'!$H$371:$AE$388,MATCH(State&SelectedZone&$G49,'Lookup tables'!$G$371:$G$388,0),MATCH($J49&$I49&$H49&B$25,'Lookup tables'!$H$370:$AE$370,0)),0),3) -> 0 | C49: =ROUND(IFERROR($F49*INDEX('Lookup tables'!$H$371:$AE$388,MATCH(State&SelectedZone&$G49,'Lookup tables'!$G$371:$G$388,0),MATCH($J49&$I49&$H49&C$25,'Lookup tables'!$H$370:$AE$370,0)),0),3) -> 0 | D49: =ROUND(IFERROR($F49*INDEX('Lookup tables'!$H$371:$AE$388,MATCH(State&SelectedZone&$G49,'Lookup tables'!$G$371:$G$388,0),MATCH($J49&$I49&$H49&D$25,'Lookup tables'!$H$370:$AE$370,0)),0),0) -> 0 | E49: =ROUND(IFERROR(INDEX('Savings Summary'!$P$8:$P$50,MATCH($B$45,'Savings Summary'!$C$8:$C$50,0))*D49+ INDEX('Savings Summary'!$N$8:$N$50,MATCH($B$45,'Savings Summary'!$C$8:$C$50,0))*B49+ INDEX('Savings Summary'!$O$8:$O$50,MATCH($B$45,'Savings Summary'!$C$8:$C$50,0))*C49,0),2) -> 0
A50: HIDE | B50: =SUM(B47:B49) -> 0 | C50: =SUM(C47:C49) -> 0 | D50: =SUM(D47:D49) -> 0 | E50: =SUM(E47:E49) -> 0
B51: Small Commercial Smart Thermostats | N51: Cooling Efficiency (kW/ton) | O51: Heating Efficiency (COP)
A52: HIDE | B52: Peak kW | C52: NCP kW | D52: kWh | E52: Uncapped Incentive | F52: Thermostat Quantity | G52: Building Type | H52: Baseline Control Strategy | I52: Controlled HVAC Capacity per t-stat (Tons or Btu/h) | J52: HVAC Part-Load Cooling Efficiency* (SEER, IEER, or kW/ton) | K52: HVAC Heating Efficiency* (HSPF or COP) | M52: Capacity (tons) | P52: BAF | Q52: CRF | R52: EFLH_c | S52: kWh_c | T52: HRF | U52: EFLH_h | V52: kWh_h | W52: DF_s | X52: kW_s
A53: HIDE | B53: =X53 -> 0 | C53: =B53 -> 0 | D53: =ROUND(S53+V53,0) -> 0 | E53: =ROUND(IFERROR(INDEX('Savings Summary'!$P$8:$P$50,MATCH($B$51,'Savings Summary'!$C$8:$C$50,0))*D53+ INDEX('Savings Summary'!$N$8:$N$50,MATCH($B$51,'Savings Summary'!$C$8:$C$50,0))*B53+ INDEX('Savings Summary'!$O$8:$O$50,MATCH($B$51,'Savings Summary'!$C$8:$C$50,0))*C53,0),2) -> 0 | M53: =I53/IF(I53>1000,12000,1) -> 0 | N53: =IF(J53>3,12/J53,J53) -> 0 | O53: =IF(K53>6,K53/3.412,K53) -> 0 | P53: =IFERROR(INDEX(BAF,MATCH(H53,tstatbaseline,0)),0) -> 0 | Q53: 0.1 | R53: =INDEX('Lookup tables'!E$397:X$422,MATCH(G53,'Lookup tables'!D$397:D$422,0),MATCH(State&SelectedZone&"EFLHc",'Lookup tables'!E$396:X$396,0)) ->  | S53: =IFERROR(F53*Q53*P53*M53*N53*R53,0) -> 0 | T53: 0.08 | U53: =INDEX('Lookup tables'!E$397:X$422,MATCH(G53,'Lookup tables'!D$397:D$422,0),MATCH(State&SelectedZone&"EFLHh",'Lookup tables'!E$396:X$396,0)) ->  | V53: =IFERROR(F53*T53*P53*M53/O53*U53*12/3.412,0) -> 0 | W53: =INDEX('Lookup tables'!E$397:X$422,MATCH(G53,'Lookup tables'!D$397:D$422,0),MATCH(State&SelectedZone&"DFs",'Lookup tables'!E$396:X$396,0)) ->  | X53: =IFERROR(F53*Q53*P53*M53*N53*W53,0) -> 0
A54: HIDE | B54: =X54 -> 0 | C54: =B54 -> 0 | D54: =ROUND(S54+V54,0) -> 0 | E54: =ROUND(IFERROR(INDEX('Savings Summary'!$P$8:$P$50,MATCH($B$51,'Savings Summary'!$C$8:$C$50,0))*D54+ INDEX('Savings Summary'!$N$8:$N$50,MATCH($B$51,'Savings Summary'!$C$8:$C$50,0))*B54+ INDEX('Savings Summary'!$O$8:$O$50,MATCH($B$51,'Savings Summary'!$C$8:$C$50,0))*C54,0),2) -> 0 | M54: =I54/IF(I54>1000,12000,1) -> 0 | N54: =IF(J54>3,12/J54,J54) -> 0 | O54: =IF(K54>6,K54/3.412,K54) -> 0 | P54: =IFERROR(INDEX(BAF,MATCH(H54,tstatbaseline,0)),0) -> 0 | Q54: 0.1 | R54: =INDEX('Lookup tables'!E$397:X$422,MATCH(G54,'Lookup tables'!D$397:D$422,0),MATCH(State&SelectedZone&"EFLHc",'Lookup tables'!E$396:X$396,0)) ->  | S54: =IFERROR(F54*Q54*P54*M54*N54*R54,0) -> 0 | T54: 0.08 | U54: =INDEX('Lookup tables'!E$397:X$422,MATCH(G54,'Lookup tables'!D$397:D$422,0),MATCH(State&SelectedZone&"EFLHh",'Lookup tables'!E$396:X$396,0)) ->  | V54: =IFERROR(F54*T54*P54*M54/O54*U54*12/3.412,0) -> 0 | W54: =INDEX('Lookup tables'!E$397:X$422,MATCH(G54,'Lookup tables'!D$397:D$422,0),MATCH(State&SelectedZone&"DFs",'Lookup tables'!E$396:X$396,0)) ->  | X54: =IFERROR(F54*Q54*P54*M54*N54*W54,0) -> 0
A55: HIDE | B55: 0 | C55: 0 | D55: =ROUND(S55+V55,0) -> 0 | E55: =ROUND(IFERROR(INDEX('Savings Summary'!$P$8:$P$50,MATCH($B$51,'Savings Summary'!$C$8:$C$50,0))*D55+ INDEX('Savings Summary'!$N$8:$N$50,MATCH($B$51,'Savings Summary'!$C$8:$C$50,0))*B55+ INDEX('Savings Summary'!$O$8:$O$50,MATCH($B$51,'Savings Summary'!$C$8:$C$50,0))*C55,0),2) -> 0 | M55: =I55/IF(I55>1000,12000,1) -> 0 | N55: =IF(J55>3,12/J55,J55) -> 0 | O55: =IF(K55>6,K55/3.412,K55) -> 0 | P55: =IFERROR(INDEX(BAF,MATCH(H55,tstatbaseline,0)),0) -> 0 | Q55: 0.1 | R55: =INDEX('Lookup tables'!E$397:X$422,MATCH(G55,'Lookup tables'!D$397:D$422,0),MATCH(State&SelectedZone&"EFLHc",'Lookup tables'!E$396:X$396,0)) ->  | S55: =IFERROR(F55*Q55*P55*M55*N55*R55,0) -> 0 | T55: 0.08 | U55: =INDEX('Lookup tables'!E$397:X$422,MATCH(G55,'Lookup tables'!D$397:D$422,0),MATCH(State&SelectedZone&"EFLHh",'Lookup tables'!E$396:X$396,0)) ->  | V55: =IFERROR(F55*T55*P55*M55/O55*U55*12/3.412,0) -> 0 | W55: =INDEX('Lookup tables'!E$397:X$422,MATCH(G55,'Lookup tables'!D$397:D$422,0),MATCH(State&SelectedZone&"DFs",'Lookup tables'!E$396:X$396,0)) ->  | X55: 0
A56: HIDE | B56: =SUM(B53:B55) -> 0 | C56: =SUM(C53:C55) -> 0 | D56: =SUM(D53:D55) -> 0 | E56: =SUM(E53:E55) -> 0 | I56: *If unknown, reference the TX TRM 10.0 Vol 3: Table 33
B57: High-Volume Low-Speed (HVLS) Fans
A58: HIDE | B58: Peak kW | C58: NCP kW | D58: kWh | E58: Uncapped Incentive | F58: Quantity | G58: Fan Motor Size (HP) | H58: Airflow (CFM) | M58: WbaseROB/NC | N58: Hours | O58: W_HVLS | P58: CF | Q58: kWh | R58: kW
A59: HIDE | B59: =ROUND(R59,3) -> 0 | C59: =B59 -> 0 | D59: =ROUND(Q59,0) -> 0 | E59: =ROUND(IFERROR(INDEX('Savings Summary'!$P$8:$P$50,MATCH($B$57,'Savings Summary'!$C$8:$C$50,0))*D59+ INDEX('Savings Summary'!$N$8:$N$50,MATCH($B$57,'Savings Summary'!$C$8:$C$50,0))*B59+ INDEX('Savings Summary'!$O$8:$O$50,MATCH($B$57,'Savings Summary'!$C$8:$C$50,0))*C59,0),2) -> 0 | M59: =H59/22 -> 0 | N59: =INDEX('Lookup tables'!E$426:E$431,MATCH(State&SelectedZone,'Lookup tables'!D$426:D$431,0)) -> 5375 | O59: =G59*746 -> 0 | P59: 1 | Q59: =IF(COUNTA(F59:H59)<3,0,F59*(M59-O59)/1000*N59) -> 0 | R59: =IF(COUNTA(F59:H59)<3,0,F59*(M59-O59)/1000*P59) -> 0
A60: HIDE | B60: =ROUND(R60,3) -> 0 | C60: =B60 -> 0 | D60: =ROUND(Q60,0) -> 0 | E60: =ROUND(IFERROR(INDEX('Savings Summary'!$P$8:$P$50,MATCH($B$57,'Savings Summary'!$C$8:$C$50,0))*D60+ INDEX('Savings Summary'!$N$8:$N$50,MATCH($B$57,'Savings Summary'!$C$8:$C$50,0))*B60+ INDEX('Savings Summary'!$O$8:$O$50,MATCH($B$57,'Savings Summary'!$C$8:$C$50,0))*C60,0),2) -> 0 | M60: =H60/22 -> 0 | N60: =INDEX('Lookup tables'!E$426:E$431,MATCH(State&SelectedZone,'Lookup tables'!D$426:D$431,0)) -> 5375 | O60: =G60*746 -> 0 | P60: 1 | Q60: =IF(COUNTA(F60:H60)<3,0,F60*(M60-O60)/1000*N60) -> 0 | R60: =IF(COUNTA(F60:H60)<3,0,F60*(M60-O60)/1000*P60) -> 0
A61: HIDE | B61: 0 | C61: 0 | D61: 0 | E61: =ROUND(IFERROR(INDEX('Savings Summary'!$P$8:$P$50,MATCH($B$57,'Savings Summary'!$C$8:$C$50,0))*D61+ INDEX('Savings Summary'!$N$8:$N$50,MATCH($B$57,'Savings Summary'!$C$8:$C$50,0))*B61+ INDEX('Savings Summary'!$O$8:$O$50,MATCH($B$57,'Savings Summary'!$C$8:$C$50,0))*C61,0),2) -> 0 | M61: =H61/22 -> 0 | N61: =INDEX('Lookup tables'!E$426:E$431,MATCH(State&SelectedZone,'Lookup tables'!D$426:D$431,0)) -> 5375 | O61: =G61*746 -> 0 | P61: 1 | Q61: =IF(COUNTA(F61:H61)<3,0,F61*(M61-O61)/1000*N61) -> 0 | R61: =IF(COUNTA(F61:H61)<3,0,F61*(M61-O61)/1000*P61) -> 0
A62: HIDE | B62: =SUM(B59:B61) -> 0 | C62: =SUM(C59:C61) -> 0 | D62: =SUM(D59:D61) -> 0 | E62: =SUM(E59:E61) -> 0
B63: ECM or VFD for Computer Room Air Handlers
A64: HIDE | B64: Peak kW | C64: NCP kW | D64: kWh | E64: Uncapped Incentive | F64: Quantity | G64: Existing Motor Size (HP) | H64: Efficient Motor Size (HP) (if different from existing) | M64: kWpre | N64: kW/ HPpost | O64: HPpost | P64: LF | Q64: eff | R64: Hours | S64: CF | T64: kWh | U64: kW
A65: HIDE | B65: =ROUND(U65,3) -> 0 | C65: =B65 -> 0 | D65: =ROUND(T65,0) -> 0 | E65: =ROUND(IFERROR(INDEX('Savings Summary'!$P$8:$P$50,MATCH($B$63,'Savings Summary'!$C$8:$C$50,0))*D65+ INDEX('Savings Summary'!$N$8:$N$50,MATCH($B$63,'Savings Summary'!$C$8:$C$50,0))*B65+ INDEX('Savings Summary'!$O$8:$O$50,MATCH($B$63,'Savings Summary'!$C$8:$C$50,0))*C65,0),2) -> 0 | M65: =0.746*G65*P65/Q65 ->  | N65: 0.27 | O65: =IF(H65="",G65,H65) -> 0 | P65: 0.75 | Q65: =INDEX(CRAHmotoreff,1,MATCH(G65,CRAHmotorsize,0)) ->  | R65: 8760 | S65: 0.11 | T65: =IFERROR((M65-N65*O65)*R65*F65,0) -> 0 | U65: =T65/R65*S65 -> 0
A66: HIDE | B66: =ROUND(U66,3) -> 0 | C66: =B66 -> 0 | D66: =ROUND(T66,0) -> 0 | E66: =ROUND(IFERROR(INDEX('Savings Summary'!$P$8:$P$50,MATCH($B$63,'Savings Summary'!$C$8:$C$50,0))*D66+ INDEX('Savings Summary'!$N$8:$N$50,MATCH($B$63,'Savings Summary'!$C$8:$C$50,0))*B66+ INDEX('Savings Summary'!$O$8:$O$50,MATCH($B$63,'Savings Summary'!$C$8:$C$50,0))*C66,0),2) -> 0 | M66: =0.746*G66*P66/Q66 ->  | N66: 0.27 | O66: =IF(H66="",G66,H66) -> 0 | P66: 0.75 | Q66: =INDEX(CRAHmotoreff,1,MATCH(G66,CRAHmotorsize,0)) ->  | R66: 8760 | S66: 0.11 | T66: =IFERROR((M66-N66*O66)*R66*F66,0) -> 0 | U66: =T66/R66*S66 -> 0
A67: HIDE | B67: 0 | C67: 0 | D67: 0 | E67: =ROUND(IFERROR(INDEX('Savings Summary'!$P$8:$P$50,MATCH($B$63,'Savings Summary'!$C$8:$C$50,0))*D67+ INDEX('Savings Summary'!$N$8:$N$50,MATCH($B$63,'Savings Summary'!$C$8:$C$50,0))*B67+ INDEX('Savings Summary'!$O$8:$O$50,MATCH($B$63,'Savings Summary'!$C$8:$C$50,0))*C67,0),2) -> 0 | M67: =0.746*G67*P67/Q67 ->  | N67: 0.27 | O67: =IF(H67="",G67,H67) -> 0 | P67: 0.75 | Q67: =INDEX(CRAHmotoreff,1,MATCH(G67,CRAHmotorsize,0)) ->  | R67: 8760 | S67: 0.11 | T67: =IFERROR((M67-N67*O67)*R67*F67,0) -> 0 | U67: 0
A68: HIDE | B68: =SUM(B65:B67) -> 0 | C68: =SUM(C65:C67) -> 0 | D68: =SUM(D65:D67) -> 0 | E68: =SUM(E65:E67) -> 0

Sheet Motors (hidden)
B1: Motors & Related Measures | N1: HIDE | O1: HIDE | P1: HIDE | Q1: HIDE | R1: HIDE | S1: HIDE | T1: HIDE | U1: HIDE | V1: HIDE | W1: HIDE | X1: HIDE | Y1: HIDE | Z1: HIDE | AA1: HIDE | AB1: HIDE | AC1: HIDE | AD1: HIDE | AE1: HIDE | AF1: HIDE | AG1: HIDE | AH1: HIDE | AI1: HIDE
B2: Click on headings to expand or collapse sections. Blue Peak kW values indicate winter peak.
B3: ENERGY STAR Commercial Pool Pumps
A4: HIDE | B4: Peak kW | C4: NCP kW | D4: kWh | E4: Uncapped Incentive | F4: Pump Quantity | G4: Rated Pump hp (New) | H4: Pool Operation
A5: HIDE | B5: =ROUND(IFERROR(INDEX('Lookup tables'!H$442:J$446,MATCH(Motors!G5,PoolPumpMotorSize,0),MATCH(Motors!H5,PoolPumpOperation,0))*Motors!F5,0),3) -> 0 | C5: =B5 -> 0 | D5: =ROUND(IFERROR(INDEX('Lookup tables'!E$442:G$446,MATCH(Motors!G5,PoolPumpMotorSize,0),MATCH(Motors!H5,PoolPumpOperation,0))*Motors!F5,0),0) -> 0 | E5: =ROUND(IFERROR(INDEX('Savings Summary'!$P$8:$P$50,MATCH($B$3,'Savings Summary'!$C$8:$C$50,0))*D5+ INDEX('Savings Summary'!$N$8:$N$50,MATCH($B$3,'Savings Summary'!$C$8:$C$50,0))*B5+ INDEX('Savings Summary'!$O$8:$O$50,MATCH($B$3,'Savings Summary'!$C$8:$C$50,0))*C5,0),2) -> 0
A6: HIDE | B6: =ROUND(IFERROR(INDEX('Lookup tables'!H$442:J$446,MATCH(Motors!G6,PoolPumpMotorSize,0),MATCH(Motors!H6,PoolPumpOperation,0))*Motors!F6,0),3) -> 0 | C6: =B6 -> 0 | D6: =ROUND(IFERROR(INDEX('Lookup tables'!E$442:G$446,MATCH(Motors!G6,PoolPumpMotorSize,0),MATCH(Motors!H6,PoolPumpOperation,0))*Motors!F6,0),0) -> 0 | E6: =ROUND(IFERROR(INDEX('Savings Summary'!$P$8:$P$50,MATCH($B$3,'Savings Summary'!$C$8:$C$50,0))*D6+ INDEX('Savings Summary'!$N$8:$N$50,MATCH($B$3,'Savings Summary'!$C$8:$C$50,0))*B6+ INDEX('Savings Summary'!$O$8:$O$50,MATCH($B$3,'Savings Summary'!$C$8:$C$50,0))*C6,0),2) -> 0
A7: HIDE | B7: =ROUND(IFERROR(INDEX('Lookup tables'!H$442:J$446,MATCH(Motors!G7,PoolPumpMotorSize,0),MATCH(Motors!H7,PoolPumpOperation,0))*Motors!F7,0),3) -> 0 | C7: 0 | D7: =ROUND(IFERROR(INDEX('Lookup tables'!E$442:G$446,MATCH(Motors!G7,PoolPumpMotorSize,0),MATCH(Motors!H7,PoolPumpOperation,0))*Motors!F7,0),0) -> 0 | E7: =ROUND(IFERROR(INDEX('Savings Summary'!$P$8:$P$50,MATCH($B$3,'Savings Summary'!$C$8:$C$50,0))*D7+ INDEX('Savings Summary'!$N$8:$N$50,MATCH($B$3,'Savings Summary'!$C$8:$C$50,0))*B7+ INDEX('Savings Summary'!$O$8:$O$50,MATCH($B$3,'Savings Summary'!$C$8:$C$50,0))*C7,0),2) -> 0
A8: HIDE | B8: =SUM(B5:B7) -> 0 | C8: =SUM(C5:C7) -> 0 | D8: =SUM(D5:D7) -> 0 | E8: =SUM(E5:E7) -> 0
B9: Premium Efficiency Motors
A10: HIDE | B10: Peak kW | C10: NCP kW | D10: kWh | E10: Uncapped Incentive | F10: Motor Quantity | G10: Application | H10: Replacement Type | I10: Age of Existing Motor (Years) (Early Retirement Only) | J10: New Motor Size (HP)* | K10: New Motor Type | L10: New Motor Efficiency | N10: LF | O10: Hrs | P10: CF | Q10: n_ER | R10: kWh_ER | S10: kW_ER | T10: n_ROB | U10: kWh_ROB | V10: kW_ROB | W10: RUL (1T) | X10: EUL | Y10: Years 2T | Z10: NPV kW 1T | AA10: NPV kW 2T | AB10: NPV kW Total | AC10: NPV kW EUL | AD10: kW | AE10: NPV kWh 1T | AF10: NPV kWh 2T | AG10: NPV kWh Total | AH10: NPV kWh EUL | AI10: kWh
A11: HIDE | B11: =ROUND(IFERROR(IF(H11="Early Retirement",AD11,V11),0),3) -> 0 | C11: =B11 -> 0 | D11: =ROUND(IFERROR(IF(H11="Early Retirement",AI11,U11),0),0) -> 0 | E11: =ROUND(IFERROR(INDEX('Savings Summary'!$P$8:$P$50,MATCH($B$9,'Savings Summary'!$C$8:$C$50,0))*D11+ INDEX('Savings Summary'!$N$8:$N$50,MATCH($B$9,'Savings Summary'!$C$8:$C$50,0))*B11+ INDEX('Savings Summary'!$O$8:$O$50,MATCH($B$9,'Savings Summary'!$C$8:$C$50,0))*C11,0),2) -> 0 | N11: =INDEX('Lookup tables'!E$451:P$464,MATCH(Motors!G11,MotorApplications,0),MATCH(Motors!J11,'Lookup tables'!E450:J450,1)) ->  | O11: =INDEX('Lookup tables'!K$451:P$464,MATCH(Motors!G11,MotorApplications,0),MATCH(Motors!J11,'Lookup tables'!E450:J450,1)) ->  | P11: 1 | Q11: =INDEX('Lookup tables'!K$469:P$493,MATCH(Motors!J11,MotorHP,0),MATCH(Motors!K11,MotorType,0)) ->  | R11: =F11*J11*0.746*N11*(1/Q11-1/L11)*O11 ->  | S11: =(R11/IF(IFERROR(SEARCH("Industrial",G11)>0,FALSE),8760,O11))*P11 ->  | T11: =INDEX(NEMAtable,MATCH(Motors!J11,MotorHP,0),MATCH(Motors!K11,MotorType,0)) ->  | U11: =F11*J11*0.746*N11*(1/T11-1/L11)*O11 ->  | V11: =(U11/IF(IFERROR(SEARCH("Industrial",G11)>0,FALSE),8760,O11))*P11 ->  | W11: =INDEX(MotorRUL,MATCH(I11,MotorAge,0)) ->  | X11: 15 | Y11: =X11-W11 ->  | Z11: =ACkW*(1+e)/(d-e)*(1-((1+e)/(1+d))^W11)*S11 ->  | AA11: =ACkW*(1+e)/(d-e)*(1-((1+e)/(1+d))^Y11)*(1+e)^W11/(1+d)^W11*V11 ->  | AB11: =Z11+AA11 ->  | AC11: =ACkW*(1+e)/(d-e)*(1-((1+e)/(1+d))^X11) -> 1873.876601 | AD11: =AB11/AC11 ->  | AE11: =ACkWh*(1+e)/(d-e)*(1-((1+e)/(1+d))^W11)*R11 ->  | AF11: =ACkWh*(1+e)/(d-e)*(1-((1+e)/(1+d))^Y11)*(1+e)^W11/(1+d)^W11*U11 ->  | AG11: =AE11+AF11 ->  | AH11: =ACkWh*(1+e)/(d-e)*(1-((1+e)/(1+d))^X11) -> 2.660904774 | AI11: =AG11/AH11 -> 
A12: HIDE | B12: =ROUND(IFERROR(IF(H12="Early Retirement",AD12,V12),0),3) -> 0 | C12: =B12 -> 0 | D12: =ROUND(IFERROR(IF(H12="Early Retirement",AI12,U12),0),0) -> 0 | E12: =ROUND(IFERROR(INDEX('Savings Summary'!$P$8:$P$50,MATCH($B$9,'Savings Summary'!$C$8:$C$50,0))*D12+ INDEX('Savings Summary'!$N$8:$N$50,MATCH($B$9,'Savings Summary'!$C$8:$C$50,0))*B12+ INDEX('Savings Summary'!$O$8:$O$50,MATCH($B$9,'Savings Summary'!$C$8:$C$50,0))*C12,0),2) -> 0 | N12: =INDEX('Lookup tables'!E$451:P$464,MATCH(Motors!G12,MotorApplications,0),MATCH(Motors!J12,'Lookup tables'!E451:J451,1)) ->  | O12: =INDEX('Lookup tables'!K$451:P$464,MATCH(Motors!G12,MotorApplications,0),MATCH(Motors!J12,'Lookup tables'!E451:J451,1)) ->  | P12: 1 | Q12: =INDEX('Lookup tables'!K$469:P$493,MATCH(Motors!J12,MotorHP,0),MATCH(Motors!K12,MotorType,0)) ->  | R12: =F12*J12*0.746*N12*(1/Q12-1/L12)*O12 ->  | S12: =(R12/IF(IFERROR(SEARCH("Industrial",G12)>0,FALSE),8760,O12))*P12 ->  | T12: =INDEX(NEMAtable,MATCH(Motors!J12,MotorHP,0),MATCH(Motors!K12,MotorType,0)) ->  | U12: =F12*J12*0.746*N12*(1/T12-1/L12)*O12 ->  | V12: =(U12/IF(IFERROR(SEARCH("Industrial",G12)>0,FALSE),8760,O12))*P12 ->  | W12: =INDEX(MotorRUL,MATCH(I12,MotorAge,0)) ->  | X12: 16 | Y12: =X12-W12 ->  | Z12: =ACkW*(1+e)/(d-e)*(1-((1+e)/(1+d))^W12)*S12 ->  | AA12: =ACkW*(1+e)/(d-e)*(1-((1+e)/(1+d))^Y12)*(1+e)^W12/(1+d)^W12*V12 ->  | AB12: =Z12+AA12 ->  | AC12: =ACkW*(1+e)/(d-e)*(1-((1+e)/(1+d))^X12) -> 2059.217368 | AD12: =AB12/AC12 ->  | AE12: =ACkWh*(1+e)/(d-e)*(1-((1+e)/(1+d))^W12)*R12 ->  | AF12: =ACkWh*(1+e)/(d-e)*(1-((1+e)/(1+d))^Y12)*(1+e)^W12/(1+d)^W12*U12 ->  | AG12: =AE12+AF12 ->  | AH12: =ACkWh*(1+e)/(d-e)*(1-((1+e)/(1+d))^X12) -> 2.924088663 | AI12: =AG12/AH12 -> 
A13: HIDE | B13: 0 | C13: 0 | D13: 0 | E13: =ROUND(IFERROR(INDEX('Savings Summary'!$P$8:$P$50,MATCH($B$9,'Savings Summary'!$C$8:$C$50,0))*D13+ INDEX('Savings Summary'!$N$8:$N$50,MATCH($B$9,'Savings Summary'!$C$8:$C$50,0))*B13+ INDEX('Savings Summary'!$O$8:$O$50,MATCH($B$9,'Savings Summary'!$C$8:$C$50,0))*C13,0),2) -> 0 | N13: =INDEX('Lookup tables'!E$451:P$464,MATCH(Motors!G13,MotorApplications,0),MATCH(Motors!J13,'Lookup tables'!E452:J452,1)) ->  | O13: =INDEX('Lookup tables'!K$451:P$464,MATCH(Motors!G13,MotorApplications,0),MATCH(Motors!J13,'Lookup tables'!E452:J452,1)) ->  | P13: 1 | Q13: =INDEX('Lookup tables'!K$469:P$493,MATCH(Motors!J13,MotorHP,0),MATCH(Motors!K13,MotorType,0)) ->  | T13: =INDEX(NEMAtable,MATCH(Motors!J13,MotorHP,0),MATCH(Motors!K13,MotorType,0)) ->  | W13: =INDEX(MotorRUL,MATCH(I13,MotorAge,0)) ->  | X13: 17 | Z13: =ACkW*(1+e)/(d-e)*(1-((1+e)/(1+d))^W13)*S13 ->  | AA13: =ACkW*(1+e)/(d-e)*(1-((1+e)/(1+d))^Y13)*(1+e)^W13/(1+d)^W13*V13 ->  | AC13: =ACkW*(1+e)/(d-e)*(1-((1+e)/(1+d))^X13) -> 2254.550546 | AE13: =ACkWh*(1+e)/(d-e)*(1-((1+e)/(1+d))^W13)*R13 ->  | AF13: =ACkWh*(1+e)/(d-e)*(1-((1+e)/(1+d))^Y13)*(1+e)^W13/(1+d)^W13*U13 ->  | AH13: =ACkWh*(1+e)/(d-e)*(1-((1+e)/(1+d))^X13) -> 3.201461775
A14: HIDE | B14: 0 | C14: 0 | D14: 0 | E14: =ROUND(IFERROR(INDEX('Savings Summary'!$P$8:$P$50,MATCH($B$9,'Savings Summary'!$C$8:$C$50,0))*D14+ INDEX('Savings Summary'!$N$8:$N$50,MATCH($B$9,'Savings Summary'!$C$8:$C$50,0))*B14+ INDEX('Savings Summary'!$O$8:$O$50,MATCH($B$9,'Savings Summary'!$C$8:$C$50,0))*C14,0),2) -> 0 | N14: =INDEX('Lookup tables'!E$451:P$464,MATCH(Motors!G14,MotorApplications,0),MATCH(Motors!J14,'Lookup tables'!E453:J453,1)) ->  | O14: =INDEX('Lookup tables'!K$451:P$464,MATCH(Motors!G14,MotorApplications,0),MATCH(Motors!J14,'Lookup tables'!E453:J453,1)) ->  | P14: 1 | Q14: =INDEX('Lookup tables'!K$469:P$493,MATCH(Motors!J14,MotorHP,0),MATCH(Motors!K14,MotorType,0)) ->  | T14: =INDEX(NEMAtable,MATCH(Motors!J14,MotorHP,0),MATCH(Motors!K14,MotorType,0)) ->  | W14: =INDEX(MotorRUL,MATCH(I14,MotorAge,0)) ->  | X14: 18 | Z14: =ACkW*(1+e)/(d-e)*(1-((1+e)/(1+d))^W14)*S14 ->  | AA14: =ACkW*(1+e)/(d-e)*(1-((1+e)/(1+d))^Y14)*(1+e)^W14/(1+d)^W14*V14 ->  | AC14: =ACkW*(1+e)/(d-e)*(1-((1+e)/(1+d))^X14) -> 2460.414863 | AE14: =ACkWh*(1+e)/(d-e)*(1-((1+e)/(1+d))^W14)*R14 ->  | AF14: =ACkWh*(1+e)/(d-e)*(1-((1+e)/(1+d))^Y14)*(1+e)^W14/(1+d)^W14*U14 ->  | AH14: =ACkWh*(1+e)/(d-e)*(1-((1+e)/(1+d))^X14) -> 3.493789106
A15: HIDE | B15: 0 | C15: 0 | D15: 0 | E15: =ROUND(IFERROR(INDEX('Savings Summary'!$P$8:$P$50,MATCH($B$9,'Savings Summary'!$C$8:$C$50,0))*D15+ INDEX('Savings Summary'!$N$8:$N$50,MATCH($B$9,'Savings Summary'!$C$8:$C$50,0))*B15+ INDEX('Savings Summary'!$O$8:$O$50,MATCH($B$9,'Savings Summary'!$C$8:$C$50,0))*C15,0),2) -> 0 | N15: =INDEX('Lookup tables'!E$451:P$464,MATCH(Motors!G15,MotorApplications,0),MATCH(Motors!J15,'Lookup tables'!E454:J454,1)) ->  | O15: =INDEX('Lookup tables'!K$451:P$464,MATCH(Motors!G15,MotorApplications,0),MATCH(Motors!J15,'Lookup tables'!E454:J454,1)) ->  | P15: 1 | Q15: =INDEX('Lookup tables'!K$469:P$493,MATCH(Motors!J15,MotorHP,0),MATCH(Motors!K15,MotorType,0)) ->  | T15: =INDEX(NEMAtable,MATCH(Motors!J15,MotorHP,0),MATCH(Motors!K15,MotorType,0)) ->  | W15: =INDEX(MotorRUL,MATCH(I15,MotorAge,0)) ->  | X15: 19 | Z15: =ACkW*(1+e)/(d-e)*(1-((1+e)/(1+d))^W15)*S15 ->  | AA15: =ACkW*(1+e)/(d-e)*(1-((1+e)/(1+d))^Y15)*(1+e)^W15/(1+d)^W15*V15 ->  | AC15: =ACkW*(1+e)/(d-e)*(1-((1+e)/(1+d))^X15) -> 2677.378093 | AE15: =ACkWh*(1+e)/(d-e)*(1-((1+e)/(1+d))^W15)*R15 ->  | AF15: =ACkWh*(1+e)/(d-e)*(1-((1+e)/(1+d))^Y15)*(1+e)^W15/(1+d)^W15*U15 ->  | AH15: =ACkWh*(1+e)/(d-e)*(1-((1+e)/(1+d))^X15) -> 3.801876892
A16: HIDE | B16: =SUM(B11:B15) -> 0 | C16: =SUM(C11:C15) -> 0 | D16: 0 | E16: =SUM(E11:E15) -> 0 | J16: *Round down if exact size is not available.
B17: Pump-Off Controllers | N17: NEMA eff | O17: Baseline Energy Usage (kWh) | P17: Baseline Demand (kW) | Q17: Baseline Operating Hours (Hours) | R17: Efficient Energy Usage (kWh) | S17: Efficient Demand (kW) | T17: Efficient Operating Hours (Hours) | U17: Efficient Hours Adjustment Factor | V17: Customer Energy Savings(kWh) | W17: Peak Coincident Savings (PCkW)
A18: HIDE | B18: Peak kW | C18: NCP kW | D18: kWh | E18: Uncapped Incentive | F18: Motor Quantity | G18: Motor Size (HP) | H18: Motor Type | I18: Volumetric Efficiency (%)
A19: HIDE | B19: =ROUND(IFERROR(IF(I19="",0,W19),0),3) -> 0 | C19: =ROUND(IFERROR(W19,0),3) -> 0 | D19: =ROUND(IFERROR(IF(I19="",0,V19),0),0) -> 0 | E19: =ROUND(IFERROR(INDEX('Savings Summary'!$P$8:$P$50,MATCH($B$17,'Savings Summary'!$C$8:$C$50,0))*D19+ INDEX('Savings Summary'!$N$8:$N$50,MATCH($B$17,'Savings Summary'!$C$8:$C$50,0))*B19+ INDEX('Savings Summary'!$O$8:$O$50,MATCH($B$17,'Savings Summary'!$C$8:$C$50,0))*C19,0),2) -> 0 | N19: =INDEX(NEMAtable,MATCH(Motors!G19,MotorHP,0),MATCH(Motors!H19,MotorType,0)) ->  | O19: =P19*Q19 ->  | P19: =F19*G19*'Lookup tables'!$E$518*'Lookup tables'!$E$519/N19/'Lookup tables'!$E$520 ->  | Q19: ='Lookup tables'!$E$521*'Lookup tables'!$E$522 -> 5694 | R19: =S19*T19 ->  | S19: =P19 ->  | T19: =U19*'Lookup tables'!$E$522 -> 730.2336 | U19: =('Lookup tables'!$E$523+'Lookup tables'!$E$524*I19*'Lookup tables'!$E$521*100)/100 -> 0.08336 | V19: =O19-R19 ->  | W19: =V19/8760 -> 
A20: HIDE | B20: =ROUND(IFERROR(IF(I20="",0,W20),0),3) -> 0 | C20: =ROUND(IFERROR(W20,0),3) -> 0 | D20: =ROUND(IFERROR(IF(I20="",0,V20),0),0) -> 0 | E20: =ROUND(IFERROR(INDEX('Savings Summary'!$P$8:$P$50,MATCH($B$17,'Savings Summary'!$C$8:$C$50,0))*D20+ INDEX('Savings Summary'!$N$8:$N$50,MATCH($B$17,'Savings Summary'!$C$8:$C$50,0))*B20+ INDEX('Savings Summary'!$O$8:$O$50,MATCH($B$17,'Savings Summary'!$C$8:$C$50,0))*C20,0),2) -> 0 | N20: =INDEX(NEMAtable,MATCH(Motors!G20,MotorHP,0),MATCH(Motors!H20,MotorType,0)) ->  | O20: =P20*Q20 ->  | P20: =F20*G20*'Lookup tables'!$E$518*'Lookup tables'!$E$519/N20/'Lookup tables'!$E$520 ->  | Q20: ='Lookup tables'!$E$521*'Lookup tables'!$E$522 -> 5694 | R20: =S20*T20 ->  | S20: =P20 ->  | T20: =U20*'Lookup tables'!$E$522 -> 730.2336 | U20: =('Lookup tables'!$E$523+'Lookup tables'!$E$524*I20*'Lookup tables'!$E$521*100)/100 -> 0.08336 | V20: =O20-R20 ->  | W20: =V20/8760 -> 
A21: HIDE | B21: 0 | C21: 0 | D21: 0 | E21: =ROUND(IFERROR(INDEX('Savings Summary'!$P$8:$P$50,MATCH($B$17,'Savings Summary'!$C$8:$C$50,0))*D21+ INDEX('Savings Summary'!$N$8:$N$50,MATCH($B$17,'Savings Summary'!$C$8:$C$50,0))*B21+ INDEX('Savings Summary'!$O$8:$O$50,MATCH($B$17,'Savings Summary'!$C$8:$C$50,0))*C21,0),2) -> 0 | N21: =INDEX(NEMAtable,MATCH(Motors!G21,MotorHP,0),MATCH(Motors!H21,MotorType,0)) ->  | P21: =F21*G21*'Lookup tables'!$E$518*'Lookup tables'!$E$519/N21/'Lookup tables'!$E$520 ->  | Q21: ='Lookup tables'!$E$521*'Lookup tables'!$E$522 -> 5694 | T21: =U21*'Lookup tables'!$E$522 -> 730.2336 | U21: =('Lookup tables'!$E$523+'Lookup tables'!$E$524*I21*'Lookup tables'!$E$521*100)/100 -> 0.08336
A22: HIDE | B22: =SUM(B19:B21) -> 0 | C22: =SUM(C19:C21) -> 0 | D22: =SUM(D19:D21) -> 0 | E22: =SUM(E19:E21) -> 0
B23: VFDs for Water Pumping
A24: HIDE | B24: Peak kW | C24: NCP kW | D24: kWh | E24: Uncapped Incentive | F24: Motor Quantity | G24: Motor Size (HP)
A25: HIDE | B25: =ROUND(IFERROR(INDEX('Lookup tables'!$F$783:$F$788,MATCH(State&SelectedZone,'Lookup tables'!$D$783:$D$788,0))*F25*G25,0),3) -> 0 | C25: =B25 -> 0 | D25: =ROUND(IFERROR(INDEX('Lookup tables'!$E$783:$E$788,MATCH(State&SelectedZone,'Lookup tables'!$D$783:$D$788,0))*F25*G25,0),0) -> 0 | E25: =ROUND(IFERROR(INDEX('Savings Summary'!$P$8:$P$50,MATCH($B$23,'Savings Summary'!$C$8:$C$50,0))*D25+ INDEX('Savings Summary'!$N$8:$N$50,MATCH($B$23,'Savings Summary'!$C$8:$C$50,0))*B25+ INDEX('Savings Summary'!$O$8:$O$50,MATCH($B$23,'Savings Summary'!$C$8:$C$50,0))*C25,0),2) -> 0
A26: HIDE | B26: =ROUND(IFERROR(INDEX('Lookup tables'!$F$783:$F$788,MATCH(State&SelectedZone,'Lookup tables'!$D$783:$D$788,0))*F26*G26,0),3) -> 0 | C26: =B26 -> 0 | D26: =ROUND(IFERROR(INDEX('Lookup tables'!$E$783:$E$788,MATCH(State&SelectedZone,'Lookup tables'!$D$783:$D$788,0))*F26*G26,0),0) -> 0 | E26: =ROUND(IFERROR(INDEX('Savings Summary'!$P$8:$P$50,MATCH($B$23,'Savings Summary'!$C$8:$C$50,0))*D26+ INDEX('Savings Summary'!$N$8:$N$50,MATCH($B$23,'Savings Summary'!$C$8:$C$50,0))*B26+ INDEX('Savings Summary'!$O$8:$O$50,MATCH($B$23,'Savings Summary'!$C$8:$C$50,0))*C26,0),2) -> 0
A27: HIDE | B27: =ROUND(IFERROR(INDEX('Lookup tables'!$F$783:$F$788,MATCH(State&SelectedZone,'Lookup tables'!$D$783:$D$788,0))*F27*G27,0),3) -> 0 | C27: 0 | D27: =ROUND(IFERROR(INDEX('Lookup tables'!$E$783:$E$788,MATCH(State&SelectedZone,'Lookup tables'!$D$783:$D$788,0))*F27*G27,0),0) -> 0 | E27: =ROUND(IFERROR(INDEX('Savings Summary'!$P$8:$P$50,MATCH($B$23,'Savings Summary'!$C$8:$C$50,0))*D27+ INDEX('Savings Summary'!$N$8:$N$50,MATCH($B$23,'Savings Summary'!$C$8:$C$50,0))*B27+ INDEX('Savings Summary'!$O$8:$O$50,MATCH($B$23,'Savings Summary'!$C$8:$C$50,0))*C27,0),2) -> 0
A28: HIDE | B28: =SUM(B25:B27) -> 0 | C28: =SUM(C25:C27) -> 0 | D28: =SUM(D25:D27) -> 0 | E28: =SUM(E25:E27) -> 0
B29: Hydraulic Oils & Gear Lubricants
A30: HIDE | B30: Peak kW | C30: NCP kW | D30: kWh | E30: Uncapped Incentive | F30: Motor Quantity | G30: Motor Size (HP) | H30: Equipment Type | I30: Annual Operating Hours | N30: LF | O30: n | P30: EI
A31: HIDE | B31: 0 | C31: 0 | D31: =ROUND(IFERROR(F31*G31*N31/O31*I31*P31,0),0) -> 0 | E31: =ROUND(IFERROR(INDEX('Savings Summary'!$P$8:$P$50,MATCH($B$29,'Savings Summary'!$C$8:$C$50,0))*D31+ INDEX('Savings Summary'!$N$8:$N$50,MATCH($B$29,'Savings Summary'!$C$8:$C$50,0))*B31+ INDEX('Savings Summary'!$O$8:$O$50,MATCH($B$29,'Savings Summary'!$C$8:$C$50,0))*C31,0),2) -> 0 | N31: 0.75 | O31: =INDEX(HydraulicOilMotorEfficiency,MATCH(G31,HydraulicOilMotorSize,0)) ->  | P31: =INDEX(HydraulicOilEI,MATCH(H31,HydraulicOilEquipmentType,0)) -> 
A32: HIDE | B32: 0 | C32: 0 | D32: =ROUND(IFERROR(F32*G32*N32/O32*I32*P32,0),0) -> 0 | E32: =ROUND(IFERROR(INDEX('Savings Summary'!$P$8:$P$50,MATCH($B$29,'Savings Summary'!$C$8:$C$50,0))*D32+ INDEX('Savings Summary'!$N$8:$N$50,MATCH($B$29,'Savings Summary'!$C$8:$C$50,0))*B32+ INDEX('Savings Summary'!$O$8:$O$50,MATCH($B$29,'Savings Summary'!$C$8:$C$50,0))*C32,0),2) -> 0 | N32: 0.75
A33: HIDE | B33: 0 | C33: 0 | D33: 0 | E33: =ROUND(IFERROR(INDEX('Savings Summary'!$P$8:$P$50,MATCH($B$29,'Savings Summary'!$C$8:$C$50,0))*D33+ INDEX('Savings Summary'!$N$8:$N$50,MATCH($B$29,'Savings Summary'!$C$8:$C$50,0))*B33+ INDEX('Savings Summary'!$O$8:$O$50,MATCH($B$29,'Savings Summary'!$C$8:$C$50,0))*C33,0),2) -> 0 | N33: 0.75
A34: HIDE | B34: 0 | C34: 0 | D34: 0 | E34: =ROUND(IFERROR(INDEX('Savings Summary'!$P$8:$P$50,MATCH($B$29,'Savings Summary'!$C$8:$C$50,0))*D34+ INDEX('Savings Summary'!$N$8:$N$50,MATCH($B$29,'Savings Summary'!$C$8:$C$50,0))*B34+ INDEX('Savings Summary'!$O$8:$O$50,MATCH($B$29,'Savings Summary'!$C$8:$C$50,0))*C34,0),2) -> 0 | N34: 0.75
A35: HIDE | B35: 0 | C35: 0 | D35: 0 | E35: =ROUND(IFERROR(INDEX('Savings Summary'!$P$8:$P$50,MATCH($B$29,'Savings Summary'!$C$8:$C$50,0))*D35+ INDEX('Savings Summary'!$N$8:$N$50,MATCH($B$29,'Savings Summary'!$C$8:$C$50,0))*B35+ INDEX('Savings Summary'!$O$8:$O$50,MATCH($B$29,'Savings Summary'!$C$8:$C$50,0))*C35,0),2) -> 0 | N35: 0.75
A36: HIDE | B36: =SUM(B31:B35) -> 0 | C36: =SUM(C31:C35) -> 0 | D36: =SUM(D31:D35) -> 0 | E36: =SUM(E31:E35) -> 0

Sheet Misc
B1: Miscellaneous Measures | M1: HIDE | N1: HIDE | O1: HIDE
B2: Click on headings to expand or collapse sections. Blue Peak kW values indicate winter peak.
B3: PC Power Management (PCPM)
A4: HIDE | B4: Peak kW | C4: NCP kW | D4: kWh | E4: Uncapped Incentive | F4: Equipment Quantity | G4: Equipment Type
A5: HIDE | B5: =ROUND(IFERROR($F5*INDEX('Lookup tables'!G$699:L$704,MATCH(Misc!G5,PCPMEquipmentType,0),MATCH(State&SelectedZone,'Lookup tables'!G$697:L$697,0)),0),3) -> 0 | C5: =ROUND(IFERROR($F5*INDEX('Lookup tables'!M$699:M$704,MATCH(Misc!G5,PCPMEquipmentType,0)),0),3) -> 0 | D5: =ROUND(IFERROR($F5*INDEX(IF(Utility="CPS",'Lookup tables'!F$699:F$704,'Lookup tables'!E$699:E$704),MATCH(Misc!G5,PCPMEquipmentType,0)),0),0) -> 0 | E5: =ROUND(IFERROR(INDEX('Savings Summary'!$P$8:$P$50,MATCH($B$3,'Savings Summary'!$C$8:$C$50,0))*D5+ INDEX('Savings Summary'!$N$8:$N$50,MATCH($B$3,'Savings Summary'!$C$8:$C$50,0))*B5+ INDEX('Savings Summary'!$O$8:$O$50,MATCH($B$3,'Savings Summary'!$C$8:$C$50,0))*C5,0),2) -> 0
A6: HIDE | B6: =ROUND(IFERROR($F6*INDEX('Lookup tables'!G$699:L$704,MATCH(Misc!G6,PCPMEquipmentType,0),MATCH(State&SelectedZone,'Lookup tables'!G$697:L$697,0)),0),3) -> 0 | C6: =ROUND(IFERROR($F6*INDEX('Lookup tables'!M$699:M$704,MATCH(Misc!G6,PCPMEquipmentType,0)),0),3) -> 0 | D6: =ROUND(IFERROR($F6*INDEX(IF(Utility="CPS",'Lookup tables'!F$699:F$704,'Lookup tables'!E$699:E$704),MATCH(Misc!G6,PCPMEquipmentType,0)),0),0) -> 0 | E6: =ROUND(IFERROR(INDEX('Savings Summary'!$P$8:$P$50,MATCH($B$3,'Savings Summary'!$C$8:$C$50,0))*D6+ INDEX('Savings Summary'!$N$8:$N$50,MATCH($B$3,'Savings Summary'!$C$8:$C$50,0))*B6+ INDEX('Savings Summary'!$O$8:$O$50,MATCH($B$3,'Savings Summary'!$C$8:$C$50,0))*C6,0),2) -> 0
A7: HIDE | B7: =ROUND(IFERROR($F7*INDEX('Lookup tables'!G$699:L$704,MATCH(Misc!G7,PCPMEquipmentType,0),MATCH(State&SelectedZone,'Lookup tables'!G$697:L$697,0)),0),3) -> 0 | C7: =ROUND(IFERROR($F7*INDEX('Lookup tables'!M$699:M$704,MATCH(Misc!G7,PCPMEquipmentType,0)),0),3) -> 0 | D7: =ROUND(IFERROR($F7*INDEX(IF(Utility="CPS",'Lookup tables'!F$699:F$704,'Lookup tables'!E$699:E$704),MATCH(Misc!G7,PCPMEquipmentType,0)),0),0) -> 0 | E7: =ROUND(IFERROR(INDEX('Savings Summary'!$P$8:$P$50,MATCH($B$3,'Savings Summary'!$C$8:$C$50,0))*D7+ INDEX('Savings Summary'!$N$8:$N$50,MATCH($B$3,'Savings Summary'!$C$8:$C$50,0))*B7+ INDEX('Savings Summary'!$O$8:$O$50,MATCH($B$3,'Savings Summary'!$C$8:$C$50,0))*C7,0),2) -> 0
A8: HIDE | B8: =ROUND(IFERROR($F8*INDEX('Lookup tables'!G$699:L$704,MATCH(Misc!G8,PCPMEquipmentType,0),MATCH(State&SelectedZone,'Lookup tables'!G$697:L$697,0)),0),3) -> 0 | C8: =ROUND(IFERROR($F8*INDEX('Lookup tables'!M$699:M$704,MATCH(Misc!G8,PCPMEquipmentType,0)),0),3) -> 0 | D8: =ROUND(IFERROR($F8*INDEX(IF(Utility="CPS",'Lookup tables'!F$699:F$704,'Lookup tables'!E$699:E$704),MATCH(Misc!G8,PCPMEquipmentType,0)),0),0) -> 0 | E8: =ROUND(IFERROR(INDEX('Savings Summary'!$P$8:$P$50,MATCH($B$3,'Savings Summary'!$C$8:$C$50,0))*D8+ INDEX('Savings Summary'!$N$8:$N$50,MATCH($B$3,'Savings Summary'!$C$8:$C$50,0))*B8+ INDEX('Savings Summary'!$O$8:$O$50,MATCH($B$3,'Savings Summary'!$C$8:$C$50,0))*C8,0),2) -> 0
A9: HIDE | B9: =SUM(B5:B8) -> 0 | C9: =SUM(C5:C8) -> 0 | D9: =SUM(D5:D8) -> 0 | E9: =SUM(E5:E8) -> 0
B10: ENERGY STAR Electric Vehicle Supply Equipment (EVSE)
A11: HIDE | B11: Peak kW | C11: NC kW | D11: kWh | E11: Uncapped Incentive | F11: Quantity (#) | G11: ENERGY STAR Level 2-Certified EVSE? | H11: Application | M11: kW summer | N11: kW winter | O11: Summer peak?
A12: HIDE | B12: =ROUND(IFERROR(MAX(M12:N12),0),3) -> 0 | C12: =B12 -> 0 | D12: =ROUND(IF(AND(COUNTA(F12:H12)=3,G12="Yes"),'Lookup tables'!E$756*Misc!F12,0)*F12,0) -> 0 | E12: =ROUND(IFERROR(INDEX('Savings Summary'!$P$8:$P$50,MATCH($B$10,'Savings Summary'!$C$8:$C$50,0))*D12+ INDEX('Savings Summary'!$N$8:$N$50,MATCH($B$10,'Savings Summary'!$C$8:$C$50,0))*B12+ INDEX('Savings Summary'!$O$8:$O$50,MATCH($B$10,'Savings Summary'!$C$8:$C$50,0))*C12,0),2) -> 0 | M12: =IFERROR(INDEX('Lookup tables'!E$759:J$764,MATCH(State&SelectedZone,'Lookup tables'!D$759:D$764,0),(MATCH(Misc!H12,EVSEApplication,0)*2-1))*F12,0) -> 0 | N12: =IFERROR(INDEX('Lookup tables'!E$759:J$764,MATCH(State&SelectedZone,'Lookup tables'!D$759:D$764,0),(MATCH(Misc!H12,EVSEApplication,0)*2))*F12,0) -> 0 | O12: =M12>N12 -> FALSE
A13: HIDE | B13: =ROUND(IFERROR(MAX(M13:N13),0),3) -> 0 | C13: =B13 -> 0 | D13: =ROUND(IF(AND(COUNTA(F13:H13)=3,G13="Yes"),'Lookup tables'!E$756*Misc!F13,0)*F13,0) -> 0 | E13: =ROUND(IFERROR(INDEX('Savings Summary'!$P$8:$P$50,MATCH($B$10,'Savings Summary'!$C$8:$C$50,0))*D13+ INDEX('Savings Summary'!$N$8:$N$50,MATCH($B$10,'Savings Summary'!$C$8:$C$50,0))*B13+ INDEX('Savings Summary'!$O$8:$O$50,MATCH($B$10,'Savings Summary'!$C$8:$C$50,0))*C13,0),2) -> 0 | M13: =IFERROR(INDEX('Lookup tables'!E$759:J$764,MATCH(State&SelectedZone,'Lookup tables'!D$759:D$764,0),(MATCH(Misc!H13,EVSEApplication,0)*2-1))*F13,0) -> 0 | N13: =IFERROR(INDEX('Lookup tables'!E$759:J$764,MATCH(State&SelectedZone,'Lookup tables'!D$759:D$764,0),(MATCH(Misc!H13,EVSEApplication,0)*2))*F13,0) -> 0 | O13: =M13>N13 -> FALSE
A14: HIDE | B14: 0 | C14: 0 | D14: =ROUND(IF(AND(COUNTA(F14:H14)=3,G14="Yes"),'Lookup tables'!E$756*Misc!F14,0)*F14,0) -> 0 | E14: =ROUND(IFERROR(INDEX('Savings Summary'!$P$8:$P$50,MATCH($B$10,'Savings Summary'!$C$8:$C$50,0))*D14+ INDEX('Savings Summary'!$N$8:$N$50,MATCH($B$10,'Savings Summary'!$C$8:$C$50,0))*B14+ INDEX('Savings Summary'!$O$8:$O$50,MATCH($B$10,'Savings Summary'!$C$8:$C$50,0))*C14,0),2) -> 0 | M14: =IFERROR(INDEX('Lookup tables'!E$759:J$764,MATCH(State&SelectedZone,'Lookup tables'!D$759:D$764,0),(MATCH(Misc!H14,EVSEApplication,0)*2-1))*F14,0) -> 0 | N14: =IFERROR(INDEX('Lookup tables'!E$759:J$764,MATCH(State&SelectedZone,'Lookup tables'!D$759:D$764,0),(MATCH(Misc!H14,EVSEApplication,0)*2))*F14,0) -> 0 | O14: =M14>N14 -> FALSE
A15: HIDE | B15: =SUM(B12:B14) -> 0 | C15: =SUM(C12:C14) -> 0 | D15: =SUM(D12:D14) -> 0 | E15: =SUM(E12:E14) -> 0 | M15: =SUMIF(O12:O14,TRUE,M12:M14) -> 0 | N15: =SUMIF(O12:O14,FALSE,N12:N14) -> 0 | O15: =M15>N15 -> FALSE
B16: LED Traffic Signals
A17: HIDE | B17: Peak kW | C17: NC kW | D17: kWh | E17: Uncapped Incentive | F17: Quantity (#) | G17: Fixture Type
A18: HIDE | B18: =ROUND(IFERROR(INDEX('Lookup tables'!E$767:E$780,MATCH(Misc!$G18,LEDTrafficSignalType,0))*Misc!$F18,0),3) -> 0 | C18: =B18 -> 0 | D18: =ROUND(IFERROR(INDEX('Lookup tables'!F$767:F$780,MATCH(Misc!$G18,LEDTrafficSignalType,0))*Misc!$F18,0),0) -> 0 | E18: =ROUND(IFERROR(INDEX('Savings Summary'!$P$8:$P$50,MATCH($B$16,'Savings Summary'!$C$8:$C$50,0))*D18+ INDEX('Savings Summary'!$N$8:$N$50,MATCH($B$16,'Savings Summary'!$C$8:$C$50,0))*B18+ INDEX('Savings Summary'!$O$8:$O$50,MATCH($B$16,'Savings Summary'!$C$8:$C$50,0))*C18,0),2) -> 0
A19: HIDE | B19: =ROUND(IFERROR(INDEX('Lookup tables'!E$767:E$780,MATCH(Misc!$G19,LEDTrafficSignalType,0))*Misc!$F19,0),3) -> 0 | C19: =B19 -> 0 | D19: =ROUND(IFERROR(INDEX('Lookup tables'!F$767:F$780,MATCH(Misc!$G19,LEDTrafficSignalType,0))*Misc!$F19,0),0) -> 0 | E19: =ROUND(IFERROR(INDEX('Savings Summary'!$P$8:$P$50,MATCH($B$16,'Savings Summary'!$C$8:$C$50,0))*D19+ INDEX('Savings Summary'!$N$8:$N$50,MATCH($B$16,'Savings Summary'!$C$8:$C$50,0))*B19+ INDEX('Savings Summary'!$O$8:$O$50,MATCH($B$16,'Savings Summary'!$C$8:$C$50,0))*C19,0),2) -> 0
A20: HIDE | B20: =ROUND(IFERROR(INDEX('Lookup tables'!E$767:E$780,MATCH(Misc!$G20,LEDTrafficSignalType,0))*Misc!$F20,0),3) -> 0 | C20: 0 | D20: =ROUND(IFERROR(INDEX('Lookup tables'!F$767:F$780,MATCH(Misc!$G20,LEDTrafficSignalType,0))*Misc!$F20,0),0) -> 0 | E20: =ROUND(IFERROR(INDEX('Savings Summary'!$P$8:$P$50,MATCH($B$16,'Savings Summary'!$C$8:$C$50,0))*D20+ INDEX('Savings Summary'!$N$8:$N$50,MATCH($B$16,'Savings Summary'!$C$8:$C$50,0))*B20+ INDEX('Savings Summary'!$O$8:$O$50,MATCH($B$16,'Savings Summary'!$C$8:$C$50,0))*C20,0),2) -> 0
A21: HIDE | B21: =ROUND(IFERROR(INDEX('Lookup tables'!E$767:E$780,MATCH(Misc!$G21,LEDTrafficSignalType,0))*Misc!$F21,0),3) -> 0 | C21: 0 | D21: =ROUND(IFERROR(INDEX('Lookup tables'!F$767:F$780,MATCH(Misc!$G21,LEDTrafficSignalType,0))*Misc!$F21,0),0) -> 0 | E21: =ROUND(IFERROR(INDEX('Savings Summary'!$P$8:$P$50,MATCH($B$16,'Savings Summary'!$C$8:$C$50,0))*D21+ INDEX('Savings Summary'!$N$8:$N$50,MATCH($B$16,'Savings Summary'!$C$8:$C$50,0))*B21+ INDEX('Savings Summary'!$O$8:$O$50,MATCH($B$16,'Savings Summary'!$C$8:$C$50,0))*C21,0),2) -> 0
A22: HIDE | B22: =ROUND(IFERROR(INDEX('Lookup tables'!E$767:E$780,MATCH(Misc!$G22,LEDTrafficSignalType,0))*Misc!$F22,0),3) -> 0 | C22: 0 | D22: =ROUND(IFERROR(INDEX('Lookup tables'!F$767:F$780,MATCH(Misc!$G22,LEDTrafficSignalType,0))*Misc!$F22,0),0) -> 0 | E22: =ROUND(IFERROR(INDEX('Savings Summary'!$P$8:$P$50,MATCH($B$16,'Savings Summary'!$C$8:$C$50,0))*D22+ INDEX('Savings Summary'!$N$8:$N$50,MATCH($B$16,'Savings Summary'!$C$8:$C$50,0))*B22+ INDEX('Savings Summary'!$O$8:$O$50,MATCH($B$16,'Savings Summary'!$C$8:$C$50,0))*C22,0),2) -> 0
A23: HIDE | B23: =ROUND(IFERROR(INDEX('Lookup tables'!E$767:E$780,MATCH(Misc!$G23,LEDTrafficSignalType,0))*Misc!$F23,0),3) -> 0 | C23: 0 | D23: =ROUND(IFERROR(INDEX('Lookup tables'!F$767:F$780,MATCH(Misc!$G23,LEDTrafficSignalType,0))*Misc!$F23,0),0) -> 0 | E23: =ROUND(IFERROR(INDEX('Savings Summary'!$P$8:$P$50,MATCH($B$16,'Savings Summary'!$C$8:$C$50,0))*D23+ INDEX('Savings Summary'!$N$8:$N$50,MATCH($B$16,'Savings Summary'!$C$8:$C$50,0))*B23+ INDEX('Savings Summary'!$O$8:$O$50,MATCH($B$16,'Savings Summary'!$C$8:$C$50,0))*C23,0),2) -> 0
A24: HIDE | B24: =ROUND(IFERROR(INDEX('Lookup tables'!E$767:E$780,MATCH(Misc!$G24,LEDTrafficSignalType,0))*Misc!$F24,0),3) -> 0 | C24: 0 | D24: =ROUND(IFERROR(INDEX('Lookup tables'!F$767:F$780,MATCH(Misc!$G24,LEDTrafficSignalType,0))*Misc!$F24,0),0) -> 0 | E24: =ROUND(IFERROR(INDEX('Savings Summary'!$P$8:$P$50,MATCH($B$16,'Savings Summary'!$C$8:$C$50,0))*D24+ INDEX('Savings Summary'!$N$8:$N$50,MATCH($B$16,'Savings Summary'!$C$8:$C$50,0))*B24+ INDEX('Savings Summary'!$O$8:$O$50,MATCH($B$16,'Savings Summary'!$C$8:$C$50,0))*C24,0),2) -> 0
A25: HIDE | B25: =ROUND(IFERROR(INDEX('Lookup tables'!E$767:E$780,MATCH(Misc!$G25,LEDTrafficSignalType,0))*Misc!$F25,0),3) -> 0 | C25: 0 | D25: =ROUND(IFERROR(INDEX('Lookup tables'!F$767:F$780,MATCH(Misc!$G25,LEDTrafficSignalType,0))*Misc!$F25,0),0) -> 0 | E25: =ROUND(IFERROR(INDEX('Savings Summary'!$P$8:$P$50,MATCH($B$16,'Savings Summary'!$C$8:$C$50,0))*D25+ INDEX('Savings Summary'!$N$8:$N$50,MATCH($B$16,'Savings Summary'!$C$8:$C$50,0))*B25+ INDEX('Savings Summary'!$O$8:$O$50,MATCH($B$16,'Savings Summary'!$C$8:$C$50,0))*C25,0),2) -> 0
A26: HIDE | B26: =SUM(B18:B25) -> 0 | C26: =SUM(C18:C25) -> 0 | D26: =SUM(D18:D25) -> 0 | E26: =SUM(E18:E25) -> 0
B27: Steam Trap Repair or Replacement
A28: HIDE | B28: Peak kW | C28: NC kW | D28: kWh | E28: Uncapped Incentive | F28: System Audit? | G28: Quantity of Steam Traps Repaired/Replaced | H28: Steam System Description | J28: Building Type
A29: HIDE | B29: =ROUND(IFERROR(INDEX('Lookup tables'!$E$829:$N$863,MATCH(IF(Misc!H29="Commercial heating Low-Pressure Steam",J29,H29),'Lookup tables'!D829:D863,0),MATCH(State&SelectedZone,'Lookup tables'!$E$828:$I$828,0)+IF(Misc!F29="Yes",5,0))*Misc!G29,0),3) -> 0 | C29: =B29 -> 0 | D29: =ROUND(IFERROR(INDEX('Lookup tables'!$F$813:$G$825,IF(Misc!H29="Commercial heating Low-Pressure Steam",MATCH(State&SelectedZone,'Lookup tables'!$E$813:$E$825,0),MATCH(Misc!H29,'Lookup tables'!$D$813:$D$820,0)),IF(Misc!F29="No",1,2))*Misc!G29,0),0) -> 0 | E29: =ROUND(IFERROR(INDEX('Savings Summary'!$P$8:$P$50,MATCH($B$27,'Savings Summary'!$C$8:$C$50,0))*D29+ INDEX('Savings Summary'!$N$8:$N$50,MATCH($B$27,'Savings Summary'!$C$8:$C$50,0))*B29+ INDEX('Savings Summary'!$O$8:$O$50,MATCH($B$27,'Savings Summary'!$C$8:$C$50,0))*C29,0),2) -> 0
A30: HIDE | B30: =ROUND(IFERROR(INDEX('Lookup tables'!$E$829:$N$863,MATCH(IF(Misc!H30="Commercial heating Low-Pressure Steam",J30,H30),'Lookup tables'!D830:D864,0),MATCH(State&SelectedZone,'Lookup tables'!$E$828:$I$828,0)+IF(Misc!F30="Yes",5,0))*Misc!G30,0),3) -> 0 | C30: =B30 -> 0 | D30: =ROUND(IFERROR(INDEX('Lookup tables'!$F$813:$G$825,IF(Misc!H30="Commercial heating Low-Pressure Steam",MATCH(State&SelectedZone,'Lookup tables'!$E$813:$E$825,0),MATCH(Misc!H30,'Lookup tables'!$D$813:$D$820,0)),IF(Misc!F30="No",1,2))*Misc!G30,0),0) -> 0 | E30: =ROUND(IFERROR(INDEX('Savings Summary'!$P$8:$P$50,MATCH($B$27,'Savings Summary'!$C$8:$C$50,0))*D30+ INDEX('Savings Summary'!$N$8:$N$50,MATCH($B$27,'Savings Summary'!$C$8:$C$50,0))*B30+ INDEX('Savings Summary'!$O$8:$O$50,MATCH($B$27,'Savings Summary'!$C$8:$C$50,0))*C30,0),2) -> 0
A31: HIDE | B31: =ROUND(IFERROR(INDEX('Lookup tables'!$E$829:$N$863,MATCH(IF(Misc!H31="Commercial heating Low-Pressure Steam",J31,H31),'Lookup tables'!D831:D865,0),MATCH(State&SelectedZone,'Lookup tables'!$E$828:$I$828,0)+IF(Misc!F31="Yes",5,0))*Misc!G31,0),3) -> 0 | C31: 0 | D31: =ROUND(IFERROR(INDEX('Lookup tables'!$F$813:$G$825,IF(Misc!H31="Commercial heating Low-Pressure Steam",MATCH(State&SelectedZone,'Lookup tables'!$E$813:$E$825,0),MATCH(Misc!H31,'Lookup tables'!$D$813:$D$820,0)),IF(Misc!F31="No",1,2))*Misc!G31,0),0) -> 0 | E31: =ROUND(IFERROR(INDEX('Savings Summary'!$P$8:$P$50,MATCH($B$27,'Savings Summary'!$C$8:$C$50,0))*D31+ INDEX('Savings Summary'!$N$8:$N$50,MATCH($B$27,'Savings Summary'!$C$8:$C$50,0))*B31+ INDEX('Savings Summary'!$O$8:$O$50,MATCH($B$27,'Savings Summary'!$C$8:$C$50,0))*C31,0),2) -> 0
A32: HIDE | B32: =SUM(B29:B31) -> 0 | C32: =SUM(C29:C31) -> 0 | D32: =SUM(D29:D31) -> 0 | E32: =SUM(E29:E31) -> 0 | F32: Eligibility Criteria: | G32: ·Commercial & Industrial applications only ·System pressure less than 300 psig
B33: Hand Dryers
A34: HIDE | B34: Peak kW | C34: NC kW | D34: kWh | E34: Uncapped Incentive | F34: Quantity (#) | G34: Model | H34: Building Type
A35: HIDE | B35: =ROUND(IFERROR(INDEX('Lookup tables'!$F$867:$K$880,MATCH(Misc!H35,HandDryerBldgType,0),MATCH(State&SelectedZone,'Lookup tables'!$F$866:$K$866,0))*Misc!F35,0),3) -> 0 | C35: =B35 -> 0 | D35: =ROUND(IFERROR(INDEX('Lookup tables'!$E$867:$E$880,MATCH(Misc!H35,HandDryerBldgType,0))*Misc!F35,0),0) -> 0 | E35: =ROUND(IFERROR(INDEX('Savings Summary'!$P$8:$P$51,MATCH($B$33,'Savings Summary'!$C$8:$C$51,0))*D35+ INDEX('Savings Summary'!$N$8:$N$51,MATCH($B$33,'Savings Summary'!$C$8:$C$51,0))*B35+ INDEX('Savings Summary'!$O$8:$O$51,MATCH($B$33,'Savings Summary'!$C$8:$C$51,0))*C35,0),2) -> 0
A36: HIDE | B36: =ROUND(IFERROR(INDEX('Lookup tables'!$F$867:$K$880,MATCH(Misc!H36,HandDryerBldgType,0),MATCH(State&SelectedZone,'Lookup tables'!$F$866:$K$866,0))*Misc!F36,0),3) -> 0 | C36: =B36 -> 0 | D36: =ROUND(IFERROR(INDEX('Lookup tables'!$E$867:$E$880,MATCH(Misc!H36,HandDryerBldgType,0))*Misc!F36,0),0) -> 0 | E36: =ROUND(IFERROR(INDEX('Savings Summary'!$P$8:$P$51,MATCH($B$33,'Savings Summary'!$C$8:$C$51,0))*D36+ INDEX('Savings Summary'!$N$8:$N$51,MATCH($B$33,'Savings Summary'!$C$8:$C$51,0))*B36+ INDEX('Savings Summary'!$O$8:$O$51,MATCH($B$33,'Savings Summary'!$C$8:$C$51,0))*C36,0),2) -> 0
A37: HIDE | B37: =ROUND(IFERROR(INDEX('Lookup tables'!$F$867:$K$880,MATCH(Misc!H37,HandDryerBldgType,0),MATCH(State&SelectedZone,'Lookup tables'!$F$866:$K$866,0))*Misc!F37,0),3) -> 0 | C37: 0 | D37: =ROUND(IFERROR(INDEX('Lookup tables'!$E$867:$E$880,MATCH(Misc!H37,HandDryerBldgType,0))*Misc!F37,0),0) -> 0 | E37: =ROUND(IFERROR(INDEX('Savings Summary'!$P$8:$P$51,MATCH($B$33,'Savings Summary'!$C$8:$C$51,0))*D37+ INDEX('Savings Summary'!$N$8:$N$51,MATCH($B$33,'Savings Summary'!$C$8:$C$51,0))*B37+ INDEX('Savings Summary'!$O$8:$O$51,MATCH($B$33,'Savings Summary'!$C$8:$C$51,0))*C37,0),2) -> 0
A38: HIDE | B38: =SUM(B35:B37) -> 0 | C38: =SUM(C35:C37) -> 0 | D38: =SUM(D35:D37) -> 0 | E38: =SUM(E35:E37) -> 0 | F38: Eligibility Criteria: | G38: ·Must be equipped with motion sensors ·Uses 5Wh or less per use

Sheet DSMT Export (hidden)
A1: Project Export for DSMT Use this sheet to export a lighting project to a CSV file, which can be uploaded into DSMT using the Salesforce Data Import Wizard. | E1: =IF(C27="UAT","(UAT)","") ->  | I1: Measure Name (Green measures will be uploaded to DSMT) | J1: Measure Instance | K1: Eligible_Measure__c | L1: RecordTypeId | M1: Application_Premise__c | N1: Enrollment_Application__c | O1: Summer_Coincident_Peak_Demand_Savings_kW__c | P1: WC_Peak_Demand_Savings_kW__c | Q1: Non_Coincident_Peak_Demand_Savings_kW__c | R1: Annual_Electric_Energy_Savings_kwh__c | S1: Total_Incentive_New__c | T1: Quantity__c | U1: Model__c | V1: Application__c | W1: Configuration__c | X1: Type_picklist__c | Y1: Climate_Zone__c | Z1: Building_Type__c | AA1: Project_Type__c | AB1: Area_sqft__c | AC1: Height_in__c | AD1: Width_in__c | AE1: Width_ft__c | AF1: Length_in_Feet__c | AG1: Volume_cubic_feet__c | AH1: Number_of_Sides__c | AI1: Motor_Rating__c | AJ1: Controls_Installed__c | AK1: Existing_Motor_Type__c | AL1: Connected_Load_W__c | AM1: Annual_Operating_Hours_hours_year__c | AN1: Oven_Size__c | AO1: Number_of_Pans_Picklist__c | AP1: Volume_Range_ft3__c | AQ1: GAP_Width_in__c | AR1: Product_Class__c | AS1: Maximum_Flow_Rate_GPM__c | AT1: Efficient_Average_Flow_Rate_GPM__c | AU1: Efficient_Ice_Machine_Type__c | AV1: Efficient_Ice_Production_Type__c | AW1: Ice_Machine_Harvest_Rate_lbs_day__c | AX1: Efficient_Energy_Use_kWh_100_lbs_ice__c | AY1: Baseline_R_Value_Picklist__c | AZ1: Efficient_R_Value_Picklist__c | BA1: System_Type__c | BB1: Existing_Heating_System_Type__c | BC1: Heating_and_Cooling_System_Type__c | BD1: Intial_Solar_Reflectance__c | BE1: Factor_1__c | BF1: Factor_2__c | BG1: Factor_Text_1__c | BH1: Factor_Text_2__c | BI1: Efficient_Motor_Horsepower_hp__c | BJ1: Efficient_Motor_Horsepower_hp_number__c | BK1: Efficient_Horsepower_hp__c | BL1: Efficient_Motor_Efficiency__c | BM1: Efficient_Motor_Load_Factor__c | BN1: Existing_Control_Strategy__c | BO1: Fan_CFM__c | BP1: Existing_Cooling_Capacity_tons__c | BQ1: Existing_Cooling_Capacity_BTUH__c | BR1: Existing_Full_Load_Efficiency_kW_ton__c | BS1: Existing_Design_Efficiency_kW_ton__c | BT1: Existing_Energy_Efficiency_Ratio__c | BU1: Existing_Seasonal_Energy_Ratio__c | BV1: Existing_IEER__c | BW1: Existing_Heat_Seasonal_Prfrmnce_Factor__c | BX1: Existing_COP__c | BY1: Number_of_Rooms__c | BZ1: Temperature_Setback__c | CA1: ENERGY_STAR_Certified__c
A2: Import Instructions | I2: Door Gaskets | J2: 1 | K2: =INDEX('Savings Summary'!$Q$8:$Q$51,MATCH('DSMT Export'!I2,'Savings Summary'!$C$8:$C$51,0)) -> a1r3u000003Fil7AAC | L2: =INDEX('Savings Summary'!$R$8:$R$51,MATCH('DSMT Export'!I2,'Savings Summary'!$C$8:$C$51,0)) -> 0123u000000VQdAAAW | M2: =APID -> 0 | N2: =EAID -> 0 | O2: =ROUND(Refrigeration!B5,3) -> 0 | P2: =0 -> 0 | Q2: =ROUND(MAX(Refrigeration!C5,O2:P2),3) -> 0 | R2: =ROUND(Refrigeration!D5,0) -> 0 | S2: =Refrigeration!E5 -> 0 | T2: =Refrigeration!F5 -> 0 | V2: =Refrigeration!J5 -> 0 | Y2: =SelectedZone -> 4 | AC2: =Refrigeration!G5 -> 0 | AD2: =Refrigeration!H5 -> 0 | AH2: =Refrigeration!I5 -> 0
A3: Enter the Enrollment Application ID and Application Premise ID below, then use the buttons to create and export the CSV. | I3: Door Gaskets | J3: 2 | K3: =INDEX('Savings Summary'!$Q$8:$Q$51,MATCH('DSMT Export'!I3,'Savings Summary'!$C$8:$C$51,0)) -> a1r3u000003Fil7AAC | L3: =INDEX('Savings Summary'!$R$8:$R$51,MATCH('DSMT Export'!I3,'Savings Summary'!$C$8:$C$51,0)) -> 0123u000000VQdAAAW | M3: 0 | N3: 0 | O3: =ROUND(Refrigeration!B6,3) -> 0 | P3: =0 -> 0 | Q3: =ROUND(MAX(Refrigeration!C6,O3:P3),3) -> 0 | R3: =ROUND(Refrigeration!D6,0) -> 0 | S3: =Refrigeration!E6 -> 0 | T3: =Refrigeration!F6 -> 0 | V3: =Refrigeration!J6 -> 0 | Y3: 4 | AC3: =Refrigeration!G6 -> 0 | AD3: =Refrigeration!H6 -> 0 | AH3: =Refrigeration!I6 -> 0
I4: Door Gaskets | J4: 3 | K4: =INDEX('Savings Summary'!$Q$8:$Q$51,MATCH('DSMT Export'!I4,'Savings Summary'!$C$8:$C$51,0)) -> a1r3u000003Fil7AAC | L4: =INDEX('Savings Summary'!$R$8:$R$51,MATCH('DSMT Export'!I4,'Savings Summary'!$C$8:$C$51,0)) -> 0123u000000VQdAAAW | M4: 0 | N4: 0 | O4: =ROUND(Refrigeration!B7,3) -> 0 | P4: =0 -> 0 | Q4: =ROUND(MAX(Refrigeration!C7,O4:P4),3) -> 0 | R4: =ROUND(Refrigeration!D7,0) -> 0 | S4: =Refrigeration!E7 -> 0 | T4: =Refrigeration!F7 -> 0 | V4: =Refrigeration!J7 -> 0 | Y4: 4 | AC4: =Refrigeration!G7 -> 0 | AD4: =Refrigeration!H7 -> 0 | AH4: =Refrigeration!I7 -> 0
B5: Enrollment Application ID: | I5: Door Gaskets | J5: 4 | K5: =INDEX('Savings Summary'!$Q$8:$Q$51,MATCH('DSMT Export'!I5,'Savings Summary'!$C$8:$C$51,0)) -> a1r3u000003Fil7AAC | L5: =INDEX('Savings Summary'!$R$8:$R$51,MATCH('DSMT Export'!I5,'Savings Summary'!$C$8:$C$51,0)) -> 0123u000000VQdAAAW | M5: 0 | N5: 0 | O5: =ROUND(Refrigeration!B8,3) -> 0 | P5: =0 -> 0 | Q5: =ROUND(MAX(Refrigeration!C8,O5:P5),3) -> 0 | R5: =ROUND(Refrigeration!D8,0) -> 0 | S5: =Refrigeration!E8 -> 0 | T5: =Refrigeration!F8 -> 0 | V5: =Refrigeration!J8 -> 0 | Y5: 4 | AC5: =Refrigeration!G8 -> 0 | AD5: =Refrigeration!H8 -> 0 | AH5: =Refrigeration!I8 -> 0
B6: Application Premise ID: | I6: Door Gaskets | J6: 5 | K6: =INDEX('Savings Summary'!$Q$8:$Q$51,MATCH('DSMT Export'!I6,'Savings Summary'!$C$8:$C$51,0)) -> a1r3u000003Fil7AAC | L6: =INDEX('Savings Summary'!$R$8:$R$51,MATCH('DSMT Export'!I6,'Savings Summary'!$C$8:$C$51,0)) -> 0123u000000VQdAAAW | M6: 0 | N6: 0 | O6: =ROUND(Refrigeration!B9,3) -> 0 | P6: =0 -> 0 | Q6: =ROUND(MAX(Refrigeration!C9,O6:P6),3) -> 0 | R6: =ROUND(Refrigeration!D9,0) -> 0 | S6: =Refrigeration!E9 -> 0 | T6: =Refrigeration!F9 -> 0 | V6: =Refrigeration!J9 -> 0 | Y6: 4 | AC6: =Refrigeration!G9 -> 0 | AD6: =Refrigeration!H9 -> 0 | AH6: =Refrigeration!I9 -> 0
I7: Door Heater Controls for Refrigerated Display Cases | J7: 1 | K7: =INDEX('Savings Summary'!$Q$8:$Q$51,MATCH('DSMT Export'!I7,'Savings Summary'!$C$8:$C$51,0)) -> a1r3u000003Fil9AAC | L7: =INDEX('Savings Summary'!$R$8:$R$51,MATCH('DSMT Export'!I7,'Savings Summary'!$C$8:$C$51,0)) -> 0123u000000VQdAAAW | M7: 0 | N7: 0 | O7: =ROUND(Refrigeration!B13,3) -> 0 | P7: =0 -> 0 | Q7: =ROUND(MAX(O7:P7,Refrigeration!C13),3) -> 0 | R7: =ROUND(Refrigeration!D13,0) -> 0 | S7: =Refrigeration!E13 -> 0 | V7: =Refrigeration!G13 -> 0 | Y7: 4 | AE7: =Refrigeration!F13 -> 0
I8: Door Heater Controls for Refrigerated Display Cases | J8: 2 | K8: =INDEX('Savings Summary'!$Q$8:$Q$51,MATCH('DSMT Export'!I8,'Savings Summary'!$C$8:$C$51,0)) -> a1r3u000003Fil9AAC | L8: =INDEX('Savings Summary'!$R$8:$R$51,MATCH('DSMT Export'!I8,'Savings Summary'!$C$8:$C$51,0)) -> 0123u000000VQdAAAW | M8: 0 | N8: 0 | O8: =ROUND(Refrigeration!B14,3) -> 0 | P8: =0 -> 0 | Q8: =ROUND(MAX(O8:P8,Refrigeration!C14),3) -> 0 | R8: =ROUND(Refrigeration!D14,0) -> 0 | S8: =Refrigeration!E14 -> 0 | V8: =Refrigeration!G14 -> 0 | Y8: 4 | AE8: =Refrigeration!F14 -> 0
I9: Door Heater Controls for Refrigerated Display Cases | J9: 3 | K9: =INDEX('Savings Summary'!$Q$8:$Q$51,MATCH('DSMT Export'!I9,'Savings Summary'!$C$8:$C$51,0)) -> a1r3u000003Fil9AAC | L9: =INDEX('Savings Summary'!$R$8:$R$51,MATCH('DSMT Export'!I9,'Savings Summary'!$C$8:$C$51,0)) -> 0123u000000VQdAAAW | M9: 0 | N9: 0 | O9: =ROUND(Refrigeration!B15,3) -> 0 | P9: =0 -> 0 | Q9: =ROUND(MAX(O9:P9,Refrigeration!C15),3) -> 0 | R9: =ROUND(Refrigeration!D15,0) -> 0 | S9: =Refrigeration!E15 -> 0 | V9: =Refrigeration!G15 -> 0 | Y9: 4 | AE9: =Refrigeration!F15 -> 0
I10: ECM Evaporator Fan Motors for Refrigerated Display Cases | J10: 1 | K10: =INDEX('Savings Summary'!$Q$8:$Q$51,MATCH('DSMT Export'!I10,'Savings Summary'!$C$8:$C$51,0)) -> a1r3u000003FilBAAS | L10: =INDEX('Savings Summary'!$R$8:$R$51,MATCH('DSMT Export'!I10,'Savings Summary'!$C$8:$C$51,0)) -> 0123u000000VQdGAAW | M10: 0 | N10: 0 | O10: =ROUND(Refrigeration!B19,3) -> 0 | P10: =0 -> 0 | Q10: =ROUND(MAX(O10:P10,Refrigeration!C19),3) -> 0 | R10: =ROUND(Refrigeration!D19,0) -> 0 | S10: =Refrigeration!E19 -> 0 | T10: =Refrigeration!F19 -> 0 | V10: =Refrigeration!G19 -> 0 | Y10: 4 | AI10: =Refrigeration!H19 -> 0 | AJ10: =Refrigeration!I19 -> 0 | AK10: =Refrigeration!J19 -> 0
I11: ECM Evaporator Fan Motors for Refrigerated Display Cases | J11: 2 | K11: =INDEX('Savings Summary'!$Q$8:$Q$51,MATCH('DSMT Export'!I11,'Savings Summary'!$C$8:$C$51,0)) -> a1r3u000003FilBAAS | L11: =INDEX('Savings Summary'!$R$8:$R$51,MATCH('DSMT Export'!I11,'Savings Summary'!$C$8:$C$51,0)) -> 0123u000000VQdGAAW | M11: 0 | N11: 0 | O11: =ROUND(Refrigeration!B20,3) -> 0 | P11: =0 -> 0 | Q11: =ROUND(MAX(O11:P11,Refrigeration!C20),3) -> 0 | R11: =ROUND(Refrigeration!D20,0) -> 0 | S11: =Refrigeration!E20 -> 0 | T11: =Refrigeration!F20 -> 0 | V11: =Refrigeration!G20 -> 0 | Y11: 4 | AI11: =Refrigeration!H20 -> 0 | AJ11: =Refrigeration!I20 -> 0 | AK11: =Refrigeration!J20 -> 0
A12: The enrollment application record ID can be found by navigating to the Enrollment Application in DSMT in your web browser and copying the ID at the end of the web address (after .com/). | I12: ECM Evaporator Fan Motors for Refrigerated Display Cases | J12: 3 | K12: =INDEX('Savings Summary'!$Q$8:$Q$51,MATCH('DSMT Export'!I12,'Savings Summary'!$C$8:$C$51,0)) -> a1r3u000003FilBAAS | L12: =INDEX('Savings Summary'!$R$8:$R$51,MATCH('DSMT Export'!I12,'Savings Summary'!$C$8:$C$51,0)) -> 0123u000000VQdGAAW | M12: 0 | N12: 0 | O12: =ROUND(Refrigeration!B21,3) -> 0 | P12: =0 -> 0 | Q12: =ROUND(MAX(O12:P12,Refrigeration!C21),3) -> 0 | R12: =ROUND(Refrigeration!D21,0) -> 0 | S12: =Refrigeration!E21 -> 0 | T12: =Refrigeration!F21 -> 0 | V12: =Refrigeration!G21 -> 0 | Y12: 4 | AI12: =Refrigeration!H21 -> 0 | AJ12: =Refrigeration!I21 -> 0 | AK12: =Refrigeration!J21 -> 0
I13: ECM Evaporator Fan Motors for Refrigerated Display Cases | J13: 4 | K13: =INDEX('Savings Summary'!$Q$8:$Q$51,MATCH('DSMT Export'!I13,'Savings Summary'!$C$8:$C$51,0)) -> a1r3u000003FilBAAS | L13: =INDEX('Savings Summary'!$R$8:$R$51,MATCH('DSMT Export'!I13,'Savings Summary'!$C$8:$C$51,0)) -> 0123u000000VQdGAAW | M13: 0 | N13: 0 | O13: =ROUND(Refrigeration!B22,3) -> 0 | P13: =0 -> 0 | Q13: =ROUND(MAX(O13:P13,Refrigeration!C22),3) -> 0 | R13: =ROUND(Refrigeration!D22,0) -> 0 | S13: =Refrigeration!E22 -> 0 | T13: =Refrigeration!F22 -> 0 | V13: =Refrigeration!G22 -> 0 | Y13: 4 | AI13: =Refrigeration!H22 -> 0 | AJ13: =Refrigeration!I22 -> 0 | AK13: =Refrigeration!J22 -> 0
A14: The application premise record ID can be found by navigating to the Application Premise in DSMT in your web browser and copying the ID at the end of the web address (after .com/). | I14: ECM Evaporator Fan Motors for Refrigerated Display Cases | J14: 5 | K14: =INDEX('Savings Summary'!$Q$8:$Q$51,MATCH('DSMT Export'!I14,'Savings Summary'!$C$8:$C$51,0)) -> a1r3u000003FilBAAS | L14: =INDEX('Savings Summary'!$R$8:$R$51,MATCH('DSMT Export'!I14,'Savings Summary'!$C$8:$C$51,0)) -> 0123u000000VQdGAAW | M14: 0 | N14: 0 | O14: =ROUND(Refrigeration!B23,3) -> 0 | P14: =0 -> 0 | Q14: =ROUND(MAX(O14:P14,Refrigeration!C23),3) -> 0 | R14: =ROUND(Refrigeration!D23,0) -> 0 | S14: =Refrigeration!E23 -> 0 | T14: =Refrigeration!F23 -> 0 | V14: =Refrigeration!G23 -> 0 | Y14: 4 | AI14: =Refrigeration!H23 -> 0 | AJ14: =Refrigeration!I23 -> 0 | AK14: =Refrigeration!J23 -> 0
I15: ECM Evaporator Fan Motors for Refrigerated Display Cases | J15: 6 | K15: =INDEX('Savings Summary'!$Q$8:$Q$51,MATCH('DSMT Export'!I15,'Savings Summary'!$C$8:$C$51,0)) -> a1r3u000003FilBAAS | L15: =INDEX('Savings Summary'!$R$8:$R$51,MATCH('DSMT Export'!I15,'Savings Summary'!$C$8:$C$51,0)) -> 0123u000000VQdGAAW | M15: 0 | N15: 0 | O15: =ROUND(Refrigeration!B24,3) -> 0 | P15: =0 -> 0 | Q15: =ROUND(MAX(O15:P15,Refrigeration!C24),3) -> 0 | R15: =ROUND(Refrigeration!D24,0) -> 0 | S15: =Refrigeration!E24 -> 0 | T15: =Refrigeration!F24 -> 0 | V15: =Refrigeration!G24 -> 0 | Y15: 4 | AI15: =Refrigeration!H24 -> 0 | AJ15: =Refrigeration!I24 -> 0 | AK15: =Refrigeration!J24 -> 0
I16: ECM Evaporator Fan Motors for Refrigerated Display Cases | J16: 7 | K16: =INDEX('Savings Summary'!$Q$8:$Q$51,MATCH('DSMT Export'!I16,'Savings Summary'!$C$8:$C$51,0)) -> a1r3u000003FilBAAS | L16: =INDEX('Savings Summary'!$R$8:$R$51,MATCH('DSMT Export'!I16,'Savings Summary'!$C$8:$C$51,0)) -> 0123u000000VQdGAAW | M16: 0 | N16: 0 | O16: =ROUND(Refrigeration!B25,3) -> 0 | P16: =0 -> 0 | Q16: =ROUND(MAX(O16:P16,Refrigeration!C25),3) -> 0 | R16: =ROUND(Refrigeration!D25,0) -> 0 | S16: =Refrigeration!E25 -> 0 | T16: =Refrigeration!F25 -> 0 | V16: =Refrigeration!G25 -> 0 | Y16: 4 | AI16: =Refrigeration!H25 -> 0 | AJ16: =Refrigeration!I25 -> 0 | AK16: =Refrigeration!J25 -> 0
A17: Launching the Import Wizard in Salesforce | I17: ECM Evaporator Fan Motors for Refrigerated Display Cases | J17: 8 | K17: =INDEX('Savings Summary'!$Q$8:$Q$51,MATCH('DSMT Export'!I17,'Savings Summary'!$C$8:$C$51,0)) -> a1r3u000003FilBAAS | L17: =INDEX('Savings Summary'!$R$8:$R$51,MATCH('DSMT Export'!I17,'Savings Summary'!$C$8:$C$51,0)) -> 0123u000000VQdGAAW | M17: 0 | N17: 0 | O17: =ROUND(Refrigeration!B26,3) -> 0 | P17: =0 -> 0 | Q17: =ROUND(MAX(O17:P17,Refrigeration!C26),3) -> 0 | R17: =ROUND(Refrigeration!D26,0) -> 0 | S17: =Refrigeration!E26 -> 0 | T17: =Refrigeration!F26 -> 0 | V17: =Refrigeration!G26 -> 0 | Y17: 4 | AI17: =Refrigeration!H26 -> 0 | AJ17: =Refrigeration!I26 -> 0 | AK17: =Refrigeration!J26 -> 0
A18: 1. | B18: Login to Salesforce in the environment you will be testing. | I18: Electronic Defrost Controls | J18: 1 | K18: =INDEX('Savings Summary'!$Q$8:$Q$51,MATCH('DSMT Export'!I18,'Savings Summary'!$C$8:$C$51,0)) -> a1r3u000003FilKAAS | L18: =INDEX('Savings Summary'!$R$8:$R$51,MATCH('DSMT Export'!I18,'Savings Summary'!$C$8:$C$51,0)) -> 0123u000000VQdJAAW | M18: 0 | N18: 0 | O18: =ROUND(Refrigeration!B30,3) -> 0 | P18: =0 -> 0 | Q18: =ROUND(MAX(O18:P18,Refrigeration!C30),3) -> 0 | R18: =ROUND(Refrigeration!D30,0) -> 0 | S18: =Refrigeration!E30 -> 0 | V18: =Refrigeration!G30 -> 0 | Y18: 4 | AL18: =Refrigeration!F30 -> 0 | AM18: =Refrigeration!H30 -> 0
A19: 2. | B19: Navigate to Upload MLIs by clicking on the "+" sign in the top right corner of the page. | I19: Electronic Defrost Controls | J19: 2 | K19: =INDEX('Savings Summary'!$Q$8:$Q$51,MATCH('DSMT Export'!I19,'Savings Summary'!$C$8:$C$51,0)) -> a1r3u000003FilKAAS | L19: =INDEX('Savings Summary'!$R$8:$R$51,MATCH('DSMT Export'!I19,'Savings Summary'!$C$8:$C$51,0)) -> 0123u000000VQdJAAW | M19: 0 | N19: 0 | O19: =ROUND(Refrigeration!B31,3) -> 0 | P19: =0 -> 0 | Q19: =ROUND(MAX(O19:P19,Refrigeration!C31),3) -> 0 | R19: =ROUND(Refrigeration!D31,0) -> 0 | S19: =Refrigeration!E31 -> 0 | V19: =Refrigeration!G31 -> 0 | Y19: 4 | AL19: =Refrigeration!F31 -> 0 | AM19: =Refrigeration!H31 -> 0
A20: 3. | B20: Click on the "Choose File" button and select the CSV file you created. | I20: Electronic Defrost Controls | J20: 3 | K20: =INDEX('Savings Summary'!$Q$8:$Q$51,MATCH('DSMT Export'!I20,'Savings Summary'!$C$8:$C$51,0)) -> a1r3u000003FilKAAS | L20: =INDEX('Savings Summary'!$R$8:$R$51,MATCH('DSMT Export'!I20,'Savings Summary'!$C$8:$C$51,0)) -> 0123u000000VQdJAAW | M20: 0 | N20: 0 | O20: =ROUND(Refrigeration!B32,3) -> 0 | P20: =0 -> 0 | Q20: =ROUND(MAX(O20:P20,Refrigeration!C32),3) -> 0 | R20: =ROUND(Refrigeration!D32,0) -> 0 | S20: =Refrigeration!E32 -> 0 | V20: =Refrigeration!G32 -> 0 | Y20: 4 | AL20: =Refrigeration!F32 -> 0 | AM20: =Refrigeration!H32 -> 0
A21: 4. | B21: Select the "Upload File" button. | I21: Electronic Defrost Controls | J21: 4 | K21: =INDEX('Savings Summary'!$Q$8:$Q$51,MATCH('DSMT Export'!I21,'Savings Summary'!$C$8:$C$51,0)) -> a1r3u000003FilKAAS | L21: =INDEX('Savings Summary'!$R$8:$R$51,MATCH('DSMT Export'!I21,'Savings Summary'!$C$8:$C$51,0)) -> 0123u000000VQdJAAW | M21: 0 | N21: 0 | O21: =ROUND(Refrigeration!B33,3) -> 0 | P21: =0 -> 0 | Q21: =ROUND(MAX(O21:P21,Refrigeration!C33),3) -> 0 | R21: =ROUND(Refrigeration!D33,0) -> 0 | S21: =Refrigeration!E33 -> 0 | V21: =Refrigeration!G33 -> 0 | Y21: 4 | AL21: =Refrigeration!F33 -> 0 | AM21: =Refrigeration!H33 -> 0
A22: 5. | B22: An email will be sent to your account once all MLIs are imported. Depending on how large the CSV file is, this may take anywhere between 1-3 hours. | I22: Electronic Defrost Controls | J22: 5 | K22: =INDEX('Savings Summary'!$Q$8:$Q$51,MATCH('DSMT Export'!I22,'Savings Summary'!$C$8:$C$51,0)) -> a1r3u000003FilKAAS | L22: =INDEX('Savings Summary'!$R$8:$R$51,MATCH('DSMT Export'!I22,'Savings Summary'!$C$8:$C$51,0)) -> 0123u000000VQdJAAW | M22: 0 | N22: 0 | O22: =ROUND(Refrigeration!B34,3) -> 0 | P22: =0 -> 0 | Q22: =ROUND(MAX(O22:P22,Refrigeration!C34),3) -> 0 | R22: =ROUND(Refrigeration!D34,0) -> 0 | S22: =Refrigeration!E34 -> 0 | V22: =Refrigeration!G34 -> 0 | Y22: 4 | AL22: =Refrigeration!F34 -> 0 | AM22: =Refrigeration!H34 -> 0
I23: Evaporator Fan Controls | J23: 1 | K23: =INDEX('Savings Summary'!$Q$8:$Q$51,MATCH('DSMT Export'!I23,'Savings Summary'!$C$8:$C$51,0)) -> a1r3u000003FilOAAS | L23: =INDEX('Savings Summary'!$R$8:$R$51,MATCH('DSMT Export'!I23,'Savings Summary'!$C$8:$C$51,0)) -> 0123u000000VQdLAAW | M23: 0 | N23: 0 | O23: =ROUND(Refrigeration!B38,3) -> 0 | P23: =0 -> 0 | Q23: =ROUND(MAX(O23:P23,Refrigeration!C38),3) -> 0 | R23: =ROUND(Refrigeration!D38,0) -> 0 | S23: =Refrigeration!E38 -> 0 | T23: =Refrigeration!F38 -> 0 | V23: =Refrigeration!G38 -> 0 | Y23: 4
A24: Note: You can import multiple CSV files at once. One email will be sent out for each file. | I24: Evaporator Fan Controls | J24: 2 | K24: =INDEX('Savings Summary'!$Q$8:$Q$51,MATCH('DSMT Export'!I24,'Savings Summary'!$C$8:$C$51,0)) -> a1r3u000003FilOAAS | L24: =INDEX('Savings Summary'!$R$8:$R$51,MATCH('DSMT Export'!I24,'Savings Summary'!$C$8:$C$51,0)) -> 0123u000000VQdLAAW | M24: 0 | N24: 0 | O24: =ROUND(Refrigeration!B39,3) -> 0 | P24: =0 -> 0 | Q24: =ROUND(MAX(O24:P24,Refrigeration!C39),3) -> 0 | R24: =ROUND(Refrigeration!D39,0) -> 0 | S24: =Refrigeration!E39 -> 0 | T24: =Refrigeration!F39 -> 0 | V24: =Refrigeration!G39 -> 0 | Y24: 4
I25: Evaporator Fan Controls | J25: 3 | K25: =INDEX('Savings Summary'!$Q$8:$Q$51,MATCH('DSMT Export'!I25,'Savings Summary'!$C$8:$C$51,0)) -> a1r3u000003FilOAAS | L25: =INDEX('Savings Summary'!$R$8:$R$51,MATCH('DSMT Export'!I25,'Savings Summary'!$C$8:$C$51,0)) -> 0123u000000VQdLAAW | M25: 0 | N25: 0 | O25: =ROUND(Refrigeration!B40,3) -> 0 | P25: =0 -> 0 | Q25: =ROUND(MAX(O25:P25,Refrigeration!C40),3) -> 0 | R25: =ROUND(Refrigeration!D40,0) -> 0 | S25: =Refrigeration!E40 -> 0 | T25: =Refrigeration!F40 -> 0 | V25: =Refrigeration!G40 -> 0 | Y25: 4
A26: Advanced Controls | I26: Night Covers for Open Vertical and Horizontal Refrigerated Display Cases | J26: 1 | K26: =INDEX('Savings Summary'!$Q$8:$Q$51,MATCH('DSMT Export'!I26,'Savings Summary'!$C$8:$C$51,0)) -> a1r3u000003FillAAC | L26: =INDEX('Savings Summary'!$R$8:$R$51,MATCH('DSMT Export'!I26,'Savings Summary'!$C$8:$C$51,0)) -> 0123u000000VQdRAAW | M26: 0 | N26: 0 | O26: =ROUND(Refrigeration!B44,3) -> 0 | P26: =0 -> 0 | Q26: =ROUND(MAX(Refrigeration!C44,O26:P26),3) -> 0 | R26: =ROUND(Refrigeration!D44,0) -> 0 | S26: =Refrigeration!E44 -> 0 | V26: =Refrigeration!G44 -> 0 | W26: =Refrigeration!I44 -> 0 | X26: =Refrigeration!H44 -> 0 | Y26: 4 | AF26: =Refrigeration!F44 -> 0
B27: DSMT Environment: | C27: PROD | I27: Night Covers for Open Vertical and Horizontal Refrigerated Display Cases | J27: 2 | K27: =INDEX('Savings Summary'!$Q$8:$Q$51,MATCH('DSMT Export'!I27,'Savings Summary'!$C$8:$C$51,0)) -> a1r3u000003FillAAC | L27: =INDEX('Savings Summary'!$R$8:$R$51,MATCH('DSMT Export'!I27,'Savings Summary'!$C$8:$C$51,0)) -> 0123u000000VQdRAAW | M27: 0 | N27: 0 | O27: =ROUND(Refrigeration!B45,3) -> 0 | P27: =0 -> 0 | Q27: =ROUND(MAX(Refrigeration!C45,O27:P27),3) -> 0 | R27: =ROUND(Refrigeration!D45,0) -> 0 | S27: =Refrigeration!E45 -> 0 | V27: =Refrigeration!G45 -> 0 | W27: =Refrigeration!I45 -> 0 | X27: =Refrigeration!H45 -> 0 | Y27: 4 | AF27: =Refrigeration!F45 -> 0
I28: Night Covers for Open Vertical and Horizontal Refrigerated Display Cases | J28: 3 | K28: =INDEX('Savings Summary'!$Q$8:$Q$51,MATCH('DSMT Export'!I28,'Savings Summary'!$C$8:$C$51,0)) -> a1r3u000003FillAAC | L28: =INDEX('Savings Summary'!$R$8:$R$51,MATCH('DSMT Export'!I28,'Savings Summary'!$C$8:$C$51,0)) -> 0123u000000VQdRAAW | M28: 0 | N28: 0 | O28: =ROUND(Refrigeration!B46,3) -> 0 | P28: =0 -> 0 | Q28: =ROUND(MAX(Refrigeration!C46,O28:P28),3) -> 0 | R28: =ROUND(Refrigeration!D46,0) -> 0 | S28: =Refrigeration!E46 -> 0 | V28: =Refrigeration!G46 -> 0 | W28: =Refrigeration!I46 -> 0 | X28: =Refrigeration!H46 -> 0 | Y28: 4 | AF28: =Refrigeration!F46 -> 0
I29: Night Covers for Open Vertical and Horizontal Refrigerated Display Cases | J29: 4 | K29: =INDEX('Savings Summary'!$Q$8:$Q$51,MATCH('DSMT Export'!I29,'Savings Summary'!$C$8:$C$51,0)) -> a1r3u000003FillAAC | L29: =INDEX('Savings Summary'!$R$8:$R$51,MATCH('DSMT Export'!I29,'Savings Summary'!$C$8:$C$51,0)) -> 0123u000000VQdRAAW | M29: 0 | N29: 0 | O29: =ROUND(Refrigeration!B47,3) -> 0 | P29: =0 -> 0 | Q29: =ROUND(MAX(Refrigeration!C47,O29:P29),3) -> 0 | R29: =ROUND(Refrigeration!D47,0) -> 0 | S29: =Refrigeration!E47 -> 0 | V29: =Refrigeration!G47 -> 0 | W29: =Refrigeration!I47 -> 0 | X29: =Refrigeration!H47 -> 0 | Y29: 4 | AF29: =Refrigeration!F47 -> 0
I30: Night Covers for Open Vertical and Horizontal Refrigerated Display Cases | J30: 5 | K30: =INDEX('Savings Summary'!$Q$8:$Q$51,MATCH('DSMT Export'!I30,'Savings Summary'!$C$8:$C$51,0)) -> a1r3u000003FillAAC | L30: =INDEX('Savings Summary'!$R$8:$R$51,MATCH('DSMT Export'!I30,'Savings Summary'!$C$8:$C$51,0)) -> 0123u000000VQdRAAW | M30: 0 | N30: 0 | O30: =ROUND(Refrigeration!B48,3) -> 0 | P30: =0 -> 0 | Q30: =ROUND(MAX(Refrigeration!C48,O30:P30),3) -> 0 | R30: =ROUND(Refrigeration!D48,0) -> 0 | S30: =Refrigeration!E48 -> 0 | V30: =Refrigeration!G48 -> 0 | W30: =Refrigeration!I48 -> 0 | X30: =Refrigeration!H48 -> 0 | Y30: 4 | AF30: =Refrigeration!F48 -> 0
I31: ENERGY STAR Commercial Refrigerators | J31: 1 | K31: =INDEX('Savings Summary'!$Q$8:$Q$51,MATCH('DSMT Export'!I31,'Savings Summary'!$C$8:$C$51,0)) -> a1r3u000003Fim5AAC | L31: =INDEX('Savings Summary'!$R$8:$R$51,MATCH('DSMT Export'!I31,'Savings Summary'!$C$8:$C$51,0)) -> 0123u000000VQd6AAG | M31: 0 | N31: 0 | O31: =ROUND(Refrigeration!B52,3) -> 0 | P31: =0 -> 0 | Q31: =ROUND(MAX(Refrigeration!C52,O31:P31),3) -> 0 | R31: =ROUND(Refrigeration!D52,0) -> 0 | S31: =Refrigeration!E52 -> 0 | T31: =Refrigeration!F52 -> 0 | U31: =Refrigeration!G52 -> 0 | V31: =Refrigeration!I52 -> 0 | X31: =Refrigeration!J52 -> 0 | Y31: 4 | AG31: =Refrigeration!H52 -> 0
I32: ENERGY STAR Commercial Refrigerators | J32: 2 | K32: =INDEX('Savings Summary'!$Q$8:$Q$51,MATCH('DSMT Export'!I32,'Savings Summary'!$C$8:$C$51,0)) -> a1r3u000003Fim5AAC | L32: =INDEX('Savings Summary'!$R$8:$R$51,MATCH('DSMT Export'!I32,'Savings Summary'!$C$8:$C$51,0)) -> 0123u000000VQd6AAG | M32: 0 | N32: 0 | O32: =ROUND(Refrigeration!B53,3) -> 0 | P32: =0 -> 0 | Q32: =ROUND(MAX(Refrigeration!C53,O32:P32),3) -> 0 | R32: =ROUND(Refrigeration!D53,0) -> 0 | S32: =Refrigeration!E53 -> 0 | T32: =Refrigeration!F53 -> 0 | U32: =Refrigeration!G53 -> 0 | V32: =Refrigeration!I53 -> 0 | X32: =Refrigeration!J53 -> 0 | Y32: 4 | AG32: =Refrigeration!H53 -> 0
I33: ENERGY STAR Commercial Refrigerators | J33: 3 | K33: =INDEX('Savings Summary'!$Q$8:$Q$51,MATCH('DSMT Export'!I33,'Savings Summary'!$C$8:$C$51,0)) -> a1r3u000003Fim5AAC | L33: =INDEX('Savings Summary'!$R$8:$R$51,MATCH('DSMT Export'!I33,'Savings Summary'!$C$8:$C$51,0)) -> 0123u000000VQd6AAG | M33: 0 | N33: 0 | O33: =ROUND(Refrigeration!B54,3) -> 0 | P33: =0 -> 0 | Q33: =ROUND(MAX(Refrigeration!C54,O33:P33),3) -> 0 | R33: =ROUND(Refrigeration!D54,0) -> 0 | S33: =Refrigeration!E54 -> 0 | T33: =Refrigeration!F54 -> 0 | U33: =Refrigeration!G54 -> 0 | V33: =Refrigeration!I54 -> 0 | X33: =Refrigeration!J54 -> 0 | Y33: 4 | AG33: =Refrigeration!H54 -> 0
I34: ENERGY STAR Commercial Refrigerators | J34: 4 | K34: =INDEX('Savings Summary'!$Q$8:$Q$51,MATCH('DSMT Export'!I34,'Savings Summary'!$C$8:$C$51,0)) -> a1r3u000003Fim5AAC | L34: =INDEX('Savings Summary'!$R$8:$R$51,MATCH('DSMT Export'!I34,'Savings Summary'!$C$8:$C$51,0)) -> 0123u000000VQd6AAG | M34: =APID -> 0 | N34: =EAID -> 0 | O34: =ROUND(Refrigeration!B55,3) -> 0 | P34: =0 -> 0 | Q34: =ROUND(MAX(Refrigeration!C55,O34:P34),3) -> 0 | R34: =ROUND(Refrigeration!D55,0) -> 0 | S34: =Refrigeration!E55 -> 0 | T34: =Refrigeration!F55 -> 0 | U34: =Refrigeration!G55 -> 0 | V34: =Refrigeration!I55 -> 0 | X34: =Refrigeration!J55 -> 0 | Y34: =SelectedZone -> 4 | AG34: =Refrigeration!H55 -> 0
I35: ENERGY STAR Commercial Refrigerators | J35: 5 | K35: =INDEX('Savings Summary'!$Q$8:$Q$51,MATCH('DSMT Export'!I35,'Savings Summary'!$C$8:$C$51,0)) -> a1r3u000003Fim5AAC | L35: =INDEX('Savings Summary'!$R$8:$R$51,MATCH('DSMT Export'!I35,'Savings Summary'!$C$8:$C$51,0)) -> 0123u000000VQd6AAG | M35: 0 | N35: 0 | O35: =ROUND(Refrigeration!B56,3) -> 0 | P35: =0 -> 0 | Q35: =ROUND(MAX(Refrigeration!C56,O35:P35),3) -> 0 | R35: =ROUND(Refrigeration!D56,0) -> 0 | S35: =Refrigeration!E56 -> 0 | T35: =Refrigeration!F56 -> 0 | U35: =Refrigeration!G56 -> 0 | V35: =Refrigeration!I56 -> 0 | X35: =Refrigeration!J56 -> 0 | Y35: 4 | AG35: =Refrigeration!H56 -> 0
I36: Strip Curtains for Walk-In Refrigerated Storage | J36: 1 | K36: =INDEX('Savings Summary'!$Q$8:$Q$51,MATCH('DSMT Export'!I36,'Savings Summary'!$C$8:$C$51,0)) -> a1r3u000003Fim7AAC | L36: =INDEX('Savings Summary'!$R$8:$R$51,MATCH('DSMT Export'!I36,'Savings Summary'!$C$8:$C$51,0)) -> 0123u000000VQM9AAO | M36: 0 | N36: 0 | O36: =ROUND(Refrigeration!B60,3) -> 0 | P36: =0 -> 0 | Q36: =ROUND(MAX(O36:P36,Refrigeration!C60),3) -> 0 | R36: =ROUND(Refrigeration!D60,0) -> 0 | S36: =Refrigeration!E60 -> 0 | T36: =Refrigeration!F60 -> 0 | V36: =Refrigeration!G60 -> 0 | Y36: 4 | Z36: =Refrigeration!H60 -> 0
I37: Strip Curtains for Walk-In Refrigerated Storage | J37: 2 | K37: =INDEX('Savings Summary'!$Q$8:$Q$51,MATCH('DSMT Export'!I37,'Savings Summary'!$C$8:$C$51,0)) -> a1r3u000003Fim7AAC | L37: =INDEX('Savings Summary'!$R$8:$R$51,MATCH('DSMT Export'!I37,'Savings Summary'!$C$8:$C$51,0)) -> 0123u000000VQM9AAO | M37: 0 | N37: 0 | O37: =ROUND(Refrigeration!B61,3) -> 0 | P37: =0 -> 0 | Q37: =ROUND(MAX(O37:P37,Refrigeration!C61),3) -> 0 | R37: =ROUND(Refrigeration!D61,0) -> 0 | S37: =Refrigeration!E61 -> 0 | T37: =Refrigeration!F61 -> 0 | V37: =Refrigeration!G61 -> 0 | Y37: 4 | Z37: =Refrigeration!H61 -> 0
I38: Strip Curtains for Walk-In Refrigerated Storage | J38: 3 | K38: =INDEX('Savings Summary'!$Q$8:$Q$51,MATCH('DSMT Export'!I38,'Savings Summary'!$C$8:$C$51,0)) -> a1r3u000003Fim7AAC | L38: =INDEX('Savings Summary'!$R$8:$R$51,MATCH('DSMT Export'!I38,'Savings Summary'!$C$8:$C$51,0)) -> 0123u000000VQM9AAO | M38: 0 | N38: 0 | O38: =ROUND(Refrigeration!B62,3) -> 0 | P38: =0 -> 0 | Q38: =ROUND(MAX(O38:P38,Refrigeration!C62),3) -> 0 | R38: =ROUND(Refrigeration!D62,0) -> 0 | S38: =Refrigeration!E62 -> 0 | T38: =Refrigeration!F62 -> 0 | V38: =Refrigeration!G62 -> 0 | Y38: 4 | Z38: =Refrigeration!H62 -> 0
I39: Zero-Energy Doors for Refrigerated Cases | J39: 1 | K39: =INDEX('Savings Summary'!$Q$8:$Q$51,MATCH('DSMT Export'!I39,'Savings Summary'!$C$8:$C$51,0)) -> a1r3u000003FimJAAS | L39: =INDEX('Savings Summary'!$R$8:$R$51,MATCH('DSMT Export'!I39,'Savings Summary'!$C$8:$C$51,0)) -> 0123u000000VQdAAAW | M39: 0 | N39: 0 | O39: =ROUND(Refrigeration!B66,3) -> 0 | P39: =0 -> 0 | Q39: =ROUND(MAX(Refrigeration!C66,O39:P39),3) -> 0 | R39: =ROUND(Refrigeration!D66,0) -> 0 | S39: =Refrigeration!E66 -> 0 | V39: =Refrigeration!G66 -> 0 | Y39: 4 | AF39: =Refrigeration!F66 -> 0
I40: Zero-Energy Doors for Refrigerated Cases | J40: 2 | K40: =INDEX('Savings Summary'!$Q$8:$Q$51,MATCH('DSMT Export'!I40,'Savings Summary'!$C$8:$C$51,0)) -> a1r3u000003FimJAAS | L40: =INDEX('Savings Summary'!$R$8:$R$51,MATCH('DSMT Export'!I40,'Savings Summary'!$C$8:$C$51,0)) -> 0123u000000VQdAAAW | M40: 0 | N40: 0 | O40: =ROUND(Refrigeration!B67,3) -> 0 | P40: =0 -> 0 | Q40: =ROUND(MAX(Refrigeration!C67,O40:P40),3) -> 0 | R40: =ROUND(Refrigeration!D67,0) -> 0 | S40: =Refrigeration!E67 -> 0 | V40: =Refrigeration!G67 -> 0 | Y40: 4 | AF40: =Refrigeration!F67 -> 0
I41: Zero-Energy Doors for Refrigerated Cases | J41: 3 | K41: =INDEX('Savings Summary'!$Q$8:$Q$51,MATCH('DSMT Export'!I41,'Savings Summary'!$C$8:$C$51,0)) -> a1r3u000003FimJAAS | L41: =INDEX('Savings Summary'!$R$8:$R$51,MATCH('DSMT Export'!I41,'Savings Summary'!$C$8:$C$51,0)) -> 0123u000000VQdAAAW | M41: 0 | N41: 0 | O41: =ROUND(Refrigeration!B68,3) -> 0 | P41: =0 -> 0 | Q41: =ROUND(MAX(Refrigeration!C68,O41:P41),3) -> 0 | R41: =ROUND(Refrigeration!D68,0) -> 0 | S41: =Refrigeration!E68 -> 0 | V41: =Refrigeration!G68 -> 0 | Y41: 4 | AF41: =Refrigeration!F68 -> 0
I42: Vending Machine Controls | J42: 1 | K42: =INDEX('Savings Summary'!$Q$8:$Q$51,MATCH('DSMT Export'!I42,'Savings Summary'!$C$8:$C$51,0)) -> a1r3u000003Fim9AAC | L42: =INDEX('Savings Summary'!$R$8:$R$51,MATCH('DSMT Export'!I42,'Savings Summary'!$C$8:$C$51,0)) -> 0123u000000VQdAAAW | M42: 0 | N42: 0 | O42: =ROUND(Refrigeration!B72,3) -> 0 | P42: =0 -> 0 | Q42: =ROUND(MAX(O42:P42,Refrigeration!C72),3) -> 0 | R42: =ROUND(Refrigeration!D72,0) -> 0 | S42: =Refrigeration!E72 -> 0 | T42: =Refrigeration!F72 -> 0 | X42: =Refrigeration!G72 -> 0 | Y42: 4
I43: Vending Machine Controls | J43: 2 | K43: =INDEX('Savings Summary'!$Q$8:$Q$51,MATCH('DSMT Export'!I43,'Savings Summary'!$C$8:$C$51,0)) -> a1r3u000003Fim9AAC | L43: =INDEX('Savings Summary'!$R$8:$R$51,MATCH('DSMT Export'!I43,'Savings Summary'!$C$8:$C$51,0)) -> 0123u000000VQdAAAW | M43: 0 | N43: 0 | O43: =ROUND(Refrigeration!B73,3) -> 0 | P43: =0 -> 0 | Q43: =ROUND(MAX(O43:P43,Refrigeration!C73),3) -> 0 | R43: =ROUND(Refrigeration!D73,0) -> 0 | S43: =Refrigeration!E73 -> 0 | T43: =Refrigeration!F73 -> 0 | X43: =Refrigeration!G73 -> 0 | Y43: 4
I44: Vending Machine Controls | J44: 3 | K44: =INDEX('Savings Summary'!$Q$8:$Q$51,MATCH('DSMT Export'!I44,'Savings Summary'!$C$8:$C$51,0)) -> a1r3u000003Fim9AAC | L44: =INDEX('Savings Summary'!$R$8:$R$51,MATCH('DSMT Export'!I44,'Savings Summary'!$C$8:$C$51,0)) -> 0123u000000VQdAAAW | M44: 0 | N44: 0 | O44: =ROUND(Refrigeration!B74,3) -> 0 | P44: =0 -> 0 | Q44: =ROUND(MAX(O44:P44,Refrigeration!C74),3) -> 0 | R44: =ROUND(Refrigeration!D74,0) -> 0 | S44: =Refrigeration!E74 -> 0 | T44: =Refrigeration!F74 -> 0 | X44: =Refrigeration!G74 -> 0 | Y44: 4
I45: High Speed Doors for Cold Storage | J45: 1 | K45: =INDEX('Savings Summary'!$Q$8:$Q$51,MATCH('DSMT Export'!I45,'Savings Summary'!$C$8:$C$51,0)) -> 0 | L45: =INDEX('Savings Summary'!$R$8:$R$51,MATCH('DSMT Export'!I45,'Savings Summary'!$C$8:$C$51,0)) -> 0 | M45: 0 | N45: 0 | O45: =ROUND(Refrigeration!B78,3) -> 0 | P45: =0 -> 0 | Q45: =ROUND(MAX(Refrigeration!C78,O45:P45),3) -> 0 | R45: =ROUND(Refrigeration!D78,0) -> 0 | S45: =Refrigeration!E78 -> 0 | T45: =Refrigeration!F78 -> 0 | Y45: 4
I46: High Speed Doors for Cold Storage | J46: 2 | K46: =INDEX('Savings Summary'!$Q$8:$Q$51,MATCH('DSMT Export'!I46,'Savings Summary'!$C$8:$C$51,0)) -> 0 | L46: =INDEX('Savings Summary'!$R$8:$R$51,MATCH('DSMT Export'!I46,'Savings Summary'!$C$8:$C$51,0)) -> 0 | M46: 0 | N46: 0 | O46: =ROUND(Refrigeration!B79,3) -> 0 | P46: =0 -> 0 | Q46: =ROUND(MAX(Refrigeration!C79,O46:P46),3) -> 0 | R46: =ROUND(Refrigeration!D79,0) -> 0 | S46: =Refrigeration!E79 -> 0 | T46: =Refrigeration!F79 -> 0 | Y46: 4
I47: High Speed Doors for Cold Storage | J47: 3 | K47: =INDEX('Savings Summary'!$Q$8:$Q$51,MATCH('DSMT Export'!I47,'Savings Summary'!$C$8:$C$51,0)) -> 0 | L47: =INDEX('Savings Summary'!$R$8:$R$51,MATCH('DSMT Export'!I47,'Savings Summary'!$C$8:$C$51,0)) -> 0 | M47: 0 | N47: 0 | O47: =ROUND(Refrigeration!B80,3) -> 0 | P47: =0 -> 0 | Q47: =ROUND(MAX(Refrigeration!C80,O47:P47),3) -> 0 | R47: =ROUND(Refrigeration!D80,0) -> 0 | S47: =Refrigeration!E80 -> 0 | T47: =Refrigeration!F80 -> 0 | Y47: 4
I48: ENERGY STAR Electric Convection Oven | J48: 1 | K48: =INDEX('Savings Summary'!$Q$8:$Q$51,MATCH('DSMT Export'!I48,'Savings Summary'!$C$8:$C$51,0)) -> a1r3u000003FilFAAS | L48: =INDEX('Savings Summary'!$R$8:$R$51,MATCH('DSMT Export'!I48,'Savings Summary'!$C$8:$C$51,0)) -> 0123u000000VQdAAAW | M48: 0 | N48: 0 | O48: =ROUND('Food Service & DHW'!B5,3) -> 0 | P48: =0 -> 0 | Q48: =ROUND(MAX(O48:P48,'Food Service & DHW'!C5),3) -> 0 | R48: =ROUND('Food Service & DHW'!D5,0) -> 0 | S48: ='Food Service & DHW'!E5 -> 0 | T48: ='Food Service & DHW'!F5 -> 0 | U48: ='Food Service & DHW'!G5 -> 0 | Y48: 4 | AN48: ='Food Service & DHW'!H5 -> 0
I49: ENERGY STAR Electric Convection Oven | J49: 2 | K49: =INDEX('Savings Summary'!$Q$8:$Q$51,MATCH('DSMT Export'!I49,'Savings Summary'!$C$8:$C$51,0)) -> a1r3u000003FilFAAS | L49: =INDEX('Savings Summary'!$R$8:$R$51,MATCH('DSMT Export'!I49,'Savings Summary'!$C$8:$C$51,0)) -> 0123u000000VQdAAAW | M49: 0 | N49: 0 | O49: =ROUND('Food Service & DHW'!B6,3) -> 0 | P49: =0 -> 0 | Q49: =ROUND(MAX(O49:P49,'Food Service & DHW'!C6),3) -> 0 | R49: =ROUND('Food Service & DHW'!D6,0) -> 0 | S49: ='Food Service & DHW'!E6 -> 0 | T49: ='Food Service & DHW'!F6 -> 0 | U49: ='Food Service & DHW'!G6 -> 0 | Y49: 4 | AN49: ='Food Service & DHW'!H6 -> 0
I50: ENERGY STAR Electric Convection Oven | J50: 3 | K50: =INDEX('Savings Summary'!$Q$8:$Q$51,MATCH('DSMT Export'!I50,'Savings Summary'!$C$8:$C$51,0)) -> a1r3u000003FilFAAS | L50: =INDEX('Savings Summary'!$R$8:$R$51,MATCH('DSMT Export'!I50,'Savings Summary'!$C$8:$C$51,0)) -> 0123u000000VQdAAAW | M50: 0 | N50: 0 | O50: =ROUND('Food Service & DHW'!B7,3) -> 0 | P50: =0 -> 0 | Q50: =ROUND(MAX(O50:P50,'Food Service & DHW'!C7),3) -> 0 | R50: =ROUND('Food Service & DHW'!D7,0) -> 0 | S50: ='Food Service & DHW'!E7 -> 0 | T50: ='Food Service & DHW'!F7 -> 0 | U50: ='Food Service & DHW'!G7 -> 0 | Y50: 4 | AN50: ='Food Service & DHW'!H7 -> 0
I51: ENERGY STAR Combination Oven | J51: 1 | K51: =INDEX('Savings Summary'!$Q$8:$Q$51,MATCH('DSMT Export'!I51,'Savings Summary'!$C$8:$C$51,0)) -> a1r3u000003FilDAAS | L51: =INDEX('Savings Summary'!$R$8:$R$51,MATCH('DSMT Export'!I51,'Savings Summary'!$C$8:$C$51,0)) -> 0123u000000VQd9AAG | M51: 0 | N51: 0 | O51: =ROUND('Food Service & DHW'!B11,3) -> 0 | P51: =0 -> 0 | Q51: =ROUND(MAX(O51:P51,'Food Service & DHW'!C11),3) -> 0 | R51: =ROUND('Food Service & DHW'!D11,0) -> 0 | S51: ='Food Service & DHW'!E11 -> 0 | T51: ='Food Service & DHW'!F11 -> 0 | U51: ='Food Service & DHW'!G11 -> 0 | Y51: 4 | AO51: ='Food Service & DHW'!H11 -> 0
I52: ENERGY STAR Combination Oven | J52: 2 | K52: =INDEX('Savings Summary'!$Q$8:$Q$51,MATCH('DSMT Export'!I52,'Savings Summary'!$C$8:$C$51,0)) -> a1r3u000003FilDAAS | L52: =INDEX('Savings Summary'!$R$8:$R$51,MATCH('DSMT Export'!I52,'Savings Summary'!$C$8:$C$51,0)) -> 0123u000000VQd9AAG | M52: 0 | N52: 0 | O52: ='Food Service & DHW'!B12 -> 0 | P52: =0 -> 0 | Q52: =ROUND(MAX(O52:P52,'Food Service & DHW'!C12),3) -> 0 | R52: =ROUND('Food Service & DHW'!D12,0) -> 0 | S52: ='Food Service & DHW'!E12 -> 0 | T52: ='Food Service & DHW'!F12 -> 0 | U52: ='Food Service & DHW'!G12 -> 0 | Y52: 4 | AO52: ='Food Service & DHW'!H12 -> 0
I53: ENERGY STAR Combination Oven | J53: 3 | K53: =INDEX('Savings Summary'!$Q$8:$Q$51,MATCH('DSMT Export'!I53,'Savings Summary'!$C$8:$C$51,0)) -> a1r3u000003FilDAAS | L53: =INDEX('Savings Summary'!$R$8:$R$51,MATCH('DSMT Export'!I53,'Savings Summary'!$C$8:$C$51,0)) -> 0123u000000VQd9AAG | M53: 0 | N53: 0 | O53: ='Food Service & DHW'!B13 -> 0 | P53: =0 -> 0 | Q53: =ROUND(MAX(O53:P53,'Food Service & DHW'!C13),3) -> 0 | R53: =ROUND('Food Service & DHW'!D13,0) -> 0 | S53: ='Food Service & DHW'!E13 -> 0 | T53: ='Food Service & DHW'!F13 -> 0 | U53: ='Food Service & DHW'!G13 -> 0 | Y53: 4 | AO53: ='Food Service & DHW'!H13 -> 0
I54: ENERGY STAR Commercial Dishwashers | J54: 1 | K54: =INDEX('Savings Summary'!$Q$8:$Q$51,MATCH('DSMT Export'!I54,'Savings Summary'!$C$8:$C$51,0)) -> a1r3u000003FikyAAC | L54: =INDEX('Savings Summary'!$R$8:$R$51,MATCH('DSMT Export'!I54,'Savings Summary'!$C$8:$C$51,0)) -> 0123u000000VQd9AAG | M54: 0 | N54: 0 | O54: =ROUND('Food Service & DHW'!B17,3) -> 0 | P54: =0 -> 0 | Q54: =ROUND(MAX('Food Service & DHW'!C17,O54:P54),3) -> 0 | R54: =ROUND('Food Service & DHW'!D17,0) -> 0 | S54: ='Food Service & DHW'!E17 -> 0 | T54: ='Food Service & DHW'!F17 -> 0 | U54: ='Food Service & DHW'!G17 -> 0 | V54: ='Food Service & DHW'!I17 -> 0 | X54: ='Food Service & DHW'!H17 -> 0 | Y54: 4
